Workbook

Sheet Leden
A1: Datum, čas | B1: Pred [hPa] | C1: T [ºC] | D1: Rh [%] | E1: v max [m.s-1] | F1: Srážky [mm] | G1: Tdew [ºC]
A2: 2017-01-01 | B2: 1024 | C2: -6.9 | D2: 92 | E2: 0 | F2: 0 | G2: =(243.12*X2)/(17.62-X2) -> -7.981133309 | X2: =(LOG10(D2) - 2)/0.4343 + (17.62*C2 / (243.12 + C2)) -> -0.5980617789
A3: 2017-01-01T00:30:00 | B3: 1024 | C3: -7 | D3: 92 | E3: 0 | F3: 0 | G3: -8.080220234 | I3: Průměrná teplota | J3: =AVERAGE(C1:C1530) -> -4.133669355 | K3: °C | X3: -0.6057420606
A4: 2017-01-01T01:00:00 | B4: 1024 | C4: -7.3 | D4: 92 | E4: 0 | F4: 0 | G4: -8.377483314 | I4: Maximální teplota | J4: =MAX(C1:C1530) -> 5.1 | K4: °C | X4: -0.6288219879
A5: 2017-01-01T01:30:00 | B5: 1023 | C5: -7.8 | D5: 93 | E5: 0 | F5: 0 | G5: -8.734370205 | I5: Minimální teplota | J5: =MIN(C1:C1530) -> -16.6 | K5: °C | X5: -0.6566085265
A6: 2017-01-01T02:00:00 | B6: 1023 | C6: -7.7 | D6: 93 | E6: 0 | F6: 0 | G6: -8.635162923 | I6: Úhrn srážek | J6: =SUM(F2:F1614) -> 66 | K6: mm | X6: -0.648875947
A7: 2017-01-01T02:30:00 | B7: 1022 | C7: -7.6 | D7: 93 | E7: 0 | F7: 0 | G7: -8.535955976 | I7: Maximální náraz větru | J7: =MAX(E1:E1530) -> 23 | K7: m/s | X7: -0.6411499338
A8: 2017-01-01T03:00:00 | B8: 1022 | C8: -7.3 | D8: 93 | E8: 0 | F8: 0 | G8: -8.238337144 | X8: -0.6180112092
A9: 2017-01-01T03:30:00 | B9: 1022 | C9: -7.3 | D9: 92 | E9: 0 | F9: 0 | G9: -8.377483314 | X9: -0.6288219879
A10: 2017-01-01T04:00:00 | B10: 1021 | C10: -7.4 | D10: 92 | E10: 0 | F10: 0 | G10: -8.476571775 | X10: -0.636528352
A11: 2017-01-01T04:30:00 | B11: 1021 | C11: -7.6 | D11: 92 | E11: 0 | F11: 0 | G11: -8.674749849 | X11: -0.6519607126
A12: 2017-01-01T05:00:00 | B12: 1021 | C12: -7.7 | D12: 93 | E12: 0 | F12: 0 | G12: -8.635162923 | X12: -0.648875947
A13: 2017-01-01T05:30:00 | B13: 1021 | C13: -8 | D13: 92 | E13: 0 | F13: 0 | G13: -9.071110606 | X13: -0.682904197
A14: 2017-01-01T06:00:00 | B14: 1021 | C14: -8.2 | D14: 92 | E14: 1 | F14: 0 | G14: -9.269293288 | X14: -0.698415455
A15: 2017-01-01T06:30:00 | B15: 1020 | C15: -8.4 | D15: 92 | E15: 0 | F15: 0 | G15: -9.467477506 | X15: -0.7139531467
A16: 2017-01-01T07:00:00 | B16: 1020 | C16: -7.8 | D16: 92 | E16: 0 | F16: 0 | G16: -8.87292946 | X16: -0.6674193053
A17: 2017-01-01T07:30:00 | B17: 1019 | C17: -7.8 | D17: 91 | E17: 0 | F17: 0 | G17: -9.012836636 | X17: -0.6783482369
A18: 2017-01-01T08:00:00 | B18: 1019 | C18: -7.8 | D18: 90 | E18: 1 | F18: 0 | G18: -9.154119978 | X18: -0.6893979327
A19: 2017-01-01T08:30:00 | B19: 1019 | C19: -7.8 | D19: 90 | E19: 0 | F19: 0 | G19: -9.154119978 | X19: -0.6893979327
A20: 2017-01-01T09:00:00 | B20: 1019 | C20: -7.7 | D20: 89 | E20: 2 | F20: 0 | G20: -9.198077015 | X20: -0.6928385118
A21: 2017-01-01T09:30:00 | B21: 1019 | C21: -7.8 | D21: 88 | E21: 2 | F21: 0 | G21: -9.440932755 | X21: -0.711870503
A22: 2017-01-01T10:00:00 | B22: 1019 | C22: -7.4 | D22: 88 | E22: 1 | F22: 0 | G22: -9.046496538 | X22: -0.6809795498
A23: 2017-01-01T10:30:00 | B23: 1019 | C23: -6.9 | D23: 87 | E23: 2 | F23: 0 | G23: -8.700162681 | X23: -0.6539415273
A24: 2017-01-01T11:00:00 | B24: 1018 | C24: -6.3 | D24: 86 | E24: 2 | F24: 0 | G24: -8.258239637 | X24: -0.6195567221
A25: 2017-01-01T11:30:00 | B25: 1018 | C25: -4.9 | D25: 83 | E25: 3 | F25: 0 | G25: -7.343032751 | X25: -0.5487568976
A26: 2017-01-01T12:00:00 | B26: 1017 | C26: -2.7 | D26: 77 | E26: 3 | F26: 0 | G26: -6.175617208 | X26: -0.4592401556
A27: 2017-01-01T12:30:00 | B27: 1017 | C27: -1.8 | D27: 72 | E27: 2 | F27: 0 | G27: -6.184619142 | X27: -0.4599270438
A28: 2017-01-01T13:00:00 | B28: 1017 | C28: -1.2 | D28: 71 | E28: 3 | F28: 0 | G28: -5.790289343 | X28: -0.429886751
A29: 2017-01-01T13:30:00 | B29: 1017 | C29: -0.8 | D29: 70 | E29: 4 | F29: 0 | G29: -5.592300205 | X29: -0.4148414257
A30: 2017-01-01T14:00:00 | B30: 1016 | C30: -0.1 | D30: 69 | E30: 4 | F30: 0 | G30: -5.110178906 | X30: -0.3783093988
A31: 2017-01-01T14:30:00 | B31: 1016 | C31: 1 | D31: 67 | E31: 3 | F31: 0 | G31: -4.44694313 | X31: -0.3282948607
A32: 2017-01-01T15:00:00 | B32: 1015 | C32: 1.6 | D32: 61 | E32: 2 | F32: 0 | G32: -5.120487852 | X32: -0.3790889953
A33: 2017-01-01T15:30:00 | B33: 1016 | C33: -0.1 | D33: 64 | E33: 5 | F33: 0 | G33: -6.10078139 | X33: -0.4535318643
A34: 2017-01-01T16:00:00 | B34: 1016 | C34: -0.3 | D34: 64 | E34: 1 | F34: 0 | G34: -6.291030184 | X34: -0.468050644
A35: 2017-01-01T16:30:00 | B35: 1015 | C35: -0.5 | D35: 65 | E35: 0 | F35: 0 | G35: -6.278443452 | X35: -0.4670893708
A36: 2017-01-01T17:00:00 | B36: 1015 | C36: -2 | D36: 73 | E36: 0 | F36: 0 | G36: -6.196819115 | X36: -0.4608580402
A37: 2017-01-01T17:30:00 | B37: 1015 | C37: -2.3 | D37: 76 | E37: 0 | F37: 0 | G37: -5.958864969 | X37: -0.442716724
A38: 2017-01-01T18:00:00 | B38: 1015 | C38: -2.6 | D38: 76 | E38: 0 | F38: 0 | G38: -6.249823711 | X38: -0.4649040057
A39: 2017-01-01T18:30:00 | B39: 1015 | C39: -2.7 | D39: 78 | E39: 0 | F39: 0 | G39: -6.00638808 | X39: -0.4463369147
A40: 2017-01-01T19:00:00 | B40: 1015 | C40: -3.1 | D40: 79 | E40: 0 | F40: 0 | G40: -6.228708838 | X40: -0.4632920408
A41: 2017-01-01T19:30:00 | B41: 1015 | C41: -3.1 | D41: 80 | E41: 0 | F41: 0 | G41: -6.06381407 | X41: -0.4507134184
A42: 2017-01-01T20:00:00 | B42: 1015 | C42: -3.5 | D42: 82 | E42: 0 | F42: 0 | G42: -6.13070914 | X42: -0.4558142465
A43: 2017-01-01T20:30:00 | B43: 1015 | C43: -3.3 | D43: 82 | E43: 0 | F43: 0 | G43: -5.935078294 | X43: -0.4409052599
A44: 2017-01-01T21:00:00 | B44: 1014 | C44: -3 | D44: 82 | E44: 1 | F44: 0 | G44: -5.641638749 | X44: -0.4185883473
A45: 2017-01-01T21:30:00 | B45: 1014 | C45: -3.5 | D45: 83 | E45: 1 | F45: 0 | G45: -5.971683179 | X45: -0.44369304
A46: 2017-01-01T22:00:00 | B46: 1014 | C46: -3.4 | D46: 83 | E46: 0 | F46: 0 | G46: -5.873735963 | X46: -0.436235437
A47: 2017-01-01T22:30:00 | B47: 1014 | C47: -3.6 | D47: 85 | E47: 3 | F47: 0 | G47: -5.756884357 | X47: -0.4273465239
A48: 2017-01-01T23:00:00 | B48: 1014 | C48: -3.5 | D48: 84 | E48: 0 | F48: 0 | G48: -5.814352025 | X48: -0.4317170011
A49: 2017-01-01T23:30:00 | B49: 1014 | C49: -3.5 | D49: 84 | E49: 0 | F49: 0 | G49: -5.814352025 | X49: -0.4317170011
A50: 2017-01-02 | B50: 1014 | C50: -3.8 | D50: 84 | E50: 0 | F50: 0 | G50: -6.108588513 | X50: -0.4541272039
A51: 2017-01-02T00:30:00 | B51: 1013 | C51: -3.8 | D51: 86 | E51: 2 | F51: 0 | G51: -5.799627788 | X51: -0.4305970055
A52: 2017-01-02T01:00:00 | B52: 1013 | C52: -4.1 | D52: 85 | E52: 1 | F52: 0 | G52: -6.247929105 | X52: -0.4647593547
A53: 2017-01-02T01:30:00 | B53: 1013 | C53: -3.8 | D53: 85 | E53: 4 | F53: 0 | G53: -5.953300041 | X53: -0.4422928967
A54: 2017-01-02T02:00:00 | B54: 1013 | C54: -4.1 | D54: 85 | E54: 0 | F54: 0 | G54: -6.247929105 | X54: -0.4647593547
A55: 2017-01-02T02:30:00 | B55: 1013 | C55: -4.3 | D55: 86 | E55: 0 | F55: 0 | G55: -6.291315822 | X55: -0.4680724599
A56: 2017-01-02T03:00:00 | B56: 1013 | C56: -4.9 | D56: 87 | E56: 0 | F56: 0 | G56: -6.730656423 | X56: -0.5016899848
A57: 2017-01-02T03:30:00 | B57: 1013 | C57: -5.2 | D57: 89 | E57: 0 | F57: 0 | G57: -6.72995968 | X57: -0.5016365723
A58: 2017-01-02T04:00:00 | B58: 1012 | C58: -5.1 | D58: 89 | E58: 0 | F58: 0 | G58: -6.631241924 | X58: -0.4940720382
A59: 2017-01-02T04:30:00 | B59: 1012 | C59: -5.1 | D59: 89 | E59: 0 | F59: 0 | G59: -6.631241924 | X59: -0.4940720382
A60: 2017-01-02T05:00:00 | B60: 1012 | C60: -4.8 | D60: 90 | E60: 0 | F60: 0 | G60: -6.18876444 | X60: -0.4602433663
A61: 2017-01-02T05:30:00 | B61: 1012 | C61: -4.4 | D61: 89 | E61: 0 | F61: 0 | G61: -5.940232576 | X61: -0.4412977512
A62: 2017-01-02T06:00:00 | B62: 1012 | C62: -4.1 | D62: 88 | E62: 0 | F62: 0 | G62: -5.792754492 | X62: -0.4300742375
A63: 2017-01-02T06:30:00 | B63: 1012 | C63: -4.1 | D63: 89 | E63: 0 | F63: 0 | G63: -5.644093716 | X63: -0.4187748258
A64: 2017-01-02T07:00:00 | B64: 1012 | C64: -4 | D64: 89 | E64: 0 | F64: 0 | G64: -5.54538183 | X64: -0.4112797428
A65: 2017-01-02T07:30:00 | B65: 1012 | C65: -3.8 | D65: 89 | E65: 0 | F65: 0 | G65: -5.347959659 | X65: -0.3963083677
A66: 2017-01-02T08:00:00 | B66: 1012 | C66: -3.6 | D66: 89 | E66: 0 | F66: 0 | G66: =(243.12*X66)/(17.62-X66) -> -5.150539622 | X66: =(LOG10(D66) - 2)/0.4343 + (17.62*C66 / (243.12 + C66)) -> -0.3813619949
A67: 2017-01-02T08:30:00 | B67: 1012 | C67: -3.6 | D67: 90 | E67: 0 | F67: 0 | G67: -5.002744034 | X67: -0.3701888363
A68: 2017-01-02T09:00:00 | B68: 1012 | C68: -3.8 | D68: 91 | E68: 0 | F68: 0 | G68: -5.054309091 | X68: -0.3740855133
A69: 2017-01-02T09:30:00 | B69: 1012 | C69: -3.6 | D69: 91 | E69: 0 | F69: 0 | G69: -4.856400919 | X69: -0.3591391405
A70: 2017-01-02T10:00:00 | B70: 1012 | C70: -3.3 | D70: 92 | E70: 0 | F70: 0 | G70: -4.4142597 | X70: -0.3258373921
A71: 2017-01-02T10:30:00 | B71: 1012 | C71: -3 | D71: 92 | E71: 0 | F71: 0 | G71: -4.117042691 | X71: -0.3035204796
A72: 2017-01-02T11:00:00 | B72: 1012 | C72: -2.7 | D72: 92 | E72: 0 | F72: 0 | G72: -3.819829137 | X72: -0.2812592618
A73: 2017-01-02T11:30:00 | B73: 1012 | C73: -2.6 | D73: 92 | E73: 0 | F73: 0 | G73: -3.72075872 | X73: -0.2738511964
A74: 2017-01-02T12:00:00 | B74: 1012 | C74: -2.2 | D74: 93 | E74: 0 | F74: 0 | G74: -3.179277951 | X74: -0.2334696546
A75: 2017-01-02T12:30:00 | B75: 1012 | C75: -2.2 | D75: 93 | E75: 0 | F75: 0 | G75: -3.179277951 | X75: -0.2334696546
A76: 2017-01-02T13:00:00 | B76: 1012 | C76: -2.3 | D76: 93 | E76: 0 | F76: 0 | G76: -3.278466821 | X76: -0.2408531359
A77: 2017-01-02T13:30:00 | B77: 1012 | C77: -2.3 | D77: 93 | E77: 0 | F77: 0 | G77: -3.278466821 | X77: -0.2408531359
A78: 2017-01-02T14:00:00 | B78: 1012 | C78: -2 | D78: 93 | E78: 0 | F78: 0 | G78: -2.980901213 | X78: -0.2187210647
A79: 2017-01-02T14:30:00 | B79: 1011 | C79: -2.2 | D79: 93 | E79: 0 | F79: 0 | G79: -3.179277951 | X79: -0.2334696546
A80: 2017-01-02T15:00:00 | B80: 1012 | C80: -2 | D80: 94 | E80: 0 | F80: 0 | G80: -2.836840145 | X80: -0.2080259115
A81: 2017-01-02T15:30:00 | B81: 1012 | C81: -1.7 | D81: 94 | E81: 0 | F81: 0 | G81: -2.5389202 | X81: -0.185948845
A82: 2017-01-02T16:00:00 | B82: 1012 | C82: -1.8 | D82: 94 | E82: 0 | F82: 0 | G82: -2.638226562 | X82: -0.1933017682
A83: 2017-01-02T16:30:00 | B83: 1012 | C83: -1.7 | D83: 94 | E83: 0 | F83: 0 | G83: -2.5389202 | X83: -0.185948845
A84: 2017-01-02T17:00:00 | B84: 1012 | C84: -1.4 | D84: 94 | E84: 0 | F84: 0 | G84: -2.241002828 | X84: -0.1639265785
A85: 2017-01-02T17:30:00 | B85: 1013 | C85: -1.2 | D85: 94 | E85: 0 | F85: 0 | G85: -2.042392677 | X85: -0.1492754112
A86: 2017-01-02T18:00:00 | B86: 1013 | C86: -1.1 | D86: 95 | E86: 1 | F86: 0 | G86: -1.799317322 | X86: -0.1313769332
A87: 2017-01-02T18:30:00 | B87: 1013 | C87: -1 | D87: 95 | E87: 0 | F87: 0 | G87: -1.699894506 | X87: -0.1240664738
A88: 2017-01-02T19:00:00 | B88: 1014 | C88: -1 | D88: 95 | E88: 0 | F88: 0 | G88: -1.699894506 | X88: -0.1240664738
A89: 2017-01-02T19:30:00 | B89: 1014 | C89: -0.9 | D89: 95 | E89: 0 | F89: 0 | G89: -1.600471928 | X89: -0.1167620506
A90: 2017-01-02T20:00:00 | B90: 1014 | C90: -0.9 | D90: 95 | E90: 0 | F90: 0 | G90: -1.600471928 | X90: -0.1167620506
A91: 2017-01-02T20:30:00 | B91: 1014 | C91: -0.8 | D91: 95 | E91: 1 | F91: 0 | G91: -1.501049587 | X91: -0.1094636562
A92: 2017-01-02T21:00:00 | B92: 1014 | C92: -0.8 | D92: 95 | E92: 0 | F92: 0 | G92: -1.501049587 | X92: -0.1094636562
A93: 2017-01-02T21:30:00 | B93: 1015 | C93: -0.8 | D93: 94 | E93: 2 | F93: 0 | G93: -1.645175804 | X93: -0.1200456311
A94: 2017-01-02T22:00:00 | B94: 1015 | C94: -0.8 | D94: 95 | E94: 1 | F94: 0 | G94: -1.501049587 | X94: -0.1094636562
A95: 2017-01-02T22:30:00 | B95: 1015 | C95: -0.9 | D95: 94 | E95: 1 | F95: 0 | G95: -1.744479593 | X95: -0.1273440255
A96: 2017-01-02T23:00:00 | B96: 1015 | C96: -0.9 | D96: 93 | E96: 2 | F96: 0 | G96: -1.889853086 | X96: -0.1380391787
A97: 2017-01-02T23:30:00 | B97: 1016 | C97: -1 | D97: 93 | E97: 0 | F97: 5 | G97: -1.989037606 | H97: 5cm | X97: -0.1453436019
A98: 2017-01-03 | B98: 1016 | C98: -1.1 | D98: 93 | E98: 0 | F98: 0 | G98: -2.08822246 | X98: -0.1526540613
A99: 2017-01-03T00:30:00 | B99: 1016 | C99: -1.3 | D99: 94 | E99: 0 | F99: 0 | G99: -2.14169761 | X99: -0.1565979655
A100: 2017-01-03T01:00:00 | B100: 1017 | C100: -1.5 | D100: 94 | E100: 0 | F100: 0 | G100: -2.340308333 | X100: -0.1712612577
A101: 2017-01-03T01:30:00 | B101: 1016 | C101: -1.5 | D101: 93 | E101: 0 | F101: 0 | G101: -2.484965226 | X101: -0.181956411
A102: 2017-01-03T02:00:00 | B102: 1016 | C102: -2 | D102: 92 | E102: 0 | F102: 0 | G102: -3.12634428 | X102: -0.2295318435
A103: 2017-01-03T02:30:00 | B103: 1017 | C103: -2 | D103: 92 | E103: 0 | F103: 0 | G103: -3.12634428 | X103: -0.2295318435
A104: 2017-01-03T03:00:00 | B104: 1017 | C104: -1.8 | D104: 91 | E104: 0 | F104: 0 | G104: -3.075305384 | X104: -0.2257366319
A105: 2017-01-03T03:30:00 | B105: 1016 | C105: -1.5 | D105: 91 | E105: 0 | F105: 0 | G105: -2.778469779 | X105: -0.2036961214
A106: 2017-01-03T04:00:00 | B106: 1017 | C106: -2 | D106: 91 | E106: 0 | F106: 0 | G106: -3.273197953 | X106: -0.2404607751
A107: 2017-01-03T04:30:00 | B107: 1016 | C107: -1.4 | D107: 90 | E107: 0 | F107: 0 | G107: -2.828554043 | X107: -0.2074111379
A108: 2017-01-03T05:00:00 | B108: 1016 | C108: -1.4 | D108: 90 | E108: 0 | F108: 0 | G108: -2.828554043 | X108: -0.2074111379
A109: 2017-01-03T05:30:00 | B109: 1016 | C109: -1.6 | D109: 90 | E109: 0 | F109: 0 | G109: -3.026198014 | X109: -0.2220865702
A110: 2017-01-03T06:00:00 | B110: 1015 | C110: -1.9 | D110: 91 | E110: 0 | F110: 0 | G110: -3.174251452 | X110: -0.2330956515
A111: 2017-01-03T06:30:00 | B111: 1015 | C111: -1.6 | D111: 92 | E111: 0 | F111: 0 | G111: -2.730075664 | X111: -0.2001079427
A112: 2017-01-03T07:00:00 | B112: 1015 | C112: -1.6 | D112: 91 | E112: 0 | F112: 0 | G112: -2.877414547 | X112: -0.2110368744
A113: 2017-01-03T07:30:00 | B113: 1016 | C113: -1.8 | D113: 92 | E113: 0 | F113: 0 | G113: -2.928209205 | X113: -0.2148077002
A114: 2017-01-03T08:00:00 | B114: 1015 | C114: -1.6 | D114: 92 | E114: 0 | F114: 0 | G114: -2.730075664 | X114: -0.2001079427
A115: 2017-01-03T08:30:00 | B115: 1016 | C115: -1.6 | D115: 92 | E115: 0 | F115: 0 | G115: -2.730075664 | X115: -0.2001079427
A116: 2017-01-03T09:00:00 | B116: 1015 | C116: -1 | D116: 92 | E116: 0 | F116: 0 | G116: -2.135684255 | X116: -0.1561543807
A117: 2017-01-03T09:30:00 | B117: 1016 | C117: -0.4 | D117: 92 | E117: 0 | F117: 0 | G117: -1.541306664 | X117: -0.1124181237
A118: 2017-01-03T10:00:00 | B118: 1015 | C118: -0.2 | D118: 92 | E118: 0 | F118: 0 | G118: -1.343183871 | X118: -0.09788738304
A119: 2017-01-03T10:30:00 | B119: 1016 | C119: 0 | D119: 91 | E119: 0 | F119: 0 | G119: -1.294350259 | X119: -0.09430948119
A120: 2017-01-03T11:00:00 | B120: 1016 | C120: 0.3 | D120: 91 | E120: 2 | F120: 0 | G120: -0.9975380548 | I120: 2017-01-01 | J120: 0 | X120: -0.07259392782
A121: 2017-01-03T11:30:00 | B121: 1016 | C121: 0.4 | D121: 91 | E121: 0 | F121: 0 | G121: -0.8986015201 | I121: 2017-01-02 | J121: 5 | X121: -0.06536729985
A122: 2017-01-03T12:00:00 | B122: 1015 | C122: 0.8 | D122: 90 | E122: 2 | F122: 0 | G122: -0.6545979345 | I122: 2017-01-03 | J122: 0 | X122: -0.04756973782
A123: 2017-01-03T12:30:00 | B123: 1015 | C123: 0.9 | D123: 89 | E123: 6 | F123: 0 | G123: -0.7091529718 | I123: 2017-01-04 | J123: 30 | X123: -0.05154585909
A124: 2017-01-03T13:00:00 | B124: 1015 | C124: 0.9 | D124: 89 | E124: 5 | F124: 0 | G124: -0.7091529718 | I124: 2017-01-05 | J124: 3 | X124: -0.05154585909
A125: 2017-01-03T13:30:00 | B125: 1015 | C125: 1.2 | D125: 89 | E125: 7 | F125: 0 | G125: -0.4130989355 | I125: 2017-01-06 | J125: 2 | X125: -0.02999009592
A126: 2017-01-03T14:00:00 | B126: 1015 | C126: 1 | D126: 89 | E126: 10 | F126: 0 | G126: -0.6104677597 | I126: 2017-01-07 | J126: 0 | X126: -0.04435471804
A127: 2017-01-03T14:30:00 | B127: 1015 | C127: 0.9 | D127: 90 | E127: 2 | F127: 0 | G127: -0.5557873043 | I127: 2017-01-08 | J127: 2 | X127: -0.04037270046
A128: 2017-01-03T15:00:00 | B128: 1014 | C128: 0.8 | D128: 90 | E128: 8 | F128: 0 | G128: -0.6545979345 | I128: 2017-01-09 | J128: 0 | X128: -0.04756973782
A129: 2017-01-03T15:30:00 | B129: 1014 | C129: 1 | D129: 90 | E129: 1 | F129: 0 | G129: -0.4569771572 | I129: 2017-01-10 | J129: 0 | X129: -0.03318155941
A130: 2017-01-03T16:00:00 | B130: 1014 | C130: 0.9 | D130: 89 | E130: 4 | F130: 0 | G130: =(243.12*X130)/(17.62-X130) -> -0.7091529718 | I130: 2017-01-11 | J130: 0 | X130: =(LOG10(D130) - 2)/0.4343 + (17.62*C130 / (243.12 + C130)) -> -0.05154585909
A131: 2017-01-03T16:30:00 | B131: 1014 | C131: 0.8 | D131: 90 | E131: 5 | F131: 0 | G131: -0.6545979345 | I131: 2017-01-12 | J131: 6 | X131: -0.04756973782
A132: 2017-01-03T17:00:00 | B132: 1014 | C132: 0.8 | D132: 90 | E132: 1 | F132: 0 | G132: -0.6545979345 | I132: 2017-01-13 | J132: 0 | X132: -0.04756973782
A133: 2017-01-03T17:30:00 | B133: 1013 | C133: 0.6 | D133: 91 | E133: 4 | F133: 0 | G133: -0.7007297504 | I133: 2017-01-14 | J133: 8 | X133: -0.05093183471
A134: 2017-01-03T18:00:00 | B134: 1013 | C134: 0.4 | D134: 92 | E134: 0 | F134: 0 | G134: -0.7488247035 | I134: 2017-01-15 | J134: 7 | X134: -0.05443836817
A135: 2017-01-03T18:30:00 | B135: 1013 | C135: 0.1 | D135: 93 | E135: 0 | F135: 0 | G135: -0.8980262928 | I135: 2017-01-16 | J135: 0 | X135: -0.06532530074
A136: 2017-01-03T19:00:00 | B136: 1012 | C136: 0.1 | D136: 94 | E136: 0 | F136: 0 | G136: -0.7514545625 | I136: 2017-01-17 | J136: 0 | X136: -0.05463014752
A137: 2017-01-03T19:30:00 | B137: 1012 | C137: 0.1 | D137: 94 | E137: 2 | F137: 0 | G137: -0.7514545625 | I137: 2017-01-18 | J137: 0 | X137: -0.05463014752
A138: 2017-01-03T20:00:00 | B138: 1012 | C138: 0.1 | D138: 94 | E138: 2 | F138: 0 | G138: -0.7514545625 | I138: 2017-01-19 | J138: 0 | X138: -0.05463014752
A139: 2017-01-03T20:30:00 | B139: 1011 | C139: 0.1 | D139: 94 | E139: 7 | F139: 0 | G139: -0.7514545625 | I139: 2017-01-20 | J139: 0 | X139: -0.05463014752
A140: 2017-01-03T21:00:00 | B140: 1011 | C140: 0.3 | D140: 93 | E140: 7 | F140: 0 | G140: -0.6996649502 | I140: 2017-01-21 | J140: 1 | X140: -0.05085421741
A141: 2017-01-03T21:30:00 | B141: 1011 | C141: 0.1 | D141: 93 | E141: 2 | F141: 0 | G141: -0.8980262928 | I141: 2017-01-22 | J141: 0 | X141: -0.06532530074
A142: 2017-01-03T22:00:00 | B142: 1010 | C142: 0 | D142: 93 | E142: 2 | F142: 0 | G142: -0.9972074661 | I142: 2017-01-23 | J142: 0 | X142: -0.07256977077
A143: 2017-01-03T22:30:00 | B143: 1009 | C143: -0.2 | D143: 94 | E143: 8 | F143: 0 | G143: -1.04935907 | I143: 2017-01-24 | J143: 0 | X143: -0.07638145107
A144: 2017-01-03T23:00:00 | B144: 1009 | C144: -0.3 | D144: 94 | E144: 0 | F144: 0 | G144: -1.148661144 | I144: 2017-01-25 | J144: 0 | X144: -0.08364382931
A145: 2017-01-03T23:30:00 | B145: 1008 | C145: -0.5 | D145: 95 | E145: 0 | F145: 0 | G145: -1.202783988 | I145: 2017-01-26 | J145: 0 | X145: -0.08760457079
A146: 2017-01-04 | B146: 1008 | C146: -0.6 | D146: 95 | E146: 0 | F146: 0 | G146: -1.302205617 | I146: 2017-01-27 | J146: 0 | X146: -0.09488492372
A147: 2017-01-04T00:30:00 | B147: 1007 | C147: -0.6 | D147: 95 | E147: 1 | F147: 0 | G147: -1.302205617 | I147: 2017-01-28 | J147: 0 | X147: -0.09488492372
A148: 2017-01-04T01:00:00 | B148: 1006 | C148: -0.7 | D148: 96 | E148: 0 | F148: 0 | G148: -1.258723449 | I148: 2017-01-29 | J148: 0 | X148: -0.09170011622
A149: 2017-01-04T01:30:00 | B149: 1006 | C149: -0.7 | D149: 96 | E149: 0 | F149: 0 | G149: -1.258723449 | I149: 2017-01-30 | J149: 1 | X149: -0.09170011622
A150: 2017-01-04T02:00:00 | B150: 1005 | C150: -0.7 | D150: 96 | E150: 0 | F150: 0 | G150: -1.258723449 | I150: 2017-01-31 | J150: 1 | X150: -0.09170011622
A151: 2017-01-04T02:30:00 | B151: 1004 | C151: -0.6 | D151: 96 | E151: 0 | F151: 0 | G151: -1.159183967 | X151: -0.0844137569
A152: 2017-01-04T03:00:00 | B152: 1004 | C152: -0.7 | D152: 96 | E152: 0 | F152: 0 | G152: -1.258723449 | X152: -0.09170011622
A153: 2017-01-04T03:30:00 | B153: 1004 | C153: -0.6 | D153: 96 | E153: 0 | F153: 0 | G153: -1.159183967 | X153: -0.0844137569
A154: 2017-01-04T04:00:00 | B154: 1003 | C154: -0.5 | D154: 96 | E154: 0 | F154: 0 | G154: -1.059644675 | X154: -0.07713340397
A155: 2017-01-04T04:30:00 | B155: 1002 | C155: -0.5 | D155: 96 | E155: 0 | F155: 0 | G155: -1.059644675 | X155: -0.07713340397
A156: 2017-01-04T05:00:00 | B156: 1002 | C156: -0.5 | D156: 96 | E156: 0 | F156: 0 | G156: -1.059644675 | X156: -0.07713340397
A157: 2017-01-04T05:30:00 | B157: 1001 | C157: -0.4 | D157: 96 | E157: 0 | F157: 0 | G157: -0.9601055718 | X157: -0.06985905001
A158: 2017-01-04T06:00:00 | B158: 1001 | C158: -0.3 | D158: 96 | E158: 0 | F158: 0 | G158: -0.8605666579 | X158: -0.06259068761
A159: 2017-01-04T06:30:00 | B159: 1000 | C159: -0.1 | D159: 96 | E159: 0 | F159: 0 | G159: -0.6614893981 | X159: -0.04807190791
A160: 2017-01-04T07:00:00 | B160: 1000 | C160: 0 | D160: 96 | E160: 0 | F160: 0 | G160: -0.561951052 | X160: -0.04082147585
A161: 2017-01-04T07:30:00 | B161: 999 | C161: 0 | D161: 96 | E161: 0 | F161: 0 | G161: -0.561951052 | X161: -0.04082147585
A162: 2017-01-04T08:00:00 | B162: 998 | C162: 0.1 | D162: 96 | E162: 1 | F162: 15 | G162: -0.4624128953 | H162: 20cm | X162: -0.03357700582
A163: 2017-01-04T08:30:00 | B163: 999 | C163: 0.2 | D163: 96 | E163: 1 | F163: 0 | G163: -0.3628749278 | X163: -0.02633849048
A164: 2017-01-04T09:00:00 | B164: 999 | C164: 0.2 | D164: 96 | E164: 0 | F164: 0 | G164: -0.3628749278 | X164: -0.02633849048
A165: 2017-01-04T09:30:00 | B165: 999 | C165: 0.6 | D165: 96 | E165: 0 | F165: 0 | G165: 0.03527504956 | X165: 0.002556170632
A166: 2017-01-04T10:00:00 | B166: 999 | C166: 0.8 | D166: 96 | E166: 0 | F166: 0 | G166: 0.2343489026 | X166: 0.01696796331
A167: 2017-01-04T10:30:00 | B167: 999 | C167: 0.8 | D167: 96 | E167: 0 | F167: 0 | G167: 0.2343489026 | X167: 0.01696796331
A168: 2017-01-04T11:00:00 | B168: 999 | C168: 1.1 | D168: 95 | E168: 4 | F168: 0 | G168: 0.3879297863 | X168: 0.02807022687
A169: 2017-01-04T11:30:00 | B169: 998 | C169: 1.3 | D169: 95 | E169: 12 | F169: 0 | G169: 0.5867647351 | X169: 0.04242309254
A170: 2017-01-04T12:00:00 | B170: 998 | C170: 1.2 | D170: 94 | E170: 10 | F170: 0 | G170: 0.3408399549 | X170: 0.02466762214
A171: 2017-01-04T12:30:00 | B171: 998 | C171: 1.7 | D171: 93 | E171: 10 | F171: 0 | G171: 0.6888269675 | X171: 0.04978134433
A172: 2017-01-04T13:00:00 | B172: 998 | C172: 1.3 | D172: 91 | E172: 15 | F172: 0 | G172: -0.008192205308 | X172: -0.0005937459757
A173: 2017-01-04T13:30:00 | B173: 998 | C173: 1.7 | D173: 91 | E173: 13 | F173: 0 | G173: 0.3875340026 | X173: 0.02804163392
A174: 2017-01-04T14:00:00 | B174: 998 | C174: 1.5 | D174: 89 | E174: 11 | F174: 0 | G174: -0.1170496995 | X174: -0.008487204385
A175: 2017-01-04T14:30:00 | B175: 998 | C175: 1.6 | D175: 88 | E175: 10 | F175: 0 | G175: -0.1741530307 | X175: -0.0126307012
A176: 2017-01-04T15:00:00 | B176: 997 | C176: 1.9 | D176: 87 | E176: 12 | F176: 0 | G176: -0.03623567346 | X176: -0.002626553724
A177: 2017-01-04T15:30:00 | B177: 997 | C177: 1.5 | D177: 87 | E177: 17 | F177: 0 | G177: -0.4299438454 | X177: -0.03121516668
A178: 2017-01-04T16:00:00 | B178: 997 | C178: 1.2 | D178: 88 | E178: 15 | F178: 0 | G178: -0.5683789446 | X178: -0.04128950761
A179: 2017-01-04T16:30:00 | B179: 997 | C179: 0.8 | D179: 91 | E179: 19 | F179: 0 | G179: -0.5028597139 | X179: -0.03652004203
A180: 2017-01-04T17:00:00 | B180: 997 | C180: 0.8 | D180: 92 | E180: 13 | F180: 0 | G180: -0.3525929344 | X180: -0.02559111035
A181: 2017-01-04T17:30:00 | B181: 998 | C181: 0.3 | D181: 92 | E181: 12 | F181: 0 | G181: -0.8478836053 | X181: -0.06166499615
A182: 2017-01-04T18:00:00 | B182: 998 | C182: -0.4 | D182: 94 | E182: 5 | F182: 0 | G182: -1.247963505 | X182: -0.09091219171
A183: 2017-01-04T18:30:00 | B183: 998 | C183: -0.6 | D183: 95 | E183: 9 | F183: 0 | G183: -1.302205617 | X183: -0.09488492372
A184: 2017-01-04T19:00:00 | B184: 999 | C184: -0.4 | D184: 96 | E184: 8 | F184: 0 | G184: -0.9601055718 | X184: -0.06985905001
A185: 2017-01-04T19:30:00 | B185: 999 | C185: -0.8 | D185: 96 | E185: 10 | F185: 0 | G185: -1.35826312 | X185: -0.09899248938
A186: 2017-01-04T20:00:00 | B186: 1000 | C186: -0.8 | D186: 97 | E186: 9 | F186: 0 | G186: -1.216790088 | X186: -0.08862983401
A187: 2017-01-04T20:30:00 | B187: 1001 | C187: -0.9 | D187: 97 | E187: 10 | F187: 0 | G187: -1.316446454 | X187: -0.09592822845
A188: 2017-01-04T21:00:00 | B188: 1001 | C188: -1 | D188: 97 | E188: 11 | F188: 0 | G188: -1.416102963 | X188: -0.1032326516
A189: 2017-01-04T21:30:00 | B189: 1001 | C189: -1.1 | D189: 97 | E189: 9 | F189: 0 | G189: -1.515759612 | X189: -0.110543111
A190: 2017-01-04T22:00:00 | B190: 1002 | C190: -1.1 | D190: 96 | E190: 9 | F190: 0 | G190: -1.656883268 | X190: -0.1209057664
A191: 2017-01-04T22:30:00 | B191: 1002 | C191: -1.1 | D191: 96 | E191: 10 | F191: 0 | G191: -1.656883268 | X191: -0.1209057664
A192: 2017-01-04T23:00:00 | B192: 1003 | C192: -1.3 | D192: 96 | E192: 11 | F192: 0 | G192: -1.855964314 | X192: -0.1355448238
A193: 2017-01-04T23:30:00 | B193: 1003 | C193: -1.4 | D193: 95 | E193: 7 | F193: 15 | G193: -2.097587194 | H193: 20cm | X193: -0.1533446036
A194: 2017-01-05 | B194: 1004 | C194: -1.5 | D194: 95 | E194: 3 | F194: 0 | G194: =(243.12*X194)/(17.62-X194) -> -2.197010959 | X194: =(LOG10(D194) - 2)/0.4343 + (17.62*C194 / (243.12 + C194)) -> -0.1606792828
A195: 2017-01-05T00:30:00 | B195: 1004 | C195: -1.5 | D195: 95 | E195: 6 | F195: 0 | G195: -2.197010959 | X195: -0.1606792828
A196: 2017-01-05T01:00:00 | B196: 1004 | C196: -1.6 | D196: 95 | E196: 9 | F196: 0 | G196: -2.296434962 | X196: -0.1680200358
A197: 2017-01-05T01:30:00 | B197: 1004 | C197: -1.6 | D197: 95 | E197: 7 | F197: 0 | G197: -2.296434962 | X197: -0.1680200358
A198: 2017-01-05T02:00:00 | B198: 1005 | C198: -1.8 | D198: 95 | E198: 7 | F198: 0 | G198: -2.49528368 | X198: -0.1827197933
A199: 2017-01-05T02:30:00 | B199: 1005 | C199: -2.3 | D199: 95 | E199: 8 | F199: 0 | G199: -2.992409629 | X199: -0.2195760078
A200: 2017-01-05T03:00:00 | B200: 1006 | C200: -2.3 | D200: 95 | E200: 10 | F200: 0 | G200: -2.992409629 | X200: -0.2195760078
... 1289 more rows

Sheet Unor
A1: Datum, čas | B1: Pred [hPa] | C1: T [ºC] | D1: Rh [%] | E1: v max [m.s-1] | F1: Srážky [mm] | G1: Tdew [ºC]
A2: 2017-02-01 | B2: 1016 | C2: -4.2 | D2: 91 | E2: 0 | F2: 0 | G2: =(243.12*X2)/(17.62-X2) -> -5.450130636 | X2: =(LOG10(D2) - 2)/0.4343 + (17.62*C2 / (243.12 + C2)) -> -0.4040533285
A3: 2017-02-01T00:30:00 | B3: 1016 | C3: -4.2 | D3: 92 | E3: 0 | F3: 0 | G3: -5.305931456 | I3: Průměrná teplota | J3: =AVERAGE(C1:C1530) -> 1.790922619 | K3: °C | X3: -0.3931243968
A4: 2017-02-01T01:00:00 | B4: 1016 | C4: -4.3 | D4: 92 | E4: 0 | F4: 0 | G4: -5.405008015 | I4: Maximální teplota | J4: =MAX(C1:C1530) -> 15.1 | K4: °C | X4: -0.400632036
A5: 2017-02-01T01:30:00 | B5: 1016 | C5: -4.5 | D5: 92 | E5: 0 | F5: 0 | G5: -5.603162285 | I5: Minimální teplota | J5: =MIN(C1:C1530) -> -8 | K5: °C | X5: -0.415666192
A6: 2017-02-01T02:00:00 | B6: 1016 | C6: -4.6 | D6: 92 | E6: 0 | F6: 0 | G6: -5.702239996 | I6: Úhrn srážek | J6: =SUM(F2:F1614) -> 22 | K6: mm | X6: -0.4231927246
A7: 2017-02-01T02:30:00 | B7: 1016 | C7: -4.4 | D7: 92 | E7: 0 | F7: 0 | G7: -5.504084958 | I7: Maximální náraz větru | J7: =MAX(E1:E1530) -> 26 | K7: m/s | X7: -0.4081459651
A8: 2017-02-01T03:00:00 | B8: 1016 | C8: -4.3 | D8: 91 | E8: 0 | F8: 0 | G8: -5.549087106 | X8: -0.4115609677
A9: 2017-02-01T03:30:00 | B9: 1016 | C9: -4.2 | D9: 91 | E9: 0 | F9: 0 | G9: -5.450130636 | X9: -0.4040533285
A10: 2017-02-01T04:00:00 | B10: 1017 | C10: -4.2 | D10: 92 | E10: 0 | F10: 0 | G10: -5.305931456 | X10: -0.3931243968
A11: 2017-02-01T04:30:00 | B11: 1016 | C11: -4.2 | D11: 92 | E11: 0 | F11: 0 | G11: -5.305931456 | X11: -0.3931243968
A12: 2017-02-01T05:00:00 | B12: 1017 | C12: -4.1 | D12: 92 | E12: 0 | F12: 0 | G12: -5.206855281 | X12: -0.3856230397
A13: 2017-02-01T05:30:00 | B13: 1017 | C13: -4.3 | D13: 92 | E13: 0 | F13: 0 | G13: -5.405008015 | X13: -0.400632036
A14: 2017-02-01T06:00:00 | B14: 1017 | C14: -4.4 | D14: 93 | E14: 0 | F14: 0 | G14: -5.361510429 | X14: -0.3973351863
A15: 2017-02-01T06:30:00 | B15: 1017 | C15: -5.4 | D15: 93 | E15: 0 | F15: 0 | G15: -6.353487839 | X15: -0.4728221686
A16: 2017-02-01T07:00:00 | B16: 1017 | C16: -5.3 | D16: 93 | E16: 0 | F16: 0 | G16: -6.254288591 | X16: -0.4652449032
A17: 2017-02-01T07:30:00 | B17: 1018 | C17: -5 | D17: 93 | E17: 0 | F17: 0 | G17: -5.956692858 | X17: -0.4425512927
A18: 2017-02-01T08:00:00 | B18: 1018 | C18: -5 | D18: 93 | E18: 0 | F18: 0 | G18: -5.956692858 | X18: -0.4425512927
A19: 2017-02-01T08:30:00 | B19: 1018 | C19: -5.9 | D19: 93 | E19: 0 | F19: 0 | G19: -6.849489097 | X19: -0.510804321
A20: 2017-02-01T09:00:00 | B20: 1017 | C20: -6.4 | D20: 93 | E20: 0 | F20: 0 | G20: -7.345498724 | X20: -0.5489469252
A21: 2017-02-01T09:30:00 | B21: 1018 | C21: -6.1 | D21: 93 | E21: 0 | F21: 0 | G21: -7.047891944 | X21: -0.5260420516
A22: 2017-02-01T10:00:00 | B22: 1018 | C22: -5.7 | D22: 93 | E22: 0 | F22: 0 | G22: -6.651087589 | X22: -0.4955922626
A23: 2017-02-01T10:30:00 | B23: 1018 | C23: -4.9 | D23: 93 | E23: 0 | F23: 0 | G23: -5.857494949 | X23: -0.4349994576
A24: 2017-02-01T11:00:00 | B24: 1018 | C24: -3.4 | D24: 92 | E24: 0 | F24: 0 | G24: -4.513332804 | X24: -0.3332887758
A25: 2017-02-01T11:30:00 | B25: 1018 | C25: -2.6 | D25: 91 | E25: 0 | F25: 0 | G25: -3.866886064 | X25: -0.2847801281
A26: 2017-02-01T12:00:00 | B26: 1018 | C26: -2.2 | D26: 89 | E26: 1 | F26: 0 | G26: -3.768659121 | X26: -0.2774322194
A27: 2017-02-01T12:30:00 | B27: 1018 | C27: -1.8 | D27: 88 | E27: 2 | F27: 0 | G27: -3.525371137 | X27: -0.259258898
A28: 2017-02-01T13:00:00 | B28: 1018 | C28: -1.2 | D28: 87 | E28: 0 | F28: 0 | G28: -3.087739734 | X28: -0.2266610916
A29: 2017-02-01T13:30:00 | B29: 1018 | C29: -1.3 | D29: 86 | E29: 2 | F29: 0 | G29: -3.341445093 | X29: -0.2455443214
A30: 2017-02-01T14:00:00 | B30: 1017 | C30: 1.2 | D30: 81 | E30: 0 | F30: 0 | G30: -1.70138623 | X30: -0.1241761143
A31: 2017-02-01T14:30:00 | B31: 1017 | C31: -0.3 | D31: 83 | E31: 2 | F31: 0 | G31: -2.837790476 | X31: -0.2080964225
A32: 2017-02-01T15:00:00 | B32: 1017 | C32: -0.5 | D32: 84 | E32: 3 | F32: 0 | G32: -2.872378474 | X32: -0.2106631
A33: 2017-02-01T15:30:00 | B33: 1017 | C33: -0.9 | D33: 85 | E33: 4 | F33: 0 | G33: -3.1055617 | X33: -0.2279862726
A34: 2017-02-01T16:00:00 | B34: 1017 | C34: -1.4 | D34: 87 | E34: 1 | F34: 0 | G34: -3.28463192 | X34: -0.2413122589
A35: 2017-02-01T16:30:00 | B35: 1017 | C35: -1.7 | D35: 88 | E35: 0 | F35: 0 | G35: -3.426796262 | X35: -0.2519059748
A36: 2017-02-01T17:00:00 | B36: 1017 | C36: -1.8 | D36: 89 | E36: 2 | F36: 0 | G36: -3.373855328 | X36: -0.2479594863
A37: 2017-02-01T17:30:00 | B37: 1017 | C37: -2 | D37: 90 | E37: 1 | F37: 0 | G37: -3.421491753 | X37: -0.2515104709
A38: 2017-02-01T18:00:00 | B38: 1017 | C38: -2.1 | D38: 90 | E38: 0 | F38: 0 | G38: -3.520316396 | X38: -0.2588817062
A39: 2017-02-01T18:30:00 | B39: 1017 | C39: -2.5 | D39: 91 | E39: 0 | F39: 0 | G39: -3.767936962 | X39: -0.2773782203
A40: 2017-02-01T19:00:00 | B40: 1017 | C40: -2.1 | D40: 91 | E40: 3 | F40: 0 | G40: -3.372144888 | X40: -0.2478320104
A41: 2017-02-01T19:30:00 | B41: 1017 | C41: -2.4 | D41: 91 | E41: 0 | F41: 0 | G41: -3.668988293 | X41: -0.2699824622
A42: 2017-02-01T20:00:00 | B42: 1018 | C42: -2.5 | D42: 92 | E42: 3 | F42: 0 | G42: -3.621688687 | X42: -0.2664492886
A43: 2017-02-01T20:30:00 | B43: 1017 | C43: -2.6 | D43: 92 | E43: 0 | F43: 0 | G43: -3.72075872 | X43: -0.2738511964
A44: 2017-02-01T21:00:00 | B44: 1017 | C44: -2.5 | D44: 92 | E44: 0 | F44: 0 | G44: -3.621688687 | X44: -0.2664492886
A45: 2017-02-01T21:30:00 | B45: 1017 | C45: -2.2 | D45: 92 | E45: 1 | F45: 0 | G45: -3.324480892 | X45: -0.2442804333
A46: 2017-02-01T22:00:00 | B46: 1017 | C46: -2 | D46: 92 | E46: 0 | F46: 0 | G46: -3.12634428 | X46: -0.2295318435
A47: 2017-02-01T22:30:00 | B47: 1017 | C47: -2.1 | D47: 91 | E47: 1 | F47: 0 | G47: -3.372144888 | X47: -0.2478320104
A48: 2017-02-01T23:00:00 | B48: 1017 | C48: -2.1 | D48: 92 | E48: 0 | F48: 0 | G48: -3.225412394 | X48: -0.2369030788
A49: 2017-02-01T23:30:00 | B49: 1017 | C49: -2.1 | D49: 92 | E49: 0 | F49: 0 | G49: -3.225412394 | X49: -0.2369030788
A50: 2017-02-02 | B50: 1016 | C50: -2 | D50: 92 | E50: 0 | F50: 0 | G50: -3.12634428 | X50: -0.2295318435
A51: 2017-02-02T00:30:00 | B51: 1016 | C51: -2 | D51: 92 | E51: 0 | F51: 0 | G51: -3.12634428 | X51: -0.2295318435
A52: 2017-02-02T01:00:00 | B52: 1016 | C52: -2 | D52: 92 | E52: 0 | F52: 0 | G52: -3.12634428 | X52: -0.2295318435
A53: 2017-02-02T01:30:00 | B53: 1016 | C53: -2 | D53: 92 | E53: 2 | F53: 0 | G53: -3.12634428 | X53: -0.2295318435
A54: 2017-02-02T02:00:00 | B54: 1016 | C54: -2 | D54: 92 | E54: 2 | F54: 0 | G54: -3.12634428 | X54: -0.2295318435
A55: 2017-02-02T02:30:00 | B55: 1016 | C55: -2.1 | D55: 92 | E55: 1 | F55: 0 | G55: -3.225412394 | X55: -0.2369030788
A56: 2017-02-02T03:00:00 | B56: 1016 | C56: -2.2 | D56: 92 | E56: 2 | F56: 0 | G56: -3.324480892 | X56: -0.2442804333
A57: 2017-02-02T03:30:00 | B57: 1016 | C57: -2.2 | D57: 92 | E57: 0 | F57: 0 | G57: -3.324480892 | X57: -0.2442804333
A58: 2017-02-02T04:00:00 | B58: 1016 | C58: -2.3 | D58: 92 | E58: 0 | F58: 0 | G58: -3.423549773 | X58: -0.2516639147
A59: 2017-02-02T04:30:00 | B59: 1016 | C59: -2.3 | D59: 93 | E59: 0 | F59: 0 | G59: -3.278466821 | X59: -0.2408531359
A60: 2017-02-02T05:00:00 | B60: 1015 | C60: -2.4 | D60: 93 | E60: 4 | F60: 0 | G60: -3.377656027 | X60: -0.2482427518
A61: 2017-02-02T05:30:00 | B61: 1015 | C61: -2.5 | D61: 93 | E61: 2 | F61: 0 | G61: -3.476845567 | X61: -0.2556385099
A62: 2017-02-02T06:00:00 | B62: 1015 | C62: -2.6 | D62: 93 | E62: 3 | F62: 0 | G62: -3.576035442 | X62: -0.2630404177
A63: 2017-02-02T06:30:00 | B63: 1015 | C63: -2.6 | D63: 93 | E63: 1 | F63: 0 | G63: -3.576035442 | X63: -0.2630404177
A64: 2017-02-02T07:00:00 | B64: 1015 | C64: -2.8 | D64: 93 | E64: 4 | F64: 0 | G64: -3.774416197 | X64: -0.2778627135
A65: 2017-02-02T07:30:00 | B65: 1015 | C65: -3 | D65: 93 | E65: 3 | F65: 0 | G65: -3.97279829 | X65: -0.2927097008
A66: 2017-02-02T08:00:00 | B66: 1015 | C66: -3 | D66: 93 | E66: 4 | F66: 0 | G66: =(243.12*X66)/(17.62-X66) -> -3.97279829 | X66: =(LOG10(D66) - 2)/0.4343 + (17.62*C66 / (243.12 + C66)) -> -0.2927097008
A67: 2017-02-02T08:30:00 | B67: 1014 | C67: -3 | D67: 94 | E67: 4 | F67: 0 | G67: -3.829925209 | X67: -0.2820145476
A68: 2017-02-02T09:00:00 | B68: 1015 | C68: -2.9 | D68: 94 | E68: 3 | F68: 0 | G68: -3.730615416 | X68: -0.2745879636
A69: 2017-02-02T09:30:00 | B69: 1014 | C69: -2.8 | D69: 94 | E69: 2 | F69: 0 | G69: -3.631305909 | X69: -0.2671675603
A70: 2017-02-02T10:00:00 | B70: 1014 | C70: -2.7 | D70: 93 | E70: 5 | F70: 0 | G70: -3.675225652 | X70: -0.270448483
A71: 2017-02-02T10:30:00 | B71: 1014 | C71: -2.4 | D71: 93 | E71: 4 | F71: 0 | G71: -3.377656027 | X71: -0.2482427518
A72: 2017-02-02T11:00:00 | B72: 1014 | C72: -1.9 | D72: 92 | E72: 8 | F72: 0 | G72: -3.027276551 | X72: -0.2221667198
A73: 2017-02-02T11:30:00 | B73: 1014 | C73: -1.7 | D73: 91 | E73: 2 | F73: 0 | G73: -2.976359749 | X73: -0.2183837087
A74: 2017-02-02T12:00:00 | B74: 1014 | C74: -0.7 | D74: 89 | E74: 3 | F74: 0 | G74: -2.288188907 | X74: -0.167410976
A75: 2017-02-02T12:30:00 | B75: 1013 | C75: -0.5 | D75: 88 | E75: 3 | F75: 0 | G75: -2.243943318 | X75: -0.1641436754
A76: 2017-02-02T13:00:00 | B76: 1013 | C76: -0.5 | D76: 87 | E76: 3 | F76: 0 | G76: -2.398637091 | X76: -0.175572226
A77: 2017-02-02T13:30:00 | B77: 1013 | C77: -0.6 | D77: 88 | E77: 3 | F77: 0 | G77: -2.342511184 | X77: -0.1714240283
A78: 2017-02-02T14:00:00 | B78: 1013 | C78: -0.4 | D78: 88 | E78: 3 | F78: 0 | G78: -2.145376036 | X78: -0.1568693215
A79: 2017-02-02T14:30:00 | B79: 1013 | C79: -0.6 | D79: 89 | E79: 1 | F79: 0 | G79: -2.189495161 | X79: -0.1601246167
A80: 2017-02-02T15:00:00 | B80: 1012 | C80: -0.2 | D80: 89 | E80: 1 | F80: 0 | G80: -1.794725509 | X80: -0.1310391691
A81: 2017-02-02T15:30:00 | B81: 1012 | C81: -0.4 | D81: 89 | E81: 4 | F81: 0 | G81: -1.992109268 | X81: -0.1455699098
A82: 2017-02-02T16:00:00 | B82: 1011 | C82: -0.3 | D82: 90 | E82: 3 | F82: 0 | G82: -1.741546756 | X82: -0.1271283887
A83: 2017-02-02T16:30:00 | B83: 1012 | C83: -0.4 | D83: 92 | E83: 2 | F83: 0 | G83: -1.541306664 | X83: -0.1124181237
A84: 2017-02-02T17:00:00 | B84: 1012 | C84: -0.5 | D84: 93 | E84: 3 | F84: 0 | G84: -1.493118353 | X84: -0.1088816989
A85: 2017-02-02T17:30:00 | B85: 1012 | C85: -0.7 | D85: 96 | E85: 1 | F85: 0 | G85: -1.258723449 | X85: -0.09170011622
A86: 2017-02-02T18:00:00 | B86: 1012 | C86: -0.8 | D86: 96 | E86: 0 | F86: 0 | G86: -1.35826312 | X86: -0.09899248938
A87: 2017-02-02T18:30:00 | B87: 1012 | C87: -0.8 | D87: 96 | E87: 0 | F87: 0 | G87: -1.35826312 | X87: -0.09899248938
A88: 2017-02-02T19:00:00 | B88: 1012 | C88: -0.7 | D88: 96 | E88: 0 | F88: 0 | G88: -1.258723449 | X88: -0.09170011622
A89: 2017-02-02T19:30:00 | B89: 1012 | C89: -0.6 | D89: 96 | E89: 0 | F89: 0 | G89: -1.159183967 | X89: -0.0844137569
A90: 2017-02-02T20:00:00 | B90: 1011 | C90: -0.5 | D90: 96 | E90: 0 | F90: 0 | G90: -1.059644675 | X90: -0.07713340397
A91: 2017-02-02T20:30:00 | B91: 1011 | C91: -0.3 | D91: 96 | E91: 0 | F91: 0 | G91: -0.8605666579 | X91: -0.06259068761
A92: 2017-02-02T21:00:00 | B92: 1011 | C92: -0.1 | D92: 96 | E92: 0 | F92: 0 | G92: -0.6614893981 | X92: -0.04807190791
A93: 2017-02-02T21:30:00 | B93: 1011 | C93: 0 | D93: 96 | E93: 0 | F93: 0 | G93: -0.561951052 | X93: -0.04082147585
A94: 2017-02-02T22:00:00 | B94: 1010 | C94: 0.2 | D94: 96 | E94: 0 | F94: 0 | G94: -0.3628749278 | X94: -0.02633849048
A95: 2017-02-02T22:30:00 | B95: 1010 | C95: 0.1 | D95: 96 | E95: 0 | F95: 0 | G95: -0.4624128953 | X95: -0.03357700582
A96: 2017-02-02T23:00:00 | B96: 1010 | C96: 0.3 | D96: 96 | E96: 0 | F96: 0 | G96: -0.2633371495 | X96: -0.01910592248
A97: 2017-02-02T23:30:00 | B97: 1010 | C97: 0.6 | D97: 96 | E97: 0 | F97: 0 | G97: 0.03527504956 | X97: 0.002556170632
A98: 2017-02-03 | B98: 1010 | C98: 0.6 | D98: 96 | E98: 0 | F98: 0 | G98: 0.03527504956 | X98: 0.002556170632
A99: 2017-02-03T00:30:00 | B99: 1010 | C99: 0.5 | D99: 96 | E99: 2 | F99: 0 | G99: -0.06426216088 | X99: -0.004658599236
A100: 2017-02-03T01:00:00 | B100: 1010 | C100: 0.6 | D100: 96 | E100: 0 | F100: 0 | G100: 0.03527504956 | X100: 0.002556170632
A101: 2017-02-03T01:30:00 | B101: 1009 | C101: 0.6 | D101: 96 | E101: 0 | F101: 0 | G101: 0.03527504956 | X101: 0.002556170632
A102: 2017-02-03T02:00:00 | B102: 1009 | C102: 0.6 | D102: 96 | E102: 0 | F102: 0 | G102: 0.03527504956 | X102: 0.002556170632
A103: 2017-02-03T02:30:00 | B103: 1009 | C103: 0.7 | D103: 96 | E103: 0 | F103: 0 | G103: 0.1348120707 | X103: 0.009765022389
A104: 2017-02-03T03:00:00 | B104: 1009 | C104: 0.9 | D104: 96 | E104: 0 | F104: 0 | G104: 0.3338855453 | X104: 0.02416500067
A105: 2017-02-03T03:30:00 | B105: 1009 | C105: 1 | D105: 96 | E105: 0 | F105: 0 | G105: 0.4334219986 | X105: 0.03135614172
A106: 2017-02-03T04:00:00 | B106: 1009 | C106: 0.9 | D106: 96 | E106: 0 | F106: 0 | G106: 0.3338855453 | X106: 0.02416500067
A107: 2017-02-03T04:30:00 | B107: 1009 | C107: 1 | D107: 96 | E107: 0 | F107: 0 | G107: 0.4334219986 | X107: 0.03135614172
A108: 2017-02-03T05:00:00 | B108: 1008 | C108: 1.2 | D108: 96 | E108: 0 | F108: 0 | G108: 0.6324943376 | X108: 0.04572076384
A109: 2017-02-03T05:30:00 | B109: 1008 | C109: 0.9 | D109: 96 | E109: 0 | F109: 0 | G109: 0.3338855453 | X109: 0.02416500067
A110: 2017-02-03T06:00:00 | B110: 1008 | C110: 1 | D110: 97 | E110: 2 | F110: 0 | G110: 0.5770003239 | X110: 0.04171879709
A111: 2017-02-03T06:30:00 | B111: 1007 | C111: 1.2 | D111: 97 | E111: 0 | F111: 0 | G111: 0.7763075402 | X111: 0.05608341921
A112: 2017-02-03T07:00:00 | B112: 1007 | C112: 0.9 | D112: 96 | E112: 0 | F112: 0 | G112: 0.3338855453 | X112: 0.02416500067
A113: 2017-02-03T07:30:00 | B113: 1007 | C113: 0.9 | D113: 97 | E113: 0 | F113: 0 | G113: 0.4773465035 | X113: 0.03452765604
A114: 2017-02-03T08:00:00 | B114: 1007 | C114: 0.9 | D114: 97 | E114: 2 | F114: 0 | G114: 0.4773465035 | X114: 0.03452765604
A115: 2017-02-03T08:30:00 | B115: 1007 | C115: 0.8 | D115: 97 | E115: 0 | F115: 0 | G115: 0.3776925417 | X115: 0.02733061868
A116: 2017-02-03T09:00:00 | B116: 1007 | C116: 0.7 | D116: 97 | E116: 0 | F116: 0 | G116: 0.2780384384 | X116: 0.02012767776
A117: 2017-02-03T09:30:00 | B117: 1007 | C117: 0.8 | D117: 97 | E117: 3 | F117: 0 | G117: 0.3776925417 | X117: 0.02733061868
A118: 2017-02-03T10:00:00 | B118: 1007 | C118: 1 | D118: 97 | E118: 2 | F118: 0 | G118: 0.5770003239 | X118: 0.04171879709
A119: 2017-02-03T10:30:00 | B119: 1007 | C119: 1.4 | D119: 97 | E119: 2 | F119: 0 | G119: 0.9756141907 | X119: 0.07042454285
A120: 2017-02-03T11:00:00 | B120: 1007 | C120: 2.3 | D120: 96 | E120: 0 | F120: 0 | G120: 1.72737867 | I120: 2017-02-01 | J120: 0 | X120: 0.1243076905
A121: 2017-02-03T11:30:00 | B121: 1007 | C121: 3.2 | D121: 95 | E121: 0 | F121: 0 | G121: 2.475649392 | I121: 2017-02-02 | J121: 0 | X121: 0.1776128461
A122: 2017-02-03T12:00:00 | B122: 1007 | C122: 4.4 | D122: 94 | E122: 0 | F122: 0 | G122: 3.518227352 | I122: 2017-02-03 | J122: 1 | X122: 0.2513445163
A123: 2017-02-03T12:30:00 | B123: 1007 | C123: 4.8 | D123: 92 | E123: 0 | F123: 0 | G123: 3.609387042 | I123: 2017-02-04 | J123: 2.5 | X123: 0.2577617545
A124: 2017-02-03T13:00:00 | B124: 1007 | C124: 4.6 | D124: 92 | E124: 0 | F124: 0.5 | G124: 3.411302625 | I124: 2017-02-05 | J124: 0 | X124: 0.2438114414
A125: 2017-02-03T13:30:00 | B125: 1006 | C125: 5.1 | D125: 91 | E125: 0 | F125: 0.5 | G125: 3.750926898 | I125: 2017-02-06 | J125: 0 | X125: 0.2677161412
A126: 2017-02-03T14:00:00 | B126: 1006 | C126: 4.7 | D126: 91 | E126: 1 | F126: 0 | G126: 3.355259608 | I126: 2017-02-07 | J126: 0 | X126: 0.2398604809
A127: 2017-02-03T14:30:00 | B127: 1006 | C127: 5.2 | D127: 91 | E127: 4 | F127: 0 | G127: 3.849842637 | I127: 2017-02-08 | J127: 0 | X127: 0.2746660343
A128: 2017-02-03T15:00:00 | B128: 1005 | C128: 4.7 | D128: 91 | E128: 0 | F128: 0 | G128: 3.355259608 | I128: 2017-02-09 | J128: 0 | X128: 0.2398604809
A129: 2017-02-03T15:30:00 | B129: 1005 | C129: 4.8 | D129: 91 | E129: 3 | F129: 0 | G129: 3.45417708 | I129: 2017-02-10 | J129: 0 | X129: 0.2468328228
A130: 2017-02-03T16:00:00 | B130: 1006 | C130: 3.9 | D130: 91 | E130: 1 | F130: 0 | G130: =(243.12*X130)/(17.62-X130) -> 2.563904236 | I130: 2017-02-11 | J130: 0 | X130: =(LOG10(D130) - 2)/0.4343 + (17.62*C130 / (243.12 + C130)) -> 0.1838785198
A131: 2017-02-03T16:30:00 | B131: 1006 | C131: 3.8 | D131: 92 | E131: 2 | F131: 0 | G131: 2.618949609 | I131: 2017-02-12 | J131: 0 | X131: 0.1877842002
A132: 2017-02-03T17:00:00 | B132: 1005 | C132: 3.3 | D132: 93 | E132: 0 | F132: 0 | G132: 2.275594562 | I132: 2017-02-13 | J132: 0 | X132: 0.1633932192
A133: 2017-02-03T17:30:00 | B133: 1006 | C133: 3.1 | D133: 93 | E133: 0 | F133: 0 | G133: 2.077253297 | I133: 2017-02-14 | J133: 0 | X133: 0.1492724841
A134: 2017-02-03T18:00:00 | B134: 1006 | C134: 2.8 | D134: 94 | E134: 0 | F134: 0 | G134: 1.929570239 | I134: 2017-02-15 | J134: 0 | X134: 0.1387434696
A135: 2017-02-03T18:30:00 | B135: 1006 | C135: 2.8 | D135: 94 | E135: 0 | F135: 0 | G135: 1.929570239 | I135: 2017-02-16 | J135: 0 | X135: 0.1387434696
A136: 2017-02-03T19:00:00 | B136: 1005 | C136: 2.6 | D136: 95 | E136: 0 | F136: 0 | G136: 1.879168758 | I136: 2017-02-17 | J136: 0.5 | X136: 0.1351472076
A137: 2017-02-03T19:30:00 | B137: 1005 | C137: 2.4 | D137: 95 | E137: 0 | F137: 0 | G137: 1.680339981 | I137: 2017-02-18 | J137: 0.5 | X137: 0.1209458715
A138: 2017-02-03T20:00:00 | B138: 1005 | C138: 2.4 | D138: 95 | E138: 2 | F138: 0 | G138: 1.680339981 | I138: 2017-02-19 | J138: 0 | X138: 0.1209458715
A139: 2017-02-03T20:30:00 | B139: 1005 | C139: 2.1 | D139: 95 | E139: 2 | F139: 0 | G139: 1.382095035 | I139: 2017-02-20 | J139: 1.5 | X139: 0.09960043294
A140: 2017-02-03T21:00:00 | B140: 1005 | C140: 2.1 | D140: 96 | E140: 0 | F140: 0 | G140: 1.528310495 | I140: 2017-02-21 | J140: 1 | X140: 0.1100715998
A141: 2017-02-03T21:30:00 | B141: 1005 | C141: 2 | D141: 96 | E141: 3 | F141: 0 | G141: 1.428776123 | I141: 2017-02-22 | J141: 8 | X141: 0.1029448427
A142: 2017-02-03T22:00:00 | B142: 1006 | C142: 1.9 | D142: 96 | E142: 5 | F142: 0 | G142: 1.329241562 | I142: 2017-02-23 | J142: 3 | X142: 0.09581226834
A143: 2017-02-03T22:30:00 | B143: 1005 | C143: 1.8 | D143: 96 | E143: 0 | F143: 0 | G143: 1.229706812 | I143: 2017-02-24 | J143: 1 | X143: 0.08867386957
A144: 2017-02-03T23:00:00 | B144: 1005 | C144: 1.4 | D144: 96 | E144: 0 | F144: 0 | G144: 0.8315659195 | I144: 2017-02-25 | J144: 0.5 | X144: 0.06006188748
A145: 2017-02-03T23:30:00 | B145: 1005 | C145: 1.6 | D145: 96 | E145: 0 | F145: 0 | G145: 1.030636744 | I145: 2017-02-26 | J145: 0 | X145: 0.07437957025
A146: 2017-02-04 | B146: 1005 | C146: 1.9 | D146: 96 | E146: 0 | F146: 0 | G146: 1.329241562 | I146: 2017-02-27 | J146: 0 | X146: 0.09581226834
A147: 2017-02-04T00:30:00 | B147: 1005 | C147: 1.9 | D147: 96 | E147: 0 | F147: 0 | G147: 1.329241562 | I147: 2017-02-28 | J147: 2.5 | X147: 0.09581226834
A148: 2017-02-04T01:00:00 | B148: 1005 | C148: 1.9 | D148: 96 | E148: 0 | F148: 0 | G148: 1.329241562 | X148: 0.09581226834
A149: 2017-02-04T01:30:00 | B149: 1005 | C149: 1.9 | D149: 96 | E149: 0 | F149: 0 | G149: 1.329241562 | X149: 0.09581226834
A150: 2017-02-04T02:00:00 | B150: 1005 | C150: 1.8 | D150: 96 | E150: 0 | F150: 0.5 | G150: 1.229706812 | X150: 0.08867386957
A151: 2017-02-04T02:30:00 | B151: 1005 | C151: 2 | D151: 96 | E151: 0 | F151: 0 | G151: 1.428776123 | X151: 0.1029448427
A152: 2017-02-04T03:00:00 | B152: 1005 | C152: 2 | D152: 96 | E152: 0 | F152: 0 | G152: 1.428776123 | X152: 0.1029448427
A153: 2017-02-04T03:30:00 | B153: 1005 | C153: 1.9 | D153: 96 | E153: 0 | F153: 0 | G153: 1.329241562 | X153: 0.09581226834
A154: 2017-02-04T04:00:00 | B154: 1005 | C154: 1.8 | D154: 96 | E154: 0 | F154: 0 | G154: 1.229706812 | X154: 0.08867386957
A155: 2017-02-04T04:30:00 | B155: 1006 | C155: 1.5 | D155: 96 | E155: 0 | F155: 0 | G155: 0.9311014266 | X155: 0.06722365538
A156: 2017-02-04T05:00:00 | B156: 1006 | C156: 1.2 | D156: 96 | E156: 0 | F156: 0.5 | G156: 0.6324943376 | X156: 0.04572076384
A157: 2017-02-04T05:30:00 | B157: 1006 | C157: 1.1 | D157: 97 | E157: 0 | F157: 0 | G157: 0.6766540028 | X157: 0.04890404907
A158: 2017-02-04T06:00:00 | B158: 1005 | C158: 1.2 | D158: 97 | E158: 0 | F158: 0 | G158: 0.7763075402 | X158: 0.05608341921
A159: 2017-02-04T06:30:00 | B159: 1005 | C159: 1.3 | D159: 97 | E159: 0 | F159: 0 | G159: 0.8759609362 | X159: 0.06325691473
A160: 2017-02-04T07:00:00 | B160: 1005 | C160: 1.8 | D160: 97 | E160: 0 | F160: 0.5 | G160: 1.374225794 | X160: 0.09903652494
A161: 2017-02-04T07:30:00 | B161: 1005 | C161: 1.9 | D161: 97 | E161: 0 | F161: 0 | G161: 1.473878341 | X161: 0.1061749237
A162: 2017-02-04T08:00:00 | B162: 1005 | C162: 2.2 | D162: 97 | E162: 0 | F162: 0.5 | G162: 1.772835134 | X162: 0.127555202
A163: 2017-02-04T08:30:00 | B163: 1005 | C163: 2.1 | D163: 97 | E163: 0 | F163: 0 | G163: 1.673183011 | X163: 0.1204342551
A164: 2017-02-04T09:00:00 | B164: 1006 | C164: 1.4 | D164: 97 | E164: 5 | F164: 0 | G164: 0.9756141907 | X164: 0.07042454285
A165: 2017-02-04T09:30:00 | B165: 1005 | C165: 1.5 | D165: 97 | E165: 0 | F165: 0 | G165: 1.075267304 | X165: 0.07758631075
A166: 2017-02-04T10:00:00 | B166: 1005 | C166: 1.3 | D166: 97 | E166: 0 | F166: 0 | G166: 0.8759609362 | X166: 0.06325691473
A167: 2017-02-04T10:30:00 | B167: 1005 | C167: 1.8 | D167: 97 | E167: 0 | F167: 0 | G167: 1.374225794 | X167: 0.09903652494
A168: 2017-02-04T11:00:00 | B168: 1005 | C168: 2.1 | D168: 97 | E168: 0 | F168: 0 | G168: 1.673183011 | X168: 0.1204342551
A169: 2017-02-04T11:30:00 | B169: 1005 | C169: 2.6 | D169: 97 | E169: 0 | F169: 0 | G169: 2.17144221 | X169: 0.1559810298
A170: 2017-02-04T12:00:00 | B170: 1005 | C170: 3.1 | D170: 97 | E170: 0 | F170: 0 | G170: 2.669697873 | X170: 0.1913834344
A171: 2017-02-04T12:30:00 | B171: 1004 | C171: 3.5 | D171: 96 | E171: 0 | F171: 0 | G171: 2.921771824 | X171: 0.2092393465
A172: 2017-02-04T13:00:00 | B172: 1004 | C172: 3.8 | D172: 96 | E172: 4 | F172: 0 | G172: 3.220365855 | X172: 0.2303432739
A173: 2017-02-04T13:30:00 | B173: 1003 | C173: 5.2 | D173: 94 | E173: 3 | F173: 0 | G173: 4.312528471 | X173: 0.3071008979
A174: 2017-02-04T14:00:00 | B174: 1003 | C174: 5.1 | D174: 92 | E174: 2 | F174: 0 | G174: 3.90651079 | X174: 0.2786450729
A175: 2017-02-04T14:30:00 | B175: 1003 | C175: 4.6 | D175: 91 | E175: 2 | F175: 0.5 | G175: 3.256341703 | X175: 0.2328825098
A176: 2017-02-04T15:00:00 | B176: 1003 | C176: 3.8 | D176: 92 | E176: 3 | F176: 0 | G176: 2.618949609 | X176: 0.1877842002
A177: 2017-02-04T15:30:00 | B177: 1002 | C177: 3.8 | D177: 92 | E177: 4 | F177: 0 | G177: 2.618949609 | X177: 0.1877842002
A178: 2017-02-04T16:00:00 | B178: 1002 | C178: 4.4 | D178: 92 | E178: 1 | F178: 0 | G178: 3.213216673 | X178: 0.2298385843
A179: 2017-02-04T16:30:00 | B179: 1002 | C179: 4.1 | D179: 92 | E179: 0 | F179: 0 | G179: 2.916084868 | X179: 0.2088369086
A180: 2017-02-04T17:00:00 | B180: 1002 | C180: 4.1 | D180: 92 | E180: 0 | F180: 0 | G180: 2.916084868 | X180: 0.2088369086
A181: 2017-02-04T17:30:00 | B181: 1001 | C181: 3.8 | D181: 92 | E181: 0 | F181: 0 | G181: 2.618949609 | X181: 0.1877842002
A182: 2017-02-04T18:00:00 | B182: 1001 | C182: 3.3 | D182: 93 | E182: 0 | F182: 0 | G182: 2.275594562 | X182: 0.1633932192
A183: 2017-02-04T18:30:00 | B183: 1002 | C183: 3.1 | D183: 94 | E183: 0 | F183: 0 | G183: 2.227449021 | X183: 0.1599676373
A184: 2017-02-04T19:00:00 | B184: 1002 | C184: 3 | D184: 94 | E184: 0 | F184: 0 | G184: 2.128156379 | X184: 0.1528986638
A185: 2017-02-04T19:30:00 | B185: 1002 | C185: 2.8 | D185: 95 | E185: 0 | F185: 0 | G185: 2.077996585 | X185: 0.1493254445
A186: 2017-02-04T20:00:00 | B186: 1002 | C186: 2.9 | D186: 95 | E186: 0 | F186: 0 | G186: 2.177410143 | X186: 0.1564059184
A187: 2017-02-04T20:30:00 | B187: 1002 | C187: 3.3 | D187: 95 | E187: 0 | F187: 0 | G187: 2.575062 | X187: 0.1846703473
A188: 2017-02-04T21:00:00 | B188: 1002 | C188: 3.2 | D188: 95 | E188: 0 | F188: 0 | G188: 2.475649392 | X188: 0.1776128461
A189: 2017-02-04T21:30:00 | B189: 1002 | C189: 3.1 | D189: 95 | E189: 0 | F189: 0 | G189: 2.376236546 | X189: 0.1705496122
A190: 2017-02-04T22:00:00 | B190: 1002 | C190: 3 | D190: 96 | E190: 0 | F190: 0 | G190: 2.424111322 | X190: 0.1739518055
A191: 2017-02-04T22:30:00 | B191: 1002 | C191: 3 | D191: 96 | E191: 0 | F191: 0 | G191: 2.424111322 | X191: 0.1739518055
A192: 2017-02-04T23:00:00 | B192: 1002 | C192: 3.1 | D192: 96 | E192: 0 | F192: 0 | G192: 2.523643801 | X192: 0.181020779
A193: 2017-02-04T23:30:00 | B193: 1001 | C193: 3 | D193: 96 | E193: 0 | F193: 0 | G193: 2.424111322 | X193: 0.1739518055
A194: 2017-02-05 | B194: 1002 | C194: 2.9 | D194: 96 | E194: 0 | F194: 0 | G194: =(243.12*X194)/(17.62-X194) -> 2.324578654 | X194: =(LOG10(D194) - 2)/0.4343 + (17.62*C194 / (243.12 + C194)) -> 0.1668770852
A195: 2017-02-05T00:30:00 | B195: 1002 | C195: 3.1 | D195: 96 | E195: 0 | F195: 0 | G195: 2.523643801 | X195: 0.181020779
A196: 2017-02-05T01:00:00 | B196: 1002 | C196: 2.8 | D196: 96 | E196: 0 | F196: 0 | G196: 2.225045796 | X196: 0.1597966113
A197: 2017-02-05T01:30:00 | B197: 1002 | C197: 2.8 | D197: 96 | E197: 0 | F197: 0 | G197: 2.225045796 | X197: 0.1597966113
A198: 2017-02-05T02:00:00 | B198: 1001 | C198: 2.7 | D198: 96 | E198: 0 | F198: 0 | G198: 2.125512749 | X198: 0.1527103767
A199: 2017-02-05T02:30:00 | B199: 1001 | C199: 2.4 | D199: 96 | E199: 1 | F199: 0 | G199: 1.826912474 | X199: 0.1314170383
A200: 2017-02-05T03:00:00 | B200: 1002 | C200: 2.1 | D200: 96 | E200: 2 | F200: 0 | G200: 1.528310495 | X200: 0.1100715998
... 1148 more rows

Sheet Brezen
A1: Datum, čas | B1: Pred [hPa] | C1: T [ºC] | D1: Rh [%] | E1: v max [m.s-1] | F1: Srážky [mm] | G1: Tdew [ºC]
A2: 2017-03-01 | B2: 994 | C2: 4.5 | D2: 95 | E2: 10 | F2: 0.5 | G2: =(243.12*X2)/(17.62-X2) -> 3.767994784 | X2: =(LOG10(D2) - 2)/0.4343 + (17.62*C2 / (243.12 + C2)) -> 0.2689157411
A3: 2017-03-01T00:30:00 | B3: 995 | C3: 4.4 | D3: 95 | E3: 12 | F3: 0 | G3: 3.668585024 | I3: Průměrná teplota | J3: =AVERAGE(C1:C1530) -> 6.043358058 | K3: °C | X3: 0.2619264911
A4: 2017-03-01T01:00:00 | B4: 994 | C4: 4.3 | D4: 94 | E4: 13 | F4: 0 | G4: 3.418938426 | I4: Maximální teplota | J4: =MAX(C1:C1530) -> 22.9 | K4: °C | X4: 0.2443496165
A5: 2017-03-01T01:30:00 | B5: 995 | C5: 4.2 | D5: 94 | E5: 12 | F5: 0 | G5: 3.319649214 | I5: Minimální teplota | J5: =MIN(C1:C1530) -> -4.8 | K5: °C | X5: 0.2373490603
A6: 2017-03-01T02:00:00 | B6: 995 | C6: 4.1 | D6: 93 | E6: 13 | F6: 0 | G6: 3.068946237 | I6: Úhrn srážek | J6: =SUM(F2:F1614) -> 48.5 | K6: mm | X6: 0.2196476874
A7: 2017-03-01T02:30:00 | B7: 996 | C7: 4.1 | D7: 93 | E7: 0 | F7: 0 | G7: 3.068946237 | I7: Maximální náraz větru | J7: =MAX(E1:E1530) -> 35 | K7: m/s | X7: 0.2196476874
A8: 2017-03-01T03:00:00 | B8: 996 | C8: 4 | D8: 93 | E8: 0 | F8: 0 | G8: 2.969778449 | X8: 0.2126357974
A9: 2017-03-01T03:30:00 | B9: 996 | C9: 3.9 | D9: 93 | E9: 0 | F9: 0 | G9: 2.870610326 | X9: 0.2056182302
A10: 2017-03-01T04:00:00 | B10: 996 | C10: 3.7 | D10: 93 | E10: 0 | F10: 0 | G10: 2.672273076 | X10: 0.1915660367
A11: 2017-03-01T04:30:00 | B11: 997 | C11: 3.7 | D11: 93 | E11: 0 | F11: 0 | G11: 2.672273076 | X11: 0.1915660367
A12: 2017-03-01T05:00:00 | B12: 997 | C12: 3.6 | D12: 93 | E12: 0 | F12: 0 | G12: 2.57310395 | X12: 0.1845313965
A13: 2017-03-01T05:30:00 | B13: 997 | C13: 3.4 | D13: 94 | E13: 0 | F13: 0 | G13: 2.525325231 | X13: 0.181140148
A14: 2017-03-01T06:00:00 | B14: 998 | C14: 3.3 | D14: 93 | E14: 0 | F14: 0 | G14: 2.275594562 | X14: 0.1633932192
A15: 2017-03-01T06:30:00 | B15: 998 | C15: 3.5 | D15: 91 | E15: 2 | F15: 0 | G15: 2.168216154 | X15: 0.1557513411
A16: 2017-03-01T07:00:00 | B16: 998 | C16: 2.7 | D16: 90 | E16: 0 | F16: 0 | G16: 1.222721425 | X16: 0.0881726756
A17: 2017-03-01T07:30:00 | B17: 999 | C17: 2.2 | D17: 91 | E17: 0 | F17: 0 | G17: 0.8821820139 | X17: 0.06370454132
A18: 2017-03-01T08:00:00 | B18: 999 | C18: 1.6 | D18: 92 | E18: 0 | F18: 0 | G18: 0.4398521818 | X18: 0.03182049658
A19: 2017-03-01T08:30:00 | B19: 1000 | C19: 1.6 | D19: 92 | E19: 0 | F19: 0 | G19: 0.4398521818 | X19: 0.03182049658
A20: 2017-03-01T09:00:00 | B20: 999 | C20: 1.8 | D20: 91 | E20: 0 | F20: 0 | G20: 0.4864644714 | X20: 0.03518586423
A21: 2017-03-01T09:30:00 | B21: 1000 | C21: 2 | D21: 89 | E21: 0 | F21: 0 | G21: 0.376355027 | X21: 0.02723398293
A22: 2017-03-01T10:00:00 | B22: 1000 | C22: 2.3 | D22: 87 | E22: 1 | F22: 0 | G22: 0.3574623403 | X22: 0.02586886842
A23: 2017-03-01T10:30:00 | B23: 1001 | C23: 2.5 | D23: 86 | E23: 1 | F23: 0 | G23: 0.3941709392 | X23: 0.0285210997
A24: 2017-03-01T11:00:00 | B24: 1001 | C24: 3.3 | D24: 86 | E24: 3 | F24: 0 | G24: 1.180490147 | X24: 0.0851420166
A25: 2017-03-01T11:30:00 | B25: 1001 | C25: 4.9 | D25: 82 | E25: 5 | F25: 0 | G25: 2.082700614 | X25: 0.1496606062
A26: 2017-03-01T12:00:00 | B26: 1001 | C26: 4.7 | D26: 82 | E26: 3 | F26: 0 | G26: 1.887216682 | X26: 0.1357215448
A27: 2017-03-01T12:30:00 | B27: 1001 | C27: 5 | D27: 77 | E27: 10 | F27: 0 | G27: 1.299901665 | X27: 0.09370868405
A28: 2017-03-01T13:00:00 | B28: 1001 | C28: 5.1 | D28: 77 | E28: 13 | F28: 0 | G28: 1.396940813 | X28: 0.1006641791
A29: 2017-03-01T13:30:00 | B29: 1001 | C29: 5.8 | D29: 75 | E29: 14 | F29: 0 | G29: 1.707388855 | X29: 0.1228791916
A30: 2017-03-01T14:00:00 | B30: 1001 | C30: 6 | D30: 75 | E30: 13 | F30: 0 | G30: 1.900863775 | X30: 0.1366953785
A31: 2017-03-01T14:30:00 | B31: 1001 | C31: 6.1 | D31: 77 | E31: 21 | F31: 0 | G31: 2.367268143 | X31: 0.1699121302
A32: 2017-03-01T15:00:00 | B32: 1001 | C32: 5.7 | D32: 81 | E32: 17 | F32: 0 | G32: 2.691409384 | X32: 0.1929228324
A33: 2017-03-01T15:30:00 | B33: 1001 | C33: 5.8 | D33: 80 | E33: 16 | F33: 0 | G33: 2.613771848 | X33: 0.1874168928
A34: 2017-03-01T16:00:00 | B34: 1001 | C34: 5.7 | D34: 83 | E34: 11 | F34: 0 | G34: 3.035932136 | X34: 0.2173139757
A35: 2017-03-01T16:30:00 | B35: 1001 | C35: 6.9 | D35: 79 | E35: 11 | F35: 0 | G35: 3.506998968 | X35: 0.2505537597
A36: 2017-03-01T17:00:00 | B36: 1002 | C36: 6.5 | D36: 78 | E36: 5 | F36: 0 | G36: 2.937598156 | X36: 0.2103592
A37: 2017-03-01T17:30:00 | B37: 1002 | C37: 4 | D37: 87 | E37: 19 | F37: 0.5 | G37: 2.030565581 | X37: 0.1459452702
A38: 2017-03-01T18:00:00 | B38: 1002 | C38: 5 | D38: 88 | E38: 6 | F38: 0.5 | G38: 3.176390051 | X38: 0.2272383801
A39: 2017-03-01T18:30:00 | B39: 1002 | C39: 5 | D39: 85 | E39: 9 | F39: 0 | G39: 2.686196662 | X39: 0.1925532628
A40: 2017-03-01T19:00:00 | B40: 1003 | C40: 4.7 | D40: 85 | E40: 14 | F40: 0.5 | G40: 2.391762457 | X40: 0.1716530975
A41: 2017-03-01T19:30:00 | B41: 1003 | C41: 4.6 | D41: 85 | E41: 9 | F41: 0 | G41: 2.293616247 | X41: 0.1646751264
A42: 2017-03-01T20:00:00 | B42: 1003 | C42: 5 | D42: 82 | E42: 10 | F42: 0 | G42: 2.180441237 | X42: 0.1566217101
A43: 2017-03-01T20:30:00 | B43: 1003 | C43: 4.7 | D43: 80 | E43: 5 | F43: 0 | G43: 1.541691437 | X43: 0.111029246
A44: 2017-03-01T21:00:00 | B44: 1004 | C44: 3.2 | D44: 86 | E44: 2 | F44: 0 | G44: 1.082202647 | X44: 0.07808451537
A45: 2017-03-01T21:30:00 | B45: 1003 | C45: 2.8 | D45: 89 | E45: 0 | F45: 0 | G45: 1.165774857 | X45: 0.08408575157
A46: 2017-03-01T22:00:00 | B46: 1004 | C46: 3.5 | D46: 90 | E46: 0 | F46: 0 | G46: 2.013119507 | X46: 0.1447016453
A47: 2017-03-01T22:30:00 | B47: 1004 | C47: 3.7 | D47: 90 | E47: 0 | F47: 0 | G47: 2.210714197 | X47: 0.1587766305
A48: 2017-03-01T23:00:00 | B48: 1004 | C48: 3.7 | D48: 90 | E48: 0 | F48: 0 | G48: 2.210714197 | X48: 0.1587766305
A49: 2017-03-01T23:30:00 | B49: 1004 | C49: 3.4 | D49: 90 | E49: 0 | F49: 0 | G49: 1.914321438 | X49: 0.1376555886
A50: 2017-03-02 | B50: 1004 | C50: 2.7 | D50: 90 | E50: 0 | F50: 0 | G50: 1.222721425 | X50: 0.0881726756
A51: 2017-03-02T00:30:00 | B51: 1004 | C51: 2.6 | D51: 90 | E51: 0 | F51: 0 | G51: 1.123919491 | X51: 0.08108067326
A52: 2017-03-02T01:00:00 | B52: 1004 | C52: 2.8 | D52: 91 | E52: 0 | F52: 0 | G52: 1.47574533 | X52: 0.106308606
A53: 2017-03-02T01:30:00 | B53: 1003 | C53: 3 | D53: 91 | E53: 0 | F53: 0 | G53: 1.673596303 | X53: 0.1204638001
A54: 2017-03-02T02:00:00 | B54: 1003 | C54: 3.3 | D54: 90 | E54: 0 | F54: 0 | G54: 1.815522885 | X54: 0.130603813
A55: 2017-03-02T02:30:00 | B55: 1003 | C55: 3.3 | D55: 90 | E55: 0 | F55: 0 | G55: 1.815522885 | X55: 0.130603813
A56: 2017-03-02T03:00:00 | B56: 1003 | C56: 3.5 | D56: 89 | E56: 0 | F56: 0 | G56: 1.85648921 | X56: 0.1335284867
A57: 2017-03-02T03:30:00 | B57: 1002 | C57: 3.3 | D57: 90 | E57: 0 | F57: 0 | G57: 1.815522885 | X57: 0.130603813
A58: 2017-03-02T04:00:00 | B58: 1002 | C58: 3.1 | D58: 91 | E58: 1 | F58: 0 | G58: 1.77252114 | X58: 0.1275327737
A59: 2017-03-02T04:30:00 | B59: 1001 | C59: 2.9 | D59: 92 | E59: 0 | F59: 0 | G59: 1.727523111 | X59: 0.1243180116
A60: 2017-03-02T05:00:00 | B60: 1001 | C60: 2.9 | D60: 94 | E60: 2 | F60: 0.5 | G60: 2.028863452 | X60: 0.1458239435
A61: 2017-03-02T05:30:00 | B61: 1001 | C61: 2.9 | D61: 94 | E61: 7 | F61: 0.5 | G61: 2.028863452 | X61: 0.1458239435
A62: 2017-03-02T06:00:00 | B62: 1001 | C62: 3 | D62: 95 | E62: 3 | F62: 0 | G62: 2.276823463 | X62: 0.1634806387
A63: 2017-03-02T06:30:00 | B63: 1001 | C63: 3.2 | D63: 95 | E63: 3 | F63: 0 | G63: 2.475649392 | X63: 0.1776128461
A64: 2017-03-02T07:00:00 | B64: 1001 | C64: 3.3 | D64: 95 | E64: 8 | F64: 1 | G64: 2.575062 | X64: 0.1846703473
A65: 2017-03-02T07:30:00 | B65: 1001 | C65: 3.5 | D65: 95 | E65: 6 | F65: 0.5 | G65: 2.773886504 | X65: 0.1987681796
A66: 2017-03-02T08:00:00 | B66: 1001 | C66: 3.8 | D66: 96 | E66: 9 | F66: 0 | G66: =(243.12*X66)/(17.62-X66) -> 3.220365855 | X66: =(LOG10(D66) - 2)/0.4343 + (17.62*C66 / (243.12 + C66)) -> 0.2303432739
A67: 2017-03-02T08:30:00 | B67: 1001 | C67: 4.1 | D67: 96 | E67: 9 | F67: 0 | G67: 3.518958182 | X67: 0.2513959823
A68: 2017-03-02T09:00:00 | B68: 1000 | C68: 4.6 | D68: 96 | E68: 11 | F68: 0.5 | G68: 4.016608276 | X68: 0.2863705151
A69: 2017-03-02T09:30:00 | B69: 1000 | C69: 5 | D69: 96 | E69: 13 | F69: 0 | G69: 4.414724944 | X69: 0.3142486515
A70: 2017-03-02T10:00:00 | B70: 1001 | C70: 5.8 | D70: 96 | E70: 12 | F70: 0 | G70: 5.210949198 | X70: 0.369736133
A71: 2017-03-02T10:30:00 | B71: 1001 | C71: 6.3 | D71: 95 | E71: 11 | F71: 0 | G71: 5.557329875 | X71: 0.3937638885
A72: 2017-03-02T11:00:00 | B72: 1001 | C72: 7.4 | D72: 92 | E72: 11 | F72: 0 | G72: 6.1843448 | X72: 0.4370888741
A73: 2017-03-02T11:30:00 | B73: 1001 | C73: 8.2 | D73: 83 | E73: 25 | F73: 0 | G73: 5.482421505 | X73: 0.3885733145
A74: 2017-03-02T12:00:00 | B74: 1001 | C74: 9.6 | D74: 74 | E74: 15 | F74: 0 | G74: 5.189189526 | X74: 0.368224469
A75: 2017-03-02T12:30:00 | B75: 1001 | C75: 10.2 | D75: 67 | E75: 16 | F75: 0 | G75: 4.339697408 | X75: 0.3090017046
A76: 2017-03-02T13:00:00 | B76: 1002 | C76: 10.9 | D76: 61 | E76: 20 | F76: 0 | G76: 3.666563201 | X76: 0.2617842834
A77: 2017-03-02T13:30:00 | B77: 1002 | C77: 7.6 | D77: 59 | E77: 15 | F77: 0 | G77: 0.08949510029 | X77: 0.006483725755
A78: 2017-03-02T14:00:00 | B78: 1003 | C78: 7.5 | D78: 50 | E78: 17 | F78: 0 | G78: -2.266998917 | X78: -0.1658460586
A79: 2017-03-02T14:30:00 | B79: 1003 | C79: 8.8 | D79: 52 | E79: 14 | F79: 0 | G79: -0.5289802596 | X79: -0.03842117563
A80: 2017-03-02T15:00:00 | B80: 1004 | C80: 7.9 | D80: 54 | E80: 22 | F80: 0 | G80: -0.8476615608 | X80: -0.06164879077
A81: 2017-03-02T15:30:00 | B81: 1003 | C81: 9.1 | D81: 49 | E81: 16 | F81: 0 | G81: -1.066273352 | X81: -0.07761804255
A82: 2017-03-02T16:00:00 | B82: 1004 | C82: 7.8 | D82: 53 | E82: 17 | F82: 0 | G82: -1.196462187 | X82: -0.08714184621
A83: 2017-03-02T16:30:00 | B83: 1005 | C83: 5.5 | D83: 74 | E83: 17 | F83: 0 | G83: 1.229936973 | X83: 0.08869038288
A84: 2017-03-02T17:00:00 | B84: 1005 | C84: 6.6 | D84: 65 | E84: 14 | F84: 0 | G84: 0.4826724222 | X84: 0.03491212964
A85: 2017-03-02T17:30:00 | B85: 1006 | C85: 7 | D85: 58 | E85: 16 | F85: 0 | G85: -0.709853861 | X85: -0.05159695347
A86: 2017-03-02T18:00:00 | B86: 1007 | C86: 6.8 | D86: 60 | E86: 21 | F86: 0 | G86: -0.4325087738 | X86: -0.03140171978
A87: 2017-03-02T18:30:00 | B87: 1007 | C87: 6.1 | D87: 66 | E87: 11 | F87: 0 | G87: 0.2176975968 | X87: 0.01576340901
A88: 2017-03-02T19:00:00 | B88: 1008 | C88: 5.5 | D88: 71 | E88: 17 | F88: 0 | G88: 0.6544790327 | X88: 0.04730569255
A89: 2017-03-02T19:30:00 | B89: 1009 | C89: 5.3 | D89: 72 | E89: 10 | F89: 0 | G89: 0.6560636474 | X89: 0.04741992013
A90: 2017-03-02T20:00:00 | B90: 1009 | C90: 4.8 | D90: 77 | E90: 7 | F90: 0 | G90: 1.10581987 | X90: 0.07978086066
A91: 2017-03-02T20:30:00 | B91: 1010 | C91: 4.8 | D91: 76 | E91: 6 | F91: 0 | G91: 0.9239451852 | X91: 0.06670894519
A92: 2017-03-02T21:00:00 | B92: 1010 | C92: 4.2 | D92: 82 | E92: 3 | F92: 0 | G92: 1.398491184 | X92: 0.1007752606
A93: 2017-03-02T21:30:00 | B93: 1011 | C93: 4.3 | D93: 82 | E93: 2 | F93: 0 | G93: 1.496238074 | X93: 0.1077758168
A94: 2017-03-02T22:00:00 | B94: 1011 | C94: 4 | D94: 84 | E94: 9 | F94: 0 | G94: 1.539248198 | X94: 0.1108543963
A95: 2017-03-02T22:30:00 | B95: 1011 | C95: 4.2 | D95: 82 | E95: 8 | F95: 0 | G95: 1.398491184 | X95: 0.1007752606
A96: 2017-03-02T23:00:00 | B96: 1011 | C96: 3.8 | D96: 84 | E96: 5 | F96: 0 | G96: 1.343209875 | X96: 0.09681357786
A97: 2017-03-02T23:30:00 | B97: 1012 | C97: 3.6 | D97: 86 | E97: 4 | F97: 0 | G97: 1.475348528 | X97: 0.1062801939
A98: 2017-03-03 | B98: 1012 | C98: 3.2 | D98: 89 | E98: 5 | F98: 0.5 | G98: 1.560471973 | X98: 0.1123731532
A99: 2017-03-03T00:30:00 | B99: 1012 | C99: 3.5 | D99: 88 | E99: 3 | F99: 0 | G99: 1.698292477 | X99: 0.122229075
A100: 2017-03-03T01:00:00 | B100: 1012 | C100: 3.9 | D100: 86 | E100: 5 | F100: 0 | G100: 1.770200735 | X100: 0.1273670276
A101: 2017-03-03T01:30:00 | B101: 1013 | C101: 3.8 | D101: 86 | E101: 5 | F101: 0 | G101: 1.671917352 | X101: 0.1203437763
A102: 2017-03-03T02:00:00 | B102: 1013 | C102: 3.5 | D102: 88 | E102: 4 | F102: 0 | G102: 1.698292477 | X102: 0.122229075
A103: 2017-03-03T02:30:00 | B103: 1013 | C103: 3.6 | D103: 88 | E103: 0 | F103: 0 | G103: 1.796836402 | X103: 0.12926942
A104: 2017-03-03T03:00:00 | B104: 1013 | C104: 3.6 | D104: 88 | E104: 0 | F104: 0 | G104: 1.796836402 | X104: 0.12926942
A105: 2017-03-03T03:30:00 | B105: 1013 | C105: 4.1 | D105: 85 | E105: 3 | F105: 0 | G105: 1.802874129 | X105: 0.1297005936
A106: 2017-03-03T04:00:00 | B106: 1013 | C106: 3.9 | D106: 84 | E106: 1 | F106: 0 | G106: 1.441229432 | X106: 0.1038368291
A107: 2017-03-03T04:30:00 | B107: 1013 | C107: 4.1 | D107: 82 | E107: 5 | F107: 0 | G107: 1.300743398 | X107: 0.09376904087
A108: 2017-03-03T05:00:00 | B108: 1013 | C108: 4.2 | D108: 82 | E108: 3 | F108: 0 | G108: 1.398491184 | X108: 0.1007752606
A109: 2017-03-03T05:30:00 | B109: 1014 | C109: 4.2 | D109: 82 | E109: 5 | F109: 0 | G109: 1.398491184 | X109: 0.1007752606
A110: 2017-03-03T06:00:00 | B110: 1013 | C110: 4 | D110: 81 | E110: 2 | F110: 0 | G110: 1.03213464 | X110: 0.07448721419
A111: 2017-03-03T06:30:00 | B111: 1014 | C111: 3.3 | D111: 82 | E111: 0 | F111: 0 | G111: 0.5187288775 | X111: 0.03751457276
A112: 2017-03-03T07:00:00 | B112: 1014 | C112: 2.3 | D112: 84 | E112: 0 | F112: 0 | G112: -0.1271782716 | X112: -0.009222005531
A113: 2017-03-03T07:30:00 | B113: 1014 | C113: 2.3 | D113: 85 | E113: 0 | F113: 0 | G113: 0.03604977153 | X113: 0.00261230175
A114: 2017-03-03T08:00:00 | B114: 1014 | C114: 0.8 | D114: 88 | E114: 0 | F114: 0 | G114: -0.9626142016 | X114: -0.07004230813
A115: 2017-03-03T08:30:00 | B115: 1014 | C115: 0.8 | D115: 89 | E115: 0 | F115: 0 | G115: -0.8078387173 | X115: -0.05874289645
A116: 2017-03-03T09:00:00 | B116: 1014 | C116: 1.1 | D116: 90 | E116: 0 | F116: 0 | G116: -0.3581674932 | X116: -0.02599630743
A117: 2017-03-03T09:30:00 | B117: 1015 | C117: 2.5 | D117: 88 | E117: 0 | F117: 0 | G117: 0.7128211159 | X117: 0.05151032583
A118: 2017-03-03T10:00:00 | B118: 1014 | C118: 3.9 | D118: 83 | E118: 0 | F118: 0 | G118: 1.27413384 | X118: 0.09186079023
A119: 2017-03-03T10:30:00 | B119: 1014 | C119: 5.2 | D119: 78 | E119: 1 | F119: 0 | G119: 1.674344875 | X119: 0.120517313
A120: 2017-03-03T11:00:00 | B120: 1014 | C120: 5.6 | D120: 77 | E120: 4 | F120: 0 | G120: 1.882119057 | I120: 2017-03-01 | J120: 1.5 | X120: 0.135357759
A121: 2017-03-03T11:30:00 | B121: 1014 | C121: 6.4 | D121: 74 | E121: 3 | F121: 0 | G121: 2.099233305 | I121: 2017-03-02 | J121: 3.5 | X121: 0.1508384572
A122: 2017-03-03T12:00:00 | B122: 1014 | C122: 7 | D122: 73 | E122: 3 | F122: 0 | G122: 2.486966444 | I122: 2017-03-03 | J122: 0 | X122: 0.1784165546
A123: 2017-03-03T12:30:00 | B123: 1014 | C123: 9.4 | D123: 65 | E123: 5 | F123: 0 | G123: 3.146439235 | I123: 2017-03-04 | J123: 0 | X123: 0.22512308
A124: 2017-03-03T13:00:00 | B124: 1013 | C124: 9.2 | D124: 63 | E124: 6 | F124: 0 | G124: 2.515244084 | I124: 2017-03-05 | J124: 0 | X124: 0.1804244375
A125: 2017-03-03T13:30:00 | B125: 1013 | C125: 9.4 | D125: 61 | E125: 13 | F125: 0 | G125: 2.25053635 | I125: 2017-03-06 | J125: 0 | X125: 0.1616104813
A126: 2017-03-03T14:00:00 | B126: 1012 | C126: 9.9 | D126: 58 | E126: 9 | F126: 0 | G126: 2.013145617 | I126: 2017-03-07 | J126: 4 | X126: 0.1447035067
A127: 2017-03-03T14:30:00 | B127: 1012 | C127: 10.3 | D127: 56 | E127: 8 | F127: 0 | G127: 1.895827056 | I127: 2017-03-08 | J127: 0 | X127: 0.1363359793
A128: 2017-03-03T15:00:00 | B128: 1011 | C128: 9.9 | D128: 58 | E128: 9 | F128: 0 | G128: 2.013145617 | I128: 2017-03-09 | J128: 5.5 | X128: 0.1447035067
A129: 2017-03-03T15:30:00 | B129: 1011 | C129: 10.4 | D129: 55 | E129: 8 | F129: 0 | G129: 1.736862881 | I129: 2017-03-10 | J129: 9 | X129: 0.1249853633
A130: 2017-03-03T16:00:00 | B130: 1010 | C130: 9.7 | D130: 57 | E130: 7 | F130: 0 | G130: =(243.12*X130)/(17.62-X130) -> 1.582072522 | I130: 2017-03-11 | J130: 0.5 | X130: =(LOG10(D130) - 2)/0.4343 + (17.62*C130 / (243.12 + C130)) -> 0.1139186013
A131: 2017-03-03T16:30:00 | B131: 1010 | C131: 9.4 | D131: 57 | E131: 7 | F131: 0 | G131: 1.301018216 | I131: 2017-03-12 | J131: 0 | X131: 0.09378874671
A132: 2017-03-03T17:00:00 | B132: 1010 | C132: 9.4 | D132: 57 | E132: 8 | F132: 0 | G132: 1.301018216 | I132: 2017-03-13 | J132: 0 | X132: 0.09378874671
A133: 2017-03-03T17:30:00 | B133: 1009 | C133: 8.9 | D133: 57 | E133: 10 | F133: 0 | G133: 0.8325467737 | I133: 2017-03-14 | J133: 0 | X133: 0.0601324903
A134: 2017-03-03T18:00:00 | B134: 1008 | C134: 8.2 | D134: 59 | E134: 9 | F134: 0 | G134: 0.6540461407 | I134: 2017-03-15 | J134: 0.5 | X134: 0.0472744871
A135: 2017-03-03T18:30:00 | B135: 1008 | C135: 7.3 | D135: 62 | E135: 4 | F135: 0 | G135: 0.4923590467 | I135: 2017-03-16 | J135: 0 | X135: 0.03561135583
A136: 2017-03-03T19:00:00 | B136: 1008 | C136: 6.5 | D136: 65 | E136: 0 | F136: 0 | G136: 0.387510829 | I136: 2017-03-17 | J136: 1 | X136: 0.02803995977
A137: 2017-03-03T19:30:00 | B137: 1008 | C137: 6 | D137: 67 | E137: 1 | F137: 0 | G137: 0.3302373112 | I137: 2017-03-18 | J137: 8 | X137: 0.02390131752
A138: 2017-03-03T20:00:00 | B138: 1008 | C138: 5.8 | D138: 68 | E138: 0 | F138: 0 | G138: 0.3440557235 | I138: 2017-03-19 | J138: 8.5 | X138: 0.02490002818
A139: 2017-03-03T20:30:00 | B139: 1007 | C139: 6 | D139: 67 | E139: 2 | F139: 0 | G139: 0.3302373112 | I139: 2017-03-20 | J139: 0 | X139: 0.02390131752
A140: 2017-03-03T21:00:00 | B140: 1007 | C140: 6.4 | D140: 64 | E140: 5 | F140: 0 | G140: 0.07809794907 | I140: 2017-03-21 | J140: 0 | X140: 0.005658292044
A141: 2017-03-03T21:30:00 | B141: 1006 | C141: 6.4 | D141: 63 | E141: 8 | F141: 0 | G141: -0.1391398431 | I141: 2017-03-22 | J141: 3 | X141: -0.01008986483
A142: 2017-03-03T22:00:00 | B142: 1006 | C142: 6.1 | D142: 64 | E142: 5 | F142: 0 | G142: -0.206901558 | I142: 2017-03-23 | J142: 0 | X142: -0.01500785868
A143: 2017-03-03T22:30:00 | B143: 1006 | C143: 6.2 | D143: 65 | E143: 10 | F143: 0 | G143: 0.1020148468 | I143: 2017-03-24 | J143: 0 | X143: 0.007390373778
A144: 2017-03-03T23:00:00 | B144: 1006 | C144: 6.3 | D144: 68 | E144: 4 | F144: 0 | G144: 0.82235641 | I144: 2017-03-25 | J144: 0 | X144: 0.05939895046
A145: 2017-03-03T23:30:00 | B145: 1005 | C145: 5.8 | D145: 70 | E145: 5 | F145: 0 | G145: 0.7458141377 | I145: 2017-03-26 | J145: 0 | X145: 0.05388719675
A146: 2017-03-04 | B146: 1005 | C146: 6.1 | D146: 72 | E146: 3 | F146: 0 | G146: 1.426386617 | I146: 2017-03-27 | J146: 0 | X146: 0.1027736805
A147: 2017-03-04T00:30:00 | B147: 1004 | C147: 6 | D147: 74 | E147: 4 | F147: 0 | G147: 1.712892724 | I147: 2017-03-28 | J147: 0 | X147: 0.1232725287
A148: 2017-03-04T01:00:00 | B148: 1005 | C148: 5.8 | D148: 76 | E148: 4 | F148: 0 | G148: 1.892859922 | I148: 2017-03-29 | J148: 0.5 | X148: 0.1361242501
A149: 2017-03-04T01:30:00 | B149: 1004 | C149: 5.9 | D149: 77 | E149: 2 | F149: 0 | G149: 2.173212007 | I149: 2017-03-30 | J149: 2.5 | X149: 0.1561070331
A150: 2017-03-04T02:00:00 | B150: 1004 | C150: 5.7 | D150: 79 | E150: 3 | F150: 0 | G150: 2.339272109 | I150: 2017-03-31 | J150: 0 | X150: 0.1679218479
A151: 2017-03-04T02:30:00 | B151: 1004 | C151: 5.2 | D151: 81 | E151: 0 | F151: 0 | G151: 2.20341586 | X151: 0.1582571615
A152: 2017-03-04T03:00:00 | B152: 1004 | C152: 5.5 | D152: 81 | E152: 1 | F152: 0 | G152: 2.49621482 | X152: 0.179073296
A153: 2017-03-04T03:30:00 | B153: 1003 | C153: 5.6 | D153: 81 | E153: 2 | F153: 0 | G153: 2.593812576 | X153: 0.1860008484
A154: 2017-03-04T04:00:00 | B154: 1003 | C154: 5.2 | D154: 82 | E154: 0 | F154: 0 | G154: 2.375919797 | X154: 0.1705270982
A155: 2017-03-04T04:30:00 | B155: 1003 | C155: 5 | D155: 83 | E155: 1 | F155: 0 | G155: 2.350820786 | X155: 0.1687429166
A156: 2017-03-04T05:00:00 | B156: 1003 | C156: 4.6 | D156: 84 | E156: 0 | F156: 0 | G156: 2.127344209 | X156: 0.1528408191
A157: 2017-03-04T05:30:00 | B157: 1003 | C157: 4.4 | D157: 86 | E157: 0 | F157: 0 | G157: 2.261607357 | X157: 0.1623981604
A158: 2017-03-04T06:00:00 | B158: 1002 | C158: 4.4 | D158: 87 | E158: 0 | F158: 0 | G158: 2.424210271 | X158: 0.1739588359
A159: 2017-03-04T06:30:00 | B159: 1002 | C159: 4.7 | D159: 86 | E159: 0 | F159: 0 | G159: 2.556443097 | X159: 0.1833489886
A160: 2017-03-04T07:00:00 | B160: 1002 | C160: 4.8 | D160: 85 | E160: 1 | F160: 0 | G160: 2.48990793 | X160: 0.1786254394
A161: 2017-03-04T07:30:00 | B161: 1002 | C161: 4.6 | D161: 85 | E161: 3 | F161: 0 | G161: 2.293616247 | X161: 0.1646751264
A162: 2017-03-04T08:00:00 | B162: 1002 | C162: 5 | D162: 84 | E162: 3 | F162: 0 | G162: 2.519392419 | X162: 0.1807189555
A163: 2017-03-04T08:30:00 | B163: 1002 | C163: 5 | D163: 84 | E163: 5 | F163: 0 | G163: 2.519392419 | X163: 0.1807189555
A164: 2017-03-04T09:00:00 | B164: 1001 | C164: 5.6 | D164: 82 | E164: 4 | F164: 0 | G164: 2.766866174 | X164: 0.1982707851
A165: 2017-03-04T09:30:00 | B165: 1001 | C165: 6.3 | D165: 81 | E165: 3 | F165: 0 | G165: 3.276970312 | X165: 0.2343381772
A166: 2017-03-04T10:00:00 | B166: 1001 | C166: 7 | D166: 78 | E166: 7 | F166: 0 | G166: 3.423414804 | X166: 0.2446650984
A167: 2017-03-04T10:30:00 | B167: 1001 | C167: 7.7 | D167: 77 | E167: 4 | F167: 0 | G167: 3.919549304 | X167: 0.2795603333
A168: 2017-03-04T11:00:00 | B168: 1001 | C168: 8.7 | D168: 74 | E168: 7 | F168: 0 | G168: 4.32027739 | X168: 0.3076430742
A169: 2017-03-04T11:30:00 | B169: 1001 | C169: 9.9 | D169: 71 | E169: 9 | F169: 0 | G169: 4.883182719 | X169: 0.3469378036
A170: 2017-03-04T12:00:00 | B170: 1001 | C170: 11.1 | D170: 67 | E170: 13 | F170: 0 | G170: 5.198467304 | X170: 0.368869037
A171: 2017-03-04T12:30:00 | B171: 1000 | C171: 11.8 | D171: 64 | E171: 11 | F171: 0 | G171: 5.205121579 | X171: 0.369331309
A172: 2017-03-04T13:00:00 | B172: 1000 | C172: 12.7 | D172: 61 | E172: 9 | F172: 0 | G172: 5.365166949 | X172: 0.3804421922
A173: 2017-03-04T13:30:00 | B173: 999 | C173: 13.4 | D173: 60 | E173: 10 | F173: 0 | G173: 5.78626726 | X173: 0.4096081238
A174: 2017-03-04T14:00:00 | B174: 999 | C174: 14.3 | D174: 57 | E174: 8 | F174: 0 | G174: 5.888891533 | X174: 0.416701059
A175: 2017-03-04T14:30:00 | B175: 998 | C175: 15 | D175: 55 | E175: 9 | F175: 0 | G175: 6.025198345 | X175: 0.4261129476
A176: 2017-03-04T15:00:00 | B176: 998 | C176: 16 | D176: 53 | E176: 11 | F176: 0 | G176: 6.417154024 | X176: 0.4531199146
A177: 2017-03-04T15:30:00 | B177: 997 | C177: 15.6 | D177: 55 | E177: 8 | F177: 0 | G177: 6.584154679 | X177: 0.4646010219
A178: 2017-03-04T16:00:00 | B178: 997 | C178: 14.2 | D178: 58 | E178: 6 | F178: 0 | G178: 6.047117131 | X178: 0.4276254631
A179: 2017-03-04T16:30:00 | B179: 997 | C179: 13.9 | D179: 59 | E179: 8 | F179: 0 | G179: 6.013247063 | X179: 0.425288132
A180: 2017-03-04T17:00:00 | B180: 997 | C180: 12.7 | D180: 63 | E180: 9 | F180: 0 | G180: 5.83102999 | X180: 0.4127026445
A181: 2017-03-04T17:30:00 | B181: 996 | C181: 12 | D181: 66 | E181: 8 | F181: 0 | G181: 5.839329616 | X181: 0.4132762889
A182: 2017-03-04T18:00:00 | B182: 996 | C182: 11.6 | D182: 67 | E182: 5 | F182: 0 | G182: 5.675500701 | X182: 0.4019458635
A183: 2017-03-04T18:30:00 | B183: 996 | C183: 10.7 | D183: 71 | E183: 2 | F183: 0 | G183: 5.651724649 | X183: 0.4003002691
A184: 2017-03-04T19:00:00 | B184: 996 | C184: 10.2 | D184: 72 | E184: 4 | F184: 0 | G184: 5.37283666 | X184: 0.3809742898
A185: 2017-03-04T19:30:00 | B185: 996 | C185: 9.3 | D185: 75 | E185: 0 | F185: 0 | G185: 5.092462121 | X185: 0.361501521
A186: 2017-03-04T20:00:00 | B186: 995 | C186: 9 | D186: 76 | E186: 0 | F186: 0 | G186: 4.992566091 | X186: 0.3545528383
A187: 2017-03-04T20:30:00 | B187: 994 | C187: 10.6 | D187: 71 | E187: 3 | F187: 0 | G187: 5.555662178 | X187: 0.3936483639
A188: 2017-03-04T21:00:00 | B188: 994 | C188: 11.2 | D188: 69 | E188: 5 | F188: 0 | G188: 5.718314618 | X188: 0.4049083186
A189: 2017-03-04T21:30:00 | B189: 994 | C189: 11.4 | D189: 68 | E189: 7 | F189: 0 | G189: 5.698618908 | X189: 0.4035456253
A190: 2017-03-04T22:00:00 | B190: 994 | C190: 11.2 | D190: 68 | E190: 7 | F190: 0 | G190: 5.507475396 | X190: 0.3903097046
A191: 2017-03-04T22:30:00 | B191: 994 | C191: 10.9 | D191: 70 | E191: 7 | F191: 0 | G191: 5.638775729 | X191: 0.3994039127
A192: 2017-03-04T23:00:00 | B192: 994 | C192: 11 | D192: 69 | E192: 9 | F192: 0 | G192: 5.526840168 | X192: 0.3916515637
A193: 2017-03-04T23:30:00 | B193: 994 | C193: 11.1 | D193: 68 | E193: 7 | F193: 0 | G193: 5.411901117 | X193: 0.3836839345
A194: 2017-03-05 | B194: 994 | C194: 11 | D194: 68 | E194: 7 | F194: 0 | G194: =(243.12*X194)/(17.62-X194) -> 5.316325155 | X194: =(LOG10(D194) - 2)/0.4343 + (17.62*C194 / (243.12 + C194)) -> 0.3770529498
A195: 2017-03-05T00:30:00 | B195: 994 | C195: 11 | D195: 67 | E195: 4 | F195: 0 | G195: 5.103055397 | X195: 0.3622380522
A196: 2017-03-05T01:00:00 | B196: 995 | C196: 10.7 | D196: 68 | E196: 3 | F196: 0 | G196: 5.029587175 | X196: 0.3571286458
A197: 2017-03-05T01:30:00 | B197: 995 | C197: 10.4 | D197: 69 | E197: 6 | F197: 0 | G197: 4.952377869 | X197: 0.3517558013
A198: 2017-03-05T02:00:00 | B198: 995 | C198: 9.9 | D198: 72 | E198: 0 | F198: 0 | G198: 5.084154568 | X198: 0.3609238679
A199: 2017-03-05T02:30:00 | B199: 995 | C199: 10 | D199: 72 | E199: 0 | F199: 0 | G199: 5.18038338 | X199: 0.3676126227
A200: 2017-03-05T03:00:00 | B200: 996 | C200: 9.7 | D200: 73 | E200: 0 | F200: 0 | G200: 5.089903729 | X200: 0.3613236311
... 1289 more rows

Sheet Duben
A1: Datum, čas | B1: Pred [hPa] | C1: T [ºC] | D1: Rh [%] | E1: v max [m.s-1] | F1: Srážky [mm] | G1: Tdew [ºC]
A2: 2017-04-01 | B2: 1015 | C2: 12.4 | D2: 76 | E2: 0 | F2: 0 | G2: =(243.12*X2)/(17.62-X2) -> 8.284633796 | X2: =(LOG10(D2) - 2)/0.4343 + (17.62*C2 / (243.12 + C2)) -> 0.5806386512
A3: 2017-04-01T00:30:00 | B3: 1014 | C3: 11.5 | D3: 78 | E3: 0 | F3: 0 | G3: 7.794515108 | I3: Průměrná teplota | J3: =AVERAGE(C1:C1530) -> 7.110416667 | K3: °C | X3: 0.5473551665
A4: 2017-04-01T01:00:00 | B4: 1015 | C4: 10.9 | D4: 80 | E4: 0 | F4: 0 | G4: 7.582742174 | I4: Maximální teplota | J4: =MAX(C1:C1530) -> 23.6 | K4: °C | X4: 0.5329336087
A5: 2017-04-01T01:30:00 | B5: 1015 | C5: 10.5 | D5: 81 | E5: 0 | F5: 0 | G5: 7.374940926 | I5: Minimální teplota | J5: =MIN(C1:C1530) -> -2.7 | K5: °C | X5: 0.5187588166
A6: 2017-04-01T02:00:00 | B6: 1014 | C6: 10.2 | D6: 82 | E6: 0 | F6: 0 | G6: 7.261720219 | I6: Úhrn srážek | J6: =SUM(F2:F1614) -> 63 | K6: mm | X6: 0.5110257656
A7: 2017-04-01T02:30:00 | B7: 1014 | C7: 9.5 | D7: 84 | E7: 0 | F7: 0 | G7: 6.929064129 | I7: Maximální náraz větru | J7: =MAX(E1:E1530) -> 26 | K7: m/s | X7: 0.4882646147
A8: 2017-04-01T03:00:00 | B8: 1014 | C8: 9.2 | D8: 85 | E8: 0 | F8: 0 | G8: 6.807578475 | X8: 0.4799371621
A9: 2017-04-01T03:30:00 | B9: 1014 | C9: 8.6 | D9: 86 | E9: 0 | F9: 0 | G9: 6.388745933 | X9: 0.4511653606
A10: 2017-04-01T04:00:00 | B10: 1014 | C10: 8.8 | D10: 85 | E10: 0 | F10: 0 | G10: 6.415121972 | X10: 0.4529801186
A11: 2017-04-01T04:30:00 | B11: 1013 | C11: 8.7 | D11: 86 | E11: 0 | F11: 0 | G11: 6.486996391 | X11: 0.4579233678
A12: 2017-04-01T05:00:00 | B12: 1013 | C12: 8.1 | D12: 87 | E12: 0 | F12: 0 | G12: 6.064942263 | X12: 0.428855298
A13: 2017-04-01T05:30:00 | B13: 1013 | C13: 8.1 | D13: 87 | E13: 0 | F13: 0 | G13: 6.064942263 | X13: 0.428855298
A14: 2017-04-01T06:00:00 | B14: 1013 | C14: 7.7 | D14: 87 | E14: 0 | F14: 0 | G14: 5.671391498 | X14: 0.4016614787
A15: 2017-04-01T06:30:00 | B15: 1013 | C15: 8 | D15: 87 | E15: 0 | F15: 0 | G15: 5.966555523 | X15: 0.4220649649
A16: 2017-04-01T07:00:00 | B16: 1013 | C16: 7.9 | D16: 86 | E16: 0 | F16: 0 | G16: 5.700973523 | X16: 0.4037085461
A17: 2017-04-01T07:30:00 | B17: 1013 | C17: 8.5 | D17: 85 | E17: 0 | F17: 0 | G17: 6.120771852 | X17: 0.4327060907
A18: 2017-04-01T08:00:00 | B18: 1013 | C18: 9.3 | D18: 83 | E18: 0 | F18: 0 | G18: 6.5587101 | X18: 0.4628527275
A19: 2017-04-01T08:30:00 | B19: 1013 | C19: 11 | D19: 78 | E19: 0 | F19: 0 | G19: 7.308948337 | X19: 0.514252328
A20: 2017-04-01T09:00:00 | B20: 1012 | C20: 12.8 | D20: 72 | E20: 0 | F20: 0 | G20: 7.874202448 | X20: 0.5527755055
A21: 2017-04-01T09:30:00 | B21: 1012 | C21: 13.8 | D21: 67 | E21: 6 | F21: 0 | G21: 7.773930276 | X21: 0.5459544251
A22: 2017-04-01T10:00:00 | B22: 1013 | C22: 14.7 | D22: 63 | E22: 7 | F22: 0 | G22: 7.724671234 | X22: 0.5426015489
A23: 2017-04-01T10:30:00 | B23: 1012 | C23: 15.7 | D23: 61 | E23: 8 | F23: 0 | G23: 8.194650694 | X23: 0.5745377153
A24: 2017-04-01T11:00:00 | B24: 1012 | C24: 17.2 | D24: 57 | E24: 9 | F24: 0 | G24: 8.601476192 | X24: 0.6020861342
A25: 2017-04-01T11:30:00 | B25: 1012 | C25: 19.2 | D25: 53 | E25: 6 | F25: 0 | G25: 9.383489333 | X25: 0.6547912763
A26: 2017-04-01T12:00:00 | B26: 1012 | C26: 20.1 | D26: 49 | E26: 6 | F26: 0 | G26: 9.047062061 | X26: 0.6321572382
A27: 2017-04-01T12:30:00 | B27: 1012 | C27: 20.8 | D27: 48 | E27: 8 | F27: 0 | G27: 9.382181153 | X27: 0.6547033818
A28: 2017-04-01T13:00:00 | B28: 1011 | C28: 21.1 | D28: 47 | E28: 12 | F28: 0 | G28: 9.34313601 | X28: 0.6520795832
A29: 2017-04-01T13:30:00 | B29: 1011 | C29: 21.1 | D29: 45 | E29: 10 | F29: 0 | G29: 8.697789653 | X29: 0.6085950238
A30: 2017-04-01T14:00:00 | B30: 1011 | C30: 22 | D30: 44 | E30: 7 | F30: 0 | G30: 9.180773158 | X30: 0.6411602351
A31: 2017-04-01T14:30:00 | B31: 1011 | C31: 21.6 | D31: 44 | E31: 9 | F31: 0 | G31: 8.818493578 | X31: 0.6167452009
A32: 2017-04-01T15:00:00 | B32: 1010 | C32: 22.3 | D32: 43 | E32: 8 | F32: 0 | G32: 9.110562058 | X32: 0.6364339918
A33: 2017-04-01T15:30:00 | B33: 1009 | C33: 23 | D33: 41 | E33: 8 | F33: 0 | G33: 9.033744856 | X33: 0.6312600451
A34: 2017-04-01T16:00:00 | B34: 1009 | C34: 23.6 | D34: 40 | E34: 4 | F34: 0 | G34: 9.204831307 | X34: 0.6427790986
A35: 2017-04-01T16:30:00 | B35: 1009 | C35: 23.1 | D35: 41 | E35: 4 | F35: 0 | G35: 9.123522303 | X35: 0.6373066056
A36: 2017-04-01T17:00:00 | B36: 1009 | C36: 22.4 | D36: 42 | E36: 9 | F36: 0 | G36: 8.851644957 | X36: 0.6189822834
A37: 2017-04-01T17:30:00 | B37: 1009 | C37: 22.3 | D37: 43 | E37: 10 | F37: 0 | G37: 9.110562058 | X37: 0.6364339918
A38: 2017-04-01T18:00:00 | B38: 1009 | C38: 21.8 | D38: 44 | E38: 4 | F38: 0 | G38: 8.999639976 | X38: 0.628961934
A39: 2017-04-01T18:30:00 | B39: 1008 | C39: 19.9 | D39: 48 | E39: 6 | F39: 0 | G39: 8.558247487 | X39: 0.599163107
A40: 2017-04-01T19:00:00 | B40: 1009 | C40: 19 | D40: 51 | E40: 9 | F40: 0 | G40: 8.627795341 | X40: 0.6038652839
A41: 2017-04-01T19:30:00 | B41: 1008 | C41: 17.5 | D41: 56 | E41: 1 | F41: 0 | G41: 8.61986258 | X41: 0.6033290759
A42: 2017-04-01T20:00:00 | B42: 1009 | C42: 16.4 | D42: 59 | E42: 0 | F42: 0 | G42: 8.361473328 | X42: 0.5858449853
A43: 2017-04-01T20:30:00 | B43: 1009 | C43: 16.3 | D43: 60 | E43: 0 | F43: 0 | G43: 8.515757198 | X43: 0.596289031
A44: 2017-04-01T21:00:00 | B44: 1009 | C44: 16.1 | D44: 60 | E44: 1 | F44: 0 | G44: 8.327575302 | X44: 0.5835485852
A45: 2017-04-01T21:30:00 | B45: 1009 | C45: 15.6 | D45: 62 | E45: 2 | F45: 0 | G45: 8.340152616 | X45: 0.5844006996
A46: 2017-04-01T22:00:00 | B46: 1009 | C46: 15.3 | D46: 63 | E46: 2 | F46: 0 | G46: 8.29260862 | X46: 0.5811791409
A47: 2017-04-01T22:30:00 | B47: 1009 | C47: 15.1 | D47: 63 | E47: 5 | F47: 0 | G47: 8.103304104 | X47: 0.5683398633
A48: 2017-04-01T23:00:00 | B48: 1009 | C48: 14.5 | D48: 64 | E48: 0 | F48: 0 | G48: 7.766526705 | X48: 0.5454505762
A49: 2017-04-01T23:30:00 | B49: 1009 | C49: 14.4 | D49: 64 | E49: 1 | F49: 0 | G49: 7.671684873 | X49: 0.5389934979
A50: 2017-04-02 | B50: 1009 | C50: 13.6 | D50: 66 | E50: 0 | F50: 0 | G50: 7.3627579 | X50: 0.5179270433
A51: 2017-04-02T00:30:00 | B51: 1010 | C51: 12.8 | D51: 68 | E51: 0 | F51: 0 | G51: 7.036435102 | X51: 0.4956178179
A52: 2017-04-02T01:00:00 | B52: 1009 | C52: 12.3 | D52: 70 | E52: 0 | F52: 0 | G52: 6.981229879 | X52: 0.4918379271
A53: 2017-04-02T01:30:00 | B53: 1009 | C53: 11 | D53: 75 | E53: 0 | F53: 0 | G53: 6.736076039 | X53: 0.4750321132
A54: 2017-04-02T02:00:00 | B54: 1009 | C54: 10.5 | D54: 77 | E54: 0 | F54: 0 | G54: 6.635323198 | X54: 0.4681157273
A55: 2017-04-02T02:30:00 | B55: 1010 | C55: 9.9 | D55: 79 | E55: 0 | F55: 0 | G55: 6.4256507 | X55: 0.4537044225
A56: 2017-04-02T03:00:00 | B56: 1010 | C56: 9.4 | D56: 80 | E56: 0 | F56: 0 | G56: 6.121550813 | X56: 0.4327598066
A57: 2017-04-02T03:30:00 | B57: 1010 | C57: 8.6 | D57: 83 | E57: 0 | F57: 0 | G57: 5.873810963 | X57: 0.4156591233
A58: 2017-04-02T04:00:00 | B58: 1010 | C58: 8.7 | D58: 84 | E58: 0 | F58: 0 | G58: 6.145239349 | X58: 0.4343931693
A59: 2017-04-02T04:30:00 | B59: 1010 | C59: 8.7 | D59: 83 | E59: 0 | F59: 0 | G59: 5.971656223 | X59: 0.4224171305
A60: 2017-04-02T05:00:00 | B60: 1010 | C60: 8 | D60: 86 | E60: 0 | F60: 0 | G60: 5.799228781 | X60: 0.4105042894
A61: 2017-04-02T05:30:00 | B61: 1010 | C61: 8.3 | D61: 86 | E61: 0 | F61: 0 | G61: 6.093990443 | X61: 0.4308590839
A62: 2017-04-02T06:00:00 | B62: 1011 | C62: 8.8 | D62: 85 | E62: 0 | F62: 0 | G62: 6.415121972 | X62: 0.4529801186
A63: 2017-04-02T06:30:00 | B63: 1012 | C63: 8.4 | D63: 84 | E63: 0 | F63: 0 | G63: 5.85129203 | X63: 0.4141030266
A64: 2017-04-02T07:00:00 | B64: 1012 | C64: 9.4 | D64: 84 | E64: 0 | F64: 0 | G64: 6.831088794 | X64: 0.4815493509
A65: 2017-04-02T07:30:00 | B65: 1012 | C65: 9.3 | D65: 86 | E65: 0 | F65: 0 | G65: 7.07648474 | X65: 0.4983589648
A66: 2017-04-02T08:00:00 | B66: 1013 | C66: 9.1 | D66: 90 | E66: 2 | F66: 1 | G66: =(243.12*X66)/(17.62-X66) -> 7.54504055 | X66: =(LOG10(D66) - 2)/0.4343 + (17.62*C66 / (243.12 + C66)) -> 0.5303636047
A67: 2017-04-02T08:30:00 | B67: 1013 | C67: 9.9 | D67: 90 | E67: 0 | F67: 0 | G67: 8.335191358 | X67: 0.584064584
A68: 2017-04-02T09:00:00 | B68: 1013 | C68: 10.4 | D68: 90 | E68: 0 | F68: 0 | G68: 8.829019922 | X68: 0.6174555911
A69: 2017-04-02T09:30:00 | B69: 1014 | C69: 11.4 | D69: 90 | E69: 0 | F69: 0 | G69: 9.816640838 | X69: 0.6838440291
A70: 2017-04-02T10:00:00 | B70: 1014 | C70: 12.5 | D70: 86 | E70: 0 | F70: 0 | G70: 10.22000573 | X70: 0.7108095719
A71: 2017-04-02T10:30:00 | B71: 1014 | C71: 12.9 | D71: 84 | E71: 0 | F71: 0 | G71: 10.25975587 | X71: 0.7134622802
A72: 2017-04-02T11:00:00 | B72: 1015 | C72: 14.7 | D72: 73 | E72: 3 | F72: 0 | G72: 9.907481928 | X72: 0.6899243918
A73: 2017-04-02T11:30:00 | B73: 1015 | C73: 15.3 | D73: 71 | E73: 0 | F73: 0 | G73: 10.06897152 | X73: 0.7007227726
A74: 2017-04-02T12:00:00 | B74: 1015 | C74: 16.6 | D74: 67 | E74: 0 | F74: 0 | G74: 10.44344004 | X74: 0.725709564
A75: 2017-04-02T12:30:00 | B75: 1015 | C75: 17.6 | D75: 63 | E75: 2 | F75: 0 | G75: 10.4690396 | X75: 0.7274150258
A76: 2017-04-02T13:00:00 | B76: 1015 | C76: 19 | D76: 60 | E76: 2 | F76: 0 | G76: 11.05536091 | X76: 0.7663821485
A77: 2017-04-02T13:30:00 | B77: 1015 | C77: 19.1 | D77: 59 | E77: 5 | F77: 0 | G77: 10.89598421 | X77: 0.7558077198
A78: 2017-04-02T14:00:00 | B78: 1015 | C78: 20.2 | D78: 56 | E78: 2 | F78: 0 | G78: 11.13811342 | X78: 0.7718674378
A79: 2017-04-02T14:30:00 | B79: 1015 | C79: 20.1 | D79: 57 | E79: 8 | F79: 0 | G79: 11.31206531 | X79: 0.7833862864
A80: 2017-04-02T15:00:00 | B80: 1015 | C80: 19.8 | D80: 59 | E80: 11 | F80: 0 | G80: 11.55281308 | X80: 0.7993023051
A81: 2017-04-02T15:30:00 | B81: 1015 | C81: 17.7 | D81: 65 | E81: 13 | F81: 0 | G81: 11.03401656 | X81: 0.7649667487
A82: 2017-04-02T16:00:00 | B82: 1016 | C82: 19.2 | D82: 61 | E82: 5 | F82: 0 | G82: 11.49331196 | X82: 0.7953714407
A83: 2017-04-02T16:30:00 | B83: 1016 | C83: 17.7 | D83: 65 | E83: 7 | F83: 0 | G83: 11.03401656 | X83: 0.7649667487
A84: 2017-04-02T17:00:00 | B84: 1016 | C84: 17.6 | D84: 66 | E84: 9 | F84: 0 | G84: 11.1693109 | X84: 0.7739344504
A85: 2017-04-02T17:30:00 | B85: 1016 | C85: 16.7 | D85: 69 | E85: 8 | F85: 0 | G85: 10.98131943 | X85: 0.7614712465
A86: 2017-04-02T18:00:00 | B86: 1016 | C86: 16.2 | D86: 70 | E86: 11 | F86: 0 | G86: 10.7193082 | X86: 0.7440699858
A87: 2017-04-02T18:30:00 | B87: 1017 | C87: 14.9 | D87: 74 | E87: 4 | F87: 0 | G87: 10.30392636 | X87: 0.7164090035
A88: 2017-04-02T19:00:00 | B88: 1017 | C88: 14.4 | D88: 79 | E88: 3 | F88: 0 | G88: 10.80184677 | X88: 0.7495555916
A89: 2017-04-02T19:30:00 | B89: 1017 | C89: 13.9 | D89: 81 | E89: 0 | F89: 0 | G89: 10.691121 | X89: 0.7421958162
A90: 2017-04-02T20:00:00 | B90: 1017 | C90: 13.4 | D90: 83 | E90: 0 | F90: 0 | G90: 10.56943389 | X90: 0.7341000464
A91: 2017-04-02T20:30:00 | B91: 1018 | C91: 12.9 | D91: 85 | E91: 0 | F91: 0 | G91: 10.4372419 | X91: 0.7252965875
A92: 2017-04-02T21:00:00 | B92: 1018 | C92: 12.6 | D92: 87 | E92: 0 | F92: 0 | G92: 10.49168892 | X92: 0.7289236533
A93: 2017-04-02T21:30:00 | B93: 1019 | C93: 12.3 | D93: 87 | E93: 0 | F93: 0 | G93: 10.19661244 | X93: 0.7092480413
A94: 2017-04-02T22:00:00 | B94: 1019 | C94: 12 | D94: 89 | E94: 0 | F94: 0 | G94: 10.24165033 | X94: 0.7122541178
A95: 2017-04-02T22:30:00 | B95: 1019 | C95: 11.6 | D95: 90 | E95: 0 | F95: 0 | G95: 10.01415923 | X95: 0.6970591647
A96: 2017-04-02T23:00:00 | B96: 1019 | C96: 11.7 | D96: 90 | E96: 0 | F96: 0 | G96: 10.1129177 | X96: 0.7036589535
A97: 2017-04-02T23:30:00 | B97: 1019 | C97: 11.4 | D97: 91 | E97: 0 | F97: 0 | G97: 9.981772619 | X97: 0.6948937248
A98: 2017-04-03 | B98: 1019 | C98: 11 | D98: 92 | E98: 0 | F98: 0 | G98: 9.749242786 | X98: 0.6793299809
A99: 2017-04-03T00:30:00 | B99: 1020 | C99: 10.8 | D99: 92 | E99: 0 | F99: 0 | G99: 9.55120594 | X99: 0.6660523427
A100: 2017-04-03T01:00:00 | B100: 1019 | C100: 10.7 | D100: 93 | E100: 0 | F100: 0 | G100: 9.613280564 | X100: 0.6702164557
A101: 2017-04-03T01:30:00 | B101: 1019 | C101: 10.7 | D101: 93 | E101: 0 | F101: 0 | G101: 9.613280564 | X101: 0.6702164557
A102: 2017-04-03T02:00:00 | B102: 1019 | C102: 10.7 | D102: 92 | E102: 0 | F102: 0 | G102: 9.452186941 | X102: 0.6594056769
A103: 2017-04-03T02:30:00 | B103: 1019 | C103: 10.3 | D103: 92 | E103: 0 | F103: 0 | G103: 9.056107112 | X103: 0.6327665581
A104: 2017-04-03T03:00:00 | B104: 1020 | C104: 10.3 | D104: 92 | E104: 3 | F104: 0 | G104: 9.056107112 | X104: 0.6327665581
A105: 2017-04-03T03:30:00 | B105: 1020 | C105: 10 | D105: 93 | E105: 2 | F105: 0 | G105: 8.919253577 | X105: 0.623542745
A106: 2017-04-03T04:00:00 | B106: 1020 | C106: 10.1 | D106: 93 | E106: 0 | F106: 0 | G106: 9.018401293 | X106: 0.6302262169
A107: 2017-04-03T04:30:00 | B107: 1020 | C107: 10.2 | D107: 93 | E107: 0 | F107: 0 | G107: 9.117548674 | X107: 0.6369044121
A108: 2017-04-03T05:00:00 | B108: 1020 | C108: 10.1 | D108: 93 | E108: 0 | F108: 0 | G108: 9.018401293 | X108: 0.6302262169
A109: 2017-04-03T05:30:00 | B109: 1020 | C109: 9.9 | D109: 93 | E109: 0 | F109: 0 | G109: 8.820105527 | X109: 0.6168539902
A110: 2017-04-03T06:00:00 | B110: 1020 | C110: 9.6 | D110: 93 | E110: 0 | F110: 0 | G110: 8.522659369 | X110: 0.5967559652
A111: 2017-04-03T06:30:00 | B111: 1020 | C111: 9.4 | D111: 94 | E111: 0 | F111: 0 | G111: 8.48230928 | X111: 0.5940259052
A112: 2017-04-03T07:00:00 | B112: 1020 | C112: 9.1 | D112: 94 | E112: 0 | F112: 0 | G112: 8.184484511 | X112: 0.5738481642
A113: 2017-04-03T07:30:00 | B113: 1020 | C113: 9.3 | D113: 95 | E113: 0 | F113: 0 | G113: 8.539384142 | X113: 0.5978872955
A114: 2017-04-03T08:00:00 | B114: 1020 | C114: 9.4 | D114: 95 | E114: 0 | F114: 0 | G114: 8.638782272 | X114: 0.6046078801
A115: 2017-04-03T08:30:00 | B115: 1020 | C115: 9.8 | D115: 94 | E115: 0 | F115: 0 | G115: 8.879404972 | X115: 0.6208550994
A116: 2017-04-03T09:00:00 | B116: 1021 | C116: 9.8 | D116: 94 | E116: 0 | F116: 0 | G116: 8.879404972 | X116: 0.6208550994
A117: 2017-04-03T09:30:00 | B117: 1021 | C117: 10.1 | D117: 94 | E117: 2 | F117: 0 | G117: 9.177223741 | X117: 0.6409213701
A118: 2017-04-03T10:00:00 | B118: 1021 | C118: 10.4 | D118: 94 | E118: 0 | F118: 0 | G118: 9.475039939 | X118: 0.6609401505
A119: 2017-04-03T10:30:00 | B119: 1022 | C119: 10.4 | D119: 93 | E119: 1 | F119: 0 | G119: 9.315842434 | X119: 0.6502449973
A120: 2017-04-03T11:00:00 | B120: 1022 | C120: 10.6 | D120: 93 | E120: 1 | F120: 0 | G120: 9.514134855 | I120: 2017-04-01 | J120: 0 | X120: 0.6635645505
A121: 2017-04-03T11:30:00 | B121: 1022 | C121: 10.9 | D121: 93 | E121: 1 | F121: 0 | G121: 9.811570978 | I121: 2017-04-02 | J121: 1 | X121: 0.6835045541
A122: 2017-04-03T12:00:00 | B122: 1022 | C122: 12.1 | D122: 91 | E122: 1 | F122: 0 | G122: 10.67398271 | I122: 2017-04-03 | J122: 0 | X122: 0.7410560858
A123: 2017-04-03T12:30:00 | B123: 1022 | C123: 12.1 | D123: 86 | E123: 4 | F123: 0 | G123: 9.827104001 | I123: 2017-04-04 | J123: 13 | X123: 0.6845445935
A124: 2017-04-03T13:00:00 | B124: 1022 | C124: 11.7 | D124: 87 | E124: 2 | F124: 0 | G124: 9.606442353 | I124: 2017-04-05 | J124: 0.5 | X124: 0.6697578325
A125: 2017-04-03T13:30:00 | B125: 1022 | C125: 11.9 | D125: 82 | E125: 3 | F125: 0 | G125: 8.922382786 | I125: 2017-04-06 | J125: 0.5 | X125: 0.623753763
A126: 2017-04-03T14:00:00 | B126: 1022 | C126: 11.6 | D126: 80 | E126: 0 | F126: 0 | G126: 8.264554356 | I126: 2017-04-07 | J126: 25.5 | X126: 0.5792776256
A127: 2017-04-03T14:30:00 | B127: 1022 | C127: 11.1 | D127: 81 | E127: 0 | F127: 0 | G127: 7.960228782 | I127: 2017-04-08 | J127: 1 | X127: 0.5586231613
A128: 2017-04-03T15:00:00 | B128: 1021 | C128: 11.6 | D128: 81 | E128: 0 | F128: 0 | G128: 8.447942597 | I128: 2017-04-09 | J128: 0 | X128: 0.5916999878
A129: 2017-04-03T15:30:00 | B129: 1021 | C129: 11.6 | D129: 80 | E129: 0 | F129: 0 | G129: 8.264554356 | I129: 2017-04-10 | J129: 0 | X129: 0.5792776256
A130: 2017-04-03T16:00:00 | B130: 1021 | C130: 11.5 | D130: 79 | E130: 0 | F130: 0 | G130: =(243.12*X130)/(17.62-X130) -> 7.98187639 | I130: 2017-04-11 | J130: 0 | X130: =(LOG10(D130) - 2)/0.4343 + (17.62*C130 / (243.12 + C130)) -> 0.5600940304
A131: 2017-04-03T16:30:00 | B131: 1021 | C131: 11.5 | D131: 80 | E131: 0 | F131: 0 | G131: 8.16715562 | I131: 2017-04-12 | J131: 3.5 | X131: 0.5726726528
A132: 2017-04-03T17:00:00 | B132: 1021 | C132: 10.9 | D132: 78 | E132: 0 | F132: 0 | G132: 7.211831652 | I132: 2017-04-13 | J132: 4 | X132: 0.5076161224
A133: 2017-04-03T17:30:00 | B133: 1021 | C133: 10 | D133: 84 | E133: 1 | F133: 0 | G133: 7.418928961 | I133: 2017-04-14 | J133: 0 | X133: 0.5217613439
A134: 2017-04-03T18:00:00 | B134: 1022 | C134: 9.9 | D134: 86 | E134: 0 | F134: 0 | G134: 7.665948405 | I134: 2017-04-15 | J134: 0.5 | X134: 0.5386027875
A135: 2017-04-03T18:30:00 | B135: 1022 | C135: 9.7 | D135: 84 | E135: 0 | F135: 0 | G135: 7.12501243 | I135: 2017-04-16 | J135: 1 | X135: 0.5016792055
A136: 2017-04-03T19:00:00 | B136: 1022 | C136: 9.6 | D136: 85 | E136: 0 | F136: 0 | G136: 7.200023181 | I136: 2017-04-17 | J136: 3.5 | X136: 0.5068088714
A137: 2017-04-03T19:30:00 | B137: 1022 | C137: 9.3 | D137: 91 | E137: 0 | F137: 0 | G137: 7.905015029 | I137: 2017-04-18 | J137: 0.5 | X137: 0.554870457
A138: 2017-04-03T20:00:00 | B138: 1022 | C138: 9.2 | D138: 90 | E138: 0 | F138: 0 | G138: 7.643811091 | I138: 2017-04-19 | J138: 0 | X138: 0.5370948497
A139: 2017-04-03T20:30:00 | B139: 1022 | C139: 8.9 | D139: 93 | E139: 0 | F139: 0 | G139: 7.828606626 | I139: 2017-04-20 | J139: 0 | X139: 0.5496744956
A140: 2017-04-03T21:00:00 | B140: 1022 | C140: 8.6 | D140: 92 | E140: 0 | F140: 0 | G140: 7.372699368 | I140: 2017-04-21 | J140: 0 | X140: 0.5186057845
A141: 2017-04-03T21:30:00 | B141: 1022 | C141: 8.6 | D141: 94 | E141: 0 | F141: 0 | G141: 7.68810418 | I141: 2017-04-22 | J141: 1.5 | X141: 0.5401117165
A142: 2017-04-03T22:00:00 | B142: 1022 | C142: 8.2 | D142: 95 | E142: 0 | F142: 0 | G142: 7.445989045 | I142: 2017-04-23 | J142: 2.5 | X142: 0.5236078826
A143: 2017-04-03T22:30:00 | B143: 1022 | C143: 8 | D143: 95 | E143: 0 | F143: 0 | G143: 7.247186851 | I143: 2017-04-24 | J143: 0 | X143: 0.5100326202
A144: 2017-04-03T23:00:00 | B144: 1022 | C144: 7.7 | D144: 95 | E144: 0 | F144: 0 | G144: 6.94898178 | I144: 2017-04-25 | J144: 0.5 | X144: 0.4896291339
A145: 2017-04-03T23:30:00 | B145: 1022 | C145: 7.7 | D145: 94 | E145: 0 | F145: 0 | G145: 6.794601583 | I145: 2017-04-26 | J145: 2.5 | X145: 0.479047159
A146: 2017-04-04 | B146: 1022 | C146: 7.6 | D146: 93 | E146: 0 | F146: 0 | G146: 6.539608046 | I146: 2017-04-27 | J146: 0.5 | X146: 0.4615399931
A147: 2017-04-04T00:30:00 | B147: 1022 | C147: 7.6 | D147: 93 | E147: 0 | F147: 0 | G147: 6.539608046 | I147: 2017-04-28 | J147: 0 | X147: 0.4615399931
A148: 2017-04-04T01:00:00 | B148: 1022 | C148: 7.5 | D148: 94 | E148: 0 | F148: 0 | G148: 6.596042307 | I148: 2017-04-29 | J148: 1 | X148: 0.4654176975
A149: 2017-04-04T01:30:00 | B149: 1021 | C149: 7.5 | D149: 94 | E149: 0 | F149: 0 | G149: 6.596042307 | I149: 2017-04-30 | J149: 0 | X149: 0.4654176975
A150: 2017-04-04T02:00:00 | B150: 1021 | C150: 7.3 | D150: 95 | E150: 1 | F150: 0 | G150: 6.551371697 | X150: 0.4623484403
A151: 2017-04-04T02:30:00 | B151: 1021 | C151: 7 | D151: 95 | E151: 1 | F151: 0 | G151: 6.253161642 | X151: 0.4418306581
A152: 2017-04-04T03:00:00 | B152: 1020 | C152: 7 | D152: 96 | E152: 0 | F152: 0 | G152: 6.40526287 | X152: 0.452301825
A153: 2017-04-04T03:30:00 | B153: 1020 | C153: 7 | D153: 96 | E153: 0 | F153: 0.5 | G153: 6.40526287 | X153: 0.452301825
A154: 2017-04-04T04:00:00 | B154: 1020 | C154: 7 | D154: 96 | E154: 0 | F154: 0.5 | G154: 6.40526287 | X154: 0.452301825
A155: 2017-04-04T04:30:00 | B155: 1020 | C155: 7 | D155: 96 | E155: 0 | F155: 0 | G155: 6.40526287 | X155: 0.452301825
A156: 2017-04-04T05:00:00 | B156: 1020 | C156: 7 | D156: 97 | E156: 0 | F156: 1.5 | G156: 6.555970671 | X156: 0.4626644803
A157: 2017-04-04T05:30:00 | B157: 1020 | C157: 6.9 | D157: 97 | E157: 0 | F157: 0.5 | G157: 6.456325338 | X157: 0.4558142777
A158: 2017-04-04T06:00:00 | B158: 1019 | C158: 6.6 | D158: 97 | E158: 0 | F158: 0.5 | G158: 6.157388491 | X158: 0.4352307518
A159: 2017-04-04T06:30:00 | B159: 1020 | C159: 6.5 | D159: 97 | E159: 0 | F159: 0.5 | G159: 6.057742592 | X159: 0.428358582
A160: 2017-04-04T07:00:00 | B160: 1020 | C160: 6.5 | D160: 97 | E160: 0 | F160: 1 | G160: 6.057742592 | X160: 0.428358582
A161: 2017-04-04T07:30:00 | B161: 1020 | C161: 6.4 | D161: 97 | E161: 0 | F161: 1.5 | G161: 5.958096552 | X161: 0.4214809038
A162: 2017-04-04T08:00:00 | B162: 1019 | C162: 6.3 | D162: 97 | E162: 7 | F162: 1.5 | G162: 5.858450371 | X162: 0.4145977107
A163: 2017-04-04T08:30:00 | B163: 1020 | C163: 6.4 | D163: 97 | E163: 1 | F163: 2 | G163: 5.958096552 | X163: 0.4214809038
A164: 2017-04-04T09:00:00 | B164: 1019 | C164: 6.3 | D164: 97 | E164: 0 | F164: 2 | G164: 5.858450371 | X164: 0.4145977107
A165: 2017-04-04T09:30:00 | B165: 1020 | C165: 6.3 | D165: 97 | E165: 0 | F165: 0.5 | G165: 5.858450371 | X165: 0.4145977107
A166: 2017-04-04T10:00:00 | B166: 1019 | C166: 6.4 | D166: 97 | E166: 0 | F166: 0.5 | G166: 5.958096552 | X166: 0.4214809038
A167: 2017-04-04T10:30:00 | B167: 1020 | C167: 6.5 | D167: 97 | E167: 0 | F167: 0 | G167: 6.057742592 | X167: 0.428358582
A168: 2017-04-04T11:00:00 | B168: 1020 | C168: 6.7 | D168: 97 | E168: 0 | F168: 0 | G168: 6.257034248 | X168: 0.44209742
A169: 2017-04-04T11:30:00 | B169: 1020 | C169: 6.9 | D169: 97 | E169: 0 | F169: 0 | G169: 6.456325338 | X169: 0.4558142777
A170: 2017-04-04T12:00:00 | B170: 1020 | C170: 7 | D170: 97 | E170: 0 | F170: 0 | G170: 6.555970671 | X170: 0.4626644803
A171: 2017-04-04T12:30:00 | B171: 1020 | C171: 7 | D171: 97 | E171: 0 | F171: 0 | G171: 6.555970671 | X171: 0.4626644803
A172: 2017-04-04T13:00:00 | B172: 1020 | C172: 7.3 | D172: 97 | E172: 0 | F172: 0 | G172: 6.854905821 | X172: 0.4831822625
A173: 2017-04-04T13:30:00 | B173: 1020 | C173: 7.3 | D173: 97 | E173: 0 | F173: 0 | G173: 6.854905821 | X173: 0.4831822625
A174: 2017-04-04T14:00:00 | B174: 1020 | C174: 7.4 | D174: 97 | E174: 0 | F174: 0 | G174: 6.954550588 | X174: 0.4900106031
A175: 2017-04-04T14:30:00 | B175: 1020 | C175: 7.6 | D175: 97 | E175: 0 | F175: 0 | G175: 7.153839698 | X175: 0.5036509434
A176: 2017-04-04T15:00:00 | B176: 1020 | C176: 7.7 | D176: 97 | E176: 0 | F176: 0 | G176: 7.25348404 | X176: 0.5104629561
A177: 2017-04-04T15:30:00 | B177: 1020 | C177: 8.5 | D177: 97 | E177: 0 | F177: 0 | G177: 8.05063369 | X177: 0.5647641348
A178: 2017-04-04T16:00:00 | B178: 1020 | C178: 8.1 | D178: 96 | E178: 0 | F178: 0 | G178: 7.500026465 | X178: 0.52729412
A179: 2017-04-04T16:30:00 | B179: 1020 | C179: 7.9 | D179: 96 | E179: 1 | F179: 0 | G179: 7.300980242 | X179: 0.5137080437
A180: 2017-04-04T17:00:00 | B180: 1020 | C180: 7.8 | D180: 97 | E180: 0 | F180: 0 | G180: 7.353128242 | X180: 0.5172695392
A181: 2017-04-04T17:30:00 | B181: 1020 | C181: 7.7 | D181: 97 | E181: 0 | F181: 0 | G181: 7.25348404 | X181: 0.5104629561
A182: 2017-04-04T18:00:00 | B182: 1020 | C182: 7.7 | D182: 97 | E182: 0 | F182: 0 | G182: 7.25348404 | X182: 0.5104629561
A183: 2017-04-04T18:30:00 | B183: 1020 | C183: 7.9 | D183: 97 | E183: 0 | F183: 0 | G183: 7.452772301 | X183: 0.5240706991
A184: 2017-04-04T19:00:00 | B184: 1020 | C184: 7.8 | D184: 97 | E184: 0 | F184: 0 | G184: 7.353128242 | X184: 0.5172695392
A185: 2017-04-04T19:30:00 | B185: 1020 | C185: 7.7 | D185: 98 | E185: 0 | F185: 0 | G185: 7.403661296 | X185: 0.5207193259
A186: 2017-04-04T20:00:00 | B186: 1020 | C186: 7.6 | D186: 97 | E186: 0 | F186: 0 | G186: 7.153839698 | X186: 0.5036509434
A187: 2017-04-04T20:30:00 | B187: 1020 | C187: 7.5 | D187: 97 | E187: 0 | F187: 0 | G187: 7.054195213 | X187: 0.4968334946
A188: 2017-04-04T21:00:00 | B188: 1021 | C188: 7.1 | D188: 98 | E188: 1 | F188: 0 | G188: 6.805076543 | X188: 0.4797655775
A189: 2017-04-04T21:30:00 | B189: 1021 | C189: 6.9 | D189: 97 | E189: 2 | F189: 0 | G189: 6.456325338 | X189: 0.4558142777
A190: 2017-04-04T22:00:00 | B190: 1020 | C190: 6.8 | D190: 98 | E190: 0 | F190: 0 | G190: 6.505782897 | X190: 0.4592149629
A191: 2017-04-04T22:30:00 | B191: 1021 | C191: 6.8 | D191: 98 | E191: 3 | F191: 0 | G191: 6.505782897 | X191: 0.4592149629
A192: 2017-04-04T23:00:00 | B192: 1021 | C192: 6.7 | D192: 98 | E192: 3 | F192: 0 | G192: 6.40601816 | X192: 0.4523537899
A193: 2017-04-04T23:30:00 | B193: 1021 | C193: 6.7 | D193: 98 | E193: 9 | F193: 0 | G193: 6.40601816 | X193: 0.4523537899
A194: 2017-04-05 | B194: 1021 | C194: 6.5 | D194: 98 | E194: 4 | F194: 0 | G194: =(243.12*X194)/(17.62-X194) -> 6.206488405 | X194: =(LOG10(D194) - 2)/0.4343 + (17.62*C194 / (243.12 + C194)) -> 0.4386149518
A195: 2017-04-05T00:30:00 | B195: 1021 | C195: 6.3 | D195: 98 | E195: 7 | F195: 0 | G195: 6.006958274 | X195: 0.4248540805
A196: 2017-04-05T01:00:00 | B196: 1021 | C196: 6.2 | D196: 98 | E196: 4 | F196: 0 | G196: 5.907193068 | X196: 0.4179653658
A197: 2017-04-05T01:30:00 | B197: 1021 | C197: 6.3 | D197: 98 | E197: 0 | F197: 0 | G197: 6.006958274 | X197: 0.4248540805
A198: 2017-04-05T02:00:00 | B198: 1020 | C198: 6.3 | D198: 98 | E198: 0 | F198: 0 | G198: 6.006958274 | X198: 0.4248540805
A199: 2017-04-05T02:30:00 | B199: 1020 | C199: 6.2 | D199: 98 | E199: 0 | F199: 0 | G199: 5.907193068 | X199: 0.4179653658
A200: 2017-04-05T03:00:00 | B200: 1020 | C200: 6.1 | D200: 98 | E200: 0 | F200: 0 | G200: 5.807427767 | X200: 0.4110711229
... 1243 more rows

Sheet Kveten
A1: Datum, čas | B1: Pred [hPa] | C1: T [ºC] | D1: Rh [%] | E1: v max [m.s-1] | F1: Srážky [mm] | G1: Tdew [ºC]
A2: 2017-05-01 | B2: 1013 | C2: 6.5 | D2: 69 | E2: 0 | F2: 0 | G2: =(243.12*X2)/(17.62-X2) -> 1.216948261 | X2: =(LOG10(D2) - 2)/0.4343 + (17.62*C2 / (243.12 + C2)) -> 0.08775843569
A3: 2017-05-01T00:30:00 | B3: 1013 | C3: 5.9 | D3: 71 | E3: 0 | F3: 0 | G3: 1.03902718 | I3: Průměrná teplota | J3: =AVERAGE(C1:C1530) -> 14.08032454 | K3: °C | X3: 0.07498251907
A4: 2017-05-01T01:00:00 | B4: 1013 | C4: 5.4 | D4: 73 | E4: 0 | F4: 0 | G4: 0.9440065587 | I4: Maximální teplota | J4: =MAX(C1:C1530) -> 31 | K4: °C | X4: 0.06815177624
A5: 2017-05-01T01:30:00 | B5: 1013 | C5: 5.1 | D5: 75 | E5: 0 | F5: 0 | G5: 1.030186379 | I5: Minimální teplota | J5: =MIN(C1:C1530) -> -0.7 | K5: °C | X5: 0.07434720519
A6: 2017-05-01T02:00:00 | B6: 1013 | C6: 4.8 | D6: 76 | E6: 0 | F6: 0 | G6: 0.9239451852 | I6: Úhrn srážek | J6: =SUM(F2:F1614) -> 42.5 | K6: mm | X6: 0.06670894519
A7: 2017-05-01T02:30:00 | B7: 1013 | C7: 5.1 | D7: 76 | E7: 0 | F7: 0 | G7: 1.214632437 | I7: Maximální náraz větru | J7: =MAX(E1:E1530) -> 37 | K7: m/s | X7: 0.08759226365
A8: 2017-05-01T03:00:00 | B8: 1012 | C8: 4.8 | D8: 77 | E8: 0 | F8: 0 | G8: 1.10581987 | X8: 0.07978086066
A9: 2017-05-01T03:30:00 | B9: 1012 | C9: 6.1 | D9: 76 | E9: 0 | F9: 0 | G9: 2.183510515 | X9: 0.1568402148
A10: 2017-05-01T04:00:00 | B10: 1012 | C10: 6.9 | D10: 74 | E10: 4 | F10: 0 | G10: 2.582129009 | X10: 0.1851718311
A11: 2017-05-01T04:30:00 | B11: 1012 | C11: 6.7 | D11: 75 | E11: 5 | F11: 0 | G11: 2.577985742 | X11: 0.1848778233
A12: 2017-05-01T05:00:00 | B12: 1012 | C12: 7 | D12: 75 | E12: 2 | F12: 0 | G12: 2.868161705 | X12: 0.2054448836
A13: 2017-05-01T05:30:00 | B13: 1012 | C13: 7.5 | D13: 74 | E13: 3 | F13: 0 | G13: 3.161559826 | X13: 0.226191048
A14: 2017-05-01T06:00:00 | B14: 1012 | C14: 7.7 | D14: 74 | E14: 10 | F14: 0 | G14: 3.354692759 | X14: 0.2398205095
A15: 2017-05-01T06:30:00 | B15: 1011 | C15: 7.8 | D15: 74 | E15: 10 | F15: 0 | G15: 3.451257224 | X15: 0.2466270926
A16: 2017-05-01T07:00:00 | B16: 1011 | C16: 8 | D16: 74 | E16: 10 | F16: 0 | G16: 3.644382153 | X16: 0.2602239958
A17: 2017-05-01T07:30:00 | B17: 1011 | C17: 8.5 | D17: 73 | E17: 9 | F17: 0 | G17: 3.933167882 | X17: 0.280516209
A18: 2017-05-01T08:00:00 | B18: 1011 | C18: 9.4 | D18: 68 | E18: 10 | F18: 0 | G18: 3.786880926 | X18: 0.270242942
A19: 2017-05-01T08:30:00 | B19: 1011 | C19: 10.2 | D19: 63 | E19: 14 | F19: 0 | G19: 3.462860139 | X19: 0.2474445938
A20: 2017-05-01T09:00:00 | B20: 1011 | C20: 11 | D20: 60 | E20: 12 | F20: 0 | G20: 3.525993409 | X20: 0.2518913971
A21: 2017-05-01T09:30:00 | B21: 1011 | C21: 12 | D21: 58 | E21: 11 | F21: 0 | G21: 3.98375854 | X21: 0.2840661991
A22: 2017-05-01T10:00:00 | B22: 1012 | C22: 12.2 | D22: 56 | E22: 14 | F22: 0 | G22: 3.67145568 | X22: 0.2621283986
A23: 2017-05-01T10:30:00 | B23: 1012 | C23: 12.4 | D23: 56 | E23: 17 | F23: 0 | G23: 3.858312605 | X23: 0.2752608818
A24: 2017-05-01T11:00:00 | B24: 1011 | C24: 13.9 | D24: 53 | E24: 12 | F24: 0 | G24: 4.469023527 | X24: 0.3180439643
A25: 2017-05-01T11:30:00 | B25: 1011 | C25: 14.7 | D25: 50 | E25: 16 | F25: 0 | G25: 4.375312085 | X25: 0.3114927644
A26: 2017-05-01T12:00:00 | B26: 1011 | C26: 16.2 | D26: 48 | E26: 11 | F26: 0 | G26: 5.168408551 | X26: 0.3667805485
A27: 2017-05-01T12:30:00 | B27: 1012 | C27: 15 | D27: 48 | E27: 9 | F27: 0 | G27: 4.068117422 | X27: 0.2899825029
A28: 2017-05-01T13:00:00 | B28: 1011 | C28: 16.9 | D28: 47 | E28: 13 | F28: 0 | G28: 5.505876702 | X28: 0.3901989156
A29: 2017-05-01T13:30:00 | B29: 1011 | C29: 15.2 | D29: 50 | E29: 8 | F29: 0 | G29: 4.83603204 | X29: 0.3436532027
A30: 2017-05-01T14:00:00 | B30: 1011 | C30: 14.7 | D30: 51 | E30: 6 | F30: 0 | G30: 4.658791685 | X30: 0.3312951401
A31: 2017-05-01T14:30:00 | B31: 1011 | C31: 15 | D31: 52 | E31: 4 | F31: 0 | G31: 5.215096123 | X31: 0.3700241936
A32: 2017-05-01T15:00:00 | B32: 1011 | C32: 15.4 | D32: 50 | E32: 5 | F32: 0 | G32: 5.020299987 | X32: 0.3564825455
A33: 2017-05-01T15:30:00 | B33: 1010 | C33: 15.5 | D33: 51 | E33: 4 | F33: 0 | G33: 5.397601336 | X33: 0.3826921515
A34: 2017-05-01T16:00:00 | B34: 1010 | C34: 16.6 | D34: 48 | E34: 6 | F34: 0 | G34: 5.535076001 | X34: 0.3922221927
A35: 2017-05-01T16:30:00 | B35: 1011 | C35: 15.5 | D35: 51 | E35: 3 | F35: 0 | G35: 5.397601336 | X35: 0.3826921515
A36: 2017-05-01T17:00:00 | B36: 1010 | C36: 15.8 | D36: 50 | E36: 8 | F36: 0 | G36: 5.388801541 | X36: 0.3820817716
A37: 2017-05-01T17:30:00 | B37: 1011 | C37: 15.1 | D37: 52 | E37: 5 | F37: 0 | G37: 5.307656797 | X37: 0.3764512936
A38: 2017-05-01T18:00:00 | B38: 1010 | C38: 14.9 | D38: 54 | E38: 2 | F38: 0 | G38: 5.666630307 | X38: 0.4013319602
A39: 2017-05-01T18:30:00 | B39: 1011 | C39: 14.5 | D39: 56 | E39: 2 | F39: 0 | G39: 5.819720126 | X39: 0.4119208801
A40: 2017-05-01T19:00:00 | B40: 1011 | C40: 13.6 | D40: 59 | E40: 1 | F40: 0 | G40: 5.73136571 | X40: 0.4058111697
A41: 2017-05-01T19:30:00 | B41: 1011 | C41: 13.3 | D41: 61 | E41: 0 | F41: 0 | G41: 5.931215907 | X41: 0.4196246298
A42: 2017-05-01T20:00:00 | B42: 1011 | C42: 12.8 | D42: 63 | E42: 0 | F42: 0 | G42: 5.925730934 | X42: 0.4192458095
A43: 2017-05-01T20:30:00 | B43: 1011 | C43: 12.4 | D43: 65 | E43: 2 | F43: 0 | G43: 5.998852191 | X43: 0.4242945673
A44: 2017-05-01T21:00:00 | B44: 1011 | C44: 12.1 | D44: 66 | E44: 1 | F44: 0 | G44: 5.934557402 | X44: 0.4198554024
A45: 2017-05-01T21:30:00 | B45: 1011 | C45: 11.6 | D45: 68 | E45: 0 | F45: 0 | G45: 5.889755691 | X45: 0.416760761
A46: 2017-05-01T22:00:00 | B46: 1012 | C46: 11.6 | D46: 69 | E46: 0 | F46: 0 | G46: 6.101244044 | X46: 0.431359375
A47: 2017-05-01T22:30:00 | B47: 1012 | C47: 11.3 | D47: 70 | E47: 0 | F47: 0 | G47: 6.022365331 | X47: 0.4259174347
A48: 2017-05-01T23:00:00 | B48: 1012 | C48: 11 | D48: 72 | E48: 0 | F48: 0 | G48: 6.142591878 | X48: 0.4342106374
A49: 2017-05-01T23:30:00 | B49: 1012 | C49: 10.8 | D49: 72 | E49: 0 | F49: 0 | G49: 5.950161759 | X49: 0.4209329992
A50: 2017-05-02 | B50: 1012 | C50: 10.6 | D50: 73 | E50: 2 | F50: 0 | G50: 5.95732422 | X50: 0.4214275751
A51: 2017-05-02T00:30:00 | B51: 1012 | C51: 10.5 | D51: 74 | E51: 0 | F51: 0 | G51: 6.057993654 | X51: 0.4283759035
A52: 2017-05-02T01:00:00 | B52: 1012 | C52: 10.2 | D52: 76 | E52: 0 | F52: 0 | G52: 6.154633483 | X52: 0.4350408241
A53: 2017-05-02T01:30:00 | B53: 1012 | C53: 10.1 | D53: 77 | E53: 0 | F53: 0 | G53: 6.247411445 | X53: 0.4414345444
A54: 2017-05-02T02:00:00 | B54: 1012 | C54: 10.2 | D54: 76 | E54: 0 | F54: 0 | G54: 6.154633483 | X54: 0.4350408241
A55: 2017-05-02T02:30:00 | B55: 1011 | C55: 9.9 | D55: 78 | E55: 0 | F55: 0 | G55: 6.240603741 | X55: 0.4409655586
A56: 2017-05-02T03:00:00 | B56: 1011 | C56: 10.2 | D56: 77 | E56: 0 | F56: 0 | G56: 6.344391131 | X56: 0.4481127395
A57: 2017-05-02T03:30:00 | B57: 1011 | C57: 10 | D57: 79 | E57: 0 | F57: 0 | G57: 6.522922723 | X57: 0.4603931773
A58: 2017-05-02T04:00:00 | B58: 1011 | C58: 10.2 | D58: 78 | E58: 0 | F58: 0 | G58: 6.531983772 | X58: 0.4610159804
A59: 2017-05-02T04:30:00 | B59: 1011 | C59: 11.3 | D59: 74 | E59: 0 | F59: 0 | G59: 6.830173331 | X59: 0.4814865798
A60: 2017-05-02T05:00:00 | B60: 1011 | C60: 11.7 | D60: 73 | E60: 1 | F60: 0 | G60: 7.017351911 | X60: 0.4943113842
A61: 2017-05-02T05:30:00 | B61: 1011 | C61: 11.6 | D61: 74 | E61: 3 | F61: 0 | G61: 7.119718715 | X61: 0.5013170747
A62: 2017-05-02T06:00:00 | B62: 1011 | C62: 11.7 | D62: 74 | E62: 3 | F62: 0 | G62: 7.216231177 | X62: 0.5079168634
A63: 2017-05-02T06:30:00 | B63: 1011 | C63: 11.7 | D63: 74 | E63: 5 | F63: 0 | G63: 7.216231177 | X63: 0.5079168634
A64: 2017-05-02T07:00:00 | B64: 1011 | C64: 11.5 | D64: 75 | E64: 1 | F64: 0 | G64: 7.219421677 | X64: 0.5081349517
A65: 2017-05-02T07:30:00 | B65: 1011 | C65: 11.2 | D65: 78 | E65: 2 | F65: 0 | G65: 7.503178376 | X65: 0.5275090829
A66: 2017-05-02T08:00:00 | B66: 1011 | C66: 9.9 | D66: 86 | E66: 3 | F66: 0.5 | G66: =(243.12*X66)/(17.62-X66) -> 7.665948405 | X66: =(LOG10(D66) - 2)/0.4343 + (17.62*C66 / (243.12 + C66)) -> 0.5386027875
A67: 2017-05-02T08:30:00 | B67: 1012 | C67: 9.2 | D67: 91 | E67: 0 | F67: 0.5 | G67: 7.806117047 | X67: 0.5481445454
A68: 2017-05-02T09:00:00 | B68: 1012 | C68: 8.5 | D68: 94 | E68: 0 | F68: 2 | G68: 7.588827257 | X68: 0.5333483377
A69: 2017-05-02T09:30:00 | B69: 1012 | C69: 8.6 | D69: 95 | E69: 0 | F69: 1 | G69: 7.843590584 | X69: 0.5506936914
A70: 2017-05-02T10:00:00 | B70: 1012 | C70: 8.5 | D70: 96 | E70: 2 | F70: 1 | G70: 7.898116641 | X70: 0.5544014794
A71: 2017-05-02T10:30:00 | B71: 1012 | C71: 8.4 | D71: 96 | E71: 5 | F71: 0.5 | G71: 7.798594381 | X71: 0.5476327226
A72: 2017-05-02T11:00:00 | B72: 1013 | C72: 7.7 | D72: 96 | E72: 4 | F72: 0.5 | G72: 7.101933262 | X72: 0.5001003007
A73: 2017-05-02T11:30:00 | B73: 1013 | C73: 7.6 | D73: 96 | E73: 3 | F73: 0 | G73: 7.002409488 | X73: 0.493288288
A74: 2017-05-02T12:00:00 | B74: 1013 | C74: 7 | D74: 96 | E74: 3 | F74: 0 | G74: 6.40526287 | X74: 0.452301825
A75: 2017-05-02T12:30:00 | B75: 1014 | C75: 7.6 | D75: 96 | E75: 4 | F75: 0 | G75: 7.002409488 | X75: 0.493288288
A76: 2017-05-02T13:00:00 | B76: 1014 | C76: 11.1 | D76: 92 | E76: 4 | F76: 0 | G76: 9.848260633 | X76: 0.6859609657
A77: 2017-05-02T13:30:00 | B77: 1014 | C77: 13.3 | D77: 82 | E77: 6 | F77: 0 | G77: 10.28979316 | X77: 0.715466254
A78: 2017-05-02T14:00:00 | B78: 1014 | C78: 13.1 | D78: 74 | E78: 4 | F78: 0 | G78: 8.56726571 | X78: 0.5997729817
A79: 2017-05-02T14:30:00 | B79: 1014 | C79: 13.9 | D79: 71 | E79: 4 | F79: 0 | G79: 8.724929054 | X79: 0.6104282127
A80: 2017-05-02T15:00:00 | B80: 1014 | C80: 12.8 | D80: 73 | E80: 6 | F80: 0 | G80: 8.077211439 | X80: 0.5665686524
A81: 2017-05-02T15:30:00 | B81: 1014 | C81: 13.4 | D81: 71 | E81: 1 | F81: 0 | G81: 8.244842438 | X81: 0.5779412998
A82: 2017-05-02T16:00:00 | B82: 1014 | C82: 15.9 | D82: 63 | E82: 6 | F82: 0 | G82: 8.860474497 | X82: 0.6195780088
A83: 2017-05-02T16:30:00 | B83: 1014 | C83: 16 | D83: 60 | E83: 7 | F83: 0 | G83: 8.233481088 | X83: 0.5771709871
A84: 2017-05-02T17:00:00 | B84: 1014 | C84: 15.2 | D84: 64 | E84: 4 | F84: 0 | G84: 8.430365645 | X84: 0.5905101441
A85: 2017-05-02T17:30:00 | B85: 1014 | C85: 15.9 | D85: 62 | E85: 5 | F85: 0 | G85: 8.623543235 | X85: 0.6035778707
A86: 2017-05-02T18:00:00 | B86: 1014 | C86: 13.7 | D86: 68 | E86: 5 | F86: 0 | G86: 7.896285742 | X86: 0.5542770038
A87: 2017-05-02T18:30:00 | B87: 1015 | C87: 13.1 | D87: 63 | E87: 8 | F87: 0 | G87: 6.209821838 | X87: 0.4388446596
A88: 2017-05-02T19:00:00 | B88: 1015 | C88: 13.3 | D88: 61 | E88: 3 | F88: 0 | G88: 5.931215907 | X88: 0.4196246298
A89: 2017-05-02T19:30:00 | B89: 1015 | C89: 13 | D89: 61 | E89: 5 | F89: 0 | G89: 5.648200944 | X89: 0.4000563587
A90: 2017-05-02T20:00:00 | B90: 1016 | C90: 12 | D90: 67 | E90: 2 | F90: 0 | G90: 6.057096058 | X90: 0.4283139752
A91: 2017-05-02T20:30:00 | B91: 1016 | C91: 10.6 | D91: 72 | E91: 0 | F91: 0 | G91: 5.75772585 | X91: 0.4076344282
A92: 2017-05-02T21:00:00 | B92: 1016 | C92: 9.4 | D92: 78 | E92: 0 | F92: 0 | G92: 5.754948146 | X92: 0.4074423203
A93: 2017-05-02T21:30:00 | B93: 1017 | C93: 7.7 | D93: 84 | E93: 0 | F93: 0 | G93: 5.16538732 | X93: 0.3665706047
A94: 2017-05-02T22:00:00 | B94: 1017 | C94: 7.2 | D94: 87 | E94: 0 | F94: 0 | G94: 5.179438764 | X94: 0.3675469888
A95: 2017-05-02T22:30:00 | B95: 1017 | C95: 7 | D95: 86 | E95: 0 | F95: 0 | G95: 4.816645332 | X95: 0.3423023274
A96: 2017-05-02T23:00:00 | B96: 1017 | C96: 6.2 | D96: 89 | E96: 0 | F96: 0 | G96: 4.520428392 | X96: 0.3216354809
A97: 2017-05-02T23:30:00 | B97: 1017 | C97: 5.7 | D97: 90 | E97: 0 | F97: 0 | G97: 4.186554831 | X97: 0.2982820094
A98: 2017-05-03 | B98: 1017 | C98: 6.1 | D98: 90 | E98: 0 | F98: 0 | G98: 4.581699774 | X98: 0.3259143966
A99: 2017-05-03T00:30:00 | B99: 1018 | C99: 5.2 | D99: 90 | E99: 0 | F99: 0 | G99: 3.692612785 | X99: 0.2636163385
A100: 2017-05-03T01:00:00 | B100: 1018 | C100: 5.4 | D100: 91 | E100: 0 | F100: 0 | G100: 4.047672816 | X100: 0.2885490413
A101: 2017-05-03T01:30:00 | B101: 1018 | C101: 5.2 | D101: 91 | E101: 0 | F101: 0 | G101: 3.849842637 | X101: 0.2746660343
A102: 2017-05-03T02:00:00 | B102: 1018 | C102: 4.5 | D102: 91 | E102: 0 | F102: 0 | G102: 3.157423364 | X102: 0.2258989026
A103: 2017-05-03T02:30:00 | B103: 1018 | C103: 3.8 | D103: 93 | E103: 0 | F103: 0 | G103: 2.771441868 | X103: 0.1985949789
A104: 2017-05-03T03:00:00 | B104: 1018 | C104: 3.1 | D104: 93 | E104: 0 | F104: 0 | G104: 2.077253297 | X104: 0.1492724841
A105: 2017-05-03T03:30:00 | B105: 1018 | C105: 3.4 | D105: 94 | E105: 0 | F105: 0 | G105: 2.525325231 | X105: 0.181140148
A106: 2017-05-03T04:00:00 | B106: 1018 | C106: 2.5 | D106: 94 | E106: 0 | F106: 0 | G106: 1.631688884 | X106: 0.1174674556
A107: 2017-05-03T04:30:00 | B107: 1018 | C107: 2.6 | D107: 95 | E107: 0 | F107: 0 | G107: 1.879168758 | X107: 0.1351472076
A108: 2017-05-03T05:00:00 | B108: 1018 | C108: 2.5 | D108: 95 | E108: 0 | F108: 0 | G108: 1.779754488 | X108: 0.1280494305
A109: 2017-05-03T05:30:00 | B109: 1018 | C109: 1.8 | D109: 95 | E109: 0 | F109: 0 | G109: 1.083847953 | X109: 0.07820270275
A110: 2017-05-03T06:00:00 | B110: 1018 | C110: 1.9 | D110: 95 | E110: 0 | F110: 0 | G110: 1.183263884 | X110: 0.08534110152
A111: 2017-05-03T06:30:00 | B111: 1018 | C111: 1.8 | D111: 95 | E111: 0 | F111: 0 | G111: 1.083847953 | X111: 0.07820270275
A112: 2017-05-03T07:00:00 | B112: 1019 | C112: 2.6 | D112: 95 | E112: 0 | F112: 0 | G112: 1.879168758 | X112: 0.1351472076
A113: 2017-05-03T07:30:00 | B113: 1018 | C113: 3.9 | D113: 96 | E113: 0 | F113: 0 | G113: 3.31989682 | X113: 0.2373665251
A114: 2017-05-03T08:00:00 | B114: 1018 | C114: 5.7 | D114: 95 | E114: 0 | F114: 0 | G114: 4.960893389 | X114: 0.3523485437
A115: 2017-05-03T08:30:00 | B115: 1018 | C115: 8.9 | D115: 89 | E115: 0 | F115: 0 | G115: 7.183978913 | X115: 0.5057119307
A116: 2017-05-03T09:00:00 | B116: 1018 | C116: 10.1 | D116: 76 | E116: 0 | F116: 0 | G116: 6.057801249 | X116: 0.4283626289
A117: 2017-05-03T09:30:00 | B117: 1018 | C117: 11.2 | D117: 73 | E117: 0 | F117: 0 | G117: 6.535541991 | X117: 0.4612605391
A118: 2017-05-03T10:00:00 | B118: 1018 | C118: 12.2 | D118: 71 | E118: 0 | F118: 0 | G118: 7.092481091 | X118: 0.4994535695
A119: 2017-05-03T10:30:00 | B119: 1018 | C119: 12.4 | D119: 74 | E119: 8 | F119: 0 | G119: 7.891781094 | X119: 0.553970743
A120: 2017-05-03T11:00:00 | B120: 1018 | C120: 12.9 | D120: 74 | E120: 5 | F120: 0 | G120: 8.374276768 | I120: 2017-05-01 | J120: 0 | X120: 0.586712185
A121: 2017-05-03T11:30:00 | B121: 1017 | C121: 14.5 | D121: 75 | E121: 4 | F121: 0 | G121: 10.11882545 | I121: 2017-05-02 | J121: 6 | X121: 0.7040535911
A122: 2017-05-03T12:00:00 | B122: 1018 | C122: 14.6 | D122: 75 | E122: 4 | F122: 0 | G122: 10.21545247 | I122: 2017-05-03 | J122: 0 | X122: 0.7105056585
A123: 2017-05-03T12:30:00 | B123: 1017 | C123: 15.4 | D123: 73 | E123: 8 | F123: 0 | G123: 10.58166571 | I123: 2017-05-04 | J123: 2 | X123: 0.7349141729
A124: 2017-05-03T13:00:00 | B124: 1017 | C124: 17.5 | D124: 62 | E124: 7 | F124: 0 | G124: 10.13464847 | I124: 2017-05-05 | J124: 5.5 | X124: 0.705110477
A125: 2017-05-03T13:30:00 | B125: 1017 | C125: 18.2 | D125: 55 | E125: 5 | F125: 0 | G125: 9.005255166 | I125: 2017-05-06 | J125: 0.5 | X125: 0.6293403488
A126: 2017-05-03T14:00:00 | B126: 1016 | C126: 17.3 | D126: 58 | E126: 5 | F126: 0 | G126: 8.952680311 | I126: 2017-05-07 | J126: 0 | X126: 0.6257966031
A127: 2017-05-03T14:30:00 | B127: 1016 | C127: 17 | D127: 60 | E127: 4 | F127: 0 | G127: 9.174325276 | I127: 2017-05-08 | J127: 1.5 | X127: 0.6407263072
A128: 2017-05-03T15:00:00 | B128: 1016 | C128: 16.5 | D128: 62 | E128: 3 | F128: 0 | G128: 9.190269151 | I128: 2017-05-09 | J128: 0.5 | X128: 0.6417992537
A129: 2017-05-03T15:30:00 | B129: 1016 | C129: 17.6 | D129: 58 | E129: 3 | F129: 0 | G129: 9.233746178 | I129: 2017-05-10 | J129: 0 | X129: 0.6447243606
A130: 2017-05-03T16:00:00 | B130: 1016 | C130: 16.5 | D130: 64 | E130: 3 | F130: 0 | G130: =(243.12*X130)/(17.62-X130) -> 9.662959282 | I130: 2017-05-11 | J130: 0 | X130: =(LOG10(D130) - 2)/0.4343 + (17.62*C130 / (243.12 + C130)) -> 0.6735475486
A131: 2017-05-03T16:30:00 | B131: 1016 | C131: 15.4 | D131: 67 | E131: 7 | F131: 0 | G131: 9.299531517 | I131: 2017-05-12 | J131: 12 | X131: 0.6491484408
A132: 2017-05-03T17:00:00 | B132: 1016 | C132: 15.6 | D132: 64 | E132: 2 | F132: 0 | G132: 8.809659852 | I132: 2017-05-13 | J132: 1 | X132: 0.6161489945
A133: 2017-05-03T17:30:00 | B133: 1016 | C133: 15.4 | D133: 66 | E133: 4 | F133: 0 | G133: 9.076063338 | I133: 2017-05-14 | J133: 1.5 | X133: 0.6341107545
A134: 2017-05-03T18:00:00 | B134: 1016 | C134: 15.2 | D134: 68 | E134: 4 | F134: 0 | G134: 9.329067539 | I134: 2017-05-15 | J134: 4 | X134: 0.6511339956
A135: 2017-05-03T18:30:00 | B135: 1015 | C135: 14.6 | D135: 70 | E135: 1 | F135: 0 | G135: 9.186025115 | I135: 2017-05-16 | J135: 0 | X135: 0.6415136636
A136: 2017-05-03T19:00:00 | B136: 1015 | C136: 14.2 | D136: 71 | E136: 0 | F136: 0 | G136: 9.012962971 | I136: 2017-05-17 | J136: 0 | X136: 0.62985976
A137: 2017-05-03T19:30:00 | B137: 1015 | C137: 13.5 | D137: 75 | E137: 3 | F137: 0 | G137: 9.152485135 | I137: 2017-05-18 | J137: 0 | X137: 0.6392563501
A138: 2017-05-03T20:00:00 | B138: 1015 | C138: 12.6 | D138: 77 | E138: 0 | F138: 0 | G138: 8.671554046 | I138: 2017-05-19 | J138: 0 | X138: 0.6068225079
A139: 2017-05-03T20:30:00 | B139: 1015 | C139: 12.3 | D139: 78 | E139: 0 | F139: 0 | G139: 8.571364218 | I139: 2017-05-20 | J139: 0 | X139: 0.6000501368
A140: 2017-05-03T21:00:00 | B140: 1016 | C140: 11.9 | D140: 81 | E140: 0 | F140: 0 | G140: 8.740559513 | I140: 2017-05-21 | J140: 0 | X140: 0.6114838263
A141: 2017-05-03T21:30:00 | B141: 1016 | C141: 11.3 | D141: 84 | E141: 0 | F141: 0 | G141: 8.692485171 | I141: 2017-05-22 | J141: 0 | X141: 0.608236675
A142: 2017-05-03T22:00:00 | B142: 1015 | C142: 11 | D142: 86 | E142: 0 | F142: 0 | G142: 8.746567681 | I142: 2017-05-23 | J142: 0 | X142: 0.611889557
A143: 2017-05-03T22:30:00 | B143: 1015 | C143: 10.9 | D143: 88 | E143: 0 | F143: 0 | G143: 8.988966336 | I143: 2017-05-24 | J143: 3.5 | X143: 0.6282425776
A144: 2017-05-03T23:00:00 | B144: 1015 | C144: 10.8 | D144: 89 | E144: 0 | F144: 0 | G144: 9.058096342 | I144: 2017-05-25 | J144: 0 | X144: 0.6329005566
A145: 2017-05-03T23:30:00 | B145: 1015 | C145: 10.8 | D145: 89 | E145: 0 | F145: 0 | G145: 9.058096342 | I145: 2017-05-26 | J145: 0 | X145: 0.6329005566
A146: 2017-05-04 | B146: 1016 | C146: 10.5 | D146: 91 | E146: 0 | F146: 0 | G146: 9.091757035 | I146: 2017-05-27 | J146: 0 | X146: 0.6351676894
A147: 2017-05-04T00:30:00 | B147: 1016 | C147: 10.3 | D147: 93 | E147: 0 | F147: 0.5 | G147: 9.216695721 | I147: 2017-05-28 | J147: 0 | X147: 0.6435773368
A148: 2017-05-04T01:00:00 | B148: 1016 | C148: 10.1 | D148: 94 | E148: 0 | F148: 0.5 | G148: 9.177223741 | I148: 2017-05-29 | J148: 0 | X148: 0.6409213701
A149: 2017-05-04T01:30:00 | B149: 1015 | C149: 10.1 | D149: 95 | E149: 0 | F149: 0.5 | G149: 9.33456254 | I149: 2017-05-30 | J149: 4.5 | X149: 0.651503345
A150: 2017-05-04T02:00:00 | B150: 1015 | C150: 9.9 | D150: 96 | E150: 0 | F150: 0 | G150: 9.291408416 | I150: 2017-05-31 | J150: 0 | X150: 0.6486022851
A151: 2017-05-04T02:30:00 | F151: 0
A152: 2017-05-04T03:00:00 | F152: 0
A153: 2017-05-04T03:30:00 | F153: 0
A154: 2017-05-04T04:00:00 | F154: 0
A155: 2017-05-04T04:30:00 | F155: 0
A156: 2017-05-04T05:00:00 | F156: 0
A157: 2017-05-04T05:30:00 | F157: 0
A158: 2017-05-04T06:00:00 | F158: 0
A159: 2017-05-04T06:30:00 | F159: 0
A160: 2017-05-04T07:00:00 | B160: 1014 | C160: 8.1 | D160: 98 | E160: 0 | F160: 0.5 | G160: 7.802715919 | X160: 0.5479131453
A161: 2017-05-04T07:30:00 | B161: 1013 | C161: 8.2 | D161: 98 | E161: 0 | F161: 0 | G161: 7.90247934 | X161: 0.5546980746
A162: 2017-05-04T08:00:00 | B162: 1013 | C162: 8.2 | D162: 98 | E162: 0 | F162: 0 | G162: 7.90247934 | X162: 0.5546980746
A163: 2017-05-04T08:30:00 | B163: 1013 | C163: 8.3 | D163: 97 | E163: 0 | F163: 0 | G163: 7.851347126 | X163: 0.5512212368
A164: 2017-05-04T09:00:00 | B164: 1014 | C164: 8.4 | D164: 97 | E164: 0 | F164: 0 | G164: 7.950990479 | X164: 0.557995378
A165: 2017-05-04T09:30:00 | B165: 1013 | C165: 8.7 | D165: 97 | E165: 0 | F165: 0 | G165: 8.249919688 | X165: 0.5782855207
A166: 2017-05-04T10:00:00 | B166: 1013 | C166: 8.9 | D166: 96 | E166: 1 | F166: 0 | G166: 8.29620379 | X166: 0.5814227905
A167: 2017-05-04T10:30:00 | B167: 1013 | C167: 9 | D167: 96 | E167: 1 | F167: 0 | G167: 8.395725104 | X167: 0.5881647212
A168: 2017-05-04T11:00:00 | B168: 1013 | C168: 9.8 | D168: 95 | E168: 1 | F168: 0 | G168: 9.036372421 | X168: 0.6314370742
A169: 2017-05-04T11:30:00 | B169: 1013 | C169: 9.2 | D169: 94 | E169: 1 | F169: 0 | G169: 8.28375972 | X169: 0.5805794091
A170: 2017-05-04T12:00:00 | B170: 1013 | C170: 9 | D170: 94 | E170: 5 | F170: 0 | G170: 8.085209016 | X170: 0.5671115795
A171: 2017-05-04T12:30:00 | B171: 1013 | C171: 9 | D171: 95 | E171: 0 | F171: 0 | G171: 8.241188327 | X171: 0.5776935544
A172: 2017-05-04T13:00:00 | B172: 1013 | C172: 9.5 | D172: 94 | E172: 0 | F172: 0 | G172: 8.581583632 | X172: 0.600741169
A173: 2017-05-04T13:30:00 | B173: 1013 | C173: 9.4 | D173: 94 | E173: 4 | F173: 0 | G173: 8.48230928 | X173: 0.5940259052
A174: 2017-05-04T14:00:00 | B174: 1013 | C174: 10.7 | D174: 91 | E174: 2 | F174: 0 | G174: 9.289541307 | X174: 0.6484767453
A175: 2017-05-04T14:30:00 | B175: 1013 | C175: 10.9 | D175: 90 | E175: 1 | F175: 0 | G175: 9.322836415 | X175: 0.6507151479
A176: 2017-05-04T15:00:00 | B176: 1013 | C176: 10.3 | D176: 90 | E176: 1 | F176: 0 | G176: 8.730255175 | X176: 0.6107879306
A177: 2017-05-04T15:30:00 | B177: 1013 | C177: 10.4 | D177: 89 | E177: 4 | F177: 0 | G177: 8.663561294 | X177: 0.6062824325
A178: 2017-05-04T16:00:00 | B178: 1013 | C178: 11.3 | D178: 87 | E178: 4 | F178: 0 | G178: 9.212982942 | X178: 0.643327549
A179: 2017-05-04T16:30:00 | B179: 1013 | C179: 11.6 | D179: 86 | E179: 1 | F179: 0 | G179: 9.335961411 | X179: 0.6515973683
A180: 2017-05-04T17:00:00 | B180: 1012 | C180: 11 | D180: 86 | E180: 5 | F180: 0 | G180: 8.746567681 | X180: 0.611889557
A181: 2017-05-04T17:30:00 | B181: 1012 | C181: 11.3 | D181: 85 | E181: 2 | F181: 0 | G181: 8.867781569 | X181: 0.6200709823
A182: 2017-05-04T18:00:00 | B182: 1012 | C182: 11 | D182: 84 | E182: 4 | F182: 0 | G182: 8.398599423 | X182: 0.5883593586
A183: 2017-05-04T18:30:00 | B183: 1012 | C183: 10.4 | D183: 87 | E183: 5 | F183: 0 | G183: 8.32766216 | X183: 0.5835544702
A184: 2017-05-04T19:00:00 | B184: 1012 | C184: 10 | D184: 88 | E184: 4 | F184: 0 | G184: 8.102433459 | X184: 0.5682807685
A185: 2017-05-04T19:30:00 | B185: 1012 | C185: 9.7 | D185: 89 | E185: 5 | F185: 0 | G185: 7.97310444 | X185: 0.5594980417
A186: 2017-05-04T20:00:00 | B186: 1013 | C186: 9.5 | D186: 89 | E186: 3 | F186: 0 | G186: 7.775826256 | X186: 0.5460834509
A187: 2017-05-04T20:30:00 | B187: 1013 | C187: 9.2 | D187: 90 | E187: 4 | F187: 0 | G187: 7.643811091 | X187: 0.5370948497
A188: 2017-05-04T21:00:00 | B188: 1013 | C188: 8.9 | D188: 91 | E188: 4 | F188: 0 | G188: 7.509420503 | X188: 0.5279347851
A189: 2017-05-04T21:30:00 | B189: 1013 | C189: 8.8 | D189: 92 | E189: 0 | F189: 0 | G189: 7.570753092 | X189: 0.5321164337
A190: 2017-05-04T22:00:00 | B190: 1013 | C190: 8.6 | D190: 93 | E190: 0 | F190: 0 | G190: 7.531150433 | X190: 0.5294165633
A191: 2017-05-04T22:30:00 | B191: 1014 | C191: 8.6 | D191: 93 | E191: 0 | F191: 0 | G191: 7.531150433 | X191: 0.5294165633
A192: 2017-05-04T23:00:00 | B192: 1013 | C192: 8.5 | D192: 93 | E192: 6 | F192: 0 | G192: 7.4319977 | X192: 0.5226531845
A193: 2017-05-04T23:30:00 | B193: 1013 | C193: 8.4 | D193: 94 | E193: 0 | F193: 0 | G193: 7.489550048 | X193: 0.5265795809
A194: 2017-05-05 | B194: 1014 | C194: 8.3 | D194: 95 | E194: 1 | F194: 0 | G194: =(243.12*X194)/(17.62-X194) -> 7.545389785 | X194: =(LOG10(D194) - 2)/0.4343 + (17.62*C194 / (243.12 + C194)) -> 0.5303874146
A195: 2017-05-05T00:30:00 | B195: 1014 | C195: 8.2 | D195: 95 | E195: 0 | F195: 0 | G195: 7.445989045 | X195: 0.5236078826
A196: 2017-05-05T01:00:00 | B196: 1013 | C196: 8.1 | D196: 96 | E196: 0 | F196: 0 | G196: 7.500026465 | X196: 0.52729412
A197: 2017-05-05T01:30:00 | B197: 1014 | C197: 8.1 | D197: 96 | E197: 0 | F197: 0 | G197: 7.500026465 | X197: 0.52729412
A198: 2017-05-05T02:00:00 | B198: 1014 | C198: 8.1 | D198: 96 | E198: 0 | F198: 0 | G198: 7.500026465 | X198: 0.52729412
A199: 2017-05-05T02:30:00 | B199: 1014 | C199: 8.1 | D199: 97 | E199: 0 | F199: 0 | G199: 7.652059997 | X199: 0.5376567754
A200: 2017-05-05T03:00:00 | B200: 1013 | C200: 8 | D200: 97 | E200: 0 | F200: 0 | G200: 7.55241622 | X200: 0.5308664423
... 1289 more rows

Sheet Cerven
A1: Datum, čas | B1: Pred [hPa] | C1: T [ºC] | D1: Rh [%] | E1: v max [m.s-1] | F1: Srážky [mm] | G1: Tdew [ºC]
A2: 2017-06-01 | B2: 1018 | C2: 12.1 | D2: 91 | E2: 0 | F2: 0 | G2: =(243.12*X2)/(17.62-X2) -> 10.67398271 | X2: =(LOG10(D2) - 2)/0.4343 + (17.62*C2 / (243.12 + C2)) -> 0.7410560858
A3: 2017-06-01T00:30:00 | B3: 1018 | C3: 11.7 | D3: 91 | E3: 0 | F3: 0 | G3: 10.27843669 | I3: Průměrná teplota | J3: =AVERAGE(C1:C1530) -> 18.03416667 | K3: °C | X3: 0.7147086493
A4: 2017-06-01T01:00:00 | B4: 1018 | C4: 10.9 | D4: 93 | E4: 0 | F4: 0 | G4: 9.811570978 | I4: Maximální teplota | J4: =MAX(C1:C1530) -> 31.6 | K4: °C | X4: 0.6835045541
A5: 2017-06-01T01:30:00 | B5: 1018 | C5: 10.4 | D5: 94 | E5: 0 | F5: 0 | G5: 9.475039939 | I5: Minimální teplota | J5: =MIN(C1:C1530) -> 5.8 | K5: °C | X5: 0.6609401505
A6: 2017-06-01T02:00:00 | B6: 1019 | C6: 9.9 | D6: 94 | E6: 0 | F6: 0 | G6: 8.978678181 | I6: Úhrn srážek | J6: =SUM(F2:F1614) -> 66 | K6: mm | X6: 0.6275491434
A7: 2017-06-01T02:30:00 | B7: 1018 | C7: 9.6 | D7: 95 | E7: 0 | F7: 0 | G7: 8.837577821 | I7: Maximální náraz větru | J7: =MAX(E1:E1530) -> 26 | K7: m/s | X7: 0.6180330933
A8: 2017-06-01T03:00:00 | B8: 1019 | C8: 9.4 | D8: 95 | E8: 0 | F8: 0 | G8: 8.638782272 | X8: 0.6046078801
A9: 2017-06-01T03:30:00 | B9: 1018 | C9: 9.3 | D9: 95 | E9: 0 | F9: 0 | G9: 8.539384142 | X9: 0.5978872955
A10: 2017-06-01T04:00:00 | B10: 1019 | C10: 8.8 | D10: 95 | E10: 0 | F10: 0 | G10: 8.04238993 | X10: 0.5642043405
A11: 2017-06-01T04:30:00 | B11: 1019 | C11: 8.4 | D11: 96 | E11: 0 | F11: 0 | G11: 7.798594381 | X11: 0.5476327226
A12: 2017-06-01T05:00:00 | B12: 1019 | C12: 8.1 | D12: 96 | E12: 0 | F12: 0 | G12: 7.500026465 | X12: 0.52729412
A13: 2017-06-01T05:30:00 | B13: 1019 | C13: 7.8 | D13: 96 | E13: 0 | F13: 0 | G13: 7.201456847 | X13: 0.5069068838
A14: 2017-06-01T06:00:00 | B14: 1019 | C14: 8.5 | D14: 96 | E14: 0 | F14: 0 | G14: 7.898116641 | X14: 0.5544014794
A15: 2017-06-01T06:30:00 | B15: 1019 | C15: 10 | D15: 95 | E15: 0 | F15: 0 | G15: 9.235166071 | X15: 0.6448198731
A16: 2017-06-01T07:00:00 | B16: 1019 | C16: 11.1 | D16: 92 | E16: 0 | F16: 0 | G16: 9.848260633 | X16: 0.6859609657
A17: 2017-06-01T07:30:00 | B17: 1019 | C17: 12.1 | D17: 87 | E17: 0 | F17: 0 | G17: 9.999891615 | X17: 0.6961052691
A18: 2017-06-01T08:00:00 | B18: 1019 | C18: 12.9 | D18: 78 | E18: 0 | F18: 0 | G18: 9.153954434 | X18: 0.6393552497
A19: 2017-06-01T08:30:00 | B19: 1019 | C19: 13.6 | D19: 69 | E19: 1 | F19: 0 | G19: 8.015501804 | X19: 0.5623782411
A20: 2017-06-01T09:00:00 | B20: 1019 | C20: 14.1 | D20: 66 | E20: 4 | F20: 0 | G20: 7.838734628 | X20: 0.5503634067
A21: 2017-06-01T09:30:00 | B21: 1020 | C21: 14.6 | D21: 62 | E21: 5 | F21: 0 | G21: 7.395384017 | X21: 0.5201543486
A22: 2017-06-01T10:00:00 | B22: 1020 | C22: 15.4 | D22: 61 | E22: 6 | F22: 0 | G22: 7.911787917 | X22: 0.5553308777
A23: 2017-06-01T10:30:00 | B23: 1020 | C23: 16.9 | D23: 57 | E23: 5 | F23: 0 | G23: 8.320956563 | X23: 0.5831001308
A24: 2017-06-01T11:00:00 | B24: 1020 | C24: 17.6 | D24: 54 | E24: 4 | F24: 0 | G24: 8.175906685 | X24: 0.5732663046
A25: 2017-06-01T11:30:00 | B25: 1020 | C25: 18.7 | D25: 48 | E25: 6 | F25: 0 | G25: 7.459290964 | X25: 0.5245154389
A26: 2017-06-01T12:00:00 | B26: 1020 | C26: 18.8 | D26: 42 | E26: 10 | F26: 0 | G26: 5.607412813 | X26: 0.3972325071
A27: 2017-06-01T12:30:00 | B27: 1020 | C27: 19.7 | D27: 39 | E27: 9 | F27: 0 | G27: 5.346290057 | X27: 0.37913244
A28: 2017-06-01T13:00:00 | B28: 1020 | C28: 20 | D28: 39 | E28: 7 | F28: 0 | G28: 5.614399624 | X28: 0.397716285
A29: 2017-06-01T13:30:00 | B29: 1020 | C29: 20.6 | D29: 33 | E29: 8 | F29: 0 | G29: 3.750770814 | X29: 0.2677051703
A30: 2017-06-01T14:00:00 | B30: 1020 | C30: 20.8 | D30: 34 | E30: 8 | F30: 0 | G30: 4.352071332 | X30: 0.309867277
A31: 2017-06-01T14:30:00 | B31: 1020 | C31: 21.7 | D31: 32 | E31: 10 | F31: 0 | G31: 4.274022221 | X31: 0.3044061892
A32: 2017-06-01T15:00:00 | B32: 1019 | C32: 22 | D32: 34 | E32: 3 | F32: 0 | G32: 5.406861276 | X32: 0.3833344018
A33: 2017-06-01T15:30:00 | B33: 1019 | C33: 22.1 | D33: 32 | E33: 5 | F33: 0 | G33: 4.623077064 | X33: 0.3288028018
A34: 2017-06-01T16:00:00 | B34: 1019 | C34: 22.7 | D34: 31 | E34: 2 | F34: 0 | G34: 4.690563949 | X34: 0.3335117578
A35: 2017-06-01T16:30:00 | B35: 1019 | C35: 22.8 | D35: 31 | E35: 5 | F35: 0 | G35: 4.777470648 | X35: 0.3395719714
A36: 2017-06-01T17:00:00 | B36: 1019 | C36: 23 | D36: 29 | E36: 2 | F36: 0 | G36: 3.996901415 | X36: 0.2849882081
A37: 2017-06-01T17:30:00 | B37: 1018 | C37: 23 | D37: 30 | E37: 5 | F37: 0 | G37: 4.481121192 | X37: 0.318889329
A38: 2017-06-01T18:00:00 | B38: 1018 | C38: 22.2 | D38: 28 | E38: 5 | F38: 0 | G38: 2.810485281 | X38: 0.201360765
A39: 2017-06-01T18:30:00 | B39: 1018 | C39: 21.7 | D39: 31 | E39: 4 | F39: 0 | G39: 3.821253241 | X39: 0.2726578942
A40: 2017-06-01T19:00:00 | B40: 1018 | C40: 21.3 | D40: 34 | E40: 3 | F40: 0 | G40: 4.791639781 | X40: 0.3405596164
A41: 2017-06-01T19:30:00 | B41: 1018 | C41: 20.6 | D41: 35 | E41: 3 | F41: 0 | G41: 4.590731075 | X41: 0.3265449227
A42: 2017-06-01T20:00:00 | B42: 1018 | C42: 19.8 | D42: 37 | E42: 4 | F42: 0 | G42: 4.678765597 | X42: 0.3326887026
A43: 2017-06-01T20:30:00 | B43: 1018 | C43: 18.8 | D43: 41 | E43: 2 | F43: 0 | G43: 5.259891939 | X43: 0.3731352617
A44: 2017-06-01T21:00:00 | B44: 1018 | C44: 17.6 | D44: 46 | E44: 0 | F44: 0 | G44: 5.834257026 | X44: 0.4129256918
A45: 2017-06-01T21:30:00 | B45: 1018 | C45: 16.5 | D45: 51 | E45: 0 | F45: 0 | G45: 6.320862354 | X45: 0.4464929829
A46: 2017-06-01T22:00:00 | B46: 1018 | C46: 14.7 | D46: 58 | E46: 0 | F46: 0 | G46: 6.515906374 | X46: 0.4599108837
A47: 2017-06-01T22:30:00 | B47: 1019 | C47: 12.9 | D47: 66 | E47: 0 | F47: 0 | G47: 6.696314799 | X47: 0.4723032875
A48: 2017-06-01T23:00:00 | B48: 1019 | C48: 11.4 | D48: 74 | E48: 0 | F48: 0 | G48: 6.926689792 | X48: 0.488101939
A49: 2017-06-01T23:30:00 | B49: 1019 | C49: 10.7 | D49: 77 | E49: 0 | F49: 0 | G49: 6.829272084 | X49: 0.4814247832
A50: 2017-06-02 | B50: 1019 | C50: 10.1 | D50: 79 | E50: 0 | F50: 0 | G50: 6.620193691 | X50: 0.4670766492
A51: 2017-06-02T00:30:00 | B51: 1019 | C51: 9.4 | D51: 82 | E51: 0 | F51: 0 | G51: 6.480142492 | X51: 0.4574521055
A52: 2017-06-02T01:00:00 | B52: 1019 | C52: 8.6 | D52: 84 | E52: 0 | F52: 0 | G52: 6.047257699 | X52: 0.4276351622
A53: 2017-06-02T01:30:00 | B53: 1019 | C53: 8.2 | D53: 86 | E53: 0 | F53: 0 | G53: 5.995737242 | X53: 0.4240795518
A54: 2017-06-02T02:00:00 | B54: 1018 | C54: 7.8 | D54: 87 | E54: 0 | F54: 0 | G54: 5.769780141 | X54: 0.4084680617
A55: 2017-06-02T02:30:00 | B55: 1018 | C55: 7.7 | D55: 87 | E55: 0 | F55: 0 | G55: 5.671391498 | X55: 0.4016614787
A56: 2017-06-02T03:00:00 | B56: 1018 | C56: 7.8 | D56: 87 | E56: 0 | F56: 0 | G56: 5.769780141 | X56: 0.4084680617
A57: 2017-06-02T03:30:00 | B57: 1018 | C57: 6.9 | D57: 89 | E57: 0 | F57: 0 | G57: 5.211015843 | X57: 0.3697407625
A58: 2017-06-02T04:00:00 | B58: 1018 | C58: 6.2 | D58: 90 | E58: 0 | F58: 0 | G58: 4.680484802 | X58: 0.3328086395
A59: 2017-06-02T04:30:00 | B59: 1018 | C59: 5.9 | D59: 91 | E59: 0 | F59: 0 | G59: 4.542240684 | X59: 0.3231589952
A60: 2017-06-02T05:00:00 | B60: 1018 | C60: 5.8 | D60: 91 | E60: 0 | F60: 0 | G60: 4.443327977 | X60: 0.3162481277
A61: 2017-06-02T05:30:00 | B61: 1018 | C61: 5.8 | D61: 91 | E61: 0 | F61: 0 | G61: 4.443327977 | X61: 0.3162481277
A62: 2017-06-02T06:00:00 | B62: 1018 | C62: 5.8 | D62: 91 | E62: 0 | F62: 0 | G62: 4.443327977 | X62: 0.3162481277
A63: 2017-06-02T06:30:00 | B63: 1018 | C63: 7.1 | D63: 90 | E63: 0 | F63: 0 | G63: 5.569528324 | X63: 0.3946088512
A64: 2017-06-02T07:00:00 | B64: 1017 | C64: 9 | D64: 85 | E64: 0 | F64: 0 | G64: 6.611351698 | X64: 0.4664693325
A65: 2017-06-02T07:30:00 | B65: 1018 | C65: 10.7 | D65: 78 | E65: 0 | F65: 0 | G65: 7.017594952 | X65: 0.494328024
A66: 2017-06-02T08:00:00 | B66: 1018 | C66: 12.8 | D66: 70 | E66: 0 | F66: 0 | G66: =(243.12*X66)/(17.62-X66) -> 7.460603525 | X66: =(LOG10(D66) - 2)/0.4343 + (17.62*C66 / (243.12 + C66)) -> 0.5246049864
A67: 2017-06-02T08:30:00 | B67: 1018 | C67: 15.1 | D67: 62 | E67: 0 | F67: 0 | G67: 7.867793936 | X67: 0.5523397253
A68: 2017-06-02T09:00:00 | B68: 1018 | C68: 16.8 | D68: 50 | E68: 0 | F68: 0 | G68: 6.309855159 | X68: 0.4457351259
A69: 2017-06-02T09:30:00 | B69: 1018 | C69: 18.8 | D69: 47 | E69: 0 | F69: 0 | G69: 7.242452361 | X69: 0.5097090614
A70: 2017-06-02T10:00:00 | B70: 1017 | C70: 19.3 | D70: 41 | E70: 0 | F70: 0 | G70: 5.709488201 | X70: 0.4042976691
A71: 2017-06-02T10:30:00 | B71: 1018 | C71: 21.1 | D71: 37 | E71: 2 | F71: 0 | G71: 5.833204357 | X71: 0.4128529337
A72: 2017-06-02T11:00:00 | B72: 1018 | C72: 22.4 | D72: 37 | E72: 0 | F72: 0 | G72: 6.986986916 | X72: 0.4922321882
A73: 2017-06-02T11:30:00 | B73: 1017 | C73: 23.5 | D73: 36 | E73: 0 | F73: 0 | G73: 7.560184501 | X73: 0.5313960143
A74: 2017-06-02T12:00:00 | B74: 1017 | C74: 24.5 | D74: 33 | E74: 0 | F74: 0 | G74: 7.165117951 | X74: 0.5044222338
A75: 2017-06-02T12:30:00 | B75: 1017 | C75: 23.9 | D75: 35 | E75: 1 | F75: 0 | G75: 7.500025482 | X75: 0.527294053
A76: 2017-06-02T13:00:00 | B76: 1017 | C76: 25.2 | D76: 35 | E76: 3 | F76: 0 | G76: 8.644898884 | X76: 0.6050212679
A77: 2017-06-02T13:30:00 | B77: 1017 | C77: 25.7 | D77: 35 | E77: 2 | F77: 0 | G77: 9.085052573 | X77: 0.6347161752
A78: 2017-06-02T14:00:00 | B78: 1016 | C78: 25.5 | D78: 35 | E78: 1 | F78: 0 | G78: 8.909003242 | X78: 0.6228514778
A79: 2017-06-02T14:30:00 | B79: 1016 | C79: 25.4 | D79: 37 | E79: 1 | F79: 0 | G79: 9.647060677 | X79: 0.6724816464
A80: 2017-06-02T15:00:00 | B80: 1016 | C80: 25.8 | D80: 37 | E80: 5 | F80: 0 | G80: 10.00147374 | X80: 0.696211051
A81: 2017-06-02T15:30:00 | B81: 1016 | C81: 25.2 | D81: 39 | E81: 11 | F81: 0 | G81: 10.25632683 | X81: 0.7132334776
A82: 2017-06-02T16:00:00 | B82: 1015 | C82: 26 | D82: 39 | E82: 9 | F82: 0 | G82: 10.96958024 | X82: 0.7606923657
A83: 2017-06-02T16:30:00 | B83: 1015 | C83: 25.8 | D83: 40 | E83: 3 | F83: 0 | G83: 11.17289072 | X83: 0.7741716019
A84: 2017-06-02T17:00:00 | B84: 1015 | C84: 26.5 | D84: 41 | E84: 1 | F84: 0 | G84: 12.17385007 | X84: 0.8402209385
A85: 2017-06-02T17:30:00 | B85: 1015 | C85: 26.2 | D85: 41 | E85: 1 | F85: 0 | G85: 11.90486794 | X85: 0.8225228185
A86: 2017-06-02T18:00:00 | B86: 1015 | C86: 24.7 | D86: 44 | E86: 0 | F86: 0 | G86: 11.62477844 | X86: 0.8040541491
A87: 2017-06-02T18:30:00 | B87: 1015 | C87: 24 | D87: 46 | E87: 2 | F87: 0 | G87: 11.66319669 | X87: 0.806589792
A88: 2017-06-02T19:00:00 | B88: 1015 | C88: 23.5 | D88: 46 | E88: 1 | F88: 0 | G88: 11.20827535 | X88: 0.7765153579
A89: 2017-06-02T19:30:00 | B89: 1015 | C89: 22.9 | D89: 46 | E89: 0 | F89: 0 | G89: 10.66226591 | X89: 0.7402768065
A90: 2017-06-02T20:00:00 | B90: 1015 | C90: 22.3 | D90: 47 | E90: 0 | F90: 0 | G90: 10.43849899 | X90: 0.7253803477
A91: 2017-06-02T20:30:00 | B91: 1015 | C91: 21.4 | D91: 48 | E91: 0 | F91: 0 | G91: 9.931335216 | X91: 0.6915202655
A92: 2017-06-02T21:00:00 | B92: 1015 | C92: 20.4 | D92: 52 | E92: 0 | F92: 0 | G92: 10.20948509 | X92: 0.7101073421
A93: 2017-06-02T21:30:00 | B93: 1015 | C93: 18.5 | D93: 59 | E93: 0 | F93: 0 | G93: 10.3329007 | X93: 0.7183413956
A94: 2017-06-02T22:00:00 | B94: 1015 | C94: 16.4 | D94: 67 | E94: 0 | F94: 0 | G94: 10.25280602 | X94: 0.7129985452
A95: 2017-06-02T22:30:00 | B95: 1015 | C95: 15.1 | D95: 74 | E95: 0 | F95: 0 | G95: 10.49686202 | X95: 0.7292681854
A96: 2017-06-02T23:00:00 | B96: 1016 | C96: 14 | D96: 79 | E96: 0 | F96: 0 | G96: 10.4129381 | X96: 0.7236770523
A97: 2017-06-02T23:30:00 | B97: 1015 | C97: 14 | D97: 78 | E97: 0 | F97: 0 | G97: 10.22193273 | X97: 0.7109381884
A98: 2017-06-03 | B98: 1015 | C98: 12.8 | D98: 82 | E98: 0 | F98: 0 | G98: 9.801452433 | X98: 0.6828269813
A99: 2017-06-03T00:30:00 | B99: 1015 | C99: 12.8 | D99: 82 | E99: 0 | F99: 0 | G99: 9.801452433 | X99: 0.6828269813
A100: 2017-06-03T01:00:00 | B100: 1016 | C100: 12.1 | D100: 84 | E100: 0 | F100: 0 | G100: 9.476145772 | X100: 0.6610143951
A101: 2017-06-03T01:30:00 | B101: 1016 | C101: 11.3 | D101: 87 | E101: 0 | F101: 0 | G101: 9.212982942 | X101: 0.643327549
A102: 2017-06-03T02:00:00 | B102: 1016 | C102: 10.7 | D102: 88 | E102: 0 | F102: 0 | G102: 8.791963114 | X102: 0.6149544792
A103: 2017-06-03T02:30:00 | B103: 1016 | C103: 10.2 | D103: 90 | E103: 0 | F103: 0 | G103: 8.631489945 | X103: 0.6041150059
A104: 2017-06-03T03:00:00 | B104: 1016 | C104: 10 | D104: 90 | E104: 0 | F104: 0 | G104: 8.433958037 | X104: 0.5907533388
A105: 2017-06-03T03:30:00 | B105: 1016 | C105: 9.5 | D105: 91 | E105: 0 | F105: 0 | G105: 8.102809694 | X105: 0.5683063054
A106: 2017-06-03T04:00:00 | B106: 1016 | C106: 9 | D106: 91 | E106: 0 | F106: 0 | G106: 7.608319784 | X106: 0.5346767159
A107: 2017-06-03T04:30:00 | B107: 1015 | C107: 9.3 | D107: 90 | E107: 0 | F107: 0 | G107: 7.742581149 | X107: 0.5438207612
A108: 2017-06-03T05:00:00 | B108: 1015 | C108: 9.2 | D108: 90 | E108: 0 | F108: 0 | G108: 7.643811091 | X108: 0.5370948497
A109: 2017-06-03T05:30:00 | B109: 1015 | C109: 10.5 | D109: 86 | E109: 0 | F109: 0 | G109: 8.255387385 | X109: 0.5786561971
A110: 2017-06-03T06:00:00 | B110: 1015 | C110: 11.1 | D110: 85 | E110: 0 | F110: 0 | G110: 8.671585758 | X110: 0.6068246506
A111: 2017-06-03T06:30:00 | B111: 1015 | C111: 12.2 | D111: 81 | E111: 0 | F111: 0 | G111: 9.0331679 | X111: 0.6312211729
A112: 2017-06-03T07:00:00 | B112: 1015 | C112: 13.8 | D112: 76 | E112: 0 | F112: 0 | G112: 9.639780996 | X112: 0.6719935445
A113: 2017-06-03T07:30:00 | B113: 1015 | C113: 15.7 | D113: 71 | E113: 0 | F113: 0 | G113: 10.45292951 | X113: 0.7263417994
A114: 2017-06-03T08:00:00 | B114: 1015 | C114: 17.8 | D114: 68 | E114: 0 | F114: 0 | G114: 11.81166034 | X114: 0.8163813584
A115: 2017-06-03T08:30:00 | B115: 1015 | C115: 19.3 | D115: 67 | E115: 0 | F115: 0 | G115: 13.0163183 | X115: 0.8954119818
A116: 2017-06-03T09:00:00 | B116: 1015 | C116: 20.5 | D116: 59 | E116: 0 | F116: 0 | G116: 12.20953226 | X116: 0.8425659048
A117: 2017-06-03T09:30:00 | B117: 1015 | C117: 20.9 | D117: 55 | E117: 0 | F117: 0 | G117: 11.51768134 | X117: 0.7969815944
A118: 2017-06-03T10:00:00 | B118: 1015 | C118: 22 | D118: 50 | E118: 1 | F118: 0 | G118: 11.09472683 | X118: 0.7689919824
A119: 2017-06-03T10:30:00 | B119: 1015 | C119: 24.3 | D119: 44 | E119: 3 | F119: 0 | G119: 11.2628554 | X119: 0.7801292733
A120: 2017-06-03T11:00:00 | B120: 1015 | C120: 23.7 | D120: 45 | E120: 0 | F120: 0 | G120: 11.05834526 | I120: 2017-06-01 | J120: 0 | X120: 0.7665800298
A121: 2017-06-03T11:30:00 | B121: 1015 | C121: 25.4 | D121: 44 | E121: 1 | F121: 0 | G121: 12.25801677 | I121: 2017-06-02 | J121: 0 | X121: 0.8457511661
A122: 2017-06-03T12:00:00 | B122: 1015 | C122: 26.2 | D122: 44 | E122: 3 | F122: 0 | G122: 12.98151989 | I122: 2017-06-03 | J122: 0 | X122: 0.8931394885
A123: 2017-06-03T12:30:00 | B123: 1014 | C123: 26.3 | D123: 44 | E123: 4 | F123: 0 | G123: 13.07194295 | I123: 2017-06-04 | J123: 2.5 | X123: 0.8990432411
A124: 2017-06-03T13:00:00 | B124: 1014 | C124: 26.5 | D124: 44 | E124: 3 | F124: 0 | G124: 13.25277917 | I124: 2017-06-05 | J124: 0 | X124: 0.9108376085
A125: 2017-06-03T13:30:00 | B125: 1014 | C125: 28.3 | D125: 42 | E125: 3 | F125: 0 | G125: 14.15888514 | I125: 2017-06-06 | J125: 12.5 | X125: 0.9696853127
A126: 2017-06-03T14:00:00 | B126: 1014 | C126: 27.4 | D126: 43 | E126: 1 | F126: 0 | G126: 13.7118967 | I126: 2017-06-07 | J126: 0.5 | X126: 0.940707221
A127: 2017-06-03T14:30:00 | B127: 1014 | C127: 28.4 | D127: 41 | E127: 3 | F127: 0 | G127: 13.87666525 | I127: 2017-06-08 | J127: 0 | X127: 0.9514008343
A128: 2017-06-03T15:00:00 | B128: 1013 | C128: 28.5 | D128: 39 | E128: 3 | F128: 0 | G128: 13.19697149 | I128: 2017-06-09 | J128: 0 | X128: 0.9071995362
A129: 2017-06-03T15:30:00 | B129: 1013 | C129: 28.9 | D129: 38 | E129: 1 | F129: 0 | G129: 13.15428291 | I129: 2017-06-10 | J129: 5 | X129: 0.9044156215
A130: 2017-06-03T16:00:00 | B130: 1012 | C130: 28.4 | D130: 40 | E130: 1 | F130: 0 | G130: =(243.12*X130)/(17.62-X130) -> 13.49652222 | I130: 2017-06-11 | J130: 0 | X130: =(LOG10(D130) - 2)/0.4343 + (17.62*C130 / (243.12 + C130)) -> 0.9267085355
A131: 2017-06-03T16:30:00 | B131: 1012 | C131: 29.7 | D131: 38 | E131: 2 | F131: 0 | G131: 13.86422748 | I131: 2017-06-12 | J131: 0 | X131: 0.9505940912
A132: 2017-06-03T17:00:00 | B132: 1012 | C132: 30.2 | D132: 36 | E132: 1 | F132: 0 | G132: 13.47413099 | I132: 2017-06-13 | J132: 0 | X132: 0.9252518255
A133: 2017-06-03T17:30:00 | B133: 1012 | C133: 28.7 | D133: 39 | E133: 0 | F133: 0 | G133: 13.375063 | I133: 2017-06-14 | J133: 0 | X133: 0.9188036888
A134: 2017-06-03T18:00:00 | B134: 1011 | C134: 28.7 | D134: 40 | E134: 1 | F134: 0 | G134: 13.76447637 | I134: 2017-06-15 | J134: 0 | X134: 0.9441211751
A135: 2017-06-03T18:30:00 | B135: 1011 | C135: 27.3 | D135: 41 | E135: 1 | F135: 0 | G135: 12.89098029 | I135: 2017-06-16 | J135: 8 | X135: 0.887223948
A136: 2017-06-03T19:00:00 | B136: 1011 | C136: 26 | D136: 44 | E136: 1 | F136: 0 | G136: 12.80066389 | I136: 2017-06-17 | J136: 0.5 | X136: 0.8813188208
A137: 2017-06-03T19:30:00 | B137: 1010 | C137: 26 | D137: 45 | E137: 0 | F137: 0 | G137: 13.1447129 | I137: 2017-06-18 | J137: 0 | X137: 0.9037913911
A138: 2017-06-03T20:00:00 | B138: 1011 | C138: 24.4 | D138: 49 | E138: 0 | F138: 0 | G138: 12.990814 | I138: 2017-06-19 | J138: 0 | X138: 0.8937464963
A139: 2017-06-03T20:30:00 | B139: 1011 | C139: 23.1 | D139: 54 | E139: 0 | F139: 0 | G139: 13.28158901 | I139: 2017-06-20 | J139: 0 | X139: 0.9127150861
A140: 2017-06-03T21:00:00 | B140: 1011 | C140: 21.6 | D140: 59 | E140: 0 | F140: 0 | G140: 13.24129796 | I140: 2017-06-21 | J140: 0 | X140: 0.9100892837
A141: 2017-06-03T21:30:00 | B141: 1011 | C141: 21.2 | D141: 61 | E141: 0 | F141: 0 | G141: 13.37710042 | I141: 2017-06-22 | J141: 12.5 | X141: 0.9189363508
A142: 2017-06-03T22:00:00 | B142: 1011 | C142: 20.9 | D142: 62 | E142: 0 | F142: 0 | G142: 13.34400671 | I142: 2017-06-23 | J142: 6.5 | X142: 0.916781272
A143: 2017-06-03T22:30:00 | B143: 1010 | C143: 20.7 | D143: 63 | E143: 0 | F143: 0 | G143: 13.40082882 | I143: 2017-06-24 | J143: 0 | X143: 0.9204812137
A144: 2017-06-03T23:00:00 | B144: 1010 | C144: 20.4 | D144: 64 | E144: 0 | F144: 0 | G144: 13.35879051 | I144: 2017-06-25 | J144: 0 | X144: 0.9177440687
A145: 2017-06-03T23:30:00 | B145: 1010 | C145: 20.8 | D145: 65 | E145: 0 | F145: 0 | G145: 13.97668927 | I145: 2017-06-26 | J145: 0 | X145: 0.9578857886
A146: 2017-06-04 | B146: 1010 | C146: 18.9 | D146: 78 | E146: 5 | F146: 0 | G146: 14.97765982 | I146: 2017-06-27 | J146: 0 | X146: 1.022505846
A147: 2017-06-04T00:30:00 | B147: 1010 | C147: 18.3 | D147: 81 | E147: 0 | F147: 0 | G147: 14.98102249 | I147: 2017-06-28 | J147: 0 | X147: 1.022722087
A148: 2017-06-04T01:00:00 | B148: 1010 | C148: 18.1 | D148: 82 | E148: 0 | F148: 0 | G148: 14.97672683 | I148: 2017-06-29 | J148: 18 | X148: 1.022445848
A149: 2017-06-04T01:30:00 | B149: 1010 | C149: 17.5 | D149: 85 | E149: 0 | F149: 0 | G149: 14.94838941 | I149: 2017-06-30 | J149: 0 | X149: 1.02062334
A150: 2017-06-04T02:00:00 | B150: 1009 | C150: 17.3 | D150: 85 | E150: 0 | F150: 0 | G150: 14.75228498 | X150: 1.007999993
A151: 2017-06-04T02:30:00 | B151: 1009 | C151: 17.3 | D151: 83 | E151: 0 | F151: 0 | G151: 14.38319997 | X151: 0.9841896466
A152: 2017-06-04T03:00:00 | B152: 1008 | C152: 18.4 | D152: 71 | E152: 0 | F152: 0 | G152: 13.04401675 | X152: 0.8972203749
A153: 2017-06-04T03:30:00 | B153: 1008 | C153: 18.6 | D153: 66 | E153: 0 | F153: 0 | G153: 12.12049905 | X153: 0.836713586
A154: 2017-06-04T04:00:00 | B154: 1008 | C154: 18.5 | D154: 65 | E154: 1 | F154: 0 | G154: 11.7935871 | X154: 0.815189991
A155: 2017-06-04T04:30:00 | B155: 1008 | C155: 18 | D155: 66 | E155: 0 | F155: 0 | G155: 11.54980776 | X155: 0.7991038061
A156: 2017-06-04T05:00:00 | B156: 1007 | C156: 16.9 | D156: 70 | E156: 0 | F156: 0 | G156: 11.38999381 | X156: 0.7885414947
A157: 2017-06-04T05:30:00 | B157: 1007 | C157: 16.9 | D157: 69 | E157: 0 | F157: 0 | G157: 11.17260902 | X157: 0.77415294
A158: 2017-06-04T06:00:00 | B158: 1007 | C158: 18.2 | D158: 65 | E158: 0 | F158: 0 | G158: 11.5087621 | X158: 0.7963923109
A159: 2017-06-04T06:30:00 | B159: 1007 | C159: 18 | D159: 67 | E159: 0 | F159: 0 | G159: 11.77768333 | X159: 0.8141414923
A160: 2017-06-04T07:00:00 | B160: 1007 | C160: 19.4 | D160: 65 | E160: 0 | F160: 0 | G160: 12.64796165 | X160: 0.8713252543
A161: 2017-06-04T07:30:00 | B161: 1007 | C161: 19.6 | D161: 66 | E161: 0 | F161: 0 | G161: 13.07150726 | X161: 0.899014805
A162: 2017-06-04T08:00:00 | B162: 1007 | C162: 21 | D162: 64 | E162: 0 | F162: 0 | G162: 13.92712051 | X162: 0.9546726795
A163: 2017-06-04T08:30:00 | B163: 1007 | C163: 21.2 | D163: 66 | E163: 0 | F163: 0 | G163: 14.59274626 | X163: 0.9977162277
A164: 2017-06-04T09:00:00 | B164: 1007 | C164: 20.5 | D164: 68 | E164: 1 | F164: 0 | G164: 14.38853588 | X164: 0.9845343623
A165: 2017-06-04T09:30:00 | B165: 1007 | C165: 20 | D165: 69 | E165: 3 | F165: 0 | G165: 14.13676892 | X165: 0.9682538943
A166: 2017-06-04T10:00:00 | B166: 1007 | C166: 17.4 | D166: 89 | E166: 1 | F166: 0.5 | G166: 15.56669375 | X166: 1.060298618
A167: 2017-06-04T10:30:00 | B167: 1007 | C167: 18.8 | D167: 87 | E167: 0 | F167: 0 | G167: 16.58865848 | X167: 1.125461755
A168: 2017-06-04T11:00:00 | B168: 1007 | C168: 18.8 | D168: 88 | E168: 0 | F168: 0 | G168: 16.76872727 | X168: 1.136890305
A169: 2017-06-04T11:30:00 | B169: 1007 | C169: 19.2 | D169: 88 | E169: 0 | F169: 0 | G169: 17.16254241 | X169: 1.161829735
A170: 2017-06-04T12:00:00 | B170: 1007 | C170: 19 | D170: 85 | E170: 1 | F170: 0 | G170: 16.4190787 | X170: 1.114684417
A171: 2017-06-04T12:30:00 | B171: 1007 | C171: 19.3 | D171: 85 | E171: 0 | F171: 0 | G171: 16.71319667 | X171: 1.133367595
A172: 2017-06-04T13:00:00 | B172: 1007 | C172: 20.3 | D172: 82 | E172: 6 | F172: 0 | G172: 17.12421655 | X172: 1.15940596
A173: 2017-06-04T13:30:00 | B173: 1007 | C173: 22.8 | D173: 75 | E173: 4 | F173: 0 | G173: 18.13452873 | X173: 1.223061655
A174: 2017-06-04T14:00:00 | B174: 1007 | C174: 20.9 | D174: 78 | E174: 3 | F174: 0 | G174: 16.9180078 | X174: 1.146352797
A175: 2017-06-04T14:30:00 | B175: 1007 | C175: 19.5 | D175: 82 | E175: 11 | F175: 0 | G175: 16.34336124 | X175: 1.109867781
A176: 2017-06-04T15:00:00 | B176: 1009 | C176: 15.1 | D176: 93 | E176: 13 | F176: 1.5 | G176: 13.97536065 | X176: 0.9577996816
A177: 2017-06-04T15:30:00 | B177: 1009 | C177: 15.1 | D177: 93 | E177: 13 | F177: 0 | G177: 13.97536065 | X177: 0.9577996816
A178: 2017-06-04T16:00:00 | B178: 1010 | C178: 15.4 | D178: 92 | E178: 11 | F178: 0 | G178: 14.10566526 | X178: 0.9662403696
A179: 2017-06-04T16:30:00 | B179: 1010 | C179: 14.9 | D179: 94 | E179: 8 | F179: 0.5 | G179: 13.94197433 | X179: 0.955635653
A180: 2017-06-04T17:00:00 | B180: 1011 | C180: 15 | D180: 93 | E180: 12 | F180: 0 | G180: 13.87622965 | X180: 0.9513725816
A181: 2017-06-04T17:30:00 | B181: 1011 | C181: 14.9 | D181: 92 | E181: 2 | F181: 0 | G181: 13.61065464 | X181: 0.934129721
A182: 2017-06-04T18:00:00 | B182: 1011 | C182: 14.5 | D182: 93 | E182: 11 | F182: 0 | G182: 13.38056967 | X182: 0.9191622376
A183: 2017-06-04T18:30:00 | B183: 1012 | C183: 14.4 | D183: 92 | E183: 7 | F183: 0 | G183: 13.11563444 | X183: 0.9018943806
A184: 2017-06-04T19:00:00 | B184: 1012 | C184: 13.8 | D184: 91 | E184: 14 | F184: 0 | G184: 12.35497605 | X184: 0.8521174221
A185: 2017-06-04T19:30:00 | B185: 1013 | C185: 13.4 | D185: 92 | E185: 13 | F185: 0 | G185: 12.12556527 | X185: 0.8370467076
A186: 2017-06-04T20:00:00 | B186: 1013 | C186: 13.5 | D186: 91 | E186: 3 | F186: 0 | G186: 12.05833926 | X186: 0.8326252862
A187: 2017-06-04T20:30:00 | B187: 1013 | C187: 13.5 | D187: 91 | E187: 0 | F187: 0 | G187: 12.05833926 | X187: 0.8326252862
A188: 2017-06-04T21:00:00 | B188: 1013 | C188: 13.6 | D188: 91 | E188: 0 | F188: 0 | G188: 12.15721862 | X188: 0.8391277267
A189: 2017-06-04T21:30:00 | B189: 1013 | C189: 12.5 | D189: 93 | E189: 0 | F189: 0 | G189: 11.39784613 | X189: 0.7890607746
A190: 2017-06-04T22:00:00 | B190: 1014 | C190: 11.6 | D190: 94 | E190: 0 | F190: 0 | G190: 10.66627901 | X190: 0.7405437242
A191: 2017-06-04T22:30:00 | B191: 1014 | C191: 11.2 | D191: 95 | E191: 0 | F191: 0 | G191: 10.42790804 | X191: 0.7246746426
A192: 2017-06-04T23:00:00 | B192: 1014 | C192: 10.3 | D192: 96 | E192: 0 | F192: 0 | G192: 9.689484968 | X192: 0.6753256317
A193: 2017-06-04T23:30:00 | B193: 1014 | C193: 9.8 | D193: 96 | E193: 0 | F193: 0 | G193: 9.191888805 | X193: 0.6419082411
A194: 2017-06-05 | B194: 1014 | C194: 9.5 | D194: 96 | E194: 0 | F194: 0 | G194: =(243.12*X194)/(17.62-X194) -> 8.893328836 | X194: =(LOG10(D194) - 2)/0.4343 + (17.62*C194 / (243.12 + C194)) -> 0.6217943107
A195: 2017-06-05T00:30:00 | B195: 1014 | C195: 9.3 | D195: 97 | E195: 0 | F195: 0 | G195: 8.847774287 | X195: 0.6187211177
A196: 2017-06-05T01:00:00 | B196: 1014 | C196: 8.8 | D196: 97 | E196: 0 | F196: 0 | G196: 8.349562475 | X196: 0.5850381627
A197: 2017-06-05T01:30:00 | B197: 1014 | C197: 8.4 | D197: 97 | E197: 0 | F197: 0 | G197: 7.950990479 | X197: 0.557995378
A198: 2017-06-05T02:00:00 | B198: 1014 | C198: 8.3 | D198: 97 | E198: 0 | F198: 0 | G198: 7.851347126 | X198: 0.5512212368
A199: 2017-06-05T02:30:00 | B199: 1015 | C199: 7.9 | D199: 97 | E199: 0 | F199: 0 | G199: 7.452772301 | X199: 0.5240706991
A200: 2017-06-05T03:00:00 | B200: 1015 | C200: 8.3 | D200: 97 | E200: 0 | F200: 0 | G200: 7.851347126 | X200: 0.5512212368
... 1243 more rows

Sheet Cervenec
A1: Datum, čas | B1: Pred [hPa] | C1: T [ºC] | D1: Rh [%] | E1: v max [m.s-1] | F1: Srážky [mm] | G1: Tdew [ºC]
A2: 2017-07-01 | B2: 1006 | C2: 13.5 | D2: 85 | E2: 0 | F2: 0 | G2: =(243.12*X2)/(17.62-X2) -> 11.02574088 | X2: =(LOG10(D2) - 2)/0.4343 + (17.62*C2 / (243.12 + C2)) -> 0.7644179028
A3: 2017-07-01T00:30:00 | B3: 1005 | C3: 12.6 | D3: 88 | E3: 0 | F3: 0 | G3: 10.6633995 | I3: Průměrná teplota | J3: =AVERAGE(C1:C1530) -> 18.53485064 | K3: °C | X3: 0.7403522039
A4: 2017-07-01T01:00:00 | B4: 1006 | C4: 11.6 | D4: 91 | E4: 0 | F4: 0 | G4: 10.1795491 | I4: Maximální teplota | J4: =MAX(C1:C1530) -> 33.2 | K4: °C | X4: 0.7081088605
A5: 2017-07-01T01:30:00 | B5: 1005 | C5: 11.3 | D5: 91 | E5: 0 | F5: 0 | G5: 9.88288373 | I5: Minimální teplota | J5: =MIN(C1:C1530) -> 7.1 | K5: °C | X5: 0.6882783657
A6: 2017-07-01T02:00:00 | B6: 1006 | C6: 10.8 | D6: 92 | E6: 0 | F6: 0 | G6: 9.55120594 | I6: Úhrn srážek | J6: =SUM(F2:F1614) -> 135 | K6: mm | X6: 0.6660523427
A7: 2017-07-01T02:30:00 | B7: 1006 | C7: 10.8 | D7: 93 | E7: 0 | F7: 0 | G7: 9.712425938 | I7: Maximální náraz větru | J7: =MAX(E1:E1530) -> 90 | K7: m/s | X7: 0.6768631215
A8: 2017-07-01T03:00:00 | B8: 1006 | C8: 10.3 | D8: 93 | E8: 0 | F8: 0 | G8: 9.216695721 | X8: 0.6435773368
A9: 2017-07-01T03:30:00 | B9: 1006 | C9: 10.1 | D9: 94 | E9: 0 | F9: 0 | G9: 9.177223741 | X9: 0.6409213701
A10: 2017-07-01T04:00:00 | B10: 1006 | C10: 10 | D10: 94 | E10: 0 | F10: 0 | G10: 9.077951104 | X10: 0.6342378983
A11: 2017-07-01T04:30:00 | B11: 1005 | C11: 9.9 | D11: 94 | E11: 0 | F11: 0 | G11: 8.978678181 | X11: 0.6275491434
A12: 2017-07-01T05:00:00 | B12: 1005 | C12: 9.8 | D12: 94 | E12: 0 | F12: 0 | G12: 8.879404972 | X12: 0.6208550994
A13: 2017-07-01T05:30:00 | B13: 1005 | C13: 10.2 | D13: 94 | E13: 0 | F13: 0 | G13: 9.276496093 | X13: 0.6475995653
A14: 2017-07-01T06:00:00 | B14: 1006 | C14: 10.4 | D14: 94 | E14: 0 | F14: 0 | G14: 9.475039939 | X14: 0.6609401505
A15: 2017-07-01T06:30:00 | B15: 1006 | C15: 11.5 | D15: 92 | E15: 0 | F15: 0 | G15: 10.24432819 | X15: 0.7124328194
A16: 2017-07-01T07:00:00 | B16: 1006 | C16: 12.8 | D16: 90 | E16: 0 | F16: 0 | G16: 11.19922902 | X16: 0.7759162216
A17: 2017-07-01T07:30:00 | B17: 1006 | C17: 14.2 | D17: 86 | E17: 0 | F17: 0 | G17: 11.88971575 | X17: 0.821524744
A18: 2017-07-01T08:00:00 | B18: 1006 | C18: 15.2 | D18: 82 | E18: 0 | F18: 0 | G18: 12.14528403 | X18: 0.8383431591
A19: 2017-07-01T08:30:00 | B19: 1006 | C19: 15.9 | D19: 77 | E19: 0 | F19: 0 | G19: 11.87030756 | X19: 0.8202461546
A20: 2017-07-01T09:00:00 | B20: 1006 | C20: 15.8 | D20: 75 | E20: 8 | F20: 0 | G20: 11.37487715 | X20: 0.787541728
A21: 2017-07-01T09:30:00 | B21: 1006 | C21: 16.7 | D21: 74 | E21: 6 | F21: 0 | G21: 12.04015546 | X21: 0.8314289462
A22: 2017-07-01T10:00:00 | B22: 1007 | C22: 17.2 | D22: 74 | E22: 5 | F22: 0 | G22: 12.52236475 | X22: 0.8630966432
A23: 2017-07-01T10:30:00 | B23: 1007 | C23: 17.7 | D23: 74 | E23: 7 | F23: 0 | G23: 13.00454076 | X23: 0.8946429244
A24: 2017-07-01T11:00:00 | B24: 1007 | C24: 17.8 | D24: 74 | E24: 8 | F24: 0 | G24: 13.10097197 | X24: 0.9009376721
A25: 2017-07-01T11:30:00 | B25: 1007 | C25: 18.3 | D25: 69 | E25: 10 | F25: 0 | G25: 12.51145463 | X25: 0.8623814739
A26: 2017-07-01T12:00:00 | B26: 1007 | C26: 18.1 | D26: 68 | E26: 8 | F26: 0 | G26: 12.09804029 | X26: 0.8352366847
A27: 2017-07-01T12:30:00 | B27: 1007 | C27: 18 | D27: 71 | E27: 9 | F27: 0 | G27: 12.66022112 | X27: 0.8721280132
A28: 2017-07-01T13:00:00 | B28: 1007 | C28: 19.4 | D28: 64 | E28: 8 | F28: 0 | G28: 12.41142016 | X28: 0.8558212647
A29: 2017-07-01T13:30:00 | B29: 1006 | C29: 18.8 | D29: 68 | E29: 6 | F29: 0 | G29: 12.76620139 | X29: 0.8790644718
A30: 2017-07-01T14:00:00 | B30: 1007 | C30: 18.2 | D30: 76 | E30: 6 | F30: 0 | G30: 13.89725859 | X30: 0.9527363948
A31: 2017-07-01T14:30:00 | B31: 1006 | C31: 19.5 | D31: 66 | E31: 8 | F31: 0 | G31: 12.97641454 | X31: 0.8928060338
A32: 2017-07-01T15:00:00 | B32: 1007 | C32: 20.2 | D32: 63 | E32: 12 | F32: 0 | G32: 12.92808854 | X32: 0.8896489769
A33: 2017-07-01T15:30:00 | B33: 1007 | C33: 21.8 | D33: 60 | E33: 11 | F33: 0 | G33: 13.68734963 | X33: 0.9391129216
A34: 2017-07-01T16:00:00 | B34: 1007 | C34: 17.6 | D34: 73 | E34: 14 | F34: 0 | G34: 12.70008609 | X34: 0.8747378687
A35: 2017-07-01T16:30:00 | B35: 1007 | C35: 19.9 | D35: 82 | E35: 7 | F35: 1 | G35: 16.73379604 | X35: 1.134674539
A36: 2017-07-01T17:00:00 | B36: 1007 | C36: 16.9 | D36: 86 | E36: 0 | F36: 2 | G36: 14.54120103 | X36: 0.9943909334
A37: 2017-07-01T17:30:00 | B37: 1007 | C37: 17.6 | D37: 85 | E37: 4 | F37: 0 | G37: 15.04644052 | X37: 1.02692775
A38: 2017-07-01T18:00:00 | B38: 1008 | C38: 15.8 | D38: 88 | E38: 12 | F38: 0 | G38: 13.81481635 | X38: 0.9473883979
A39: 2017-07-01T18:30:00 | B39: 1007 | C39: 18.4 | D39: 84 | E39: 0 | F39: 0 | G39: 15.64570845 | X39: 1.06535516
A40: 2017-07-01T19:00:00 | B40: 1007 | C40: 17.7 | D40: 81 | E40: 0 | F40: 0 | G40: 14.39614389 | X40: 0.9850258374
A41: 2017-07-01T19:30:00 | B41: 1008 | C41: 17.2 | D41: 83 | E41: 0 | F41: 0 | G41: 14.28542707 | X41: 0.9778706995
A42: 2017-07-01T20:00:00 | B42: 1008 | C42: 16.7 | D42: 83 | E42: 0 | F42: 0.5 | G42: 13.79655 | X42: 0.9462030025
A43: 2017-07-01T20:30:00 | B43: 1008 | C43: 16.1 | D43: 88 | E43: 0 | F43: 0 | G43: 14.11023106 | X43: 0.9665359712
A44: 2017-07-01T21:00:00 | B44: 1008 | C44: 16 | D44: 88 | E44: 0 | F44: 0 | G44: 14.01176007 | X44: 0.9601583731
A45: 2017-07-01T21:30:00 | B45: 1008 | C45: 15.7 | D45: 87 | E45: 0 | F45: 0.5 | G45: 13.54047836 | X45: 0.9295674588
A46: 2017-07-01T22:00:00 | B46: 1008 | C46: 15.8 | D46: 84 | E46: 4 | F46: 0 | G46: 13.09991916 | X46: 0.9008689734
A47: 2017-07-01T22:30:00 | B47: 1008 | C47: 15.2 | D47: 86 | E47: 7 | F47: 0 | G47: 12.87180558 | X47: 0.8859706029
A48: 2017-07-01T23:00:00 | B48: 1009 | C48: 14.9 | D48: 88 | E48: 3 | F48: 0 | G48: 12.92854073 | X48: 0.8896785232
A49: 2017-07-01T23:30:00 | B49: 1008 | C49: 15 | D49: 87 | E49: 7 | F49: 0 | G49: 12.8520953 | X49: 0.8846820545
A50: 2017-07-02 | B50: 1009 | C50: 14.6 | D50: 89 | E50: 0 | F50: 0.5 | G50: 12.80575405 | X50: 0.8816517401
A51: 2017-07-02T00:30:00 | B51: 1009 | C51: 14.6 | D51: 90 | E51: 0 | F51: 0 | G51: 12.97670336 | X51: 0.8928248988
A52: 2017-07-02T01:00:00 | B52: 1009 | C52: 14.6 | D52: 90 | E52: 0 | F52: 0.5 | G52: 12.97670336 | X52: 0.8928248988
A53: 2017-07-02T01:30:00 | B53: 1008 | C53: 14.2 | D53: 91 | E53: 7 | F53: 0 | G53: 12.75048571 | X53: 0.8780362362
A54: 2017-07-02T02:00:00 | B54: 1009 | C54: 14.1 | D54: 92 | E54: 1 | F54: 0 | G54: 12.81861771 | X54: 0.8824930217
A55: 2017-07-02T02:30:00 | B55: 1008 | C55: 13.9 | D55: 93 | E55: 0 | F55: 0 | G55: 12.78576665 | X55: 0.8803443993
A56: 2017-07-02T03:00:00 | B56: 1008 | C56: 13.9 | D56: 94 | E56: 0 | F56: 0 | G56: 12.94937224 | X56: 0.8910395526
A57: 2017-07-02T03:30:00 | B57: 1009 | C57: 13.8 | D57: 95 | E57: 0 | F57: 0.5 | G57: 13.01206508 | X57: 0.8951342606
A58: 2017-07-02T04:00:00 | B58: 1009 | C58: 13.5 | D58: 95 | E58: 6 | F58: 0.5 | G58: 12.7139013 | X58: 0.8756421247
A59: 2017-07-02T04:30:00 | B59: 1009 | C59: 13.2 | D59: 96 | E59: 5 | F59: 0.5 | G59: 12.57544944 | X59: 0.8665755279
A60: 2017-07-02T05:00:00 | B60: 1009 | C60: 13 | D60: 97 | E60: 3 | F60: 0.5 | G60: 12.5344318 | X60: 0.8638875796
A61: 2017-07-02T05:30:00 | B61: 1010 | C61: 12.9 | D61: 97 | E61: 9 | F61: 0.5 | G61: 12.43479495 | X61: 0.8573546316
A62: 2017-07-02T06:00:00 | B62: 1010 | C62: 12.9 | D62: 97 | E62: 6 | F62: 0.5 | G62: 12.43479495 | X62: 0.8573546316
A63: 2017-07-02T06:30:00 | B63: 1010 | C63: 13 | D63: 97 | E63: 10 | F63: 0.5 | G63: 12.5344318 | X63: 0.8638875796
A64: 2017-07-02T07:00:00 | B64: 1010 | C64: 13.2 | D64: 97 | E64: 4 | F64: 0.5 | G64: 12.73370507 | X64: 0.8769381833
A65: 2017-07-02T07:30:00 | B65: 1011 | C65: 13.4 | D65: 97 | E65: 1 | F65: 0 | G65: 12.93297777 | X65: 0.8899684367
A66: 2017-07-02T08:00:00 | B66: 1011 | C66: 13.6 | D66: 98 | E66: 1 | F66: 0 | G66: =(243.12*X66)/(17.62-X66) -> 13.28956449 | X66: =(LOG10(D66) - 2)/0.4343 + (17.62*C66 / (243.12 + C66)) -> 0.9132347572
A67: 2017-07-02T08:30:00 | B67: 1012 | C67: 13.9 | D67: 97 | E67: 4 | F67: 0 | G67: 13.43115705 | X67: 0.9224553496
A68: 2017-07-02T09:00:00 | B68: 1012 | C68: 14.1 | D68: 98 | E68: 2 | F68: 0 | G68: 13.78835481 | X68: 0.9456711206
A69: 2017-07-02T09:30:00 | B69: 1012 | C69: 14.6 | D69: 97 | E69: 4 | F69: 0 | G69: 14.12860211 | X69: 0.9677252553
A70: 2017-07-02T10:00:00 | B70: 1012 | C70: 14.5 | D70: 97 | E70: 0 | F70: 0.5 | G70: 14.02896752 | X70: 0.9612731879
A71: 2017-07-02T10:30:00 | B71: 1013 | C71: 14.5 | D71: 97 | E71: 4 | F71: 0 | G71: 14.02896752 | X71: 0.9612731879
A72: 2017-07-02T11:00:00 | B72: 1013 | C72: 15.7 | D72: 96 | E72: 5 | F72: 0 | G72: 15.06322213 | X72: 1.028006281
A73: 2017-07-02T11:30:00 | B73: 1013 | C73: 16.2 | D73: 93 | E73: 3 | F73: 0 | G73: 15.0657795 | X73: 1.028170627
A74: 2017-07-02T12:00:00 | B74: 1013 | C74: 16.6 | D74: 87 | E74: 7 | F74: 0 | G74: 14.42549664 | X74: 0.9869217443
A75: 2017-07-02T12:30:00 | B75: 1014 | C75: 17.8 | D75: 79 | E75: 8 | F75: 0 | G75: 14.10688903 | X75: 0.9663196006
A76: 2017-07-02T13:00:00 | B76: 1013 | C76: 19.7 | D76: 71 | E76: 8 | F76: 0 | G76: 14.29118652 | X76: 0.9782430587
A77: 2017-07-02T13:30:00 | B77: 1014 | C77: 20 | D77: 68 | E77: 6 | F77: 0 | G77: 13.91142903 | X77: 0.9536552804
A78: 2017-07-02T14:00:00 | B78: 1014 | C78: 20.1 | D78: 65 | E78: 11 | F78: 0 | G78: 13.31237102 | X78: 0.9147206198
A79: 2017-07-02T14:30:00 | B79: 1014 | C79: 20.9 | D79: 66 | E79: 12 | F79: 0 | G79: 14.30754901 | X79: 0.9793008346
A80: 2017-07-02T15:00:00 | B80: 1014 | C80: 20.7 | D80: 64 | E80: 10 | F80: 0 | G80: 13.64296415 | X80: 0.9362293706
A81: 2017-07-02T15:30:00 | B81: 1014 | C81: 19.2 | D81: 68 | E81: 9 | F81: 0 | G81: 13.1479708 | X81: 0.9040039015
A82: 2017-07-02T16:00:00 | B82: 1014 | C82: 18.3 | D82: 71 | E82: 4 | F82: 0 | G82: 12.9480701 | X82: 0.8909544833
A83: 2017-07-02T16:30:00 | B83: 1014 | C83: 18.9 | D83: 70 | E83: 11 | F83: 0 | G83: 13.30581683 | X83: 0.9142936364
A84: 2017-07-02T17:00:00 | B84: 1014 | C84: 17.6 | D84: 75 | E84: 5 | F84: 0 | G84: 13.11366982 | X84: 0.9017661977
A85: 2017-07-02T17:30:00 | B85: 1014 | C85: 18.2 | D85: 74 | E85: 3 | F85: 0 | G85: 13.48668349 | X85: 0.9260684865
A86: 2017-07-02T18:00:00 | B86: 1014 | C86: 18.6 | D86: 74 | E86: 2 | F86: 0 | G86: 13.87237371 | X86: 0.9511224835
A87: 2017-07-02T18:30:00 | B87: 1014 | C87: 19 | D87: 70 | E87: 4 | F87: 0 | G87: 13.40159159 | X87: 0.9205308697
A88: 2017-07-02T19:00:00 | B88: 1014 | C88: 17.9 | D88: 72 | E88: 12 | F88: 0 | G88: 12.77788733 | X88: 0.8798289706
A89: 2017-07-02T19:30:00 | B89: 1014 | C89: 16.9 | D89: 78 | E89: 11 | F89: 0 | G89: 13.03686837 | X89: 0.8967537044
A90: 2017-07-02T20:00:00 | B90: 1015 | C90: 16.9 | D90: 79 | E90: 0 | F90: 0 | G90: 13.23214355 | X90: 0.9094925683
A91: 2017-07-02T20:30:00 | B91: 1014 | C91: 17 | D91: 79 | E91: 0 | F91: 0 | G91: 13.32934171 | X91: 0.9158261021
A92: 2017-07-02T21:00:00 | B92: 1015 | C92: 16.8 | D92: 79 | E92: 2 | F92: 0 | G92: 13.13494434 | X92: 0.903154161
A93: 2017-07-02T21:30:00 | B93: 1015 | C93: 16 | D93: 83 | E93: 4 | F93: 0 | G93: 13.11208677 | X93: 0.9016629097
A94: 2017-07-02T22:00:00 | B94: 1016 | C94: 15.6 | D94: 85 | E94: 5 | F94: 0 | G94: 13.08527836 | X94: 0.8999135621
A95: 2017-07-02T22:30:00 | B95: 1016 | C95: 14.3 | D95: 91 | E95: 2 | F95: 0 | G95: 12.84936204 | X95: 0.8845033539
A96: 2017-07-02T23:00:00 | B96: 1016 | C96: 14.3 | D96: 94 | E96: 0 | F96: 0 | G96: 13.3464165 | X96: 0.9169382175
A97: 2017-07-02T23:30:00 | B97: 1016 | C97: 14.3 | D97: 95 | E97: 0 | F97: 0 | G97: 13.50899997 | X97: 0.9275201924
A98: 2017-07-03 | B98: 1016 | C98: 14.5 | D98: 94 | E98: 0 | F98: 0 | G98: 13.54493692 | X98: 0.9298573908
A99: 2017-07-03T00:30:00 | B99: 1016 | C99: 14.4 | D99: 94 | E99: 0 | F99: 0 | G99: 13.44567686 | X99: 0.9234003126
A100: 2017-07-03T01:00:00 | B100: 1016 | C100: 14 | D100: 94 | E100: 8 | F100: 0 | G100: 13.04863373 | X100: 0.8975217732
A101: 2017-07-03T01:30:00 | B101: 1017 | C101: 13.8 | D101: 93 | E101: 6 | F101: 0 | G101: 12.68663165 | X101: 0.8738571325
A102: 2017-07-03T02:00:00 | B102: 1017 | C102: 13.8 | D102: 93 | E102: 5 | F102: 0 | G102: 12.68663165 | X102: 0.8738571325
A103: 2017-07-03T02:30:00 | B103: 1017 | C103: 13.6 | D103: 93 | E103: 3 | F103: 0 | G103: 12.48836063 | X103: 0.8608674371
A104: 2017-07-03T03:00:00 | B104: 1017 | C104: 13.7 | D104: 93 | E104: 2 | F104: 0 | G104: 12.58749631 | X104: 0.8673648138
A105: 2017-07-03T03:30:00 | B105: 1017 | C105: 13.3 | D105: 94 | E105: 0 | F105: 0 | G105: 12.35379727 | X105: 0.8520400537
A106: 2017-07-03T04:00:00 | B106: 1018 | C106: 13.6 | D106: 94 | E106: 2 | F106: 0.5 | G106: 12.65158604 | X106: 0.8715625903
A107: 2017-07-03T04:30:00 | B107: 1018 | C107: 12.5 | D107: 94 | E107: 5 | F107: 0 | G107: 11.55968132 | X107: 0.7997559278
A108: 2017-07-03T05:00:00 | B108: 1018 | C108: 12 | D108: 95 | E108: 1 | F108: 0 | G108: 11.22305037 | X108: 0.7774938108
A109: 2017-07-03T05:30:00 | B109: 1018 | C109: 11.9 | D109: 95 | E109: 0 | F109: 0 | G109: 11.12365841 | X109: 0.7709095376
A110: 2017-07-03T06:00:00 | B110: 1018 | C110: 12 | D110: 94 | E110: 6 | F110: 0 | G110: 11.06334956 | X110: 0.7669118359
A111: 2017-07-03T06:30:00 | B111: 1018 | C111: 12.1 | D111: 94 | E111: 1 | F111: 0 | G111: 11.16261648 | X111: 0.7734909494
A112: 2017-07-03T07:00:00 | B112: 1019 | C112: 12.6 | D112: 93 | E112: 0 | F112: 0 | G112: 11.49698548 | X112: 0.7956141804
A113: 2017-07-03T07:30:00 | B113: 1019 | C113: 13.3 | D113: 90 | E113: 8 | F113: 0 | G113: 11.69298758 | X113: 0.8085554943
A114: 2017-07-03T08:00:00 | B114: 1019 | C114: 13.2 | D114: 84 | E114: 8 | F114: 0 | G114: 10.55359663 | X114: 0.7330458319
A115: 2017-07-03T08:30:00 | B115: 1019 | C115: 13.2 | D115: 82 | E115: 7 | F115: 0 | G115: 10.1921268 | X115: 0.7089485865
A116: 2017-07-03T09:00:00 | B116: 1019 | C116: 13.2 | D116: 81 | E116: 5 | F116: 0 | G116: 10.0084676 | X116: 0.6966786498
A117: 2017-07-03T09:30:00 | B117: 1020 | C117: 14.3 | D117: 78 | E117: 4 | F117: 0 | G117: 10.51317623 | X117: 0.7303546326
A118: 2017-07-03T10:00:00 | B118: 1020 | C118: 14.1 | D118: 75 | E118: 8 | F118: 0 | G118: 9.732304636 | X118: 0.678195154
A119: 2017-07-03T10:30:00 | B119: 1020 | C119: 14.8 | D119: 72 | E119: 2 | F119: 0 | G119: 9.797664405 | X119: 0.6825733079
A120: 2017-07-03T11:00:00 | B120: 1020 | C120: 15.6 | D120: 68 | E120: 5 | F120: 0 | G120: 9.711078818 | I120: 2017-07-01 | J120: 4.5 | X120: 0.676772846
A121: 2017-07-03T11:30:00 | B121: 1020 | C121: 17.1 | D121: 62 | E121: 8 | F121: 0 | G121: 9.756921318 | I121: 2017-07-02 | J121: 5 | X121: 0.6798443794
A122: 2017-07-03T12:00:00 | B122: 1020 | C122: 17.2 | D122: 61 | E122: 7 | F122: 0 | G122: 9.608679399 | I122: 2017-07-03 | J122: 0.5 | X122: 0.6699078688
A123: 2017-07-03T12:30:00 | B123: 1020 | C123: 19.2 | D123: 58 | E123: 7 | F123: 0 | G123: 10.73241366 | I123: 2017-07-04 | J123: 0 | X123: 0.7449412279
A124: 2017-07-03T13:00:00 | B124: 1020 | C124: 18.9 | D124: 57 | E124: 5 | F124: 0 | G124: 10.19068411 | I124: 2017-07-05 | J124: 0 | X124: 0.7088522725
A125: 2017-07-03T13:30:00 | B125: 1020 | C125: 19.2 | D125: 55 | E125: 7 | F125: 0 | G125: 9.935996347 | I125: 2017-07-06 | J125: 0 | X125: 0.6918320774
A126: 2017-07-03T14:00:00 | B126: 1020 | C126: 19.8 | D126: 54 | E126: 4 | F126: 0 | G126: 10.2191137 | I126: 2017-07-07 | J126: 2.5 | X126: 0.7107500329
A127: 2017-07-03T14:30:00 | B127: 1019 | C127: 21.4 | D127: 52 | E127: 10 | F127: 0 | G127: 11.13350343 | I127: 2017-07-08 | J127: 0.5 | X127: 0.7715619561
A128: 2017-07-03T15:00:00 | B128: 1019 | C128: 20.5 | D128: 52 | E128: 6 | F128: 0 | G128: 10.30189913 | I128: 2017-07-09 | J128: 0 | X128: 0.7162737842
A129: 2017-07-03T15:30:00 | B129: 1019 | C129: 19.8 | D129: 53 | E129: 5 | F129: 0 | G129: 9.939375721 | I129: 2017-07-10 | J129: 0 | X129: 0.6920581374
A130: 2017-07-03T16:00:00 | B130: 1019 | C130: 21.3 | D130: 51 | E130: 2 | F130: 0 | G130: =(243.12*X130)/(17.62-X130) -> 10.7486363 | I130: 2017-07-11 | J130: 46.5 | X130: =(LOG10(D130) - 2)/0.4343 + (17.62*C130 / (243.12 + C130)) -> 0.7460195728
A131: 2017-07-03T16:30:00 | B131: 1019 | C131: 22.1 | D131: 49 | E131: 1 | F131: 0 | G131: 10.88203811 | I131: 2017-07-12 | J131: 2.5 | X131: 0.7548817834
A132: 2017-07-03T17:00:00 | B132: 1018 | C132: 22 | D132: 50 | E132: 1 | F132: 0 | G132: 11.09472683 | I132: 2017-07-13 | J132: 3.5 | X132: 0.7689919824
A133: 2017-07-03T17:30:00 | B133: 1018 | C133: 21.5 | D133: 51 | E133: 2 | F133: 0 | G133: 10.93298768 | I133: 2017-07-14 | J133: 0 | X133: 0.7582640323
A134: 2017-07-03T18:00:00 | B134: 1018 | C134: 22.4 | D134: 49 | E134: 0 | F134: 0 | G134: 11.15718356 | I134: 2017-07-15 | J134: 10.5 | X134: 0.7731310046
A135: 2017-07-03T18:30:00 | B135: 1018 | C135: 20.9 | D135: 51 | E135: 1 | F135: 0 | G135: 10.37990016 | I135: 2017-07-16 | J135: 0 | X135: 0.7214750012
A136: 2017-07-03T19:00:00 | B136: 1018 | C136: 21 | D136: 52 | E136: 2 | F136: 0 | G136: 10.76392864 | I136: 2017-07-17 | J136: 0.5 | X136: 0.747035953
A137: 2017-07-03T19:30:00 | B137: 1018 | C137: 20.6 | D137: 54 | E137: 1 | F137: 0 | G137: 10.96178917 | I137: 2017-07-18 | J137: 0 | X137: 0.7601753981
A138: 2017-07-03T20:00:00 | B138: 1017 | C138: 20 | D138: 55 | E138: 0 | F138: 0 | G138: 10.68040887 | I138: 2017-07-19 | J138: 0 | X138: 0.7414834562
A139: 2017-07-03T20:30:00 | B139: 1017 | C139: 19.2 | D139: 57 | E139: 0 | F139: 0 | G139: 10.47106142 | I139: 2017-07-20 | J139: 0 | X139: 0.7275497061
A140: 2017-07-03T21:00:00 | B140: 1018 | C140: 17.5 | D140: 66 | E140: 0 | F140: 0 | G140: 11.07418219 | I140: 2017-07-21 | J140: 2 | X140: 0.7676300396
A141: 2017-07-03T21:30:00 | B141: 1017 | C141: 15.8 | D141: 76 | E141: 0 | F141: 0 | G141: 11.57529077 | I141: 2017-07-22 | J141: 3.5 | X141: 0.8007867864
A142: 2017-07-03T22:00:00 | B142: 1018 | C142: 14.9 | D142: 82 | E142: 0 | F142: 0 | G142: 11.85233325 | I142: 2017-07-23 | J142: 4 | X142: 0.8190618533
A143: 2017-07-03T22:30:00 | B143: 1018 | C143: 14.8 | D143: 81 | E143: 0 | F143: 0 | G143: 11.56875003 | I143: 2017-07-24 | J143: 13 | X143: 0.800354847
A144: 2017-07-03T23:00:00 | B144: 1017 | C144: 14.6 | D144: 82 | E144: 0 | F144: 0 | G144: 11.55937442 | I144: 2017-07-25 | J144: 6 | X144: 0.7997356585
A145: 2017-07-03T23:30:00 | B145: 1017 | C145: 14.4 | D145: 82 | E145: 0 | F145: 0 | G145: 11.36406406 | I145: 2017-07-26 | J145: 11 | X145: 0.7868265128
A146: 2017-07-04 | B146: 1017 | C146: 14.1 | D146: 83 | E146: 0 | F146: 0 | G146: 11.25405023 | I146: 2017-07-27 | J146: 19 | X146: 0.7795463605
A147: 2017-07-04T00:30:00 | B147: 1017 | C147: 14.1 | D147: 83 | E147: 0 | F147: 0 | G147: 11.25405023 | I147: 2017-07-28 | J147: 0 | X147: 0.7795463605
A148: 2017-07-04T01:00:00 | B148: 1017 | C148: 14 | D148: 84 | E148: 0 | F148: 0 | G148: 11.33713729 | I148: 2017-07-29 | J148: 0 | X148: 0.7850452189
A149: 2017-07-04T01:30:00 | B149: 1017 | C149: 14.2 | D149: 82 | E149: 0 | F149: 0 | G149: 11.16875012 | I149: 2017-07-30 | J149: 0 | X149: 0.7738973001
A150: 2017-07-04T02:00:00 | B150: 1017 | C150: 14.9 | D150: 77 | E150: 0 | F150: 0 | G150: 10.90112223 | I150: 2017-07-31 | J150: 0 | X150: 0.7561488272
A151: 2017-07-04T02:30:00 | B151: 1016 | C151: 14.7 | D151: 77 | E151: 0 | F151: 0 | G151: 10.70727119 | X151: 0.7432696947
A152: 2017-07-04T03:00:00 | B152: 1016 | C152: 14.9 | D152: 77 | E152: 0 | F152: 0 | G152: 10.90112223 | X152: 0.7561488272
A153: 2017-07-04T03:30:00 | B153: 1016 | C153: 14.1 | D153: 82 | E153: 0 | F153: 0 | G153: 11.07109182 | X153: 0.767425154
A154: 2017-07-04T04:00:00 | B154: 1016 | C154: 13.9 | D154: 83 | E154: 0 | F154: 0 | G154: 11.05844977 | X154: 0.7665869594
A155: 2017-07-04T04:30:00 | B155: 1016 | C155: 14 | D155: 84 | E155: 0 | F155: 0 | G155: 11.33713729 | X155: 0.7850452189
A156: 2017-07-04T05:00:00 | B156: 1016 | C156: 14 | D156: 85 | E156: 0 | F156: 0 | G156: 11.51613642 | X156: 0.7968795262
A157: 2017-07-04T05:30:00 | B157: 1016 | C157: 14 | D157: 85 | E157: 0 | F157: 0 | G157: 11.51613642 | X157: 0.7968795262
A158: 2017-07-04T06:00:00 | B158: 1016 | C158: 14.3 | D158: 84 | E158: 0 | F158: 0 | G158: 11.63095202 | X158: 0.8044616632
A159: 2017-07-04T06:30:00 | B159: 1017 | C159: 14.2 | D159: 86 | E159: 0 | F159: 0 | G159: 11.88971575 | X159: 0.821524744
A160: 2017-07-04T07:00:00 | B160: 1017 | C160: 15.6 | D160: 80 | E160: 0 | F160: 0 | G160: 12.15968281 | X160: 0.8392897106
A161: 2017-07-04T07:30:00 | B161: 1017 | C161: 15.5 | D161: 78 | E161: 1 | F161: 0 | G161: 11.6780504 | X161: 0.807569947
A162: 2017-07-04T08:00:00 | B162: 1017 | C162: 15.6 | D162: 77 | E162: 1 | F162: 0 | G162: 11.57956419 | X162: 0.8010689834
A163: 2017-07-04T08:30:00 | B163: 1017 | C163: 16.2 | D163: 77 | E163: 3 | F163: 0 | G163: 12.16104046 | X163: 0.8393789547
A164: 2017-07-04T09:00:00 | B164: 1017 | C164: 16.9 | D164: 74 | E164: 10 | F164: 0 | G164: 12.23304317 | X164: 0.8441106398
A165: 2017-07-04T09:30:00 | B165: 1017 | C165: 16.7 | D165: 73 | E165: 9 | F165: 0 | G165: 11.83354079 | X165: 0.817823467
A166: 2017-07-04T10:00:00 | B166: 1018 | C166: 17.1 | D166: 73 | E166: 7 | F166: 0 | G166: 12.21868591 | X166: 0.8431673603
A167: 2017-07-04T10:30:00 | B167: 1018 | C167: 18.8 | D167: 67 | E167: 6 | F167: 0 | G167: 12.53995501 | X167: 0.8642495743
A168: 2017-07-04T11:00:00 | B168: 1018 | C168: 18.9 | D168: 64 | E168: 11 | F168: 0 | G168: 11.93766293 | X168: 0.8246826163
A169: 2017-07-04T11:30:00 | B169: 1018 | C169: 18 | D169: 66 | E169: 12 | F169: 0 | G169: 11.54980776 | X169: 0.7991038061
A170: 2017-07-04T12:00:00 | B170: 1018 | C170: 18.3 | D170: 67 | E170: 2 | F170: 0 | G170: 12.06354825 | X170: 0.8329679624
A171: 2017-07-04T12:30:00 | B171: 1018 | C171: 19.4 | D171: 63 | E171: 5 | F171: 0 | G171: 12.17160094 | X171: 0.8400731078
A172: 2017-07-04T13:00:00 | B172: 1018 | C172: 19.1 | D172: 62 | E172: 3 | F172: 0 | G172: 11.64522944 | X172: 0.8054040308
A173: 2017-07-04T13:30:00 | B173: 1017 | C173: 19.5 | D173: 60 | E173: 9 | F173: 0 | G173: 11.52548388 | X173: 0.797497065
A174: 2017-07-04T14:00:00 | B174: 1017 | C174: 20.3 | D174: 60 | E174: 8 | F174: 0 | G174: 12.27756759 | X174: 0.8470352437
A175: 2017-07-04T14:30:00 | B175: 1017 | C175: 20.5 | D175: 58 | E175: 6 | F175: 0 | G175: 11.94964653 | X175: 0.8254716887
A176: 2017-07-04T15:00:00 | B176: 1017 | C176: 20.4 | D176: 57 | E176: 6 | F176: 0 | G176: 11.59235728 | X176: 0.8019137249
A177: 2017-07-04T15:30:00 | B177: 1018 | C177: 21.5 | D177: 55 | E177: 8 | F177: 0 | G177: 12.0757503 | X177: 0.8337706254
A178: 2017-07-04T16:00:00 | B178: 1017 | C178: 20.2 | D178: 57 | E178: 10 | F178: 0 | G178: 11.40549834 | X178: 0.78956679
A179: 2017-07-04T16:30:00 | B179: 1017 | C179: 21.2 | D179: 53 | E179: 5 | F179: 0 | G179: 11.23607399 | X179: 0.7783561864
A180: 2017-07-04T17:00:00 | B180: 1017 | C180: 20.7 | D180: 55 | E180: 8 | F180: 0 | G180: 11.33163833 | X180: 0.784681398
A181: 2017-07-04T17:30:00 | B181: 1018 | C181: 22.2 | D181: 52 | E181: 6 | F181: 0 | G181: 11.87252289 | X181: 0.8203921081
A182: 2017-07-04T18:00:00 | B182: 1017 | C182: 21.6 | D182: 54 | E182: 9 | F182: 0 | G182: 11.88990197 | X182: 0.8215370115
A183: 2017-07-04T18:30:00 | B183: 1018 | C183: 20.7 | D183: 58 | E183: 6 | F183: 0 | G183: 12.13687856 | X183: 0.8377905485
A184: 2017-07-04T19:00:00 | B184: 1017 | C184: 21 | D184: 58 | E184: 1 | F184: 0 | G184: 12.41770934 | X184: 0.8562338575
A185: 2017-07-04T19:30:00 | B185: 1017 | C185: 20 | D185: 60 | E185: 0 | F185: 0 | G185: 11.9955525 | X185: 0.8284937277
A186: 2017-07-04T20:00:00 | B186: 1018 | C186: 19.5 | D186: 62 | E186: 0 | F186: 0 | G186: 12.0227928 | X186: 0.8302864712
A187: 2017-07-04T20:30:00 | B187: 1018 | C187: 19 | D187: 63 | E187: 1 | F187: 0 | G187: 11.79330954 | X187: 0.8151716928
A188: 2017-07-04T21:00:00 | B188: 1018 | C188: 18.6 | D188: 64 | E188: 0 | F188: 0 | G188: 11.65338553 | X188: 0.8059423183
A189: 2017-07-04T21:30:00 | B189: 1018 | C189: 17.4 | D189: 69 | E189: 0 | F189: 0 | G189: 11.65080462 | X189: 0.8057719867
A190: 2017-07-04T22:00:00 | B190: 1018 | C190: 15.3 | D190: 78 | E190: 0 | F190: 0 | G190: 11.4839158 | X190: 0.7947505276
A191: 2017-07-04T22:30:00 | B191: 1018 | C191: 14.1 | D191: 84 | E191: 0 | F191: 0 | G191: 11.43507632 | X191: 0.7915223994
A192: 2017-07-04T23:00:00 | B192: 1019 | C192: 13.4 | D192: 87 | E192: 0 | F192: 0 | G192: 11.27853163 | X192: 0.7811669592
A193: 2017-07-04T23:30:00 | B193: 1019 | C193: 13 | D193: 88 | E193: 0 | F193: 0 | G193: 11.05735927 | X193: 0.7665146528
A194: 2017-07-05 | B194: 1019 | C194: 12.6 | D194: 89 | E194: 0 | F194: 0 | G194: =(243.12*X194)/(17.62-X194) -> 10.83339854 | X194: =(LOG10(D194) - 2)/0.4343 + (17.62*C194 / (243.12 + C194)) -> 0.7516516156
A195: 2017-07-05T00:30:00 | B195: 1019 | C195: 12.4 | D195: 90 | E195: 0 | F195: 0 | G195: 10.80421348 | X195: 0.749712833
A196: 2017-07-05T01:00:00 | B196: 1018 | C196: 12.5 | D196: 90 | E196: 0 | F196: 0 | G196: 10.90296809 | X196: 0.7562713684
A197: 2017-07-05T01:30:00 | B197: 1018 | C197: 12.5 | D197: 90 | E197: 0 | F197: 0 | G197: 10.90296809 | X197: 0.7562713684
A198: 2017-07-05T02:00:00 | B198: 1018 | C198: 12.5 | D198: 89 | E198: 0 | F198: 0 | G198: 10.73477517 | X198: 0.7450982097
A199: 2017-07-05T02:30:00 | B199: 1018 | C199: 12.9 | D199: 88 | E199: 0 | F199: 0 | G199: 10.9588702 | X199: 0.7599817048
A200: 2017-07-05T03:00:00 | B200: 1018 | C200: 12.9 | D200: 88 | E200: 0 | F200: 0 | G200: 10.9588702 | X200: 0.7599817048
... 1289 more rows

Sheet Srpen
A1: Datum, čas | B1: Pred [hPa] | C1: T [ºC] | D1: Rh [%] | E1: v max [m.s-1] | F1: Srážky [mm] | G1: Tdew [ºC]
A2: 2017-08-01 | B2: 1016 | C2: 19.3 | D2: 94 | E2: 0 | F2: 0 | G2: =(243.12*X2)/(17.62-X2) -> 18.30908416 | X2: =(LOG10(D2) - 2)/0.4343 + (17.62*C2 / (243.12 + C2)) -> 1.234009842
A3: 2017-08-01T00:30:00 | B3: 1016 | C3: 19.1 | D3: 94 | E3: 0 | F3: 0 | G3: 18.11059117 | I3: Průměrná teplota | J3: =AVERAGE(C1:C1530) -> 18.49939516 | K3: °C | X3: 1.22155914
A4: 2017-08-01T01:00:00 | B4: 1016 | C4: 19 | D4: 93 | E4: 0 | F4: 0 | G4: 17.84120857 | I4: Maximální teplota | J4: =MAX(C1:C1530) -> 35.4 | K4: °C | X4: 1.204631511
A5: 2017-08-01T01:30:00 | B5: 1016 | C5: 18.5 | D5: 93 | E5: 0 | F5: 0 | G5: 17.34561546 | I5: Minimální teplota | J5: =MIN(C1:C1530) -> 4.6 | K5: °C | X5: 1.173397663
A6: 2017-08-01T02:00:00 | B6: 1016 | C6: 17.9 | D6: 95 | E6: 0 | F6: 0 | G6: 17.08675606 | I6: Úhrn srážek | J6: =SUM(F2:F1614) -> 55.5 | K6: mm | X6: 1.157036221
A7: 2017-08-01T02:30:00 | B7: 1016 | C7: 17.8 | D7: 95 | E7: 0 | F7: 0 | G7: 16.98737809 | I7: Maximální náraz větru | J7: =MAX(E1:E1530) -> 17 | K7: m/s | X7: 1.150746296
A8: 2017-08-01T03:00:00 | B8: 1016 | C8: 18.9 | D8: 94 | E8: 0 | F8: 0 | G8: 17.91209703 | X8: 1.209089431
A9: 2017-08-01T03:30:00 | B9: 1015 | C9: 19.8 | D9: 91 | E9: 0 | F9: 0 | G9: 18.28689375 | X9: 1.232618862
A10: 2017-08-01T04:00:00 | B10: 1016 | C10: 20.3 | D10: 87 | E10: 0 | F10: 0 | G10: 18.06336566 | X10: 1.218594079
A11: 2017-08-01T04:30:00 | B11: 1015 | C11: 19.5 | D11: 87 | E11: 0 | F11: 0 | G11: 17.27687291 | X11: 1.1690559
A12: 2017-08-01T05:00:00 | B12: 1015 | C12: 19.5 | D12: 88 | E12: 0 | F12: 0 | G12: 17.45789764 | X12: 1.180484451
A13: 2017-08-01T05:30:00 | B13: 1015 | C13: 19.8 | D13: 87 | E13: 0 | F13: 0 | G13: 17.57181245 | X13: 1.187668045
A14: 2017-08-01T06:00:00 | B14: 1015 | C14: 20 | D14: 86 | E14: 0 | F14: 0 | G14: 17.584883 | X14: 1.188491888
A15: 2017-08-01T06:30:00 | B15: 1015 | C15: 20.6 | D15: 84 | E15: 0 | F15: 0 | G15: 17.79942148 | X15: 1.202002537
A16: 2017-08-01T07:00:00 | B16: 1015 | C16: 20.9 | D16: 84 | E16: 0 | F16: 0 | G16: 18.09308006 | X16: 1.220459827
A17: 2017-08-01T07:30:00 | B17: 1015 | C17: 22.2 | D17: 81 | E17: 0 | F17: 0 | G17: 18.78190274 | X17: 1.263591913
A18: 2017-08-01T08:00:00 | B18: 1015 | C18: 23.4 | D18: 77 | E18: 0 | F18: 0.5 | G18: 19.13548822 | X18: 1.28564441
A19: 2017-08-01T08:30:00 | B19: 1016 | C19: 24.1 | D19: 75 | E19: 0 | F19: 0 | G19: 19.38920521 | X19: 1.301431679
A20: 2017-08-01T09:00:00 | B20: 1017 | C20: 25 | D20: 72 | E20: 0 | F20: 0 | G20: 19.59832783 | X20: 1.314421187
A21: 2017-08-01T09:30:00 | B21: 1017 | C21: 25.5 | D21: 74 | E21: 0 | F21: 0 | G21: 20.52217952 | X21: 1.371558997
A22: 2017-08-01T10:00:00 | B22: 1017 | C22: 26.3 | D22: 71 | E22: 0 | F22: 0 | G22: 20.61905665 | X22: 1.377527405
A23: 2017-08-01T10:30:00 | B23: 1017 | C23: 25.9 | D23: 72 | E23: 1 | F23: 0 | G23: 20.46237104 | X23: 1.367872124
A24: 2017-08-01T11:00:00 | B24: 1017 | C24: 28.4 | D24: 65 | E24: 0 | F24: 0 | G24: 21.18342744 | X24: 1.412210183
A25: 2017-08-01T11:30:00 | B25: 1016 | C25: 29.4 | D25: 62 | E25: 0 | F25: 0 | G25: 21.35706227 | X25: 1.422850942
A26: 2017-08-01T12:00:00 | B26: 1016 | C26: 31.2 | D26: 56 | E26: 4 | F26: 0 | G26: 21.37931069 | X26: 1.424213369
A27: 2017-08-01T12:30:00 | B27: 1016 | C27: 31.6 | D27: 54 | E27: 3 | F27: 0 | G27: 21.15690322 | X27: 1.410583483
A28: 2017-08-01T13:00:00 | B28: 1015 | C28: 32.1 | D28: 52 | E28: 9 | F28: 0 | G28: 21.00355338 | X28: 1.401172314
A29: 2017-08-01T13:30:00 | B29: 1015 | C29: 33.3 | D29: 51 | E29: 3 | F29: 0 | G29: 21.79005756 | X29: 1.44932517
A30: 2017-08-01T14:00:00 | B30: 1015 | C30: 34 | D30: 49 | E30: 8 | F30: 0 | G30: 21.77598876 | X30: 1.448466335
A31: 2017-08-01T14:30:00 | B31: 1015 | C31: 34.7 | D31: 48 | E31: 6 | F31: 0 | G31: 22.07657707 | X31: 1.466796036
A32: 2017-08-01T15:00:00 | B32: 1015 | C32: 34.9 | D32: 45 | E32: 12 | F32: 0 | G32: 21.20202441 | X32: 1.413350518
A33: 2017-08-01T15:30:00 | B33: 1014 | C33: 35.1 | D33: 45 | E33: 4 | F33: 0 | G33: 21.3827956 | X33: 1.424426754
A34: 2017-08-01T16:00:00 | B34: 1014 | C34: 34.8 | D34: 44 | E34: 6 | F34: 0 | G34: 20.7458757 | X34: 1.385333851
A35: 2017-08-01T16:30:00 | B35: 1014 | C35: 35.3 | D35: 43 | E35: 5 | F35: 0 | G35: 20.82214865 | X35: 1.39002528
A36: 2017-08-01T17:00:00 | B36: 1014 | C36: 35.2 | D36: 43 | E36: 7 | F36: 0 | G36: 20.73227658 | X36: 1.384497106
A37: 2017-08-01T17:30:00 | B37: 1013 | C37: 35.4 | D37: 43 | E37: 3 | F37: 0 | G37: 20.91201736 | X37: 1.395549485
A38: 2017-08-01T18:00:00 | B38: 1014 | C38: 34.4 | D38: 44 | E38: 2 | F38: 0 | G38: 20.38528173 | X38: 1.363117512
A39: 2017-08-01T18:30:00 | B39: 1013 | C39: 33.3 | D39: 46 | E39: 1 | F39: 0 | G39: 20.11041927 | X39: 1.346142245
A40: 2017-08-01T19:00:00 | B40: 1013 | C40: 32.8 | D40: 48 | E40: 1 | F40: 0 | G40: 20.34477844 | X40: 1.360618289
A41: 2017-08-01T19:30:00 | B41: 1013 | C41: 31.7 | D41: 51 | E41: 0 | F41: 0 | G41: 20.32017499 | X41: 1.359099778
A42: 2017-08-01T20:00:00 | B42: 1013 | C42: 29.9 | D42: 57 | E42: 0 | F42: 0 | G42: 20.4572503 | X42: 1.36755638
A43: 2017-08-01T20:30:00 | B43: 1013 | C43: 28 | D43: 64 | E43: 0 | F43: 0 | G43: 20.55253156 | X43: 1.373429397
A44: 2017-08-01T21:00:00 | B44: 1013 | C44: 26.7 | D44: 67 | E44: 0 | F44: 0 | G44: 20.0614162 | X44: 1.343112134
A45: 2017-08-01T21:30:00 | B45: 1014 | C45: 27.7 | D45: 62 | E45: 0 | F45: 0 | G45: 19.75563158 | X45: 1.324178382
A46: 2017-08-01T22:00:00 | B46: 1014 | C46: 26.5 | D46: 74 | E46: 3 | F46: 0 | G46: 21.4853943 | X46: 1.430706462
A47: 2017-08-01T22:30:00 | B47: 1014 | C47: 26.2 | D47: 77 | E47: 1 | F47: 0 | G47: 21.84614539 | X47: 1.452748166
A48: 2017-08-01T23:00:00 | B48: 1014 | C48: 26.2 | D48: 75 | E48: 1 | F48: 0 | G48: 21.41553573 | X48: 1.426431192
A49: 2017-08-01T23:30:00 | B49: 1014 | C49: 25.6 | D49: 75 | E49: 0 | F49: 0 | G49: 20.83664144 | X49: 1.390916403
A50: 2017-08-02 | B50: 1014 | C50: 24.6 | D50: 79 | E50: 0 | F50: 0 | G50: 20.71331739 | X50: 1.383330415
A51: 2017-08-02T00:30:00 | B51: 1014 | C51: 24.4 | D51: 80 | E51: 0 | F51: 0 | G51: 20.72333037 | X51: 1.383946604
A52: 2017-08-02T01:00:00 | B52: 1017 | C52: 20.9 | D52: 91 | E52: 6 | F52: 3.5 | G52: 19.37424299 | X52: 1.300501518
A53: 2017-08-02T01:30:00 | B53: 1018 | C53: 19.5 | D53: 93 | E53: 5 | F53: 0.5 | G53: 18.33679332 | X53: 1.235746428
A54: 2017-08-02T02:00:00 | B54: 1017 | C54: 19 | D54: 94 | E54: 1 | F54: 2 | G54: 18.01134424 | X54: 1.215326664
A55: 2017-08-02T02:30:00 | B55: 1017 | C55: 18.9 | D55: 95 | E55: 0 | F55: 0 | G55: 18.08052262 | X55: 1.219671406
A56: 2017-08-02T03:00:00 | B56: 1017 | C56: 18.7 | D56: 96 | E56: 0 | F56: 0 | G56: 18.04839329 | X56: 1.217653813
A57: 2017-08-02T03:30:00 | B57: 1016 | C57: 18.7 | D57: 96 | E57: 0 | F57: 0 | G57: 18.04839329 | X57: 1.217653813
A58: 2017-08-02T04:00:00 | B58: 1015 | C58: 18.6 | D58: 97 | E58: 0 | F58: 0 | G58: 18.11386948 | X58: 1.22176493
A59: 2017-08-02T04:30:00 | B59: 1015 | C59: 18.7 | D59: 97 | E59: 0 | F59: 0 | G59: 18.21349827 | X59: 1.228016468
A60: 2017-08-02T05:00:00 | B60: 1015 | C60: 18.7 | D60: 97 | E60: 0 | F60: 0 | G60: 18.21349827 | X60: 1.228016468
A61: 2017-08-02T05:30:00 | B61: 1016 | C61: 18.6 | D61: 97 | E61: 0 | F61: 0 | G61: 18.11386948 | X61: 1.22176493
A62: 2017-08-02T06:00:00 | B62: 1016 | C62: 18.3 | D62: 98 | E62: 0 | F62: 0 | G62: 17.97810073 | X62: 1.21323799
A63: 2017-08-02T06:30:00 | B63: 1016 | C63: 18.5 | D63: 98 | E63: 0 | F63: 0 | G63: 18.17760831 | X63: 1.225764983
A64: 2017-08-02T07:00:00 | B64: 1017 | C64: 18.8 | D64: 98 | E64: 0 | F64: 0 | G64: 18.47686897 | X64: 1.244519602
A65: 2017-08-02T07:30:00 | B65: 1017 | C65: 19.1 | D65: 98 | E65: 0 | F65: 0 | G65: 18.77612878 | X65: 1.263231307
A66: 2017-08-02T08:00:00 | B66: 1017 | C66: 19.7 | D66: 97 | E66: 0 | F66: 0 | G66: =(243.12*X66)/(17.62-X66) -> 19.20977834 | X66: =(LOG10(D66) - 2)/0.4343 + (17.62*C66 / (243.12 + C66)) -> 1.290270196
A67: 2017-08-02T08:30:00 | B67: 1018 | C67: 20.4 | D67: 97 | E67: 0 | F67: 0 | G67: 19.90716598 | X67: 1.33356668
A68: 2017-08-02T09:00:00 | B68: 1018 | C68: 20.9 | D68: 95 | E68: 0 | F68: 0 | G68: 20.06798459 | X68: 1.343518356
A69: 2017-08-02T09:30:00 | B69: 1018 | C69: 21.6 | D69: 93 | E69: 0 | F69: 0 | G69: 20.418158 | X69: 1.365145551
A70: 2017-08-02T10:00:00 | B70: 1018 | C70: 22.3 | D70: 90 | E70: 0 | F70: 0 | G70: 20.57857854 | X70: 1.375034162
A71: 2017-08-02T10:30:00 | B71: 1018 | C71: 23.1 | D71: 85 | E71: 0 | F71: 0 | G71: 20.43811727 | X71: 1.366376532
A72: 2017-08-02T11:00:00 | B72: 1018 | C72: 24.3 | D72: 80 | E72: 2 | F72: 0 | G72: 20.62605969 | X72: 1.377958678
A73: 2017-08-02T11:30:00 | B73: 1018 | C73: 26.7 | D73: 72 | E73: 0 | F73: 0 | G73: 21.23031135 | X73: 1.415084719
A74: 2017-08-02T12:00:00 | B74: 1018 | C74: 28.3 | D74: 66 | E74: 1 | F74: 0 | G74: 21.33769389 | X74: 1.421664694
A75: 2017-08-02T12:30:00 | B75: 1018 | C75: 26.4 | D75: 68 | E75: 1 | F75: 0 | G75: 20.01522971 | X75: 1.340255153
A76: 2017-08-02T13:00:00 | B76: 1018 | C76: 25.8 | D76: 61 | E76: 1 | F76: 0 | G76: 17.70661361 | X76: 1.19616065
A77: 2017-08-02T13:30:00 | B77: 1018 | C77: 26.9 | D77: 63 | E77: 0 | F77: 0 | G77: 19.2586922 | X77: 1.293314459
A78: 2017-08-02T14:00:00 | B78: 1018 | C78: 27 | D78: 62 | E78: 0 | F78: 0 | G78: 19.0960475 | X78: 1.28318751
A79: 2017-08-02T14:30:00 | B79: 1018 | C79: 27.7 | D79: 61 | E79: 1 | F79: 0 | G79: 19.4935902 | X79: 1.307918067
A80: 2017-08-02T15:00:00 | B80: 1018 | C80: 26.5 | D80: 64 | E80: 0 | F80: 0 | G80: 19.13359188 | X80: 1.285526297
A81: 2017-08-02T15:30:00 | B81: 1018 | C81: 28.9 | D81: 58 | E81: 0 | F81: 0 | G81: 19.8054666 | X81: 1.3272671
A82: 2017-08-02T16:00:00 | B82: 1018 | C82: 28.5 | D82: 57 | E82: 0 | F82: 0 | G82: 19.15218577 | X82: 1.286684336
A83: 2017-08-02T16:30:00 | B83: 1018 | C83: 28.9 | D83: 56 | E83: 1 | F83: 0 | G83: 19.24040143 | X83: 1.292176226
A84: 2017-08-02T17:00:00 | B84: 1018 | C84: 29.2 | D84: 58 | E84: 0 | F84: 0 | G84: 20.0857316 | X84: 1.344615821
A85: 2017-08-02T17:30:00 | B85: 1017 | C85: 29.4 | D85: 58 | E85: 1 | F85: 0 | G85: 20.27256346 | X85: 1.356160415
A86: 2017-08-02T18:00:00 | B86: 1017 | C86: 28.3 | D86: 58 | E86: 0 | F86: 0 | G86: 19.24487458 | X86: 1.292454604
A87: 2017-08-02T18:30:00 | B87: 1017 | C87: 27.4 | D87: 60 | E87: 1 | F87: 0 | G87: 18.94621912 | X87: 1.273847435
A88: 2017-08-02T19:00:00 | B88: 1017 | C88: 26.5 | D88: 64 | E88: 0 | F88: 0 | G88: 19.13359188 | X88: 1.285526297
A89: 2017-08-02T19:30:00 | B89: 1017 | C89: 25.9 | D89: 63 | E89: 0 | F89: 0 | G89: 18.31439048 | X89: 1.234342428
A90: 2017-08-02T20:00:00 | B90: 1017 | C90: 25.5 | D90: 70 | E90: 0 | F90: 0 | G90: 19.62360485 | X90: 1.315989851
A91: 2017-08-02T20:30:00 | B91: 1017 | C91: 23.8 | D91: 78 | E91: 0 | F91: 0 | G91: 19.73072497 | X91: 1.32263426
A92: 2017-08-02T21:00:00 | B92: 1017 | C92: 22.4 | D92: 84 | E92: 0 | F92: 0 | G92: 19.56126652 | X92: 1.312120657
A93: 2017-08-02T21:30:00 | B93: 1017 | C93: 21.6 | D93: 86 | E93: 0 | F93: 0 | G93: 19.15555808 | X93: 1.286894348
A94: 2017-08-02T22:00:00 | B94: 1017 | C94: 20.8 | D94: 89 | E94: 0 | F94: 0 | G94: 18.91870197 | X94: 1.272130896
A95: 2017-08-02T22:30:00 | B95: 1017 | C95: 20.1 | D95: 90 | E95: 0 | F95: 0 | G95: 18.40690612 | X95: 1.240138885
A96: 2017-08-02T23:00:00 | B96: 1017 | C96: 19.8 | D96: 91 | E96: 0 | F96: 0 | G96: 18.28689375 | X96: 1.232618862
A97: 2017-08-02T23:30:00 | B97: 1017 | C97: 19.5 | D97: 91 | E97: 0 | F97: 0 | G97: 17.99033487 | X97: 1.214006717
A98: 2017-08-03 | B98: 1017 | C98: 19.4 | D98: 91 | E98: 0 | F98: 0 | G98: 17.89148105 | X98: 1.207793216
A99: 2017-08-03T00:30:00 | B99: 1017 | C99: 19.1 | D99: 91 | E99: 0 | F99: 0 | G99: 17.59491697 | X99: 1.189124277
A100: 2017-08-03T01:00:00 | B100: 1017 | C100: 18.7 | D100: 92 | E100: 0 | F100: 0 | G100: 17.37249491 | X100: 1.175094739
A101: 2017-08-03T01:30:00 | B101: 1017 | C101: 19.2 | D101: 91 | E101: 0 | F101: 0 | G101: 17.6937721 | X101: 1.195352001
A102: 2017-08-03T02:00:00 | B102: 1017 | C102: 19 | D102: 91 | E102: 0 | F102: 0 | G102: 17.49606142 | X102: 1.182891801
A103: 2017-08-03T02:30:00 | B103: 1017 | C103: 19.5 | D103: 90 | E103: 0 | F103: 0 | G103: 17.8145913 | X103: 1.202957021
A104: 2017-08-03T03:00:00 | B104: 1016 | C104: 18.7 | D104: 91 | E104: 0 | F104: 0 | G104: 17.19949215 | X104: 1.164165807
A105: 2017-08-03T03:30:00 | B105: 1016 | C105: 18.9 | D105: 91 | E105: 0 | F105: 0 | G105: 17.39720543 | X105: 1.176654567
A106: 2017-08-03T04:00:00 | B106: 1016 | C106: 19 | D106: 90 | E106: 0 | F106: 0 | G106: 17.32098235 | X106: 1.171842105
A107: 2017-08-03T04:30:00 | B107: 1015 | C107: 19 | D107: 91 | E107: 0 | F107: 0 | G107: 17.49606142 | X107: 1.182891801
A108: 2017-08-03T05:00:00 | B108: 1015 | C108: 19 | D108: 90 | E108: 0 | F108: 0 | G108: 17.32098235 | X108: 1.171842105
A109: 2017-08-03T05:30:00 | B109: 1015 | C109: 18.8 | D109: 90 | E109: 0 | F109: 0 | G109: 17.12353539 | X109: 1.159362876
A110: 2017-08-03T06:00:00 | B110: 1015 | C110: 18.6 | D110: 91 | E110: 0 | F110: 0 | G110: 17.10063486 | X110: 1.157914269
A111: 2017-08-03T06:30:00 | B111: 1015 | C111: 19.1 | D111: 90 | E111: 0 | F111: 0 | G111: 17.4197051 | X111: 1.178074581
A112: 2017-08-03T07:00:00 | B112: 1015 | C112: 19.5 | D112: 89 | E112: 0 | F112: 0 | G112: 17.63712446 | X112: 1.191783863
A113: 2017-08-03T07:30:00 | B113: 1015 | C113: 20.3 | D113: 88 | E113: 0 | F113: 0 | G113: 18.24548594 | X113: 1.23002263
A114: 2017-08-03T08:00:00 | B114: 1015 | C114: 20.9 | D114: 87 | E114: 0 | F114: 0 | G114: 18.65320861 | X114: 1.255550701
A115: 2017-08-03T08:30:00 | B115: 1015 | C115: 23 | D115: 81 | E115: 0 | F115: 0 | G115: 19.56139256 | X115: 1.312128482
A116: 2017-08-03T09:00:00 | B116: 1015 | C116: 23.9 | D116: 79 | E116: 0 | F116: 0 | G116: 20.03346885 | X116: 1.3413835
A117: 2017-08-03T09:30:00 | B117: 1014 | C117: 25.1 | D117: 75 | E117: 0 | F117: 0 | G117: 20.35419452 | X117: 1.36119937
A118: 2017-08-03T10:00:00 | B118: 1014 | C118: 25.5 | D118: 74 | E118: 0 | F118: 0 | G118: 20.52217952 | X118: 1.371558997
A119: 2017-08-03T10:30:00 | B119: 1014 | C119: 26.7 | D119: 71 | E119: 1 | F119: 0 | G119: 21.00235384 | X119: 1.401098655
A120: 2017-08-03T11:00:00 | B120: 1014 | C120: 25.3 | D120: 74 | E120: 0 | F120: 0 | G120: 20.32952062 | I120: 2017-08-01 | J120: 0.5 | X120: 1.359676618
A121: 2017-08-03T11:30:00 | B121: 1014 | C121: 25.2 | D121: 76 | E121: 0 | F121: 0 | G121: 20.66565532 | I121: 2017-08-02 | J121: 6 | X121: 1.380396695
A122: 2017-08-03T12:00:00 | B122: 1014 | C122: 24.7 | D122: 79 | E122: 0 | F122: 0 | G122: 20.8104344 | I122: 2017-08-03 | J122: 1 | X122: 1.389304932
A123: 2017-08-03T12:30:00 | B123: 1014 | C123: 25 | D123: 79 | E123: 0 | F123: 0 | G123: 21.1017791 | I123: 2017-08-04 | J123: 0 | X123: 1.407201742
A124: 2017-08-03T13:00:00 | B124: 1014 | C124: 24.7 | D124: 82 | E124: 0 | F124: 0 | G124: 21.41789891 | I124: 2017-08-05 | J124: 1.5 | X124: 1.426575853
A125: 2017-08-03T13:30:00 | B125: 1015 | C125: 23.5 | D125: 82 | E125: 0 | F125: 0 | G125: 20.2470661 | I125: 2017-08-06 | J125: 0.5 | X125: 1.354585864
A126: 2017-08-03T14:00:00 | B126: 1015 | C126: 21.9 | D126: 87 | E126: 0 | F126: 0.5 | G126: 19.63622948 | I126: 2017-08-07 | J126: 0 | X126: 1.316773209
A127: 2017-08-03T14:30:00 | B127: 1015 | C127: 22 | D127: 88 | E127: 0 | F127: 0 | G127: 19.91898721 | I127: 2017-08-08 | J127: 0 | X127: 1.334298609
A128: 2017-08-03T15:00:00 | B128: 1015 | C128: 21.4 | D128: 91 | E128: 0 | F128: 0 | G128: 19.86847533 | I128: 2017-08-09 | J128: 0 | X128: 1.331170634
A129: 2017-08-03T15:30:00 | B129: 1014 | C129: 21.3 | D129: 92 | E129: 0 | F129: 0.5 | G129: 19.94606662 | I129: 2017-08-10 | J129: 1 | X129: 1.335975021
A130: 2017-08-03T16:00:00 | B130: 1014 | C130: 21.1 | D130: 91 | E130: 0 | F130: 0 | G130: =(243.12*X130)/(17.62-X130) -> 19.57193723 | I130: 2017-08-11 | J130: 23 | X130: =(LOG10(D130) - 2)/0.4343 + (17.62*C130 / (243.12 + C130)) -> 1.312783093
A131: 2017-08-03T16:30:00 | B131: 1013 | C131: 21.9 | D131: 88 | E131: 0 | F131: 0 | G131: 19.82055063 | I131: 2017-08-12 | J131: 0.5 | X131: 1.32820176
A132: 2017-08-03T17:00:00 | B132: 1013 | C132: 22.3 | D132: 87 | E132: 0 | F132: 0 | G132: 20.02942009 | I132: 2017-08-13 | J132: 3.5 | X132: 1.341133041
A133: 2017-08-03T17:30:00 | B133: 1013 | C133: 24.3 | D133: 79 | E133: 0 | F133: 0 | G133: 20.42196005 | I133: 2017-08-14 | J133: 0 | X133: 1.365380056
A134: 2017-08-03T18:00:00 | B134: 1013 | C134: 24.7 | D134: 76 | E134: 1 | F134: 0 | G134: 20.18239633 | I134: 2017-08-15 | J134: 0 | X134: 1.350590911
A135: 2017-08-03T18:30:00 | B135: 1012 | C135: 24 | D135: 78 | E135: 9 | F135: 0 | G135: 19.92467112 | I135: 2017-08-16 | J135: 3 | X135: 1.334650513
A136: 2017-08-03T19:00:00 | B136: 1012 | C136: 23.4 | D136: 80 | E136: 11 | F136: 0 | G136: 19.75057858 | I136: 2017-08-17 | J136: 0.5 | X136: 1.323865137
A137: 2017-08-03T19:30:00 | B137: 1012 | C137: 22.9 | D137: 83 | E137: 4 | F137: 0 | G137: 19.85713995 | I137: 2017-08-18 | J137: 0 | X137: 1.330468519
A138: 2017-08-03T20:00:00 | B138: 1012 | C138: 22.1 | D138: 86 | E138: 0 | F138: 0 | G138: 19.64635809 | I138: 2017-08-19 | J138: 0 | X138: 1.317401634
A139: 2017-08-03T20:30:00 | B139: 1012 | C139: 21.4 | D139: 87 | E139: 0 | F139: 0 | G139: 19.14472697 | I139: 2017-08-20 | J139: 0 | X139: 1.286219817
A140: 2017-08-03T21:00:00 | B140: 1012 | C140: 20.6 | D140: 90 | E140: 0 | F140: 0 | G140: 18.90048854 | I140: 2017-08-21 | J140: 0 | X140: 1.270994532
A141: 2017-08-03T21:30:00 | B141: 1012 | C141: 20.1 | D141: 92 | E141: 0 | F141: 0 | G141: 18.7582965 | I141: 2017-08-22 | J141: 0 | X141: 1.262117513
A142: 2017-08-03T22:00:00 | B142: 1012 | C142: 20.1 | D142: 92 | E142: 0 | F142: 0 | G142: 18.7582965 | I142: 2017-08-23 | J142: 0 | X142: 1.262117513
A143: 2017-08-03T22:30:00 | B143: 1012 | C143: 19.6 | D143: 93 | E143: 0 | F143: 0 | G143: 18.43590927 | I143: 2017-08-24 | J143: 0 | X143: 1.241955199
A144: 2017-08-03T23:00:00 | B144: 1012 | C144: 19.4 | D144: 94 | E144: 0 | F144: 0 | G144: 18.40833023 | I144: 2017-08-25 | J144: 0 | X144: 1.240228079
A145: 2017-08-03T23:30:00 | B145: 1013 | C145: 19.2 | D145: 94 | E145: 0 | F145: 0 | G145: 18.20983781 | I145: 2017-08-26 | J145: 6.5 | X145: 1.227786865
A146: 2017-08-04 | B146: 1013 | C146: 19.2 | D146: 95 | E146: 0 | F146: 0 | G146: 18.37864797 | I146: 2017-08-27 | J146: 0 | X146: 1.238368839
A147: 2017-08-04T00:30:00 | B147: 1013 | C147: 19.3 | D147: 95 | E147: 0 | F147: 0 | G147: 18.47802261 | I147: 2017-08-28 | J147: 0 | X147: 1.244591817
A148: 2017-08-04T01:00:00 | B148: 1013 | C148: 19.3 | D148: 95 | E148: 0 | F148: 0 | G148: 18.47802261 | I148: 2017-08-29 | J148: 0 | X148: 1.244591817
A149: 2017-08-04T01:30:00 | B149: 1012 | C149: 19.6 | D149: 95 | E149: 0 | F149: 0 | G149: 18.77614511 | I149: 2017-08-30 | J149: 0 | X149: 1.263232327
A150: 2017-08-04T02:00:00 | B150: 1012 | C150: 19.1 | D150: 96 | E150: 0 | F150: 0 | G150: 18.44640325 | I150: 2017-08-31 | J150: 8 | X150: 1.242612282
A151: 2017-08-04T02:30:00 | B151: 1013 | C151: 18.6 | D151: 96 | E151: 0 | F151: 0 | G151: 17.94889033 | X151: 1.211402275
A152: 2017-08-04T03:00:00 | B152: 1012 | C152: 18.6 | D152: 96 | E152: 0 | F152: 0 | G152: 17.94889033 | X152: 1.211402275
A153: 2017-08-04T03:30:00 | B153: 1012 | C153: 18.4 | D153: 97 | E153: 0 | F153: 0 | G153: 17.91461149 | X153: 1.209247512
A154: 2017-08-04T04:00:00 | B154: 1012 | C154: 18.3 | D154: 97 | E154: 0 | F154: 0 | G154: 17.81498228 | X154: 1.20298162
A155: 2017-08-04T04:30:00 | B155: 1012 | C155: 18.3 | D155: 97 | E155: 0 | F155: 0 | G155: 17.81498228 | X155: 1.20298162
A156: 2017-08-04T05:00:00 | B156: 1012 | C156: 18.3 | D156: 97 | E156: 0 | F156: 0 | G156: 17.81498228 | X156: 1.20298162
A157: 2017-08-04T05:30:00 | B157: 1012 | C157: 18.2 | D157: 97 | E157: 0 | F157: 0 | G157: 17.71535293 | X157: 1.196710933
A158: 2017-08-04T06:00:00 | B158: 1011 | C158: 18 | D158: 97 | E158: 0 | F158: 0 | G158: 17.5160938 | X158: 1.18415515
A159: 2017-08-04T06:30:00 | B159: 1012 | C159: 18.1 | D159: 97 | E159: 0 | F159: 0 | G159: 17.61572344 | X159: 1.190435445
A160: 2017-08-04T07:00:00 | B160: 1012 | C160: 18.5 | D160: 97 | E160: 0 | F160: 0 | G160: 18.01424056 | X160: 1.215508613
A161: 2017-08-04T07:30:00 | B161: 1012 | C161: 19.1 | D161: 96 | E161: 0 | F161: 0 | G161: 18.44640325 | X161: 1.242612282
A162: 2017-08-04T08:00:00 | B162: 1012 | C162: 20.7 | D162: 94 | E162: 0 | F162: 0 | G162: 19.69850314 | X162: 1.320636185
A163: 2017-08-04T08:30:00 | B163: 1013 | C163: 22.1 | D163: 84 | E163: 11 | F163: 0 | G163: 19.26764341 | X163: 1.293871436
A164: 2017-08-04T09:00:00 | B164: 1013 | C164: 21.6 | D164: 88 | E164: 4 | F164: 0 | G164: 19.52523736 | X164: 1.309883575
A165: 2017-08-04T09:30:00 | B165: 1012 | C165: 22 | D165: 86 | E165: 1 | F165: 0 | G165: 19.54819946 | X165: 1.311309383
A166: 2017-08-04T10:00:00 | B166: 1013 | C166: 22.6 | D166: 81 | E166: 1 | F166: 0 | G166: 19.17165522 | X166: 1.28789673
A167: 2017-08-04T10:30:00 | B167: 1013 | C167: 22.9 | D167: 74 | E167: 4 | F167: 0 | G167: 18.01719903 | X167: 1.215694463
A168: 2017-08-04T11:00:00 | B168: 1013 | C168: 23.7 | D168: 69 | E168: 3 | F168: 0 | G168: 17.67260041 | X168: 1.194018614
A169: 2017-08-04T11:30:00 | B169: 1012 | C169: 23.4 | D169: 70 | E169: 4 | F169: 0 | G169: 17.61413639 | X169: 1.190335441
A170: 2017-08-04T12:00:00 | B170: 1013 | C170: 25.3 | D170: 63 | E170: 6 | F170: 0 | G170: 17.74771443 | X170: 1.198748296
A171: 2017-08-04T12:30:00 | B171: 1012 | C171: 25.7 | D171: 59 | E171: 4 | F171: 0 | G171: 17.084586 | X171: 1.156898923
A172: 2017-08-04T13:00:00 | B172: 1012 | C172: 24.4 | D172: 62 | E172: 4 | F172: 0 | G172: 16.64528778 | X172: 1.129057593
A173: 2017-08-04T13:30:00 | B173: 1012 | C173: 25.2 | D173: 62 | E173: 2 | F173: 0 | G173: 17.39951476 | X173: 1.176800327
A174: 2017-08-04T14:00:00 | B174: 1012 | C174: 26.3 | D174: 58 | E174: 8 | F174: 0 | G174: 17.37563717 | X174: 1.175293108
A175: 2017-08-04T14:30:00 | B175: 1012 | C175: 26.5 | D175: 58 | E175: 7 | F175: 0 | G175: 17.56260228 | X175: 1.187087475
A176: 2017-08-04T15:00:00 | B176: 1011 | C176: 25.5 | D176: 59 | E176: 13 | F176: 0 | G176: 16.8971957 | X176: 1.145034225
A177: 2017-08-04T15:30:00 | B177: 1011 | C177: 26.4 | D177: 58 | E177: 9 | F177: 0 | G177: 17.46912087 | X177: 1.181192479
A178: 2017-08-04T16:00:00 | B178: 1011 | C178: 26.6 | D178: 58 | E178: 1 | F178: 0 | G178: 17.65608138 | X178: 1.1929781
A179: 2017-08-04T16:30:00 | B179: 1011 | C179: 26 | D179: 60 | E179: 5 | F179: 0 | G179: 17.63213972 | X179: 1.191469808
A180: 2017-08-04T17:00:00 | B180: 1011 | C180: 25.8 | D180: 59 | E180: 6 | F180: 0 | G180: 17.17827779 | X180: 1.162824654
A181: 2017-08-04T17:30:00 | B181: 1011 | C181: 26.4 | D181: 60 | E181: 10 | F181: 0 | G181: 18.00763436 | X181: 1.2150936
A182: 2017-08-04T18:00:00 | B182: 1011 | C182: 27.7 | D182: 56 | E182: 4 | F182: 0 | G182: 18.12393882 | X182: 1.22239698
A183: 2017-08-04T18:30:00 | B183: 1011 | C183: 26.1 | D183: 60 | E183: 3 | F183: 0 | G183: 17.72601664 | X183: 1.197382338
A184: 2017-08-04T19:00:00 | B184: 1011 | C184: 25.3 | D184: 56 | E184: 5 | F184: 0 | G184: 15.88996371 | X184: 1.080966757
A185: 2017-08-04T19:30:00 | B185: 1011 | C185: 24.7 | D185: 55 | E185: 1 | F185: 0 | G185: 15.05059655 | X185: 1.027194865
A186: 2017-08-04T20:00:00 | B186: 1011 | C186: 24.5 | D186: 55 | E186: 3 | F186: 0 | G186: 14.86474369 | X186: 1.015241367
A187: 2017-08-04T20:30:00 | B187: 1012 | C187: 23.5 | D187: 59 | E187: 2 | F187: 0 | G187: 15.02280114 | X187: 1.025408243
A188: 2017-08-04T21:00:00 | B188: 1012 | C188: 22.5 | D188: 63 | E188: 0 | F188: 0 | G188: 15.10228344 | X188: 1.030516153
A189: 2017-08-04T21:30:00 | B189: 1013 | C189: 21 | D189: 69 | E189: 0 | F189: 0 | G189: 15.09261755 | X189: 1.029895145
A190: 2017-08-04T22:00:00 | B190: 1013 | C190: 20.6 | D190: 71 | E190: 0 | F190: 0 | G190: 15.15446301 | X190: 1.033867751
A191: 2017-08-04T22:30:00 | B191: 1013 | C191: 18.2 | D191: 81 | E191: 0 | F191: 0 | G191: 14.88354509 | X191: 1.0164514
A192: 2017-08-04T23:00:00 | B192: 1013 | C192: 17.2 | D192: 85 | E192: 0 | F192: 0 | G192: 14.65423166 | X192: 1.001681046
A193: 2017-08-04T23:30:00 | B193: 1014 | C193: 16.9 | D193: 86 | E193: 0 | F193: 0 | G193: 14.54120103 | X193: 0.9943909334
A194: 2017-08-05 | B194: 1014 | C194: 16.5 | D194: 88 | E194: 0 | F194: 0 | G194: =(243.12*X194)/(17.62-X194) -> 14.50410917 | X194: =(LOG10(D194) - 2)/0.4343 + (17.62*C194 / (243.12 + C194)) -> 0.9919972335
A195: 2017-08-05T00:30:00 | B195: 1013 | C195: 16.7 | D195: 88 | E195: 0 | F195: 0 | G195: 14.70104473 | X195: 1.004698466
A196: 2017-08-05T01:00:00 | B196: 1014 | C196: 16.4 | D196: 88 | E196: 0 | F196: 0 | G196: 14.40564052 | X196: 0.9856392761
A197: 2017-08-05T01:30:00 | B197: 1014 | C197: 15.8 | D197: 89 | E197: 0 | F197: 0 | G197: 13.98906506 | X197: 0.9586878096
A198: 2017-08-05T02:00:00 | B198: 1014 | C198: 15.7 | D198: 90 | E198: 0 | F198: 0 | G198: 14.0628607 | X198: 0.9634685798
A199: 2017-08-05T02:30:00 | B199: 1014 | C199: 15.7 | D199: 90 | E199: 0 | F199: 0 | G199: 14.0628607 | X199: 0.9634685798
A200: 2017-08-05T03:00:00 | B200: 1014 | C200: 15.1 | D200: 91 | E200: 0 | F200: 0 | G200: 13.64035712 | X200: 0.9360599712
... 1289 more rows

Sheet Zari
A1: Datum, čas | B1: Pred [hPa] | C1: T [ºC] | D1: Rh [%] | E1: v max [m.s-1] | F1: Srážky [mm] | G1: Tdew [ºC]
A2: 2017-09-01 | B2: 1017 | C2: 15.3 | D2: 96 | E2: 0 | F2: 0.5 | G2: =(243.12*X2)/(17.62-X2) -> 14.66518645 | X2: =(LOG10(D2) - 2)/0.4343 + (17.62*C2 / (243.12 + C2)) -> 1.002387254
A3: 2017-09-01T00:30:00 | B3: 1016 | C3: 15.2 | D3: 97 | E3: 0 | F3: 1.5 | G3: 14.72640664 | I3: Průměrná teplota | J3: =AVERAGE(C1:C1530) -> 12.20229167 | K3: °C | X3: 1.006332756
A4: 2017-09-01T01:00:00 | B4: 1017 | C4: 15.1 | D4: 97 | E4: 0 | F4: 0.5 | G4: 14.6267729 | I4: Maximální teplota | J4: =MAX(C1:C1530) -> 23.2 | K4: °C | X4: 0.9999106319
A5: 2017-09-01T01:30:00 | B5: 1016 | C5: 15 | D5: 97 | E5: 1 | F5: 0.5 | G5: 14.52713903 | I5: Minimální teplota | J5: =MIN(C1:C1530) -> 3.2 | K5: °C | X5: 0.9934835319
A6: 2017-09-01T02:00:00 | B6: 1017 | C6: 14.7 | D6: 97 | E6: 4 | F6: 0.5 | G6: 14.22823655 | I6: Úhrn srážek | J6: =SUM(F2:F1614) -> 95.5 | K6: mm | X6: 0.9741723175
A7: 2017-09-01T02:30:00 | B7: 1016 | C7: 14.6 | D7: 97 | E7: 2 | F7: 0 | G7: 14.12860211 | I7: Maximální náraz větru | J7: =MAX(E1:E1530) -> 20 | K7: m/s | X7: 0.9677252553
A8: 2017-09-01T03:00:00 | B8: 1017 | C8: 14.4 | D8: 97 | E8: 0 | F8: 0.5 | G8: 13.9293328 | X8: 0.9548161096
A9: 2017-09-01T03:30:00 | B9: 1017 | C9: 14.3 | D9: 97 | E9: 0 | F9: 0.5 | G9: 13.82969793 | X9: 0.9483540146
A10: 2017-09-01T04:00:00 | B10: 1016 | C10: 14.1 | D10: 97 | E10: 0 | F10: 1 | G10: 13.63042778 | X10: 0.9354147508
A11: 2017-09-01T04:30:00 | B11: 1017 | C11: 13.8 | D11: 97 | E11: 0 | F11: 0 | G11: 13.33152148 | X11: 0.9159680828
A12: 2017-09-01T05:00:00 | B12: 1017 | C12: 13.9 | D12: 97 | E12: 0 | F12: 0 | G12: 13.43115705 | X12: 0.9224553496
A13: 2017-09-01T05:30:00 | B13: 1016 | C13: 13.6 | D13: 97 | E13: 0 | F13: 0.5 | G13: 13.13224991 | X13: 0.9029783874
A14: 2017-09-01T06:00:00 | B14: 1016 | C14: 13.4 | D14: 96 | E14: 0 | F14: 0.5 | G14: 12.7744756 | X14: 0.8796057813
A15: 2017-09-01T06:30:00 | B15: 1016 | C15: 13.4 | D15: 96 | E15: 0 | F15: 1.5 | G15: 12.7744756 | X15: 0.8796057813
A16: 2017-09-01T07:00:00 | B16: 1016 | C16: 13.4 | D16: 96 | E16: 0 | F16: 0.5 | G16: 12.7744756 | X16: 0.8796057813
A17: 2017-09-01T07:30:00 | B17: 1017 | C17: 13.4 | D17: 96 | E17: 0 | F17: 0 | G17: 12.7744756 | X17: 0.8796057813
A18: 2017-09-01T08:00:00 | B18: 1017 | C18: 13.1 | D18: 96 | E18: 0 | F18: 0 | G18: 12.47593607 | X18: 0.8600527728
A19: 2017-09-01T08:30:00 | B19: 1017 | C19: 12.9 | D19: 96 | E19: 0 | F19: 0.5 | G19: 12.27690877 | X19: 0.8469919762
A20: 2017-09-01T09:00:00 | B20: 1017 | C20: 12.9 | D20: 96 | E20: 0 | F20: 1 | G20: 12.27690877 | X20: 0.8469919762
A21: 2017-09-01T09:30:00 | B21: 1017 | C21: 13 | D21: 96 | E21: 0 | F21: 0.5 | G21: 12.37642251 | X21: 0.8535249243
A22: 2017-09-01T10:00:00 | B22: 1016 | C22: 13 | D22: 96 | E22: 0 | F22: 0 | G22: 12.37642251 | X22: 0.8535249243
A23: 2017-09-01T10:30:00 | B23: 1016 | C23: 13 | D23: 96 | E23: 0 | F23: 0 | G23: 12.37642251 | X23: 0.8535249243
A24: 2017-09-01T11:00:00 | B24: 1016 | C24: 13.1 | D24: 96 | E24: 0 | F24: 0 | G24: 12.47593607 | X24: 0.8600527728
A25: 2017-09-01T11:30:00 | B25: 1016 | C25: 13 | D25: 96 | E25: 0 | F25: 0.5 | G25: 12.37642251 | X25: 0.8535249243
A26: 2017-09-01T12:00:00 | B26: 1016 | C26: 13 | D26: 96 | E26: 0 | F26: 0.5 | G26: 12.37642251 | X26: 0.8535249243
A27: 2017-09-01T12:30:00 | B27: 1016 | C27: 12.9 | D27: 95 | E27: 0 | F27: 0 | G27: 12.11756733 | X27: 0.8365208094
A28: 2017-09-01T13:00:00 | B28: 1016 | C28: 12.7 | D28: 96 | E28: 0 | F28: 1 | G28: 12.07788071 | X28: 0.8339107578
A29: 2017-09-01T13:30:00 | B29: 1016 | C29: 12.6 | D29: 96 | E29: 0 | F29: 2 | G29: 11.97836639 | X29: 0.8273624753
A30: 2017-09-01T14:00:00 | B30: 1016 | C30: 12.6 | D30: 96 | E30: 0 | F30: 1 | G30: 11.97836639 | X30: 0.8273624753
A31: 2017-09-01T14:30:00 | B31: 1016 | C31: 12.6 | D31: 96 | E31: 0 | F31: 0 | G31: 11.97836639 | X31: 0.8273624753
A32: 2017-09-01T15:00:00 | B32: 1016 | C32: 12.5 | D32: 96 | E32: 0 | F32: 1 | G32: 11.87885189 | X32: 0.8208090695
A33: 2017-09-01T15:30:00 | B33: 1016 | C33: 12.6 | D33: 96 | E33: 1 | F33: 0.5 | G33: 11.97836639 | X33: 0.8273624753
A34: 2017-09-01T16:00:00 | B34: 1016 | C34: 12.2 | D34: 96 | E34: 1 | F34: 1 | G34: 11.58030725 | X34: 0.801118051
A35: 2017-09-01T16:30:00 | B35: 1016 | C35: 12 | D35: 96 | E35: 0 | F35: 0.5 | G35: 11.38127654 | X35: 0.7879649776
A36: 2017-09-01T17:00:00 | B36: 1016 | C36: 11.8 | D36: 96 | E36: 1 | F36: 2 | G36: 11.18224508 | X36: 0.7747912654
A37: 2017-09-01T17:30:00 | B37: 1015 | C37: 11.6 | D37: 96 | E37: 0 | F37: 0.5 | G37: 10.98321286 | X37: 0.7615968659
A38: 2017-09-01T18:00:00 | B38: 1016 | C38: 11.3 | D38: 96 | E38: 4 | F38: 1.5 | G38: 10.6846631 | X38: 0.741766371
A39: 2017-09-01T18:30:00 | B39: 1016 | C39: 11 | D39: 96 | E39: 2 | F39: 1 | G39: 10.38611165 | X39: 0.7218890546
A40: 2017-09-01T19:00:00 | B40: 1016 | C40: 10.9 | D40: 96 | E40: 0 | F40: 1 | G40: 10.28659412 | X40: 0.715252849
A41: 2017-09-01T19:30:00 | B41: 1015 | C41: 10.6 | D41: 96 | E41: 0 | F41: 0.5 | G41: 9.988040396 | X41: 0.6953128455
A42: 2017-09-01T20:00:00 | B42: 1016 | C42: 10.6 | D42: 96 | E42: 0 | F42: 0 | G42: 9.988040396 | X42: 0.6953128455
A43: 2017-09-01T20:30:00 | B43: 1016 | C43: 10.5 | D43: 96 | E43: 0 | F43: 0 | G43: 9.888522109 | X43: 0.6886556947
A44: 2017-09-01T21:00:00 | B44: 1016 | C44: 10.5 | D44: 96 | E44: 1 | F44: 0 | G44: 9.888522109 | X44: 0.6886556947
A45: 2017-09-01T21:30:00 | B45: 1016 | C45: 10.4 | D45: 96 | E45: 0 | F45: 0 | G45: 9.789003633 | X45: 0.6819932922
A46: 2017-09-01T22:00:00 | B46: 1015 | C46: 10.3 | D46: 96 | E46: 0 | F46: 0 | G46: 9.689484968 | X46: 0.6753256317
A47: 2017-09-01T22:30:00 | B47: 1016 | C47: 10.1 | D47: 96 | E47: 0 | F47: 0 | G47: 9.490447071 | X47: 0.6619745118
A48: 2017-09-01T23:00:00 | B48: 1016 | C48: 10.1 | D48: 96 | E48: 0 | F48: 0 | G48: 9.490447071 | X48: 0.6619745118
A49: 2017-09-01T23:30:00 | B49: 1016 | C49: 10.1 | D49: 96 | E49: 0 | F49: 0 | G49: 9.490447071 | X49: 0.6619745118
A50: 2017-09-02 | B50: 1016 | C50: 10.2 | D50: 96 | E50: 0 | F50: 0 | G50: 9.589966114 | X50: 0.668652707
A51: 2017-09-02T00:30:00 | B51: 1016 | C51: 10.2 | D51: 96 | E51: 0 | F51: 0 | G51: 9.589966114 | X51: 0.668652707
A52: 2017-09-02T01:00:00 | B52: 1016 | C52: 10.2 | D52: 96 | E52: 0 | F52: 0.5 | G52: 9.589966114 | X52: 0.668652707
A53: 2017-09-02T01:30:00 | B53: 1016 | C53: 10.2 | D53: 96 | E53: 0 | F53: 0 | G53: 9.589966114 | X53: 0.668652707
A54: 2017-09-02T02:00:00 | B54: 1016 | C54: 10.2 | D54: 96 | E54: 0 | F54: 0 | G54: 9.589966114 | X54: 0.668652707
A55: 2017-09-02T02:30:00 | B55: 1015 | C55: 10.3 | D55: 96 | E55: 0 | F55: 0 | G55: 9.689484968 | X55: 0.6753256317
A56: 2017-09-02T03:00:00 | B56: 1015 | C56: 10.4 | D56: 96 | E56: 0 | F56: 0 | G56: 9.789003633 | X56: 0.6819932922
A57: 2017-09-02T03:30:00 | B57: 1015 | C57: 10.5 | D57: 96 | E57: 0 | F57: 0 | G57: 9.888522109 | X57: 0.6886556947
A58: 2017-09-02T04:00:00 | B58: 1016 | C58: 10.5 | D58: 96 | E58: 0 | F58: 0 | G58: 9.888522109 | X58: 0.6886556947
A59: 2017-09-02T04:30:00 | B59: 1015 | C59: 10.5 | D59: 96 | E59: 0 | F59: 0 | G59: 9.888522109 | X59: 0.6886556947
A60: 2017-09-02T05:00:00 | B60: 1015 | C60: 10.5 | D60: 96 | E60: 0 | F60: 0 | G60: 9.888522109 | X60: 0.6886556947
A61: 2017-09-02T05:30:00 | B61: 1015 | C61: 10.4 | D61: 96 | E61: 0 | F61: 0 | G61: 9.789003633 | X61: 0.6819932922
A62: 2017-09-02T06:00:00 | B62: 1015 | C62: 10.2 | D62: 96 | E62: 0 | F62: 0 | G62: 9.589966114 | X62: 0.668652707
A63: 2017-09-02T06:30:00 | B63: 1015 | C63: 10.3 | D63: 96 | E63: 0 | F63: 0 | G63: 9.689484968 | X63: 0.6753256317
A64: 2017-09-02T07:00:00 | B64: 1015 | C64: 10.3 | D64: 96 | E64: 0 | F64: 0 | G64: 9.689484968 | X64: 0.6753256317
A65: 2017-09-02T07:30:00 | B65: 1015 | C65: 10.3 | D65: 96 | E65: 0 | F65: 0 | G65: 9.689484968 | X65: 0.6753256317
A66: 2017-09-02T08:00:00 | B66: 1015 | C66: 10.2 | D66: 95 | E66: 0 | F66: 0 | G66: =(243.12*X66)/(17.62-X66) -> 9.433958772 | X66: =(LOG10(D66) - 2)/0.4343 + (17.62*C66 / (243.12 + C66)) -> 0.6581815402
A67: 2017-09-02T08:30:00 | B67: 1015 | C67: 10.7 | D67: 95 | E67: 0 | F67: 0 | G67: 9.930936372 | X67: 0.6914935838
A68: 2017-09-02T09:00:00 | B68: 1015 | C68: 11.2 | D68: 94 | E68: 0 | F68: 0 | G68: 10.26920389 | X68: 0.7140926678
A69: 2017-09-02T09:30:00 | B69: 1015 | C69: 11.7 | D69: 93 | E69: 0 | F69: 0 | G69: 10.60471926 | X69: 0.7364483597
A70: 2017-09-02T10:00:00 | B70: 1016 | C70: 12.2 | D70: 90 | E70: 0 | F70: 0 | G70: 10.60670281 | X70: 0.7365803499
A71: 2017-09-02T10:30:00 | B71: 1016 | C71: 13.3 | D71: 86 | E71: 5 | F71: 0 | G71: 11.0057763 | X71: 0.7630936978
A72: 2017-09-02T11:00:00 | B72: 1016 | C72: 14.3 | D72: 82 | E72: 2 | F72: 0 | G72: 11.26640754 | X72: 0.7803644178
A73: 2017-09-02T11:30:00 | B73: 1016 | C73: 14.4 | D73: 77 | E73: 1 | F73: 0 | G73: 10.4164859 | X73: 0.7239134868
A74: 2017-09-02T12:00:00 | B74: 1016 | C74: 14.8 | D74: 76 | E74: 0 | F74: 0 | G74: 10.60759687 | X74: 0.7366398422
A75: 2017-09-02T12:30:00 | B75: 1016 | C75: 16.1 | D75: 70 | E75: 0 | F75: 0 | G75: 10.62348972 | X75: 0.7376973064
A76: 2017-09-02T13:00:00 | B76: 1015 | C76: 16.5 | D76: 67 | E76: 0 | F76: 0 | G76: 10.3481239 | X76: 0.7193565026
A77: 2017-09-02T13:30:00 | B77: 1015 | C77: 16.2 | D77: 67 | E77: 0 | F77: 0 | G77: 10.06216504 | X77: 0.7002679197
A78: 2017-09-02T14:00:00 | B78: 1015 | C78: 15.9 | D78: 65 | E78: 1 | F78: 0 | G78: 9.324547328 | X78: 0.6508301552
A79: 2017-09-02T14:30:00 | B79: 1015 | C79: 16 | D79: 66 | E79: 0 | F79: 0 | G79: 9.647035463 | X79: 0.6724799559
A80: 2017-09-02T15:00:00 | B80: 1015 | C80: 15.6 | D80: 69 | E80: 0 | F80: 0 | G80: 9.929110852 | X80: 0.69137146
A81: 2017-09-02T15:30:00 | B81: 1015 | C81: 16.6 | D81: 68 | E81: 0 | F81: 0 | G81: 10.66598939 | X81: 0.7405244615
A82: 2017-09-02T16:00:00 | B82: 1015 | C82: 15.4 | D82: 67 | E82: 0 | F82: 0 | G82: 9.299531517 | X82: 0.6491484408
A83: 2017-09-02T16:30:00 | B83: 1015 | C83: 15.5 | D83: 69 | E83: 0 | F83: 0 | G83: 9.833445801 | X83: 0.6849691827
A84: 2017-09-02T17:00:00 | B84: 1015 | C84: 15.4 | D84: 70 | E84: 0 | F84: 0 | G84: 9.952716646 | X84: 0.692950507
A85: 2017-09-02T17:30:00 | B85: 1014 | C85: 15 | D85: 73 | E85: 0 | F85: 0 | G85: 10.19642617 | X85: 0.7092356062
A86: 2017-09-02T18:00:00 | B86: 1015 | C86: 14.6 | D86: 77 | E86: 1 | F86: 0 | G86: 10.61034392 | X86: 0.7368226324
A87: 2017-09-02T18:30:00 | B87: 1014 | C87: 14.6 | D87: 78 | E87: 0 | F87: 0 | G87: 10.80440975 | X87: 0.7497258733
A88: 2017-09-02T19:00:00 | B88: 1014 | C88: 13.9 | D88: 80 | E88: 0 | F88: 0 | G88: 10.50444893 | X88: 0.729773454
A89: 2017-09-02T19:30:00 | B89: 1014 | C89: 13.4 | D89: 82 | E89: 0 | F89: 0 | G89: 10.38745862 | X89: 0.7219788399
A90: 2017-09-02T20:00:00 | B90: 1014 | C90: 13 | D90: 84 | E90: 0 | F90: 0 | G90: 10.35770358 | X90: 0.7199952283
A91: 2017-09-02T20:30:00 | B91: 1015 | C91: 12.6 | D91: 86 | E91: 0 | F91: 0 | G91: 10.31822945 | X91: 0.7173629778
A92: 2017-09-02T21:00:00 | B92: 1015 | C92: 12.4 | D92: 88 | E92: 0 | F92: 0 | G92: 10.46641611 | X92: 0.7272402627
A93: 2017-09-02T21:30:00 | B93: 1014 | C93: 12.2 | D93: 89 | E93: 0 | F93: 0 | G93: 10.43890186 | X93: 0.7254071913
A94: 2017-09-02T22:00:00 | B94: 1014 | C94: 11.8 | D94: 90 | E94: 0 | F94: 0 | G94: 10.21167569 | X94: 0.7102535643
A95: 2017-09-02T22:30:00 | B95: 1014 | C95: 11.7 | D95: 91 | E95: 0 | F95: 0 | G95: 10.27843669 | X95: 0.7147086493
A96: 2017-09-02T23:00:00 | B96: 1015 | C96: 11.5 | D96: 92 | E96: 0 | F96: 0 | G96: 10.24432819 | X96: 0.7124328194
A97: 2017-09-02T23:30:00 | B97: 1015 | C97: 11.4 | D97: 92 | E97: 0 | F97: 0 | G97: 10.14531187 | X97: 0.7058226565
A98: 2017-09-03 | B98: 1014 | C98: 11.3 | D98: 93 | E98: 0 | F98: 0 | G98: 10.20814779 | X98: 0.7100180761
A99: 2017-09-03T00:30:00 | B99: 1014 | C99: 11.4 | D99: 93 | E99: 0 | F99: 0 | G99: 10.30729116 | X99: 0.7166334353
A100: 2017-09-03T01:00:00 | B100: 1014 | C100: 11.5 | D100: 93 | E100: 0 | F100: 0 | G100: 10.40643419 | X100: 0.7232435982
A101: 2017-09-03T01:30:00 | B101: 1014 | C101: 11.5 | D101: 93 | E101: 0 | F101: 0 | G101: 10.40643419 | X101: 0.7232435982
A102: 2017-09-03T02:00:00 | B102: 1014 | C102: 11.4 | D102: 93 | E102: 0 | F102: 0 | G102: 10.30729116 | X102: 0.7166334353
A103: 2017-09-03T02:30:00 | B103: 1013 | C103: 11.3 | D103: 94 | E103: 0 | F103: 0 | G103: 10.3684731 | X103: 0.7207132293
A104: 2017-09-03T03:00:00 | B104: 1014 | C104: 11.3 | D104: 94 | E104: 0 | F104: 0 | G104: 10.3684731 | X104: 0.7207132293
A105: 2017-09-03T03:30:00 | B105: 1014 | C105: 11.2 | D105: 94 | E105: 0 | F105: 0 | G105: 10.26920389 | X105: 0.7140926678
A106: 2017-09-03T04:00:00 | B106: 1014 | C106: 11.2 | D106: 94 | E106: 0 | F106: 0 | G106: 10.26920389 | X106: 0.7140926678
A107: 2017-09-03T04:30:00 | B107: 1014 | C107: 11.2 | D107: 94 | E107: 0 | F107: 0 | G107: 10.26920389 | X107: 0.7140926678
A108: 2017-09-03T05:00:00 | B108: 1013 | C108: 11.2 | D108: 94 | E108: 0 | F108: 0 | G108: 10.26920389 | X108: 0.7140926678
A109: 2017-09-03T05:30:00 | B109: 1013 | C109: 11.1 | D109: 94 | E109: 0 | F109: 0 | G109: 10.1699344 | X109: 0.7074668977
A110: 2017-09-03T06:00:00 | B110: 1013 | C110: 11.1 | D110: 95 | E110: 0 | F110: 0 | G110: 10.32851418 | X110: 0.7180488726
A111: 2017-09-03T06:30:00 | B111: 1013 | C111: 11 | D111: 95 | E111: 0 | F111: 0 | G111: 10.22912008 | X111: 0.7114178878
A112: 2017-09-03T07:00:00 | B112: 1013 | C112: 11.1 | D112: 95 | E112: 0 | F112: 0 | G112: 10.32851418 | X112: 0.7180488726
A113: 2017-09-03T07:30:00 | B113: 1013 | C113: 11.2 | D113: 94 | E113: 0 | F113: 0 | G113: 10.26920389 | X113: 0.7140926678
A114: 2017-09-03T08:00:00 | B114: 1013 | C114: 11.1 | D114: 94 | E114: 0 | F114: 0 | G114: 10.1699344 | X114: 0.7074668977
A115: 2017-09-03T08:30:00 | B115: 1014 | C115: 11.4 | D115: 93 | E115: 1 | F115: 0 | G115: 10.30729116 | X115: 0.7166334353
A116: 2017-09-03T09:00:00 | B116: 1013 | C116: 11.8 | D116: 93 | E116: 1 | F116: 0 | G116: 10.70386129 | X116: 0.7430429705
A117: 2017-09-03T09:30:00 | B117: 1014 | C117: 11.6 | D117: 92 | E117: 0 | F117: 0 | G117: 10.34334412 | X117: 0.7190377922
A118: 2017-09-03T10:00:00 | B118: 1014 | C118: 12.1 | D118: 92 | E118: 0 | F118: 0 | G118: 10.83841801 | X118: 0.7519850174
A119: 2017-09-03T10:30:00 | B119: 1014 | C119: 12.1 | D119: 91 | E119: 3 | F119: 0 | G119: 10.67398271 | X119: 0.7410560858
A120: 2017-09-03T11:00:00 | B120: 1014 | C120: 12.4 | D120: 90 | E120: 1 | F120: 0 | G120: 10.80421348 | I120: 2017-09-01 | J120: 24.5 | X120: 0.749712833
A121: 2017-09-03T11:30:00 | B121: 1013 | C121: 13 | D121: 88 | E121: 0 | F121: 0 | G121: 11.05735927 | I121: 2017-09-02 | J121: 0.5 | X121: 0.7665146528
A122: 2017-09-03T12:00:00 | B122: 1013 | C122: 13.9 | D122: 84 | E122: 3 | F122: 0 | G122: 11.23919747 | I122: 2017-09-03 | J122: 1 | X122: 0.7785629982
A123: 2017-09-03T12:30:00 | B123: 1013 | C123: 14.1 | D123: 83 | E123: 5 | F123: 0 | G123: 11.25405023 | I123: 2017-09-04 | J123: 0 | X123: 0.7795463605
A124: 2017-09-03T13:00:00 | B124: 1013 | C124: 15.6 | D124: 77 | E124: 0 | F124: 0 | G124: 11.57956419 | I124: 2017-09-05 | J124: 0 | X124: 0.8010689834
A125: 2017-09-03T13:30:00 | B125: 1013 | C125: 14.9 | D125: 74 | E125: 7 | F125: 0 | G125: 10.30392636 | I125: 2017-09-06 | J125: 2.5 | X125: 0.7164090035
A126: 2017-09-03T14:00:00 | B126: 1013 | C126: 15.1 | D126: 75 | E126: 7 | F126: 0 | G126: 10.69856841 | I126: 2017-09-07 | J126: 0.5 | X126: 0.7426910352
A127: 2017-09-03T14:30:00 | B127: 1013 | C127: 16.8 | D127: 68 | E127: 5 | F127: 0 | G127: 10.85695135 | I127: 2017-09-08 | J127: 0 | X127: 0.7532159188
A128: 2017-09-03T15:00:00 | B128: 1013 | C128: 15.5 | D128: 71 | E128: 4 | F128: 0 | G128: 10.26095352 | I128: 2017-09-09 | J128: 0 | X128: 0.713542192
A129: 2017-09-03T15:30:00 | B129: 1012 | C129: 15.5 | D129: 76 | E129: 5 | F129: 0 | G129: 11.28499541 | I129: 2017-09-10 | J129: 7 | X129: 0.7815947906
A130: 2017-09-03T16:00:00 | B130: 1012 | C130: 14.8 | D130: 76 | E130: 6 | F130: 0 | G130: =(243.12*X130)/(17.62-X130) -> 10.60759687 | I130: 2017-09-11 | J130: 0 | X130: =(LOG10(D130) - 2)/0.4343 + (17.62*C130 / (243.12 + C130)) -> 0.7366398422
A131: 2017-09-03T16:30:00 | B131: 1013 | C131: 14.1 | D131: 82 | E131: 6 | F131: 0 | G131: 11.07109182 | I131: 2017-09-12 | J131: 0 | X131: 0.767425154
A132: 2017-09-03T17:00:00 | B132: 1012 | C132: 16.4 | D132: 76 | E132: 1 | F132: 0 | G132: 12.15584857 | I132: 2017-09-13 | J132: 3.5 | X132: 0.8390376646
A133: 2017-09-03T17:30:00 | B133: 1013 | C133: 12.2 | D133: 88 | E133: 2 | F133: 1 | G133: 10.26943039 | I133: 2017-09-14 | J133: 19.5 | X133: 0.7141077796
A134: 2017-09-03T18:00:00 | B134: 1012 | C134: 14.5 | D134: 86 | E134: 0 | F134: 0 | G134: 12.18434989 | I134: 2017-09-15 | J134: 3.5 | X134: 0.840911035
A135: 2017-09-03T18:30:00 | B135: 1013 | C135: 13.5 | D135: 87 | E135: 0 | F135: 0 | G135: 11.37688412 | I135: 2017-09-16 | J135: 4.5 | X135: 0.7876744695
A136: 2017-09-03T19:00:00 | B136: 1013 | C136: 13.2 | D136: 87 | E136: 0 | F136: 0 | G136: 11.08182476 | I136: 2017-09-17 | J136: 0.5 | X136: 0.7681367058
A137: 2017-09-03T19:30:00 | B137: 1013 | C137: 12.7 | D137: 87 | E137: 0 | F137: 0 | G137: 10.59004648 | I137: 2017-09-18 | J137: 0.5 | X137: 0.7354719357
A138: 2017-09-03T20:00:00 | B138: 1013 | C138: 12.2 | D138: 89 | E138: 0 | F138: 0 | G138: 10.43890186 | I138: 2017-09-19 | J138: 0 | X138: 0.7254071913
A139: 2017-09-03T20:30:00 | B139: 1013 | C139: 12 | D139: 90 | E139: 0 | F139: 0 | G139: 10.40919021 | I139: 2017-09-20 | J139: 0.5 | X139: 0.7234272765
A140: 2017-09-03T21:00:00 | B140: 1013 | C140: 11.5 | D140: 91 | E140: 0 | F140: 0 | G140: 10.08066107 | I140: 2017-09-21 | J140: 0.5 | X140: 0.7015038878
A141: 2017-09-03T21:30:00 | B141: 1013 | C141: 11.4 | D141: 91 | E141: 0 | F141: 0 | G141: 9.981772619 | I141: 2017-09-22 | J141: 1 | X141: 0.6948937248
A142: 2017-09-03T22:00:00 | B142: 1013 | C142: 11.4 | D142: 91 | E142: 0 | F142: 0 | G142: 9.981772619 | I142: 2017-09-23 | J142: 12 | X142: 0.6948937248
A143: 2017-09-03T22:30:00 | B143: 1013 | C143: 11.2 | D143: 91 | E143: 0 | F143: 0 | G143: 9.783994409 | I143: 2017-09-24 | J143: 4 | X143: 0.6816578041
A144: 2017-09-03T23:00:00 | B144: 1013 | C144: 10.7 | D144: 92 | E144: 0 | F144: 0 | G144: 9.452186941 | I144: 2017-09-25 | J144: 8 | X144: 0.6594056769
A145: 2017-09-03T23:30:00 | B145: 1013 | C145: 9.8 | D145: 92 | E145: 0 | F145: 0 | G145: 8.560998696 | I145: 2017-09-26 | J145: 1 | X145: 0.5993491674
A146: 2017-09-04 | B146: 1013 | C146: 9.3 | D146: 93 | E146: 0 | F146: 0 | G146: 8.225210201 | I146: 2017-09-27 | J146: 0 | X146: 0.5766101674
A147: 2017-09-04T00:30:00 | B147: 1013 | C147: 9.2 | D147: 94 | E147: 0 | F147: 0 | G147: 8.28375972 | I147: 2017-09-28 | J147: 0 | X147: 0.5805794091
A148: 2017-09-04T01:00:00 | B148: 1013 | C148: 8.2 | D148: 94 | E148: 0 | F148: 0 | G148: 7.290994772 | I148: 2017-09-29 | J148: 0 | X148: 0.5130259077
A149: 2017-09-04T01:30:00 | B149: 1013 | C149: 8 | D149: 95 | E149: 0 | F149: 0 | G149: 7.247186851 | I149: 2017-09-30 | J149: 0 | X149: 0.5100326202
A150: 2017-09-04T02:00:00 | B150: 1013 | C150: 7.7 | D150: 95 | E150: 0 | F150: 0 | G150: 6.94898178 | X150: 0.4896291339
A151: 2017-09-04T02:30:00 | B151: 1013 | C151: 7.6 | D151: 95 | E151: 0 | F151: 0 | G151: 6.849579615 | X151: 0.4828171212
A152: 2017-09-04T03:00:00 | B152: 1013 | C152: 7.6 | D152: 95 | E152: 0 | F152: 0 | G152: 6.849579615 | X152: 0.4828171212
A153: 2017-09-04T03:30:00 | B153: 1013 | C153: 7.6 | D153: 96 | E153: 0 | F153: 0 | G153: 7.002409488 | X153: 0.493288288
A154: 2017-09-04T04:00:00 | B154: 1013 | C154: 7.8 | D154: 96 | E154: 0 | F154: 0 | G154: 7.201456847 | X154: 0.5069068838
A155: 2017-09-04T04:30:00 | B155: 1013 | C155: 7.5 | D155: 96 | E155: 0 | F155: 0 | G155: 6.902885525 | X155: 0.4864708392
A156: 2017-09-04T05:00:00 | B156: 1013 | C156: 7.1 | D156: 96 | E156: 0 | F156: 0 | G156: 6.504787779 | X156: 0.4591465523
A157: 2017-09-04T05:30:00 | B157: 1013 | C157: 6.8 | D157: 96 | E157: 0 | F157: 0 | G157: 6.206212484 | X157: 0.4385959377
A158: 2017-09-04T06:00:00 | B158: 1013 | C158: 6.7 | D158: 96 | E158: 0 | F158: 0 | G158: 6.106687007 | X158: 0.4317347646
A159: 2017-09-04T06:30:00 | B159: 1013 | C159: 6.4 | D159: 96 | E159: 0 | F159: 0 | G159: 5.80810944 | X159: 0.4111182484
A160: 2017-09-04T07:00:00 | B160: 1013 | C160: 6.2 | D160: 96 | E160: 0 | F160: 0 | G160: 5.609056783 | X160: 0.3973463406
A161: 2017-09-04T07:30:00 | B161: 1013 | C161: 6.4 | D161: 96 | E161: 0 | F161: 0 | G161: 5.80810944 | X161: 0.4111182484
A162: 2017-09-04T08:00:00 | B162: 1013 | C162: 7.1 | D162: 97 | E162: 0 | F162: 0 | G162: 6.655615862 | X162: 0.4695092077
A163: 2017-09-04T08:30:00 | B163: 1013 | C163: 8.6 | D163: 96 | E163: 0 | F163: 0 | G163: 7.997638712 | X163: 0.5611648582
A164: 2017-09-04T09:00:00 | B164: 1013 | C164: 10.6 | D164: 96 | E164: 0 | F164: 0 | G164: 9.988040396 | X164: 0.6953128455
A165: 2017-09-04T09:30:00 | B165: 1014 | C165: 12.2 | D165: 94 | E165: 0 | F165: 0 | G165: 11.26188312 | X165: 0.7800649093
A166: 2017-09-04T10:00:00 | B166: 1014 | C166: 12.8 | D166: 91 | E166: 0 | F166: 0 | G166: 11.36617159 | X166: 0.7869659174
A167: 2017-09-04T10:30:00 | B167: 1014 | C167: 13.9 | D167: 85 | E167: 0 | F167: 0 | G167: 11.41805879 | X167: 0.7903973055
A168: 2017-09-04T11:00:00 | B168: 1014 | C168: 15.3 | D168: 78 | E168: 1 | F168: 0 | G168: 11.4839158 | X168: 0.7947505276
A169: 2017-09-04T11:30:00 | B169: 1014 | C169: 15.6 | D169: 73 | E169: 1 | F169: 0 | G169: 10.77427715 | X169: 0.7477236805
A170: 2017-09-04T12:00:00 | B170: 1014 | C170: 17.1 | D170: 67 | E170: 2 | F170: 0 | G170: 10.91999464 | X170: 0.7574016283
A171: 2017-09-04T12:30:00 | B171: 1014 | C171: 15.8 | D171: 70 | E171: 1 | F171: 0 | G171: 10.33602492 | X171: 0.7185497331
A172: 2017-09-04T13:00:00 | B172: 1014 | C172: 16.2 | D172: 67 | E172: 2 | F172: 0 | G172: 10.06216504 | X172: 0.7002679197
A173: 2017-09-04T13:30:00 | B173: 1015 | C173: 17.6 | D173: 62 | E173: 2 | F173: 0 | G173: 10.22907513 | X173: 0.7114148878
A174: 2017-09-04T14:00:00 | B174: 1015 | C174: 18.1 | D174: 61 | E174: 2 | F174: 0 | G174: 10.45686855 | X174: 0.7266042239
A175: 2017-09-04T14:30:00 | B175: 1015 | C175: 17.1 | D175: 64 | E175: 7 | F175: 0 | G175: 10.23173902 | X175: 0.7115926743
A176: 2017-09-04T15:00:00 | B176: 1014 | C176: 18.4 | D176: 59 | E176: 1 | F176: 0 | G176: 10.23904561 | X176: 0.7120802941
A177: 2017-09-04T15:30:00 | B177: 1015 | C177: 18.6 | D177: 58 | E177: 1 | F177: 0 | G177: 10.17048252 | X177: 0.7075034963
A178: 2017-09-04T16:00:00 | B178: 1014 | C178: 20.2 | D178: 54 | E178: 1 | F178: 0 | G178: 10.59047202 | X178: 0.7355002557
A179: 2017-09-04T16:30:00 | B179: 1014 | C179: 17.2 | D179: 62 | E179: 1 | F179: 0 | G179: 9.851356178 | X179: 0.6861681831
A180: 2017-09-04T17:00:00 | B180: 1014 | C180: 18.6 | D180: 57 | E180: 1 | F180: 0 | G180: 9.910285467 | X180: 0.6901119745
A181: 2017-09-04T17:30:00 | B181: 1014 | C181: 17.9 | D181: 60 | E181: 0 | F181: 0 | G181: 10.02089899 | X181: 0.6975097303
A182: 2017-09-04T18:00:00 | B182: 1014 | C182: 17.7 | D182: 59 | E182: 0 | F182: 0 | G182: 9.581997261 | X182: 0.6681181533
A183: 2017-09-04T18:30:00 | B183: 1014 | C183: 17.5 | D183: 62 | E183: 0 | F183: 0 | G183: 10.13464847 | X183: 0.705110477
A184: 2017-09-04T19:00:00 | B184: 1014 | C184: 17.2 | D184: 63 | E184: 0 | F184: 0 | G184: 10.09060531 | X184: 0.7021683212
A185: 2017-09-04T19:30:00 | B185: 1015 | C185: 15.9 | D185: 68 | E185: 0 | F185: 0 | G185: 9.997569633 | X185: 0.6959500172
A186: 2017-09-04T20:00:00 | B186: 1015 | C186: 15.1 | D186: 69 | E186: 0 | F186: 0 | G186: 9.450769389 | X186: 0.6593104856
A187: 2017-09-04T20:30:00 | B187: 1015 | C187: 13 | D187: 78 | E187: 0 | F187: 0 | G187: 9.251048918 | X187: 0.6458881977
A188: 2017-09-04T21:00:00 | B188: 1016 | C188: 11.7 | D188: 83 | E188: 0 | F188: 0 | G188: 8.906622553 | X188: 0.6226909197
A189: 2017-09-04T21:30:00 | B189: 1016 | C189: 10.7 | D189: 88 | E189: 0 | F189: 0 | G189: 8.791963114 | X189: 0.6149544792
A190: 2017-09-04T22:00:00 | B190: 1016 | C190: 10.2 | D190: 90 | E190: 0 | F190: 0 | G190: 8.631489945 | X190: 0.6041150059
A191: 2017-09-04T22:30:00 | B191: 1016 | C191: 9.6 | D191: 92 | E191: 0 | F191: 0 | G191: 8.362952644 | X191: 0.5859451865
A192: 2017-09-04T23:00:00 | B192: 1016 | C192: 9.5 | D192: 92 | E192: 0 | F192: 0 | G192: 8.263929042 | X192: 0.579235237
A193: 2017-09-04T23:30:00 | B193: 1016 | C193: 9.3 | D193: 93 | E193: 0 | F193: 0 | G193: 8.225210201 | X193: 0.5766101674
A194: 2017-09-05 | B194: 1017 | C194: 9.4 | D194: 93 | E194: 0 | F194: 0 | G194: =(243.12*X194)/(17.62-X194) -> 8.324360258 | X194: =(LOG10(D194) - 2)/0.4343 + (17.62*C194 / (243.12 + C194)) -> 0.583330752
A195: 2017-09-05T00:30:00 | B195: 1017 | C195: 9.4 | D195: 93 | E195: 0 | F195: 0 | G195: 8.324360258 | X195: 0.583330752
A196: 2017-09-05T01:00:00 | B196: 1017 | C196: 9.1 | D196: 93 | E196: 0 | F196: 0 | G196: 8.026909083 | X196: 0.5631530109
A197: 2017-09-05T01:30:00 | B197: 1017 | C197: 9.1 | D197: 93 | E197: 0 | F197: 0 | G197: 8.026909083 | X197: 0.5631530109
A198: 2017-09-05T02:00:00 | B198: 1017 | C198: 8.3 | D198: 94 | E198: 0 | F198: 0 | G198: 7.390272553 | X198: 0.5198054397
A199: 2017-09-05T02:30:00 | B199: 1017 | C199: 8.1 | D199: 94 | E199: 0 | F199: 0 | G199: 7.191716706 | X199: 0.5062409783
A200: 2017-09-05T03:00:00 | B200: 1017 | C200: 7.8 | D200: 94 | E200: 0 | F200: 0 | G200: 6.893880792 | X200: 0.4858537421
... 1243 more rows

Sheet Rijen
A1: Datum, čas | B1: Pred [hPa] | C1: T [ºC] | D1: Rh [%] | E1: v max [m.s-1] | F1: Srážky [mm] | G1: Tdew [ºC]
A2: 2017-10-01 | B2: 1018 | C2: 10.3 | D2: 75 | E2: 5 | F2: 0 | G2: =(243.12*X2)/(17.62-X2) -> 6.059338526 | X2: =(LOG10(D2) - 2)/0.4343 + (17.62*C2 / (243.12 + C2)) -> 0.4284686903
A3: 2017-10-01T00:30:00 | B3: 1018 | C3: 10.1 | D3: 75 | E3: 3 | F3: 0 | G3: 5.865973461 | I3: Průměrná teplota | J3: =AVERAGE(C1:C1530) -> 10.19482527 | K3: °C | X3: 0.4151175704
A4: 2017-10-01T01:00:00 | B4: 1018 | C4: 9.8 | D4: 76 | E4: 3 | F4: 0 | G4: 5.767297221 | I4: Maximální teplota | J4: =MAX(C1:C1530) -> 23.8 | K4: °C | X4: 0.4082963581
A5: 2017-10-01T01:30:00 | B5: 1018 | C5: 9.5 | D5: 76 | E5: 2 | F5: 0 | G5: 5.476782205 | I5: Minimální teplota | J5: =MIN(C1:C1530) -> 0.9 | K5: °C | X5: 0.3881824278
A6: 2017-10-01T02:00:00 | B6: 1018 | C6: 9.2 | D6: 77 | E6: 1 | F6: 0 | G6: 5.374541821 | I6: Úhrn srážek | J6: =SUM(F2:F1614) -> 127 | K6: mm | X6: 0.3810925833
A7: 2017-10-01T02:30:00 | B7: 1018 | C7: 8.8 | D7: 79 | E7: 1 | F7: 0 | G7: 5.355588755 | I7: Maximální náraz větru | J7: =MAX(E1:E1530) -> 32 | K7: m/s | X7: 0.3797776447
A8: 2017-10-01T03:00:00 | B8: 1018 | C8: 8.9 | D8: 78 | E8: 1 | F8: 0 | G8: 5.26926479 | X8: 0.3737860639
A9: 2017-10-01T03:30:00 | B9: 1018 | C9: 9 | D9: 78 | E9: 1 | F9: 0 | G9: 5.366403683 | X9: 0.3805279946
A10: 2017-10-01T04:00:00 | B10: 1018 | C10: 8.6 | D10: 79 | E10: 0 | F10: 0 | G10: 5.16101831 | X10: 0.3662669955
A11: 2017-10-01T04:30:00 | B11: 1018 | C11: 8.4 | D11: 79 | E11: 1 | F11: 0 | G11: 4.966443641 | X11: 0.35273486
A12: 2017-10-01T05:00:00 | B12: 1018 | C12: 8.3 | D12: 79 | E12: 0 | F12: 0 | G12: 4.869154723 | X12: 0.3459607188
A13: 2017-10-01T05:30:00 | B13: 1019 | C13: 8 | D13: 80 | E13: 0 | F13: 0 | G13: 4.757568857 | X13: 0.3381845467
A14: 2017-10-01T06:00:00 | B14: 1019 | C14: 8.2 | D14: 80 | E14: 0 | F14: 0 | G14: 4.952435445 | X14: 0.3517598091
A15: 2017-10-01T06:30:00 | B15: 1019 | C15: 8.3 | D15: 79 | E15: 0 | F15: 0 | G15: 4.869154723 | X15: 0.3459607188
A16: 2017-10-01T07:00:00 | B16: 1019 | C16: 8 | D16: 80 | E16: 0 | F16: 0 | G16: 4.757568857 | X16: 0.3381845467
A17: 2017-10-01T07:30:00 | B17: 1019 | C17: 8.2 | D17: 80 | E17: 0 | F17: 0 | G17: 4.952435445 | X17: 0.3517598091
A18: 2017-10-01T08:00:00 | B18: 1019 | C18: 8.4 | D18: 78 | E18: 0 | F18: 0 | G18: 4.783553669 | X18: 0.3399959961
A19: 2017-10-01T08:30:00 | B19: 1019 | C19: 9.1 | D19: 77 | E19: 1 | F19: 0 | G19: 5.27755048 | X19: 0.3743613384
A20: 2017-10-01T09:00:00 | B20: 1020 | C20: 10.1 | D20: 74 | E20: 3 | F20: 0 | G20: 5.671871819 | X20: 0.4016947207
A21: 2017-10-01T09:30:00 | B21: 1020 | C21: 11 | D21: 71 | E21: 5 | F21: 0 | G21: 5.939903032 | X21: 0.4202245731
A22: 2017-10-01T10:00:00 | B22: 1020 | C22: 11.8 | D22: 69 | E22: 2 | F22: 0 | G22: 6.292699021 | X22: 0.4445537745
A23: 2017-10-01T10:30:00 | B23: 1020 | C23: 12.8 | D23: 66 | E23: 5 | F23: 0 | G23: 6.601101433 | X23: 0.465765234
A24: 2017-10-01T11:00:00 | B24: 1020 | C24: 13.4 | D24: 63 | E24: 5 | F24: 0 | G24: 6.493894853 | X24: 0.458397668
A25: 2017-10-01T11:30:00 | B25: 1020 | C25: 15.7 | D25: 59 | E25: 9 | F25: 0 | G25: 7.704111241 | X25: 0.5412017186
A26: 2017-10-01T12:00:00 | B26: 1020 | C26: 15.3 | D26: 59 | E26: 4 | F26: 0 | G26: 7.32842644 | X26: 0.5155826918
A27: 2017-10-01T12:30:00 | B27: 1020 | C27: 16.3 | D27: 58 | E27: 4 | F27: 0 | G27: 8.015644158 | X27: 0.5623879101
A28: 2017-10-01T13:00:00 | B28: 1020 | C28: 16.8 | D28: 57 | E28: 3 | F28: 0 | G28: 8.227445275 | X28: 0.5767617235
A29: 2017-10-01T13:30:00 | B29: 1020 | C29: 16.7 | D29: 57 | E29: 2 | F29: 0 | G29: 8.133931612 | X29: 0.5704184372
A30: 2017-10-01T14:00:00 | B30: 1020 | C30: 16.9 | D30: 56 | E30: 4 | F30: 0 | G30: 8.060009825 | X30: 0.5654007785
A31: 2017-10-01T14:30:00 | B31: 1020 | C31: 17.1 | D31: 56 | E31: 2 | F31: 0 | G31: 8.246637169 | X31: 0.5780629783
A32: 2017-10-01T15:00:00 | B32: 1020 | C32: 15.9 | D32: 59 | E32: 5 | F32: 0 | G32: 7.89194019 | X32: 0.5539815597
A33: 2017-10-01T15:30:00 | B33: 1020 | C33: 16.5 | D33: 59 | E33: 2 | F33: 0 | G33: 8.455373231 | X33: 0.5922029427
A34: 2017-10-01T16:00:00 | B34: 1020 | C34: 18.1 | D34: 54 | E34: 2 | F34: 0 | G34: 8.640381354 | X34: 0.604715955
A35: 2017-10-01T16:30:00 | B35: 1020 | C35: 17.6 | D35: 54 | E35: 1 | F35: 0 | G35: 8.175906685 | X35: 0.5732663046
A36: 2017-10-01T17:00:00 | B36: 1020 | C36: 16.6 | D36: 57 | E36: 6 | F36: 0 | G36: 8.040415577 | X36: 0.5640702662
A37: 2017-10-01T17:30:00 | B37: 1020 | C37: 16.7 | D37: 58 | E37: 2 | F37: 0 | G37: 8.390486301 | X37: 0.5878099589
A38: 2017-10-01T18:00:00 | B38: 1020 | C38: 14.9 | D38: 64 | E38: 0 | F38: 0 | G38: 8.145874788 | X38: 0.5712288383
A39: 2017-10-01T18:30:00 | B39: 1021 | C39: 12.9 | D39: 71 | E39: 0 | F39: 0 | G39: 7.764718209 | X39: 0.5453274947
A40: 2017-10-01T19:00:00 | B40: 1020 | C40: 11.4 | D40: 78 | E40: 0 | F40: 0 | G40: 7.697403974 | X40: 0.5407450036
A41: 2017-10-01T19:30:00 | B41: 1021 | C41: 10.4 | D41: 84 | E41: 0 | F41: 0 | G41: 7.810806617 | X41: 0.5484635962
A42: 2017-10-01T20:00:00 | B42: 1020 | C42: 10.1 | D42: 86 | E42: 0 | F42: 0 | G42: 7.862430807 | X42: 0.5519750143
A43: 2017-10-01T20:30:00 | B43: 1021 | C43: 9.3 | D43: 87 | E43: 0 | F43: 0 | G43: 7.245533647 | X43: 0.5099196403
A44: 2017-10-01T21:00:00 | B44: 1021 | C44: 9.1 | D44: 89 | E44: 0 | F44: 0 | G44: 7.381263493 | X44: 0.5191904461
A45: 2017-10-01T21:30:00 | B45: 1021 | C45: 8.7 | D45: 89 | E45: 0 | F45: 0 | G45: 6.986692201 | X45: 0.4922120056
A46: 2017-10-01T22:00:00 | B46: 1021 | C46: 8.4 | D46: 90 | E46: 0 | F46: 0 | G46: 6.853633242 | X46: 0.4830950215
A47: 2017-10-01T22:30:00 | B47: 1021 | C47: 8.5 | D47: 89 | E47: 0 | F47: 0 | G47: 6.789403357 | X47: 0.4786906196
A48: 2017-10-01T23:00:00 | B48: 1021 | C48: 8.1 | D48: 89 | E48: 0 | F48: 0 | G48: 6.394819272 | X48: 0.4515832603
A49: 2017-10-01T23:30:00 | B49: 1021 | C49: 8.2 | D49: 89 | E49: 0 | F49: 0 | G49: 6.493466093 | X49: 0.4583681896
A50: 2017-10-02 | B50: 1021 | C50: 8.4 | D50: 88 | E50: 0 | F50: 0 | G50: 6.52625831 | X50: 0.4606224512
A51: 2017-10-02T00:30:00 | B51: 1021 | C51: 8.6 | D51: 88 | E51: 0 | F51: 0 | G51: 6.723288374 | X51: 0.4741545867
A52: 2017-10-02T01:00:00 | B52: 1021 | C52: 9 | D52: 85 | E52: 0 | F52: 0 | G52: 6.611351698 | X52: 0.4664693325
A53: 2017-10-02T01:30:00 | B53: 1021 | C53: 8.5 | D53: 85 | E53: 0 | F53: 0 | G53: 6.120771852 | X53: 0.4327060907
A54: 2017-10-02T02:00:00 | B54: 1021 | C54: 9 | D54: 84 | E54: 0 | F54: 0 | G54: 6.439179562 | X54: 0.4546350252
A55: 2017-10-02T02:30:00 | B55: 1021 | C55: 8.8 | D55: 83 | E55: 0 | F55: 0 | G55: 6.06950064 | X55: 0.4291697724
A56: 2017-10-02T03:00:00 | B56: 1021 | C56: 8.1 | D56: 85 | E56: 0 | F56: 0 | G56: 5.7282947 | X56: 0.4055987313
A57: 2017-10-02T03:30:00 | B57: 1020 | C57: 8.4 | D57: 84 | E57: 0 | F57: 0 | G57: 5.85129203 | X57: 0.4141030266
A58: 2017-10-02T04:00:00 | B58: 1020 | C58: 8.6 | D58: 83 | E58: 0 | F58: 0 | G58: 5.873810963 | X58: 0.4156591233
A59: 2017-10-02T04:30:00 | B59: 1020 | C59: 9.2 | D59: 81 | E59: 0 | F59: 0 | G59: 6.106700173 | X59: 0.4317356727
A60: 2017-10-02T05:00:00 | B60: 1020 | C60: 9.7 | D60: 79 | E60: 0 | F60: 0 | G60: 6.231103485 | X60: 0.4403110388
A61: 2017-10-02T05:30:00 | B61: 1020 | C61: 9.8 | D61: 78 | E61: 0 | F61: 0 | G61: 6.143474843 | X61: 0.4342715145
A62: 2017-10-02T06:00:00 | B62: 1019 | C62: 9.6 | D62: 78 | E62: 3 | F62: 0 | G62: 5.949213715 | X62: 0.4208675336
A63: 2017-10-02T06:30:00 | B63: 1020 | C63: 8.7 | D63: 80 | E63: 0 | F63: 0 | G63: 5.439584381 | X63: 0.3856036251
A64: 2017-10-02T07:00:00 | B64: 1020 | C64: 8.8 | D64: 80 | E64: 0 | F64: 0 | G64: 5.537011162 | X64: 0.3923562671
A65: 2017-10-02T07:30:00 | B65: 1019 | C65: 8.7 | D65: 81 | E65: 1 | F65: 0 | G65: 5.618872607 | X65: 0.3980259872
A66: 2017-10-02T08:00:00 | B66: 1019 | C66: 9 | D66: 81 | E66: 2 | F66: 0 | G66: =(243.12*X66)/(17.62-X66) -> 5.911571991 | X66: =(LOG10(D66) - 2)/0.4343 + (17.62*C66 / (243.12 + C66)) -> 0.4182678431
A67: 2017-10-02T08:30:00 | B67: 1019 | C67: 9.2 | D67: 80 | E67: 1 | F67: 0 | G67: 5.92670827 | X67: 0.4193133105
A68: 2017-10-02T09:00:00 | B68: 1019 | C68: 9.8 | D68: 78 | E68: 7 | F68: 0 | G68: 6.143474843 | X68: 0.4342715145
A69: 2017-10-02T09:30:00 | B69: 1019 | C69: 10.1 | D69: 77 | E69: 6 | F69: 0 | G69: 6.247411445 | X69: 0.4414345444
A70: 2017-10-02T10:00:00 | B70: 1019 | C70: 11.3 | D70: 75 | E70: 5 | F70: 0 | G70: 7.026087251 | X70: 0.4949094296
A71: 2017-10-02T10:30:00 | B71: 1019 | C71: 12 | D71: 73 | E71: 6 | F71: 0 | G71: 7.306421185 | X71: 0.5140797072
A72: 2017-10-02T11:00:00 | B72: 1019 | C72: 13.2 | D72: 70 | E72: 5 | F72: 0 | G72: 7.844074305 | X72: 0.5507265916
A73: 2017-10-02T11:30:00 | B73: 1018 | C73: 14.6 | D73: 67 | E73: 4 | F73: 0 | G73: 8.536786603 | X73: 0.5977115975
A74: 2017-10-02T12:00:00 | B74: 1018 | C74: 13.2 | D74: 70 | E74: 6 | F74: 0 | G74: 7.844074305 | X74: 0.5507265916
A75: 2017-10-02T12:30:00 | B75: 1018 | C75: 14.3 | D75: 68 | E75: 10 | F75: 0 | G75: 8.469443846 | X75: 0.5931552544
A76: 2017-10-02T13:00:00 | B76: 1018 | C76: 15.3 | D76: 68 | E76: 8 | F76: 0 | G76: 9.42457288 | X76: 0.6575511493
A77: 2017-10-02T13:30:00 | B77: 1017 | C77: 16.4 | D77: 66 | E77: 7 | F77: 0 | G77: 10.02764753 | X77: 0.6979608589
A78: 2017-10-02T14:00:00 | B78: 1016 | C78: 16 | D78: 66 | E78: 6 | F78: 0 | G78: 9.647035463 | X78: 0.6724799559
A79: 2017-10-02T14:30:00 | B79: 1016 | C79: 15.5 | D79: 69 | E79: 5 | F79: 0 | G79: 9.833445801 | X79: 0.6849691827
A80: 2017-10-02T15:00:00 | B80: 1016 | C80: 15.6 | D80: 70 | E80: 9 | F80: 0 | G80: 10.14437391 | X80: 0.7057600146
A81: 2017-10-02T15:30:00 | B81: 1016 | C81: 16.1 | D81: 69 | E81: 6 | F81: 0 | G81: 10.40741179 | X81: 0.7233087518
A82: 2017-10-02T16:00:00 | B82: 1016 | C82: 15.5 | D82: 69 | E82: 7 | F82: 0 | G82: 9.833445801 | X82: 0.6849691827
A83: 2017-10-02T16:30:00 | B83: 1015 | C83: 15.2 | D83: 69 | E83: 7 | F83: 0 | G83: 9.546440923 | X83: 0.6657326096
A84: 2017-10-02T17:00:00 | B84: 1015 | C84: 14.8 | D84: 70 | E84: 7 | F84: 0 | G84: 9.377707372 | X84: 0.6544027889
A85: 2017-10-02T17:30:00 | B85: 1015 | C85: 14.5 | D85: 69 | E85: 4 | F85: 0 | G85: 8.876706134 | X85: 0.6206730416
A86: 2017-10-02T18:00:00 | B86: 1015 | C86: 14.1 | D86: 68 | E86: 4 | F86: 0 | G86: 8.278397869 | X86: 0.5802159906
A87: 2017-10-02T18:30:00 | B87: 1015 | C87: 13.3 | D87: 73 | E87: 2 | F87: 0 | G87: 8.55891019 | X87: 0.599207925
A88: 2017-10-02T19:00:00 | B88: 1014 | C88: 12.6 | D88: 78 | E88: 2 | F88: 0 | G88: 8.86266432 | X88: 0.6197257488
A89: 2017-10-02T19:30:00 | B89: 1014 | C89: 12.8 | D89: 77 | E89: 7 | F89: 0 | G89: 8.865453999 | X89: 0.6199139553
A90: 2017-10-02T20:00:00 | B90: 1014 | C90: 12 | D90: 84 | E90: 0 | F90: 0 | G90: 9.378190959 | X90: 0.6544352816
A91: 2017-10-02T20:30:00 | B91: 1014 | C91: 11.9 | D91: 85 | E91: 1 | F91: 0 | G91: 9.456351307 | X91: 0.6596853156
A92: 2017-10-02T21:00:00 | B92: 1014 | C92: 11.4 | D92: 89 | E92: 0 | F92: 0.5 | G92: 9.649882927 | X92: 0.6726708704
A93: 2017-10-02T21:30:00 | B93: 1014 | C93: 11 | D93: 92 | E93: 0 | F93: 0.5 | G93: 9.749242786 | X93: 0.6793299809
A94: 2017-10-02T22:00:00 | B94: 1013 | C94: 10.9 | D94: 93 | E94: 0 | F94: 0.5 | G94: 9.811570978 | X94: 0.6835045541
A95: 2017-10-02T22:30:00 | B95: 1014 | C95: 11.1 | D95: 94 | E95: 1 | F95: 1 | G95: 10.1699344 | X95: 0.7074668977
A96: 2017-10-02T23:00:00 | B96: 1013 | C96: 11.3 | D96: 95 | E96: 0 | F96: 0 | G96: 10.52730166 | X96: 0.7312952042
A97: 2017-10-02T23:30:00 | B97: 1013 | C97: 11.6 | D97: 95 | E97: 0 | F97: 0.5 | G97: 10.8254811 | X97: 0.751125699
A98: 2017-10-03 | B98: 1013 | C98: 11.9 | D98: 96 | E98: 0 | F98: 0.5 | G98: 11.2817609 | X98: 0.7813807044
A99: 2017-10-03T00:30:00 | B99: 1012 | C99: 11.9 | D99: 96 | E99: 0 | F99: 0.5 | G99: 11.2817609 | X99: 0.7813807044
A100: 2017-10-03T01:00:00 | B100: 1012 | C100: 12 | D100: 96 | E100: 0 | F100: 0.5 | G100: 11.38127654 | X100: 0.7879649776
A101: 2017-10-03T01:30:00 | B101: 1012 | C101: 12.1 | D101: 97 | E101: 0 | F101: 0 | G101: 11.63769509 | X101: 0.8049067465
A102: 2017-10-03T02:00:00 | B102: 1011 | C102: 12.2 | D102: 97 | E102: 0 | F102: 0 | G102: 11.73733307 | X102: 0.8114807064
A103: 2017-10-03T02:30:00 | B103: 1012 | C103: 12.2 | D103: 97 | E103: 0 | F103: 0 | G103: 11.73733307 | X103: 0.8114807064
A104: 2017-10-03T03:00:00 | B104: 1011 | C104: 12.3 | D104: 97 | E104: 0 | F104: 0 | G104: 11.8369709 | X104: 0.8180495187
A105: 2017-10-03T03:30:00 | B105: 1011 | C105: 12.1 | D105: 97 | E105: 0 | F105: 0 | G105: 11.63769509 | X105: 0.8049067465
A106: 2017-10-03T04:00:00 | B106: 1011 | C106: 11.8 | D106: 97 | E106: 0 | F106: 0 | G106: 11.33878031 | X106: 0.7851539208
A107: 2017-10-03T04:30:00 | B107: 1011 | C107: 11.5 | D107: 97 | E107: 0 | F107: 0.5 | G107: 11.03986425 | X107: 0.7653545485
A108: 2017-10-03T05:00:00 | B108: 1011 | C108: 11.3 | D108: 97 | E108: 0 | F108: 0.5 | G108: 10.84058618 | X108: 0.7521290264
A109: 2017-10-03T05:30:00 | B109: 1011 | C109: 11.3 | D109: 97 | E109: 0 | F109: 1 | G109: 10.84058618 | X109: 0.7521290264
A110: 2017-10-03T06:00:00 | B110: 1011 | C110: 11.1 | D110: 97 | E110: 0 | F110: 0.5 | G110: 10.64130753 | X110: 0.7388826947
A111: 2017-10-03T06:30:00 | B111: 1010 | C111: 11.1 | D111: 97 | E111: 0 | F111: 0.5 | G111: 10.64130753 | X111: 0.7388826947
A112: 2017-10-03T07:00:00 | B112: 1010 | C112: 11 | D112: 97 | E112: 0 | F112: 0 | G112: 10.541668 | X112: 0.73225171
A113: 2017-10-03T07:30:00 | B113: 1010 | C113: 10.3 | D113: 97 | E113: 1 | F113: 0.5 | G113: 9.844187303 | X113: 0.6856882871
A114: 2017-10-03T08:00:00 | B114: 1010 | C114: 10.1 | D114: 97 | E114: 0 | F114: 1 | G114: 9.644905832 | X114: 0.6723371672
A115: 2017-10-03T08:30:00 | B115: 1010 | C115: 10 | D115: 97 | E115: 0 | F115: 0.5 | G115: 9.545264884 | X115: 0.6656536953
A116: 2017-10-03T09:00:00 | B116: 1010 | C116: 10.1 | D116: 97 | E116: 0 | F116: 1 | G116: 9.644905832 | X116: 0.6723371672
A117: 2017-10-03T09:30:00 | B117: 1010 | C117: 10.1 | D117: 97 | E117: 0 | F117: 0.5 | G117: 9.644905832 | X117: 0.6723371672
A118: 2017-10-03T10:00:00 | B118: 1010 | C118: 10.2 | D118: 97 | E118: 0 | F118: 0.5 | G118: 9.744546638 | X118: 0.6790153624
A119: 2017-10-03T10:30:00 | B119: 1011 | C119: 10.1 | D119: 97 | E119: 0 | F119: 1.5 | G119: 9.644905832 | X119: 0.6723371672
A120: 2017-10-03T11:00:00 | B120: 1010 | C120: 10.5 | D120: 97 | E120: 0 | F120: 0.5 | G120: 10.04346821 | I120: 2017-10-01 | J120: 0 | X120: 0.6990183501
A121: 2017-10-03T11:30:00 | B121: 1011 | C121: 10.5 | D121: 97 | E121: 0 | F121: 0.5 | G121: 10.04346821 | I121: 2017-10-02 | J121: 3.5 | X121: 0.6990183501
A122: 2017-10-03T12:00:00 | B122: 1011 | C122: 10.7 | D122: 97 | E122: 0 | F122: 0 | G122: 10.24274855 | I122: 2017-10-03 | J122: 12 | X122: 0.712327406
A123: 2017-10-03T12:30:00 | B123: 1011 | C123: 10.6 | D123: 97 | E123: 0 | F123: 0 | G123: 10.14310845 | I123: 2017-10-04 | J123: 0 | X123: 0.7056755008
A124: 2017-10-03T13:00:00 | B124: 1011 | C124: 10.8 | D124: 96 | E124: 0 | F124: 0 | G124: 10.1870764 | I124: 2017-10-05 | J124: 9 | X124: 0.7086114164
A125: 2017-10-03T13:30:00 | B125: 1012 | C125: 10.7 | D125: 96 | E125: 0 | F125: 0 | G125: 10.08755849 | I125: 2017-10-06 | J125: 9 | X125: 0.7019647506
A126: 2017-10-03T14:00:00 | B126: 1013 | C126: 10.5 | D126: 96 | E126: 1 | F126: 0 | G126: 9.888522109 | I126: 2017-10-07 | J126: 5 | X126: 0.6886556947
A127: 2017-10-03T14:30:00 | B127: 1013 | C127: 10.6 | D127: 96 | E127: 0 | F127: 0.5 | G127: 9.988040396 | I127: 2017-10-08 | J127: 6 | X127: 0.6953128455
A128: 2017-10-03T15:00:00 | B128: 1013 | C128: 10.9 | D128: 95 | E128: 0 | F128: 0 | G128: 10.12972575 | I128: 2017-10-09 | J128: 0.5 | X128: 0.7047816822
A129: 2017-10-03T15:30:00 | B129: 1014 | C129: 11.8 | D129: 95 | E129: 0 | F129: 0 | G129: 11.02426621 | I129: 2017-10-10 | J129: 5 | X129: 0.7643200986
A130: 2017-10-03T16:00:00 | B130: 1014 | C130: 13.1 | D130: 93 | E130: 1 | F130: 0 | G130: =(243.12*X130)/(17.62-X130) -> 11.99267724 | I130: 2017-10-11 | J130: 0 | X130: =(LOG10(D130) - 2)/0.4343 + (17.62*C130 / (243.12 + C130)) -> 0.8283044779
A131: 2017-10-03T16:30:00 | B131: 1014 | C131: 12 | D131: 91 | E131: 0 | F131: 0 | G131: 10.57509686 | I131: 2017-10-12 | J131: 0 | X131: 0.7344769722
A132: 2017-10-03T17:00:00 | B132: 1014 | C132: 12.7 | D132: 89 | E132: 0 | F132: 0 | G132: 10.93202138 | I132: 2017-10-13 | J132: 0 | X132: 0.758199898
A133: 2017-10-03T17:30:00 | B133: 1015 | C133: 11.7 | D133: 88 | E133: 0 | F133: 0 | G133: 9.776955885 | I133: 2017-10-14 | J133: 0 | X133: 0.6811863832
A134: 2017-10-03T18:00:00 | B134: 1016 | C134: 10.6 | D134: 90 | E134: 0 | F134: 1 | G134: 9.026547967 | I134: 2017-10-15 | J134: 0 | X134: 0.6307751443
A135: 2017-10-03T18:30:00 | B135: 1016 | C135: 10.5 | D135: 92 | E135: 0 | F135: 0 | G135: 9.254147794 | I135: 2017-10-16 | J135: 0 | X135: 0.6460966211
A136: 2017-10-03T19:00:00 | B136: 1016 | C136: 9.6 | D136: 93 | E136: 0 | F136: 0 | G136: 8.522659369 | I136: 2017-10-17 | J136: 0 | X136: 0.5967559652
A137: 2017-10-03T19:30:00 | B137: 1017 | C137: 9.5 | D137: 94 | E137: 0 | F137: 0 | G137: 8.581583632 | I137: 2017-10-18 | J137: 0 | X137: 0.600741169
A138: 2017-10-03T20:00:00 | B138: 1017 | C138: 9.1 | D138: 94 | E138: 0 | F138: 0 | G138: 8.184484511 | I138: 2017-10-19 | J138: 0 | X138: 0.5738481642
A139: 2017-10-03T20:30:00 | B139: 1018 | C139: 9.6 | D139: 94 | E139: 0 | F139: 0 | G139: 8.680857698 | I139: 2017-10-20 | J139: 0 | X139: 0.6074511184
A140: 2017-10-03T21:00:00 | B140: 1018 | C140: 9 | D140: 94 | E140: 0 | F140: 0 | G140: 8.085209016 | I140: 2017-10-21 | J140: 0.5 | X140: 0.5671115795
A141: 2017-10-03T21:30:00 | B141: 1019 | C141: 8.8 | D141: 95 | E141: 0 | F141: 0 | G141: 8.04238993 | I141: 2017-10-22 | J141: 18 | X141: 0.5642043405
A142: 2017-10-03T22:00:00 | B142: 1019 | C142: 9 | D142: 95 | E142: 0 | F142: 0 | G142: 8.241188327 | I142: 2017-10-23 | J142: 12 | X142: 0.5776935544
A143: 2017-10-03T22:30:00 | B143: 1019 | C143: 9.1 | D143: 96 | E143: 0 | F143: 0 | G143: 8.495246229 | I143: 2017-10-24 | J143: 1.5 | X143: 0.5949013059
A144: 2017-10-03T23:00:00 | B144: 1019 | C144: 10.2 | D144: 95 | E144: 0 | F144: 0 | G144: 9.433958772 | I144: 2017-10-25 | J144: 1.5 | X144: 0.6581815402
A145: 2017-10-03T23:30:00 | B145: 1019 | C145: 10.4 | D145: 94 | E145: 0 | F145: 0 | G145: 9.475039939 | I145: 2017-10-26 | J145: 0 | X145: 0.6609401505
A146: 2017-10-04 | B146: 1019 | C146: 10 | D146: 93 | E146: 0 | F146: 0 | G146: 8.919253577 | I146: 2017-10-27 | J146: 18.5 | X146: 0.623542745
A147: 2017-10-04T00:30:00 | B147: 1020 | C147: 9.9 | D147: 92 | E147: 0 | F147: 0 | G147: 8.660021146 | I147: 2017-10-28 | J147: 2 | X147: 0.6060432115
A148: 2017-10-04T01:00:00 | B148: 1020 | C148: 10 | D148: 92 | E148: 0 | F148: 0 | G148: 8.759043213 | I148: 2017-10-29 | J148: 21 | X148: 0.6127319663
A149: 2017-10-04T01:30:00 | B149: 1020 | C149: 9.8 | D149: 91 | E149: 0 | F149: 0 | G149: 8.399498443 | I149: 2017-10-30 | J149: 0 | X149: 0.5884202357
A150: 2017-10-04T02:00:00 | B150: 1020 | C150: 9.6 | D150: 91 | E150: 0 | F150: 0 | G150: 8.201706376 | I150: 2017-10-31 | J150: 2 | X150: 0.5750162548
A151: 2017-10-04T02:30:00 | B151: 1020 | C151: 9.6 | D151: 91 | E151: 0 | F151: 0 | G151: 8.201706376 | X151: 0.5750162548
A152: 2017-10-04T03:00:00 | B152: 1020 | C152: 9.3 | D152: 91 | E152: 0 | F152: 0 | G152: 7.905015029 | X152: 0.554870457
A153: 2017-10-04T03:30:00 | B153: 1020 | C153: 9.5 | D153: 91 | E153: 0 | F153: 0 | G153: 8.102809694 | X153: 0.5683063054
A154: 2017-10-04T04:00:00 | B154: 1020 | C154: 9.3 | D154: 91 | E154: 0 | F154: 0 | G154: 7.905015029 | X154: 0.554870457
A155: 2017-10-04T04:30:00 | B155: 1021 | C155: 9.4 | D155: 91 | E155: 0 | F155: 0 | G155: 8.003912578 | X155: 0.5615910415
A156: 2017-10-04T05:00:00 | B156: 1020 | C156: 8.6 | D156: 92 | E156: 0 | F156: 0 | G156: 7.372699368 | X156: 0.5186057845
A157: 2017-10-04T05:30:00 | B157: 1020 | C157: 9 | D157: 93 | E157: 0 | F157: 0 | G157: 7.927758022 | X157: 0.5564164263
A158: 2017-10-04T06:00:00 | B158: 1020 | C158: 8.6 | D158: 93 | E158: 0 | F158: 0 | G158: 7.531150433 | X158: 0.5294165633
A159: 2017-10-04T06:30:00 | B159: 1020 | C159: 8.2 | D159: 94 | E159: 0 | F159: 0 | G159: 7.290994772 | X159: 0.5130259077
A160: 2017-10-04T07:00:00 | B160: 1020 | C160: 8.2 | D160: 95 | E160: 0 | F160: 0 | G160: 7.445989045 | X160: 0.5236078826
A161: 2017-10-04T07:30:00 | B161: 1020 | C161: 8.2 | D161: 95 | E161: 0 | F161: 0 | G161: 7.445989045 | X161: 0.5236078826
A162: 2017-10-04T08:00:00 | B162: 1020 | C162: 8.4 | D162: 95 | E162: 0 | F162: 0 | G162: 7.644790289 | X162: 0.5371615558
A163: 2017-10-04T08:30:00 | B163: 1020 | C163: 9 | D163: 96 | E163: 0 | F163: 0 | G163: 8.395725104 | X163: 0.5881647212
A164: 2017-10-04T09:00:00 | B164: 1020 | C164: 9.5 | D164: 94 | E164: 0 | F164: 0 | G164: 8.581583632 | X164: 0.600741169
A165: 2017-10-04T09:30:00 | B165: 1020 | C165: 9.9 | D165: 93 | E165: 0 | F165: 0 | G165: 8.820105527 | X165: 0.6168539902
A166: 2017-10-04T10:00:00 | B166: 1020 | C166: 10.4 | D166: 92 | E166: 1 | F166: 0 | G166: 9.155127645 | X166: 0.6394342186
A167: 2017-10-04T10:30:00 | B167: 1020 | C167: 11 | D167: 89 | E167: 4 | F167: 0 | G167: 9.255360669 | X167: 0.6461781948
A168: 2017-10-04T11:00:00 | B168: 1020 | C168: 11.3 | D168: 86 | E168: 8 | F168: 0 | G168: 9.041267631 | X168: 0.6317668734
A169: 2017-10-04T11:30:00 | B169: 1020 | C169: 11.8 | D169: 83 | E169: 6 | F169: 0 | G169: 9.004441717 | X169: 0.6292855305
A170: 2017-10-04T12:00:00 | B170: 1020 | C170: 11.6 | D170: 82 | E170: 3 | F170: 0 | G170: 8.629343471 | X170: 0.6039699244
A171: 2017-10-04T12:30:00 | B171: 1019 | C171: 12.2 | D171: 80 | E171: 4 | F171: 0 | G171: 8.848925743 | X171: 0.6187988108
A172: 2017-10-04T13:00:00 | B172: 1019 | C172: 11.8 | D172: 80 | E172: 2 | F172: 0 | G172: 8.459348824 | X172: 0.5924720251
A173: 2017-10-04T13:30:00 | B173: 1018 | C173: 12.2 | D173: 77 | E173: 5 | F173: 0 | G173: 8.283740163 | X173: 0.5805780836
A174: 2017-10-04T14:00:00 | B174: 1018 | C174: 12.1 | D174: 79 | E174: 3 | F174: 0 | G174: 8.565391356 | X174: 0.5996462285
A175: 2017-10-04T14:30:00 | B175: 1018 | C175: 13.1 | D175: 75 | E175: 7 | F175: 0 | G175: 8.765913282 | X175: 0.6131958315
A176: 2017-10-04T15:00:00 | B176: 1018 | C176: 12.7 | D176: 75 | E176: 3 | F176: 0 | G176: 8.379321011 | X176: 0.5870538164
A177: 2017-10-04T15:30:00 | B177: 1017 | C177: 12.6 | D177: 71 | E177: 6 | F177: 0 | G177: 7.476625616 | X177: 0.5256979938
A178: 2017-10-04T16:00:00 | B178: 1017 | C178: 12.5 | D178: 69 | E178: 4 | F178: 0 | G178: 6.962740335 | X178: 0.4905715786
A179: 2017-10-04T16:30:00 | B179: 1017 | C179: 12.4 | D179: 74 | E179: 3 | F179: 0 | G179: 7.891781094 | X179: 0.553970743
A180: 2017-10-04T17:00:00 | B180: 1017 | C180: 12.1 | D180: 74 | E180: 3 | F180: 0 | G180: 7.602267697 | X180: 0.5342642999
A181: 2017-10-04T17:30:00 | B181: 1016 | C181: 12 | D181: 74 | E181: 0 | F181: 0 | G181: 7.505760567 | X181: 0.5276851864
A182: 2017-10-04T18:00:00 | B182: 1016 | C182: 11.8 | D182: 76 | E182: 3 | F182: 0 | G182: 7.703783207 | X182: 0.5411793825
A183: 2017-10-04T18:30:00 | B183: 1016 | C183: 11.6 | D183: 77 | E183: 5 | F183: 0 | G183: 7.701984388 | X183: 0.5410568984
A184: 2017-10-04T19:00:00 | B184: 1016 | C184: 11.6 | D184: 77 | E184: 5 | F184: 0 | G184: 7.701984388 | X184: 0.5410568984
A185: 2017-10-04T19:30:00 | B185: 1016 | C185: 11.4 | D185: 77 | E185: 0 | F185: 0 | G185: 7.508056477 | X185: 0.5278417627
A186: 2017-10-04T20:00:00 | B186: 1016 | C186: 10.8 | D186: 80 | E186: 0 | F186: 0 | G186: 7.485336428 | X186: 0.5262921761
A187: 2017-10-04T20:30:00 | B187: 1015 | C187: 11 | D187: 79 | E187: 0 | F187: 0 | G187: 7.495584893 | X187: 0.526991192
A188: 2017-10-04T21:00:00 | B188: 1015 | C188: 11 | D188: 77 | E188: 0 | F188: 0 | G188: 7.120186672 | X188: 0.5013490872
A189: 2017-10-04T21:30:00 | B189: 1015 | C189: 10.8 | D189: 78 | E189: 0 | F189: 0 | G189: 7.114713857 | X189: 0.5009746898
A190: 2017-10-04T22:00:00 | B190: 1015 | C190: 10.5 | D190: 79 | E190: 0 | F190: 0 | G190: 7.009267004 | X190: 0.4937578321
A191: 2017-10-04T22:30:00 | B191: 1014 | C191: 9.9 | D191: 84 | E191: 0 | F191: 0 | G191: 7.320957573 | X191: 0.5150725891
A192: 2017-10-04T23:00:00 | B192: 1015 | C192: 10.8 | D192: 78 | E192: 0 | F192: 0 | G192: 7.114713857 | X192: 0.5009746898
A193: 2017-10-04T23:30:00 | B193: 1014 | C193: 10.7 | D193: 78 | E193: 0 | F193: 0 | G193: 7.017594952 | X193: 0.494328024
A194: 2017-10-05 | B194: 1014 | C194: 10.6 | D194: 79 | E194: 1 | F194: 0 | G194: =(243.12*X194)/(17.62-X194) -> 7.106532693 | X194: =(LOG10(D194) - 2)/0.4343 + (17.62*C194 / (243.12 + C194)) -> 0.5004149828
A195: 2017-10-05T00:30:00 | B195: 1014 | C195: 10.7 | D195: 78 | E195: 1 | F195: 0 | G195: 7.017594952 | X195: 0.494328024
A196: 2017-10-05T01:00:00 | B196: 1014 | C196: 10.7 | D196: 79 | E196: 5 | F196: 0 | G196: 7.203797327 | X196: 0.507066888
A197: 2017-10-05T01:30:00 | B197: 1014 | C197: 10.6 | D197: 79 | E197: 3 | F197: 0 | G197: 7.106532693 | X197: 0.5004149828
A198: 2017-10-05T02:00:00 | B198: 1014 | C198: 10.6 | D198: 79 | E198: 4 | F198: 0 | G198: 7.106532693 | X198: 0.5004149828
A199: 2017-10-05T02:30:00 | B199: 1013 | C199: 10.6 | D199: 78 | E199: 2 | F199: 0 | G199: 6.920474936 | X199: 0.4876761189
A200: 2017-10-05T03:00:00 | B200: 1013 | C200: 10.5 | D200: 79 | E200: 2 | F200: 0 | G200: 7.009267004 | X200: 0.4937578321
... 1289 more rows

Sheet Listopad
A1: Datum, čas | B1: Pred [hPa] | C1: T [ºC] | D1: Rh [%] | E1: v max [m.s-1] | F1: Srážky [mm] | G1: Tdew [ºC]
A2: 2017-11-01 | B2: 1021 | C2: 5.3 | D2: 91 | E2: 0 | F2: 0 | G2: =(243.12*X2)/(17.62-X2) -> 3.948757943 | X2: =(LOG10(D2) - 2)/0.4343 + (17.62*C2 / (243.12 + C2)) -> 0.281610332
A3: 2017-11-01T00:30:00 | B3: 1021 | C3: 5.1 | D3: 91 | E3: 0 | F3: 0 | G3: 3.750926898 | I3: Průměrná teplota | J3: =AVERAGE(C1:C1530) -> 4.192275574 | K3: °C | X3: 0.2677161412
A4: 2017-11-01T01:00:00 | B4: 1020 | C4: 5.4 | D4: 91 | E4: 0 | F4: 0 | G4: 4.047672816 | I4: Maximální teplota | J4: =MAX(C1:C1530) -> 10.9 | K4: °C | X4: 0.2885490413
A5: 2017-11-01T01:30:00 | B5: 1020 | C5: 5.6 | D5: 88 | E5: 4 | F5: 0 | G5: 3.767592303 | I5: Minimální teplota | J5: =MIN(C1:C1530) -> -1 | K5: °C | X5: 0.268887455
A6: 2017-11-01T02:00:00 | B6: 1021 | C6: 5.6 | D6: 86 | E6: 0 | F6: 0 | G6: 3.440913274 | I6: Úhrn srážek | J6: =SUM(F2:F1614) -> 65.5 | K6: mm | X6: 0.2458982289
A7: 2017-11-01T02:30:00 | B7: 1020 | C7: 5.6 | D7: 86 | E7: 0 | F7: 0 | G7: 3.440913274 | I7: Maximální náraz větru | J7: =MAX(E1:E1530) -> 15 | K7: m/s | X7: 0.2458982289
A8: 2017-11-01T03:00:00 | B8: 1020 | C8: 5.4 | D8: 87 | E8: 0 | F8: 0 | G8: 3.408277566 | X8: 0.2435982245
A9: 2017-11-01T03:30:00 | B9: 1020 | C9: 5.3 | D9: 87 | E9: 0 | F9: 0 | G9: 3.309873693 | X9: 0.2366595153
A10: 2017-11-01T04:00:00 | B10: 1020 | C10: 5.4 | D10: 88 | E10: 0 | F10: 0 | G10: 3.57052722 | X10: 0.2550267752
A11: 2017-11-01T04:30:00 | B11: 1020 | C11: 5.1 | D11: 89 | E11: 0 | F11: 0 | G11: 3.435166758 | X11: 0.2454932868
A12: 2017-11-01T05:00:00 | B12: 1019 | C12: 4.9 | D12: 90 | E12: 0 | F12: 0 | G12: 3.396241762 | X12: 0.2427498465
A13: 2017-11-01T05:30:00 | B13: 1019 | C13: 5 | D13: 90 | E13: 0 | F13: 0 | G13: 3.495032586 | X13: 0.2497109504
A14: 2017-11-01T06:00:00 | B14: 1019 | C14: 5 | D14: 90 | E14: 0 | F14: 0 | G14: 3.495032586 | X14: 0.2497109504
A15: 2017-11-01T06:30:00 | B15: 1019 | C15: 4.9 | D15: 90 | E15: 0 | F15: 0 | G15: 3.396241762 | X15: 0.2427498465
A16: 2017-11-01T07:00:00 | B16: 1019 | C16: 4.9 | D16: 90 | E16: 0 | F16: 0 | G16: 3.396241762 | X16: 0.2427498465
A17: 2017-11-01T07:30:00 | B17: 1019 | C17: 4.9 | D17: 90 | E17: 0 | F17: 0 | G17: 3.396241762 | X17: 0.2427498465
A18: 2017-11-01T08:00:00 | B18: 1019 | C18: 4.9 | D18: 90 | E18: 0 | F18: 0 | G18: 3.396241762 | X18: 0.2427498465
A19: 2017-11-01T08:30:00 | B19: 1019 | C19: 5 | D19: 90 | E19: 2 | F19: 0 | G19: 3.495032586 | X19: 0.2497109504
A20: 2017-11-01T09:00:00 | B20: 1019 | C20: 5 | D20: 90 | E20: 1 | F20: 0 | G20: 3.495032586 | X20: 0.2497109504
A21: 2017-11-01T09:30:00 | B21: 1019 | C21: 4.8 | D21: 91 | E21: 0 | F21: 0.5 | G21: 3.45417708 | X21: 0.2468328228
A22: 2017-11-01T10:00:00 | B22: 1019 | C22: 4.7 | D22: 92 | E22: 0 | F22: 0.5 | G22: 3.510345025 | X22: 0.2507894126
A23: 2017-11-01T10:30:00 | B23: 1019 | C23: 4.7 | D23: 93 | E23: 0 | F23: 0 | G23: 3.66394594 | X23: 0.2616001913
A24: 2017-11-01T11:00:00 | B24: 1019 | C24: 4.7 | D24: 94 | E24: 0 | F24: 0 | G24: 3.816092415 | X24: 0.2722953445
A25: 2017-11-01T11:30:00 | B25: 1019 | C25: 4.8 | D25: 94 | E25: 0 | F25: 0.5 | G25: 3.915380198 | X25: 0.2792676864
A26: 2017-11-01T12:00:00 | B26: 1019 | C26: 5 | D26: 95 | E26: 0 | F26: 0.5 | G26: 4.265040023 | X26: 0.3037774847
A27: 2017-11-01T12:30:00 | B27: 1019 | C27: 5 | D27: 95 | E27: 0 | F27: 0 | G27: 4.265040023 | X27: 0.3037774847
A28: 2017-11-01T13:00:00 | B28: 1018 | C28: 5.3 | D28: 95 | E28: 0 | F28: 0 | G28: 4.563264318 | X28: 0.3246271706
A29: 2017-11-01T13:30:00 | B29: 1018 | C29: 5.4 | D29: 95 | E29: 0 | F29: 0.5 | G29: 4.662671942 | X29: 0.3315658798
A30: 2017-11-01T14:00:00 | B30: 1018 | C30: 5.4 | D30: 96 | E30: 0 | F30: 0 | G30: 4.812838585 | X30: 0.3420370466
A31: 2017-11-01T14:30:00 | B31: 1018 | C31: 5.5 | D31: 96 | E31: 0 | F31: 0 | G31: 4.912366522 | X31: 0.3489701741
A32: 2017-11-01T15:00:00 | B32: 1018 | C32: 5.7 | D32: 96 | E32: 0 | F32: 0 | G32: 5.111421828 | X32: 0.3628197106
A33: 2017-11-01T15:30:00 | B33: 1018 | C33: 5.9 | D33: 96 | E33: 0 | F33: 0 | G33: 5.310476378 | X33: 0.3766470006
A34: 2017-11-01T16:00:00 | B34: 1017 | C34: 6 | D34: 96 | E34: 0 | F34: 0.5 | G34: 5.410003369 | X34: 0.3835523199
A35: 2017-11-01T16:30:00 | B35: 1017 | C35: 6 | D35: 96 | E35: 0 | F35: 0 | G35: 5.410003369 | X35: 0.3835523199
A36: 2017-11-01T17:00:00 | B36: 1017 | C36: 6 | D36: 96 | E36: 0 | F36: 0 | G36: 5.410003369 | X36: 0.3835523199
A37: 2017-11-01T17:30:00 | B37: 1017 | C37: 6 | D37: 97 | E37: 0 | F37: 0 | G37: 5.559510977 | X37: 0.3939149753
A38: 2017-11-01T18:00:00 | B38: 1017 | C38: 6 | D38: 97 | E38: 0 | F38: 0 | G38: 5.559510977 | X38: 0.3939149753
A39: 2017-11-01T18:30:00 | B39: 1017 | C39: 6.1 | D39: 97 | E39: 0 | F39: 0 | G39: 5.659157583 | X39: 0.4008147531
A40: 2017-11-01T19:00:00 | B40: 1017 | C40: 6.2 | D40: 97 | E40: 0 | F40: 0 | G40: 5.758804048 | X40: 0.407708996
A41: 2017-11-01T19:30:00 | B41: 1017 | C41: 6.3 | D41: 97 | E41: 0 | F41: 0 | G41: 5.858450371 | X41: 0.4145977107
A42: 2017-11-01T20:00:00 | B42: 1018 | C42: 6.5 | D42: 97 | E42: 0 | F42: 0 | G42: 6.057742592 | X42: 0.428358582
A43: 2017-11-01T20:30:00 | B43: 1017 | C43: 6.5 | D43: 97 | E43: 0 | F43: 0 | G43: 6.057742592 | X43: 0.428358582
A44: 2017-11-01T21:00:00 | B44: 1017 | C44: 6.5 | D44: 97 | E44: 0 | F44: 0 | G44: 6.057742592 | X44: 0.428358582
A45: 2017-11-01T21:30:00 | B45: 1017 | C45: 6.5 | D45: 97 | E45: 0 | F45: 0 | G45: 6.057742592 | X45: 0.428358582
A46: 2017-11-01T22:00:00 | B46: 1017 | C46: 6.7 | D46: 97 | E46: 0 | F46: 0 | G46: 6.257034248 | X46: 0.44209742
A47: 2017-11-01T22:30:00 | B47: 1017 | C47: 6.7 | D47: 97 | E47: 0 | F47: 0 | G47: 6.257034248 | X47: 0.44209742
A48: 2017-11-01T23:00:00 | B48: 1017 | C48: 6.8 | D48: 97 | E48: 0 | F48: 0 | G48: 6.356679864 | X48: 0.4489585931
A49: 2017-11-01T23:30:00 | B49: 1017 | C49: 6.9 | D49: 97 | E49: 0 | F49: 0 | G49: 6.456325338 | X49: 0.4558142777
A50: 2017-11-02 | B50: 1017 | C50: 6.9 | D50: 97 | E50: 0 | F50: 0 | G50: 6.456325338 | X50: 0.4558142777
A51: 2017-11-02T00:30:00 | B51: 1016 | C51: 7 | D51: 97 | E51: 0 | F51: 0 | G51: 6.555970671 | X51: 0.4626644803
A52: 2017-11-02T01:00:00 | B52: 1016 | C52: 7 | D52: 97 | E52: 0 | F52: 0 | G52: 6.555970671 | X52: 0.4626644803
A53: 2017-11-02T01:30:00 | B53: 1016 | C53: 6.9 | D53: 97 | E53: 0 | F53: 0 | G53: 6.456325338 | X53: 0.4558142777
A54: 2017-11-02T02:00:00 | B54: 1016 | C54: 6.9 | D54: 97 | E54: 0 | F54: 0 | G54: 6.456325338 | X54: 0.4558142777
A55: 2017-11-02T02:30:00 | B55: 1015 | C55: 6.9 | D55: 97 | E55: 0 | F55: 0 | G55: 6.456325338 | X55: 0.4558142777
A56: 2017-11-02T03:00:00 | B56: 1015 | C56: 6.9 | D56: 97 | E56: 0 | F56: 0 | G56: 6.456325338 | X56: 0.4558142777
A57: 2017-11-02T03:30:00 | B57: 1015 | C57: 6.9 | D57: 97 | E57: 0 | F57: 0.5 | G57: 6.456325338 | X57: 0.4558142777
A58: 2017-11-02T04:00:00 | B58: 1015 | C58: 6.8 | D58: 97 | E58: 0 | F58: 0 | G58: 6.356679864 | X58: 0.4489585931
A59: 2017-11-02T04:30:00 | B59: 1014 | C59: 6.8 | D59: 97 | E59: 0 | F59: 0 | G59: 6.356679864 | X59: 0.4489585931
A60: 2017-11-02T05:00:00 | B60: 1014 | C60: 6.8 | D60: 97 | E60: 0 | F60: 0 | G60: 6.356679864 | X60: 0.4489585931
A61: 2017-11-02T05:30:00 | B61: 1013 | C61: 6.7 | D61: 97 | E61: 0 | F61: 0 | G61: 6.257034248 | X61: 0.44209742
A62: 2017-11-02T06:00:00 | B62: 1013 | C62: 6.8 | D62: 97 | E62: 0 | F62: 0 | G62: 6.356679864 | X62: 0.4489585931
A63: 2017-11-02T06:30:00 | B63: 1013 | C63: 6.7 | D63: 97 | E63: 0 | F63: 0 | G63: 6.257034248 | X63: 0.44209742
A64: 2017-11-02T07:00:00 | B64: 1012 | C64: 6.3 | D64: 97 | E64: 0 | F64: 0 | G64: 5.858450371 | X64: 0.4145977107
A65: 2017-11-02T07:30:00 | B65: 1012 | C65: 6.2 | D65: 97 | E65: 1 | F65: 0 | G65: 5.758804048 | X65: 0.407708996
A66: 2017-11-02T08:00:00 | B66: 1012 | C66: 6 | D66: 97 | E66: 1 | F66: 0 | G66: =(243.12*X66)/(17.62-X66) -> 5.559510977 | X66: =(LOG10(D66) - 2)/0.4343 + (17.62*C66 / (243.12 + C66)) -> 0.3939149753
A67: 2017-11-02T08:30:00 | B67: 1012 | C67: 6 | D67: 96 | E67: 1 | F67: 0 | G67: 5.410003369 | X67: 0.3835523199
A68: 2017-11-02T09:00:00 | B68: 1012 | C68: 6.3 | D68: 96 | E68: 0 | F68: 0 | G68: 5.708583206 | X68: 0.4042350553
A69: 2017-11-02T09:30:00 | B69: 1012 | C69: 6.3 | D69: 95 | E69: 0 | F69: 0 | G69: 5.557329875 | X69: 0.3937638885
A70: 2017-11-02T10:00:00 | B70: 1011 | C70: 6.5 | D70: 95 | E70: 0 | F70: 0 | G70: 5.756140138 | X70: 0.4075247598
A71: 2017-11-02T10:30:00 | B71: 1011 | C71: 6.7 | D71: 95 | E71: 0 | F71: 0 | G71: 5.954949451 | X71: 0.4212635978
A72: 2017-11-02T11:00:00 | B72: 1011 | C72: 7.3 | D72: 94 | E72: 0 | F72: 0 | G72: 6.397481887 | X72: 0.4517664654
A73: 2017-11-02T11:30:00 | B73: 1011 | C73: 7.4 | D73: 93 | E73: 0 | F73: 0 | G73: 6.341295555 | X73: 0.4478996528
A74: 2017-11-02T12:00:00 | B74: 1010 | C74: 7.3 | D74: 92 | E74: 1 | F74: 0 | G74: 6.085312759 | X74: 0.4302605335
A75: 2017-11-02T12:30:00 | B75: 1010 | C75: 7.6 | D75: 92 | E75: 1 | F75: 0 | G75: 6.382407731 | X75: 0.4507292144
A76: 2017-11-02T13:00:00 | B76: 1009 | C76: 7.7 | D76: 91 | E76: 3 | F76: 0 | G76: 6.322595351 | X76: 0.4466122954
A77: 2017-11-02T13:30:00 | B77: 1009 | C77: 8.9 | D77: 90 | E77: 0 | F77: 0 | G77: 7.347498019 | X77: 0.5168850894
A78: 2017-11-02T14:00:00 | B78: 1008 | C78: 9.1 | D78: 88 | E78: 1 | F78: 0 | G78: 7.21585332 | X78: 0.5078910344
A79: 2017-11-02T14:30:00 | B79: 1008 | C79: 9.3 | D79: 87 | E79: 0 | F79: 0 | G79: 7.245533647 | X79: 0.5099196403
A80: 2017-11-02T15:00:00 | B80: 1008 | C80: 9.4 | D80: 87 | E80: 0 | F80: 0 | G80: 7.343912138 | X80: 0.5166402248
A81: 2017-11-02T15:30:00 | B81: 1008 | C81: 9.4 | D81: 87 | E81: 0 | F81: 0 | G81: 7.343912138 | X81: 0.5166402248
A82: 2017-11-02T16:00:00 | B82: 1008 | C82: 9.7 | D82: 87 | E82: 0 | F82: 0 | G82: 7.639043806 | X82: 0.5367700794
A83: 2017-11-02T16:30:00 | B83: 1008 | C83: 9.2 | D83: 88 | E83: 0 | F83: 0 | G83: 7.314364558 | X83: 0.5146222793
A84: 2017-11-02T17:00:00 | B84: 1008 | C84: 9.1 | D84: 89 | E84: 0 | F84: 0 | G84: 7.381263493 | X84: 0.5191904461
A85: 2017-11-02T17:30:00 | B85: 1009 | C85: 9.3 | D85: 89 | E85: 0 | F85: 0 | G85: 7.57854594 | X85: 0.5326476026
A86: 2017-11-02T18:00:00 | B86: 1009 | C86: 9.3 | D86: 88 | E86: 0 | F86: 0 | G86: 7.412875213 | X86: 0.5213481909
A87: 2017-11-02T18:30:00 | B87: 1009 | C87: 9.4 | D87: 85 | E87: 0 | F87: 0 | G87: 7.003802303 | X87: 0.4933836582
A88: 2017-11-02T19:00:00 | B88: 1009 | C88: 9 | D88: 85 | E88: 1 | F88: 0 | G88: 6.611351698 | X88: 0.4664693325
A89: 2017-11-02T19:30:00 | B89: 1010 | C89: 8.7 | D89: 86 | E89: 0 | F89: 0 | G89: 6.486996391 | X89: 0.4579233678
A90: 2017-11-02T20:00:00 | B90: 1010 | C90: 8.7 | D90: 86 | E90: 0 | F90: 0 | G90: 6.486996391 | X90: 0.4579233678
A91: 2017-11-02T20:30:00 | B91: 1010 | C91: 8.9 | D91: 85 | E91: 3 | F91: 0 | G91: 6.513237204 | X91: 0.4597274018
A92: 2017-11-02T21:00:00 | B92: 1010 | C92: 8.6 | D92: 86 | E92: 3 | F92: 0 | G92: 6.388745933 | X92: 0.4511653606
A93: 2017-11-02T21:30:00 | B93: 1011 | C93: 8.4 | D93: 87 | E93: 1 | F93: 0 | G93: 6.360098674 | X93: 0.4491939006
A94: 2017-11-02T22:00:00 | B94: 1011 | C94: 8.3 | D94: 88 | E94: 0 | F94: 0 | G94: 6.427742403 | X94: 0.45384831
A95: 2017-11-02T22:30:00 | B95: 1011 | C95: 8.3 | D95: 89 | E95: 5 | F95: 0 | G95: 6.592112381 | X95: 0.4651477217
A96: 2017-11-02T23:00:00 | B96: 1012 | C96: 8 | D96: 89 | E96: 6 | F96: 0 | G96: 6.296171918 | X96: 0.4447929272
A97: 2017-11-02T23:30:00 | B97: 1011 | C97: 7.9 | D97: 90 | E97: 3 | F97: 0 | G97: 6.359756393 | X97: 0.4491703426
A98: 2017-11-03 | B98: 1012 | C98: 8 | D98: 91 | E98: 0 | F98: 0 | G98: 6.619307485 | X98: 0.4670157816
A99: 2017-11-03T00:30:00 | B99: 1012 | C99: 7.9 | D99: 91 | E99: 1 | F99: 0 | G99: 6.520403873 | X99: 0.4602200384
A100: 2017-11-03T01:00:00 | B100: 1012 | C100: 7.9 | D100: 91 | E100: 0 | F100: 0 | G100: 6.520403873 | X100: 0.4602200384
A101: 2017-11-03T01:30:00 | B101: 1012 | C101: 7.9 | D101: 91 | E101: 0 | F101: 0 | G101: 6.520403873 | X101: 0.4602200384
A102: 2017-11-03T02:00:00 | B102: 1012 | C102: 7.8 | D102: 91 | E102: 0 | F102: 0 | G102: 6.421499829 | X102: 0.4534188785
A103: 2017-11-03T02:30:00 | B103: 1012 | C103: 7.8 | D103: 91 | E103: 0 | F103: 0 | G103: 6.421499829 | X103: 0.4534188785
A104: 2017-11-03T03:00:00 | B104: 1012 | C104: 7.9 | D104: 92 | E104: 0 | F104: 0 | G104: 6.67949925 | X104: 0.47114897
A105: 2017-11-03T03:30:00 | B105: 1012 | C105: 7.8 | D105: 92 | E105: 3 | F105: 0 | G105: 6.580469127 | X105: 0.4643478101
A106: 2017-11-03T04:00:00 | B106: 1013 | C106: 7.8 | D106: 93 | E106: 0 | F106: 0 | G106: 6.7379192 | X106: 0.4751585889
A107: 2017-11-03T04:30:00 | B107: 1013 | C107: 7.8 | D107: 93 | E107: 0 | F107: 0 | G107: 6.7379192 | X107: 0.4751585889
A108: 2017-11-03T05:00:00 | B108: 1013 | C108: 7.9 | D108: 93 | E108: 0 | F108: 0 | G108: 6.837074275 | X108: 0.4819597488
A109: 2017-11-03T05:30:00 | B109: 1013 | C109: 7.7 | D109: 93 | E109: 5 | F109: 0 | G109: 6.63876379 | X109: 0.4683520058
A110: 2017-11-03T06:00:00 | B110: 1013 | C110: 7.6 | D110: 93 | E110: 1 | F110: 0 | G110: 6.539608046 | X110: 0.4615399931
A111: 2017-11-03T06:30:00 | B111: 1013 | C111: 7.5 | D111: 93 | E111: 0 | F111: 0 | G111: 6.440451968 | X111: 0.4547225443
A112: 2017-11-03T07:00:00 | B112: 1014 | C112: 7.4 | D112: 92 | E112: 0 | F112: 0 | G112: 6.1843448 | X112: 0.4370888741
A113: 2017-11-03T07:30:00 | B113: 1013 | C113: 7.4 | D113: 92 | E113: 0 | F113: 0 | G113: 6.1843448 | X113: 0.4370888741
A114: 2017-11-03T08:00:00 | B114: 1014 | C114: 7.3 | D114: 92 | E114: 4 | F114: 0 | G114: 6.085312759 | X114: 0.4302605335
A115: 2017-11-03T08:30:00 | B115: 1014 | C115: 7.3 | D115: 91 | E115: 0 | F115: 0 | G115: 5.926973108 | X115: 0.4193316018
A116: 2017-11-03T09:00:00 | B116: 1015 | C116: 7.4 | D116: 91 | E116: 0 | F116: 0 | G116: 6.025879318 | X116: 0.4261599424
A117: 2017-11-03T09:30:00 | B117: 1015 | C117: 7.5 | D117: 91 | E117: 0 | F117: 0 | G117: 6.124785095 | X117: 0.4329828339
A118: 2017-11-03T10:00:00 | B118: 1015 | C118: 7.6 | D118: 91 | E118: 3 | F118: 0 | G118: 6.223690439 | X118: 0.4398002827
A119: 2017-11-03T10:30:00 | B119: 1016 | C119: 7.6 | D119: 90 | E119: 0 | F119: 0 | G119: 6.063424489 | X119: 0.4287505869
A120: 2017-11-03T11:00:00 | B120: 1016 | C120: 7.7 | D120: 90 | E120: 0 | F120: 0 | G120: 6.162202273 | I120: 2017-11-01 | J120: 3 | X120: 0.4355625996
A121: 2017-11-03T11:30:00 | B121: 1016 | C121: 7.9 | D121: 89 | E121: 0 | F121: 0 | G121: 6.197524032 | I121: 2017-11-02 | J121: 0.5 | X121: 0.437997184
A122: 2017-11-03T12:00:00 | B122: 1016 | C122: 8.5 | D122: 87 | E122: 0 | F122: 0 | G122: 6.458482876 | I122: 2017-11-03 | J122: 0 | X122: 0.4559626573
A123: 2017-11-03T12:30:00 | B123: 1016 | C123: 8.8 | D123: 86 | E123: 0 | F123: 0 | G123: 6.585246163 | I123: 2017-11-04 | J123: 0 | X123: 0.4646760097
A124: 2017-11-03T13:00:00 | B124: 1016 | C124: 8.9 | D124: 85 | E124: 0 | F124: 0 | G124: 6.513237204 | I124: 2017-11-05 | J124: 0 | X124: 0.4597274018
A125: 2017-11-03T13:30:00 | B125: 1016 | C125: 8.8 | D125: 84 | E125: 0 | F125: 0 | G125: 6.243220209 | I125: 2017-11-06 | J125: 4.5 | X125: 0.4411458113
A126: 2017-11-03T14:00:00 | B126: 1016 | C126: 9.1 | D126: 83 | E126: 0 | F126: 0 | G126: 6.363028842 | I126: 2017-11-07 | J126: 0 | X126: 0.449395571
A127: 2017-11-03T14:30:00 | B127: 1016 | C127: 9.4 | D127: 81 | E127: 0 | F127: 0 | G127: 6.301824563 | I127: 2017-11-08 | J127: 0 | X127: 0.4451821688
A128: 2017-11-03T15:00:00 | B128: 1016 | C128: 9.2 | D128: 82 | E128: 0 | F128: 0 | G128: 6.284739113 | I128: 2017-11-09 | J128: 1 | X128: 0.4440056094
A129: 2017-11-03T15:30:00 | B129: 1016 | C129: 9.2 | D129: 80 | E129: 0 | F129: 0 | G129: 5.92670827 | I129: 2017-11-10 | J129: 7 | X129: 0.4193133105
A130: 2017-11-03T16:00:00 | B130: 1016 | C130: 9.2 | D130: 82 | E130: 0 | F130: 0 | G130: =(243.12*X130)/(17.62-X130) -> 6.284739113 | I130: 2017-11-11 | J130: 3 | X130: =(LOG10(D130) - 2)/0.4343 + (17.62*C130 / (243.12 + C130)) -> 0.4440056094
A131: 2017-11-03T16:30:00 | B131: 1016 | C131: 9.3 | D131: 82 | E131: 0 | F131: 0 | G131: 6.38244125 | I131: 2017-11-12 | J131: 3 | X131: 0.4507315209
A132: 2017-11-03T17:00:00 | B132: 1016 | C132: 9.2 | D132: 81 | E132: 0 | F132: 0 | G132: 6.106700173 | I132: 2017-11-13 | J132: 5.5 | X132: 0.4317356727
A133: 2017-11-03T17:30:00 | B133: 1016 | C133: 8 | D133: 85 | E133: 0 | F133: 0 | G133: 5.630173569 | I133: 2017-11-14 | J133: 0.5 | X133: 0.3988083982
A134: 2017-11-03T18:00:00 | B134: 1016 | C134: 7.6 | D134: 87 | E134: 0 | F134: 0 | G134: 5.57300222 | I134: 2017-11-15 | J134: 0 | X134: 0.394849466
A135: 2017-11-03T18:30:00 | B135: 1016 | C135: 6.6 | D135: 89 | E135: 0 | F135: 0 | G135: 4.915052991 | I135: 2017-11-16 | J135: 0 | X135: 0.3491572367
A136: 2017-11-03T19:00:00 | B136: 1016 | C136: 6 | D136: 91 | E136: 0 | F136: 0 | G136: 4.641152959 | I136: 2017-11-17 | J136: 1 | X136: 0.3300643146
A137: 2017-11-03T19:30:00 | B137: 1016 | C137: 4.9 | D137: 92 | E137: 0 | F137: 0 | G137: 3.708428675 | I137: 2017-11-18 | J137: 0 | X137: 0.264728474
A138: 2017-11-03T20:00:00 | B138: 1016 | C138: 4.4 | D138: 93 | E138: 0 | F138: 0 | G138: 3.366447594 | I138: 2017-11-19 | J138: 1 | X138: 0.240649363
A139: 2017-11-03T20:30:00 | B139: 1016 | C139: 4.1 | D139: 94 | E139: 0 | F139: 0 | G139: 3.220359717 | I139: 2017-11-20 | J139: 7 | X139: 0.2303428406
A140: 2017-11-03T21:00:00 | B140: 1016 | C140: 3.7 | D140: 94 | E140: 0 | F140: 0 | G140: 2.823198868 | I140: 2017-11-21 | J140: 9.5 | X140: 0.2022611899
A141: 2017-11-03T21:30:00 | B141: 1016 | C141: 3.5 | D141: 95 | E141: 0 | F141: 0 | G141: 2.773886504 | I141: 2017-11-22 | J141: 1.5 | X141: 0.1987681796
A142: 2017-11-03T22:00:00 | B142: 1016 | C142: 3.4 | D142: 95 | E142: 0 | F142: 0 | G142: 2.674474371 | I142: 2017-11-23 | J142: 0 | X142: 0.1917221229
A143: 2017-11-03T22:30:00 | B143: 1016 | C143: 2.9 | D143: 95 | E143: 0 | F143: 0 | G143: 2.177410143 | I143: 2017-11-24 | J143: 0 | X143: 0.1564059184
A144: 2017-11-03T23:00:00 | B144: 1016 | C144: 2.7 | D144: 95 | E144: 0 | F144: 0 | G144: 1.97858279 | I144: 2017-11-25 | J144: 4.5 | X144: 0.1422392099
A145: 2017-11-03T23:30:00 | B145: 1016 | C145: 2.2 | D145: 95 | E145: 0 | F145: 0 | G145: 1.481510254 | I145: 2017-11-26 | J145: 0.5 | X145: 0.1067213798
A146: 2017-11-04 | B146: 1016 | C146: 3 | D146: 96 | E146: 0 | F146: 0 | G146: 2.424111322 | I146: 2017-11-27 | J146: 0 | X146: 0.1739518055
A147: 2017-11-04T00:30:00 | B147: 1016 | C147: 2.8 | D147: 95 | E147: 0 | F147: 0 | G147: 2.077996585 | I147: 2017-11-28 | J147: 11.5 | X147: 0.1493254445
A148: 2017-11-04T01:00:00 | B148: 1015 | C148: 3.4 | D148: 96 | E148: 0 | F148: 0 | G148: 2.822240102 | I148: 2017-11-29 | J148: 1 | X148: 0.2021932897
A149: 2017-11-04T01:30:00 | B149: 1015 | C149: 2.9 | D149: 95 | E149: 0 | F149: 0 | G149: 2.177410143 | I149: 2017-11-30 | J149: 0 | X149: 0.1564059184
A150: 2017-11-04T02:00:00 | B150: 1015 | C150: 2.5 | D150: 95 | E150: 0 | F150: 0 | G150: 1.779754488 | X150: 0.1280494305
A151: 2017-11-04T02:30:00 | B151: 1015 | C151: 3.2 | D151: 95 | E151: 0 | F151: 0 | G151: 2.475649392 | X151: 0.1776128461
A152: 2017-11-04T03:00:00 | B152: 1015 | C152: 3.4 | D152: 95 | E152: 0 | F152: 0 | G152: 2.674474371 | X152: 0.1917221229
A153: 2017-11-04T03:30:00 | B153: 1015 | C153: 3.7 | D153: 95 | E153: 0 | F153: 0 | G153: 2.972710059 | X153: 0.2128431648
A154: 2017-11-04T04:00:00 | B154: 1014 | C154: 4.2 | D154: 95 | E154: 0 | F154: 0 | G154: 3.469764793 | X154: 0.2479310352
A155: 2017-11-04T04:30:00 | B155: 1015 | C155: 4.7 | D155: 95 | E155: 0 | F155: 0 | G155: 3.966813592 | X155: 0.2828773194
A156: 2017-11-04T05:00:00 | B156: 1015 | C156: 4.8 | D156: 94 | E156: 0 | F156: 0 | G156: 3.915380198 | X156: 0.2792676864
A157: 2017-11-04T05:30:00 | B157: 1014 | C157: 4.9 | D157: 94 | E157: 0 | F157: 0 | G157: 4.014667695 | X157: 0.2862344059
A158: 2017-11-04T06:00:00 | B158: 1014 | C158: 4.4 | D158: 94 | E158: 0 | F158: 0 | G158: 3.518227352 | X158: 0.2513445163
A159: 2017-11-04T06:30:00 | B159: 1014 | C159: 3.9 | D159: 94 | E159: 0 | F159: 0 | G159: 3.021779864 | X159: 0.2163133834
A160: 2017-11-04T07:00:00 | B160: 1013 | C160: 3.8 | D160: 94 | E160: 0 | F160: 0 | G160: 2.922489509 | X160: 0.2092901322
A161: 2017-11-04T07:30:00 | B161: 1013 | C161: 4.2 | D161: 94 | E161: 0 | F161: 0 | G161: 3.319649214 | X161: 0.2373490603
A162: 2017-11-04T08:00:00 | B162: 1013 | C162: 4.3 | D162: 93 | E162: 1 | F162: 0 | G162: 3.26728081 | X162: 0.2336544633
A163: 2017-11-04T08:30:00 | B163: 1013 | C163: 3.9 | D163: 93 | E163: 0 | F163: 0 | G163: 2.870610326 | X163: 0.2056182302
A164: 2017-11-04T09:00:00 | B164: 1014 | C164: 3.9 | D164: 93 | E164: 0 | F164: 0 | G164: 2.870610326 | X164: 0.2056182302
A165: 2017-11-04T09:30:00 | B165: 1013 | C165: 4.5 | D165: 93 | E165: 0 | F165: 0 | G165: 3.465614044 | X165: 0.247638613
A166: 2017-11-04T10:00:00 | B166: 1013 | C166: 6.5 | D166: 91 | E166: 1 | F166: 0 | G166: 5.135707832 | X166: 0.3645079213
A167: 2017-11-04T10:30:00 | B167: 1013 | C167: 7.1 | D167: 88 | E167: 1 | F167: 0 | G167: 5.245505998 | X167: 0.3721362808
A168: 2017-11-04T11:00:00 | B168: 1013 | C168: 7.9 | D168: 85 | E168: 1 | F168: 0 | G168: 5.5320517 | X168: 0.392012655
A169: 2017-11-04T11:30:00 | B169: 1013 | C169: 8.3 | D169: 83 | E169: 7 | F169: 0 | G169: 5.580270132 | X169: 0.3953528465
A170: 2017-11-04T12:00:00 | B170: 1013 | C170: 9.2 | D170: 81 | E170: 6 | F170: 0 | G170: 6.106700173 | X170: 0.4317356727
A171: 2017-11-04T12:30:00 | B171: 1013 | C171: 8.3 | D171: 83 | E171: 4 | F171: 0 | G171: 5.580270132 | X171: 0.3953528465
A172: 2017-11-04T13:00:00 | B172: 1012 | C172: 8.1 | D172: 84 | E172: 4 | F172: 0 | G172: 5.557337606 | X172: 0.393764424
A173: 2017-11-04T13:30:00 | B173: 1012 | C173: 8.5 | D173: 84 | E173: 5 | F173: 0 | G173: 5.949275259 | X173: 0.4208717834
A174: 2017-11-04T14:00:00 | B174: 1012 | C174: 8.6 | D174: 85 | E174: 4 | F174: 0 | G174: 6.218889296 | X174: 0.4394694694
A175: 2017-11-04T14:30:00 | B175: 1012 | C175: 8.5 | D175: 85 | E175: 3 | F175: 0 | G175: 6.120771852 | X175: 0.4327060907
A176: 2017-11-04T15:00:00 | B176: 1012 | C176: 8.5 | D176: 86 | E176: 2 | F176: 0 | G176: 6.290494788 | X176: 0.4444019818
A177: 2017-11-04T15:30:00 | B177: 1011 | C177: 8.4 | D177: 86 | E177: 5 | F177: 0 | G177: 6.192242959 | X177: 0.4376332251
A178: 2017-11-04T16:00:00 | B178: 1012 | C178: 8.5 | D178: 86 | E178: 3 | F178: 0 | G178: 6.290494788 | X178: 0.4444019818
A179: 2017-11-04T16:30:00 | B179: 1011 | C179: 8.5 | D179: 87 | E179: 3 | F179: 0 | G179: 6.458482876 | X179: 0.4559626573
A180: 2017-11-04T17:00:00 | B180: 1012 | C180: 8.1 | D180: 88 | E180: 2 | F180: 0 | G180: 6.230708839 | X180: 0.4402838486
A181: 2017-11-04T17:30:00 | B181: 1012 | C181: 7.7 | D181: 88 | E181: 4 | F181: 0 | G181: 5.836634706 | X181: 0.4130900293
A182: 2017-11-04T18:00:00 | B182: 1011 | C182: 7.4 | D182: 90 | E182: 6 | F182: 0 | G182: 5.865867472 | X182: 0.4151102466
A183: 2017-11-04T18:30:00 | B183: 1012 | C183: 7.4 | D183: 90 | E183: 2 | F183: 0 | G183: 5.865867472 | X183: 0.4151102466
A184: 2017-11-04T19:00:00 | B184: 1012 | C184: 7.3 | D184: 90 | E184: 2 | F184: 0 | G184: 5.767088239 | X184: 0.408281906
A185: 2017-11-04T19:30:00 | B185: 1012 | C185: 7.3 | D185: 90 | E185: 3 | F185: 0 | G185: 5.767088239 | X185: 0.408281906
A186: 2017-11-04T20:00:00 | B186: 1011 | C186: 7.3 | D186: 90 | E186: 2 | F186: 0 | G186: 5.767088239 | X186: 0.408281906
A187: 2017-11-04T20:30:00 | B187: 1012 | C187: 7.3 | D187: 90 | E187: 4 | F187: 0 | G187: 5.767088239 | X187: 0.408281906
A188: 2017-11-04T21:00:00 | B188: 1011 | C188: 7.3 | D188: 90 | E188: 4 | F188: 0 | G188: 5.767088239 | X188: 0.408281906
A189: 2017-11-04T21:30:00 | B189: 1012 | C189: 7.4 | D189: 91 | E189: 4 | F189: 0 | G189: 6.025879318 | X189: 0.4261599424
A190: 2017-11-04T22:00:00 | B190: 1011 | C190: 7.6 | D190: 90 | E190: 2 | F190: 0 | G190: 6.063424489 | X190: 0.4287505869
A191: 2017-11-04T22:30:00 | B191: 1011 | C191: 7.7 | D191: 90 | E191: 4 | F191: 0 | G191: 6.162202273 | X191: 0.4355625996
A192: 2017-11-04T23:00:00 | B192: 1011 | C192: 7.5 | D192: 90 | E192: 3 | F192: 0 | G192: 5.964646222 | X192: 0.4219331381
A193: 2017-11-04T23:30:00 | B193: 1011 | C193: 7.5 | D193: 90 | E193: 1 | F193: 0 | G193: 5.964646222 | X193: 0.4219331381
A194: 2017-11-05 | B194: 1011 | C194: 7.4 | D194: 90 | E194: 1 | F194: 0 | G194: =(243.12*X194)/(17.62-X194) -> 5.865867472 | X194: =(LOG10(D194) - 2)/0.4343 + (17.62*C194 / (243.12 + C194)) -> 0.4151102466
A195: 2017-11-05T00:30:00 | B195: 1011 | C195: 7.2 | D195: 90 | E195: 2 | F195: 0 | G195: 5.668308523 | X195: 0.4014481097
A196: 2017-11-05T01:00:00 | B196: 1011 | C196: 6.9 | D196: 91 | E196: 0 | F196: 0 | G196: 5.531343935 | X196: 0.391963617
A197: 2017-11-05T01:30:00 | B197: 1011 | C197: 7 | D197: 91 | E197: 0 | F197: 0 | G197: 5.630251878 | X197: 0.3988138196
A198: 2017-11-05T02:00:00 | B198: 1011 | C198: 6.8 | D198: 91 | E198: 0 | F198: 0 | G198: 5.432435559 | X198: 0.3851079324
A199: 2017-11-05T02:30:00 | B199: 1011 | C199: 6.8 | D199: 91 | E199: 0 | F199: 0 | G199: 5.432435559 | X199: 0.3851079324
A200: 2017-11-05T03:00:00 | B200: 1011 | C200: 6.9 | D200: 91 | E200: 0 | F200: 0 | G200: 5.531343935 | X200: 0.391963617
... 1243 more rows

Sheet Prosinec
A1: Datum, čas | B1: Pred [hPa] | C1: T [ºC] | D1: Rh [%] | E1: v max [m.s-1] | F1: Srážky [mm] | G1: Tdew [ºC]
A2: 2017-12-01 | B2: 1004 | C2: -0.9 | D2: 94 | E2: 0 | F2: 0 | G2: =(243.12*X2)/(17.62-X2) -> -1.744479593 | X2: =(LOG10(D2) - 2)/0.4343 + (17.62*C2 / (243.12 + C2)) -> -0.1273440255
A3: 2017-12-01T00:30:00 | B3: 1004 | C3: -0.6 | D3: 94 | E3: 0 | F3: 0 | G3: -1.446569082 | I3: Průměrná teplota | J3: =AVERAGE(C1:C1530) -> 1.283412003 | K3: °C | X3: -0.1054668986
A4: 2017-12-01T01:00:00 | B4: 1004 | C4: -0.5 | D4: 94 | E4: 0 | F4: 0 | G4: -1.347266151 | I4: Maximální teplota | J4: =MAX(C1:C1530) -> 8.2 | K4: °C | X4: -0.09818654566
A5: 2017-12-01T01:30:00 | B5: 1004 | C5: -0.5 | D5: 93 | E5: 0 | F5: 0 | G5: -1.493118353 | I5: Minimální teplota | J5: =MIN(C1:C1530) -> -9.7 | K5: °C | X5: -0.1088816989
A6: 2017-12-01T02:00:00 | B6: 1004 | C6: -0.7 | D6: 93 | E6: 0 | F6: 0 | G6: -1.69148505 | I6: Úhrn srážek | J6: =SUM(F2:F1614) -> 67 | K6: mm | X6: -0.1234484111
A7: 2017-12-01T02:30:00 | B7: 1004 | C7: -1.1 | D7: 93 | E7: 0 | F7: 0 | G7: -2.08822246 | I7: Maximální náraz větru | J7: =MAX(E1:E1530) -> 27 | K7: m/s | X7: -0.1526540613
A8: 2017-12-01T03:00:00 | B8: 1005 | C8: -1.3 | D8: 93 | E8: 0 | F8: 0 | G8: -2.286593174 | X8: -0.1672931187
A9: 2017-12-01T03:30:00 | B9: 1005 | C9: -1.2 | D9: 94 | E9: 0 | F9: 0 | G9: -2.042392677 | X9: -0.1492754112
A10: 2017-12-01T04:00:00 | B10: 1005 | C10: -1.2 | D10: 94 | E10: 0 | F10: 0 | G10: -2.042392677 | X10: -0.1492754112
A11: 2017-12-01T04:30:00 | B11: 1005 | C11: -1.3 | D11: 94 | E11: 0 | F11: 0 | G11: -2.14169761 | X11: -0.1565979655
A12: 2017-12-01T05:00:00 | B12: 1006 | C12: -1.1 | D12: 95 | E12: 0 | F12: 0 | G12: -1.799317322 | X12: -0.1313769332
A13: 2017-12-01T05:30:00 | B13: 1006 | C13: -1.4 | D13: 95 | E13: 0 | F13: 0 | G13: -2.097587194 | X13: -0.1533446036
A14: 2017-12-01T06:00:00 | B14: 1006 | C14: -1.8 | D14: 95 | E14: 0 | F14: 0 | G14: -2.49528368 | X14: -0.1827197933
A15: 2017-12-01T06:30:00 | B15: 1006 | C15: -1.7 | D15: 95 | E15: 0 | F15: 0 | G15: -2.395859202 | X15: -0.1753668702
A16: 2017-12-01T07:00:00 | B16: 1007 | C16: -1.3 | D16: 95 | E16: 0 | F16: 0 | G16: -1.998163666 | X16: -0.1460159906
A17: 2017-12-01T07:30:00 | B17: 1007 | C17: -1.2 | D17: 95 | E17: 0 | F17: 0 | G17: -1.898740375 | X17: -0.1386934363
A18: 2017-12-01T08:00:00 | B18: 1007 | C18: -1.1 | D18: 95 | E18: 0 | F18: 0 | G18: -1.799317322 | X18: -0.1313769332
A19: 2017-12-01T08:30:00 | B19: 1007 | C19: -1.3 | D19: 96 | E19: 0 | F19: 0 | G19: -1.855964314 | X19: -0.1355448238
A20: 2017-12-01T09:00:00 | B20: 1008 | C20: -1.4 | D20: 96 | E20: 0 | F20: 0 | G20: -1.95550512 | X20: -0.1428734368
A21: 2017-12-01T09:30:00 | B21: 1008 | C21: -1.3 | D21: 96 | E21: 0 | F21: 0 | G21: -1.855964314 | X21: -0.1355448238
A22: 2017-12-01T10:00:00 | B22: 1009 | C22: -1 | D22: 96 | E22: 0 | F22: 0 | G22: -1.557343029 | X22: -0.113595307
A23: 2017-12-01T10:30:00 | B23: 1009 | C23: -0.6 | D23: 96 | E23: 0 | F23: 0 | G23: -1.159183967 | X23: -0.0844137569
A24: 2017-12-01T11:00:00 | B24: 1010 | C24: -0.3 | D24: 95 | E24: 0 | F24: 0 | G24: -1.003941443 | X24: -0.07306185443
A25: 2017-12-01T11:30:00 | B25: 1010 | C25: 0 | D25: 95 | E25: 0 | F25: 0 | G25: -0.7056794055 | X25: -0.05129264267
A26: 2017-12-01T12:00:00 | B26: 1010 | C26: 0.5 | D26: 94 | E26: 0 | F26: 0 | G26: -0.3542525543 | X26: -0.02571174094
A27: 2017-12-01T12:30:00 | B27: 1010 | C27: 0.8 | D27: 93 | E27: 0 | F27: 0 | G27: -0.2037674501 | X27: -0.01478033161
A28: 2017-12-01T13:00:00 | B28: 1010 | C28: 1.2 | D28: 92 | E28: 0 | F28: 0 | G28: 0.04363269394 | X28: 0.00316169017
A29: 2017-12-01T13:30:00 | B29: 1011 | C29: 1.4 | D29: 90 | E29: 0 | F29: 0 | G29: -0.06174140023 | X29: -0.004475813652
A30: 2017-12-01T14:00:00 | B30: 1011 | C30: 1.7 | D30: 89 | E30: 0 | F30: 0.5 | G30: 0.0803137911 | X30: 0.005818779496
A31: 2017-12-01T14:30:00 | B31: 1011 | C31: 1.4 | D31: 88 | E31: 0 | F31: 0 | G31: -0.3712648197 | X31: -0.02694838397
A32: 2017-12-01T15:00:00 | B32: 1011 | C32: 1.4 | D32: 87 | E32: 0 | F32: 0 | G32: -0.5283724756 | X32: -0.03837693458
A33: 2017-12-01T15:30:00 | B33: 1011 | C33: 1.4 | D33: 85 | E33: 0 | F33: 0 | G33: -0.8474520651 | X33: -0.06163350125
A34: 2017-12-01T16:00:00 | B34: 1012 | C34: 1.3 | D34: 84 | E34: 0 | F34: 0 | G34: -1.107535796 | X34: -0.08063543665
A35: 2017-12-01T16:30:00 | B35: 1012 | C35: 0.9 | D35: 81 | E35: 0 | F35: 0 | G35: -1.994307597 | X35: -0.1457318774
A36: 2017-12-01T17:00:00 | B36: 1012 | C36: 0.5 | D36: 86 | E36: 0 | F36: 0 | G36: -1.571819222 | X36: -0.1146580968
A37: 2017-12-01T17:30:00 | B37: 1012 | C37: 0.2 | D37: 89 | E37: 0 | F37: 0 | G37: -1.399964391 | X37: -0.1020493502
A38: 2017-12-01T18:00:00 | B38: 1013 | C38: 0.1 | D38: 90 | E38: 0 | F38: 0 | G38: -1.346285875 | X38: -0.09811470695
A39: 2017-12-01T18:30:00 | B39: 1013 | C39: 0.2 | D39: 90 | E39: 0 | F39: 0 | G39: -1.247471862 | X39: -0.09087619161
A40: 2017-12-01T19:00:00 | B40: 1014 | C40: 0.2 | D40: 91 | E40: 0 | F40: 0 | G40: -1.096475023 | X40: -0.07982649582
A41: 2017-12-01T19:30:00 | B41: 1014 | C41: 0.1 | D41: 91 | E41: 0 | F41: 0 | G41: -1.195412424 | X41: -0.08706501116
A42: 2017-12-01T20:00:00 | B42: 1015 | C42: 0.2 | D42: 91 | E42: 0 | F42: 0 | G42: -1.096475023 | X42: -0.07982649582
A43: 2017-12-01T20:30:00 | B43: 1014 | C43: 0.1 | D43: 91 | E43: 0 | F43: 0 | G43: -1.195412424 | X43: -0.08706501116
A44: 2017-12-01T21:00:00 | B44: 1015 | C44: 0 | D44: 91 | E44: 0 | F44: 0 | G44: -1.294350259 | X44: -0.09430948119
A45: 2017-12-01T21:30:00 | B45: 1015 | C45: -0.2 | D45: 91 | E45: 0 | F45: 0 | G45: -1.492227228 | X45: -0.1088163147
A46: 2017-12-01T22:00:00 | B46: 1016 | C46: -0.4 | D46: 92 | E46: 0 | F46: 0 | G46: -1.541306664 | X46: -0.1124181237
A47: 2017-12-01T22:30:00 | B47: 1016 | C47: -0.6 | D47: 92 | E47: 0 | F47: 0 | G47: -1.739430993 | X47: -0.1269728306
A48: 2017-12-01T23:00:00 | B48: 1016 | C48: -0.5 | D48: 92 | E48: 0 | F48: 0 | G48: -1.640368637 | X48: -0.1196924776
A49: 2017-12-01T23:30:00 | B49: 1017 | C49: -0.9 | D49: 91 | E49: 0 | F49: 0 | G49: -2.184810271 | X49: -0.1597788892
A50: 2017-12-02 | B50: 1017 | C50: -1.4 | D50: 90 | E50: 0 | F50: 0 | G50: -2.828554043 | X50: -0.2074111379
A51: 2017-12-02T00:30:00 | B51: 1017 | C51: -1.6 | D51: 90 | E51: 0 | F51: 0 | G51: -3.026198014 | X51: -0.2220865702
A52: 2017-12-02T01:00:00 | B52: 1017 | C52: -1.5 | D52: 91 | E52: 0 | F52: 0 | G52: -2.778469779 | X52: -0.2036961214
A53: 2017-12-02T01:30:00 | B53: 1017 | C53: -1.4 | D53: 90 | E53: 0 | F53: 0 | G53: -2.828554043 | X53: -0.2074111379
A54: 2017-12-02T02:00:00 | B54: 1017 | C54: -1.4 | D54: 90 | E54: 0 | F54: 0 | G54: -2.828554043 | X54: -0.2074111379
A55: 2017-12-02T02:30:00 | B55: 1017 | C55: -1.4 | D55: 90 | E55: 0 | F55: 0 | G55: -2.828554043 | X55: -0.2074111379
A56: 2017-12-02T03:00:00 | B56: 1018 | C56: -1.3 | D56: 91 | E56: 0 | F56: 0 | G56: -2.580581543 | X56: -0.1890328291
A57: 2017-12-02T03:30:00 | B57: 1018 | C57: -1.2 | D57: 91 | E57: 0 | F57: 0 | G57: -2.481638075 | X57: -0.1817102748
A58: 2017-12-02T04:00:00 | B58: 1018 | C58: -1.1 | D58: 91 | E58: 0 | F58: 0 | G58: -2.38269504 | X58: -0.1743937717
A59: 2017-12-02T04:30:00 | B59: 1018 | C59: -1 | D59: 91 | E59: 0 | F59: 0 | G59: -2.283752439 | X59: -0.1670833123
A60: 2017-12-02T05:00:00 | B60: 1019 | C60: -0.9 | D60: 91 | E60: 0 | F60: 0 | G60: -2.184810271 | X60: -0.1597788892
A61: 2017-12-02T05:30:00 | B61: 1019 | C61: -0.9 | D61: 91 | E61: 0 | F61: 0 | G61: -2.184810271 | X61: -0.1597788892
A62: 2017-12-02T06:00:00 | B62: 1019 | C62: -0.9 | D62: 90 | E62: 0 | F62: 0 | G62: -2.334452573 | X62: -0.170828585
A63: 2017-12-02T06:30:00 | B63: 1019 | C63: -1 | D63: 91 | E63: 0 | F63: 0 | G63: -2.283752439 | X63: -0.1670833123
A64: 2017-12-02T07:00:00 | B64: 1019 | C64: -0.9 | D64: 91 | E64: 0 | F64: 0 | G64: -2.184810271 | X64: -0.1597788892
A65: 2017-12-02T07:30:00 | B65: 1020 | C65: -1 | D65: 91 | E65: 0 | F65: 0 | G65: -2.283752439 | X65: -0.1670833123
A66: 2017-12-02T08:00:00 | B66: 1020 | C66: -1.1 | D66: 92 | E66: 0 | F66: 0 | G66: =(243.12*X66)/(17.62-X66) -> -2.23474853 | X66: =(LOG10(D66) - 2)/0.4343 + (17.62*C66 / (243.12 + C66)) -> -0.1634648401
A67: 2017-12-02T08:30:00 | B67: 1020 | C67: -1.1 | D67: 92 | E67: 0 | F67: 0 | G67: -2.23474853 | X67: -0.1634648401
A68: 2017-12-02T09:00:00 | B68: 1020 | C68: -1 | D68: 93 | E68: 0 | F68: 0 | G68: -1.989037606 | X68: -0.1453436019
A69: 2017-12-02T09:30:00 | B69: 1021 | C69: -0.9 | D69: 93 | E69: 0 | F69: 0 | G69: -1.889853086 | X69: -0.1380391787
A70: 2017-12-02T10:00:00 | B70: 1021 | C70: -0.8 | D70: 93 | E70: 0 | F70: 0 | G70: -1.7906689 | X70: -0.1307407843
A71: 2017-12-02T10:30:00 | B71: 1021 | C71: -0.6 | D71: 93 | E71: 0 | F71: 0 | G71: -1.592301534 | X71: -0.1161620518
A72: 2017-12-02T11:00:00 | B72: 1021 | C72: -0.4 | D72: 93 | E72: 0 | F72: 0 | G72: -1.393935506 | X72: -0.1016073449
A73: 2017-12-02T11:30:00 | B73: 1021 | C73: -0.3 | D73: 93 | E73: 0 | F73: 0 | G73: -1.294752994 | X73: -0.09433898253
A74: 2017-12-02T12:00:00 | B74: 1022 | C74: 0 | D74: 92 | E74: 0 | F74: 0 | G74: -1.145062613 | X74: -0.08338054952
A75: 2017-12-02T12:30:00 | B75: 1022 | C75: 0.2 | D75: 91 | E75: 0 | F75: 0 | G75: -1.096475023 | X75: -0.07982649582
A76: 2017-12-02T13:00:00 | B76: 1022 | C76: 0.9 | D76: 90 | E76: 0 | F76: 0 | G76: -0.5557873043 | X76: -0.04037270046
A77: 2017-12-02T13:30:00 | B77: 1021 | C77: 1.1 | D77: 89 | E77: 0 | F77: 0 | G77: -0.5117830809 | X77: -0.03716946607
A78: 2017-12-02T14:00:00 | B78: 1021 | C78: 2 | D78: 88 | E78: 0 | F78: 0 | G78: 0.2200635402 | X78: 0.01593457124
A79: 2017-12-02T14:30:00 | B79: 1021 | C79: 1.5 | D79: 87 | E79: 1 | F79: 0 | G79: -0.4299438454 | X79: -0.03121516668
A80: 2017-12-02T15:00:00 | B80: 1021 | C80: 1.2 | D80: 87 | E80: 0 | F80: 0 | G80: -0.7252316408 | X80: -0.05271805822
A81: 2017-12-02T15:30:00 | B81: 1021 | C81: 0.2 | D81: 89 | E81: 5 | F81: 0 | G81: -1.399964391 | X81: -0.1020493502
A82: 2017-12-02T16:00:00 | B82: 1021 | C82: 0.1 | D82: 91 | E82: 1 | F82: 0 | G82: -1.195412424 | X82: -0.08706501116
A83: 2017-12-02T16:30:00 | B83: 1021 | C83: -0.1 | D83: 92 | E83: 1 | F83: 0 | G83: -1.24412305 | X83: -0.09063098158
A84: 2017-12-02T17:00:00 | B84: 1022 | C84: -0.2 | D84: 92 | E84: 2 | F84: 0 | G84: -1.343183871 | X84: -0.09788738304
A85: 2017-12-02T17:30:00 | B85: 1022 | C85: -0.2 | D85: 93 | E85: 0 | F85: 0 | G85: -1.195570817 | X85: -0.0870766043
A86: 2017-12-02T18:00:00 | B86: 1022 | C86: -0.1 | D86: 93 | E86: 0 | F86: 0 | G86: -1.096388974 | X86: -0.07982020283
A87: 2017-12-02T18:30:00 | B87: 1022 | C87: -0.1 | D87: 94 | E87: 0 | F87: 0 | G87: -0.9500572817 | X87: -0.06912504961
A88: 2017-12-02T19:00:00 | B88: 1022 | C88: -0.2 | D88: 94 | E88: 0 | F88: 0 | G88: -1.04935907 | X88: -0.07638145107
A89: 2017-12-02T19:30:00 | B89: 1022 | C89: 0 | D89: 94 | E89: 0 | F89: 0 | G89: -0.8507557792 | X89: -0.06187461755
A90: 2017-12-02T20:00:00 | B90: 1022 | C90: -0.1 | D90: 94 | E90: 0 | F90: 0 | G90: -0.9500572817 | X90: -0.06912504961
A91: 2017-12-02T20:30:00 | B91: 1022 | C91: -0.1 | D91: 94 | E91: 0 | F91: 0 | G91: -0.9500572817 | X91: -0.06912504961
A92: 2017-12-02T21:00:00 | B92: 1022 | C92: -0.1 | D92: 94 | E92: 0 | F92: 0 | G92: -0.9500572817 | X92: -0.06912504961
A93: 2017-12-02T21:30:00 | B93: 1022 | C93: -0.1 | D93: 94 | E93: 0 | F93: 0 | G93: -0.9500572817 | X93: -0.06912504961
A94: 2017-12-02T22:00:00 | B94: 1023 | C94: -0.1 | D94: 94 | E94: 0 | F94: 0 | G94: -0.9500572817 | X94: -0.06912504961
A95: 2017-12-02T22:30:00 | B95: 1023 | C95: -0.1 | D95: 94 | E95: 0 | F95: 0 | G95: -0.9500572817 | X95: -0.06912504961
A96: 2017-12-02T23:00:00 | B96: 1022 | C96: -0.1 | D96: 94 | E96: 0 | F96: 0 | G96: -0.9500572817 | X96: -0.06912504961
A97: 2017-12-02T23:30:00 | B97: 1022 | C97: -0.3 | D97: 94 | E97: 0 | F97: 0 | G97: -1.148661144 | X97: -0.08364382931
A98: 2017-12-03 | B98: 1022 | C98: -0.3 | D98: 94 | E98: 0 | F98: 0 | G98: -1.148661144 | X98: -0.08364382931
A99: 2017-12-03T00:30:00 | B99: 1022 | C99: -0.4 | D99: 94 | E99: 0 | F99: 0 | G99: -1.247963505 | X99: -0.09091219171
A100: 2017-12-03T01:00:00 | B100: 1022 | C100: -0.8 | D100: 95 | E100: 0 | F100: 0 | G100: -1.501049587 | X100: -0.1094636562
A101: 2017-12-03T01:30:00 | B101: 1022 | C101: -0.9 | D101: 94 | E101: 0 | F101: 0 | G101: -1.744479593 | X101: -0.1273440255
A102: 2017-12-03T02:00:00 | B102: 1022 | C102: -1 | D102: 95 | E102: 0 | F102: 0 | G102: -1.699894506 | X102: -0.1240664738
A103: 2017-12-03T02:30:00 | B103: 1022 | C103: -1.2 | D103: 95 | E103: 0 | F103: 0 | G103: -1.898740375 | X103: -0.1386934363
A104: 2017-12-03T03:00:00 | B104: 1022 | C104: -1.2 | D104: 95 | E104: 0 | F104: 0 | G104: -1.898740375 | X104: -0.1386934363
A105: 2017-12-03T03:30:00 | B105: 1022 | C105: -1.2 | D105: 95 | E105: 0 | F105: 0 | G105: -1.898740375 | X105: -0.1386934363
A106: 2017-12-03T04:00:00 | B106: 1022 | C106: -1.1 | D106: 95 | E106: 0 | F106: 0 | G106: -1.799317322 | X106: -0.1313769332
A107: 2017-12-03T04:30:00 | B107: 1021 | C107: -1 | D107: 95 | E107: 0 | F107: 0 | G107: -1.699894506 | X107: -0.1240664738
A108: 2017-12-03T05:00:00 | B108: 1021 | C108: -1.1 | D108: 95 | E108: 0 | F108: 0 | G108: -1.799317322 | X108: -0.1313769332
A109: 2017-12-03T05:30:00 | B109: 1021 | C109: -1 | D109: 96 | E109: 0 | F109: 0 | G109: -1.557343029 | X109: -0.113595307
A110: 2017-12-03T06:00:00 | B110: 1021 | C110: -1.1 | D110: 96 | E110: 0 | F110: 0 | G110: -1.656883268 | X110: -0.1209057664
A111: 2017-12-03T06:30:00 | B111: 1020 | C111: -1.1 | D111: 96 | E111: 0 | F111: 0 | G111: -1.656883268 | X111: -0.1209057664
A112: 2017-12-03T07:00:00 | B112: 1021 | C112: -1 | D112: 96 | E112: 0 | F112: 0 | G112: -1.557343029 | X112: -0.113595307
A113: 2017-12-03T07:30:00 | B113: 1021 | C113: -1 | D113: 95 | E113: 0 | F113: 0 | G113: -1.699894506 | X113: -0.1240664738
A114: 2017-12-03T08:00:00 | B114: 1021 | C114: -1 | D114: 95 | E114: 0 | F114: 0 | G114: -1.699894506 | X114: -0.1240664738
A115: 2017-12-03T08:30:00 | B115: 1021 | C115: -1.1 | D115: 95 | E115: 0 | F115: 0 | G115: -1.799317322 | X115: -0.1313769332
A116: 2017-12-03T09:00:00 | B116: 1021 | C116: -1.1 | D116: 95 | E116: 0 | F116: 0 | G116: -1.799317322 | X116: -0.1313769332
A117: 2017-12-03T09:30:00 | B117: 1021 | C117: -0.9 | D117: 95 | E117: 0 | F117: 0 | G117: -1.600471928 | X117: -0.1167620506
A118: 2017-12-03T10:00:00 | B118: 1021 | C118: -0.8 | D118: 96 | E118: 0 | F118: 0 | G118: -1.35826312 | X118: -0.09899248938
A119: 2017-12-03T10:30:00 | B119: 1021 | C119: -0.6 | D119: 96 | E119: 0 | F119: 0 | G119: -1.159183967 | X119: -0.0844137569
A120: 2017-12-03T11:00:00 | B120: 1021 | C120: -0.2 | D120: 95 | E120: 0 | F120: 0 | G120: -0.9045205264 | I120: 2017-12-01 | J120: 0.5 | X120: -0.06579947619
A121: 2017-12-03T11:30:00 | B121: 1021 | C121: 0.1 | D121: 95 | E121: 0 | F121: 0 | G121: -0.6062592011 | I121: 2017-12-02 | J121: 0 | X121: -0.04404817264
A122: 2017-12-03T12:00:00 | B122: 1021 | C122: 0.5 | D122: 94 | E122: 0 | F122: 0 | G122: -0.3542525543 | I122: 2017-12-03 | J122: 0 | X122: -0.02571174094
A123: 2017-12-03T12:30:00 | B123: 1020 | C123: 0.8 | D123: 92 | E123: 0 | F123: 0 | G123: -0.3525929344 | I123: 2017-12-04 | J123: 1.5 | X123: -0.02559111035
A124: 2017-12-03T13:00:00 | B124: 1020 | C124: 0.6 | D124: 89 | E124: 0 | F124: 0 | G124: -1.005211808 | I124: 2017-12-05 | J124: 14 | X124: -0.07315468913
A125: 2017-12-03T13:30:00 | B125: 1020 | C125: 0.4 | D125: 84 | E125: 1 | F125: 0 | G125: -1.989925129 | I125: 2017-12-06 | J125: 0.5 | X125: -0.1454089905
A126: 2017-12-03T14:00:00 | B126: 1019 | C126: 0.7 | D126: 79 | E126: 1 | F126: 0 | G126: -2.52789443 | I126: 2017-12-07 | J126: 0 | X126: -0.1851328403
A127: 2017-12-03T14:30:00 | B127: 1019 | C127: 1.9 | D127: 73 | E127: 3 | F127: 0 | G127: -2.432460427 | I127: 2017-12-08 | J127: 1.5 | X127: -0.178073002
A128: 2017-12-03T15:00:00 | B128: 1018 | C128: 0.9 | D128: 71 | E128: 2 | F128: 0 | G128: -3.769558639 | I128: 2017-12-09 | J128: 0 | X128: -0.2774994808
A129: 2017-12-03T15:30:00 | B129: 1019 | C129: 0.3 | D129: 71 | E129: 2 | F129: 0 | G129: -4.346842352 | I129: 2017-12-10 | J129: 0.5 | X129: -0.320770404
A130: 2017-12-03T16:00:00 | B130: 1018 | C130: 0.4 | D130: 72 | E130: 8 | F130: 0 | G130: =(243.12*X130)/(17.62-X130) -> -4.064189086 | I130: 2017-12-11 | J130: 2 | X130: =(LOG10(D130) - 2)/0.4343 + (17.62*C130 / (243.12 + C130)) -> -0.2995577117
A131: 2017-12-03T16:30:00 | B131: 1018 | C131: -0.9 | D131: 75 | E131: 6 | F131: 0 | G131: -4.776976193 | I131: 2017-12-12 | J131: 0.5 | X131: -0.3531478252
A132: 2017-12-03T17:00:00 | B132: 1018 | C132: -1.4 | D132: 79 | E132: 4 | F132: 0 | G132: -4.572892535 | I132: 2017-12-13 | J132: 0 | X132: -0.3377712994
A133: 2017-12-03T17:30:00 | B133: 1018 | C133: -1.4 | D133: 80 | E133: 0 | F133: 0 | G133: -4.405683743 | I133: 2017-12-14 | J133: 5.5 | X133: -0.3251926771
A134: 2017-12-03T18:00:00 | B134: 1018 | C134: -1.9 | D134: 80 | E134: 4 | F134: 0 | G134: -4.893339028 | I134: 2017-12-15 | J134: 3 | X134: -0.3619268864
A135: 2017-12-03T18:30:00 | B135: 1019 | C135: -2.1 | D135: 81 | E135: 3 | F135: 0 | G135: -4.923991182 | I135: 2017-12-16 | J135: 0 | X135: -0.3642408832
A136: 2017-12-03T19:00:00 | B136: 1018 | C136: -2.1 | D136: 81 | E136: 1 | F136: 0 | G136: -4.923991182 | I136: 2017-12-17 | J136: 0 | X136: -0.3642408832
A137: 2017-12-03T19:30:00 | B137: 1018 | C137: -2.3 | D137: 82 | E137: 1 | F137: 0 | G137: -4.956977845 | I137: 2017-12-18 | J137: 0.5 | X137: -0.3667317824
A138: 2017-12-03T20:00:00 | B138: 1018 | C138: -2.2 | D138: 83 | E138: 1 | F138: 0 | G138: -4.698435144 | I138: 2017-12-19 | J138: 0 | X138: -0.3472270945
A139: 2017-12-03T20:30:00 | B139: 1018 | C139: -2.2 | D139: 83 | E139: 1 | F139: 0 | G139: -4.698435144 | I139: 2017-12-20 | J139: 0.5 | X139: -0.3472270945
A140: 2017-12-03T21:00:00 | B140: 1018 | C140: -2.2 | D140: 84 | E140: 0 | F140: 0 | G140: -4.539409468 | I140: 2017-12-21 | J140: 15.5 | X140: -0.3352510556
A141: 2017-12-03T21:30:00 | B141: 1018 | C141: -2.1 | D141: 84 | E141: 1 | F141: 0 | G141: -4.441342498 | I141: 2017-12-22 | J141: 4.5 | X141: -0.3278737011
A142: 2017-12-03T22:00:00 | B142: 1017 | C142: -2.1 | D142: 85 | E142: 0 | F142: 0 | G142: -4.283860876 | I142: 2017-12-23 | J142: 0 | X142: -0.3160393938
A143: 2017-12-03T22:30:00 | B143: 1017 | C143: -2.1 | D143: 85 | E143: 0 | F143: 0 | G143: -4.283860876 | I143: 2017-12-24 | J143: 0 | X143: -0.3160393938
A144: 2017-12-03T23:00:00 | B144: 1017 | C144: -2.2 | D144: 86 | E144: 1 | F144: 0 | G144: -4.226341432 | I144: 2017-12-25 | J144: 0 | X144: -0.3117208572
A145: 2017-12-03T23:30:00 | B145: 1017 | C145: -2.2 | D145: 86 | E145: 0 | F145: 0 | G145: -4.226341432 | I145: 2017-12-26 | J145: 0 | X145: -0.3117208572
A146: 2017-12-04 | B146: 1017 | C146: -2.4 | D146: 88 | E146: 0 | F146: 0 | G146: -4.116832655 | I146: 2017-12-27 | J146: 0 | X146: -0.3035047284
A147: 2017-12-04T00:30:00 | B147: 1017 | C147: -2.4 | D147: 91 | E147: 0 | F147: 0 | G147: -3.668988293 | I147: 2017-12-28 | J147: 7 | X147: -0.2699824622
A148: 2017-12-04T01:00:00 | B148: 1017 | C148: -2.4 | D148: 91 | E148: 0 | F148: 0 | G148: -3.668988293 | I148: 2017-12-29 | J148: 0 | X148: -0.2699824622
A149: 2017-12-04T01:30:00 | B149: 1017 | C149: -2.2 | D149: 92 | E149: 0 | F149: 0 | G149: -3.324480892 | I149: 2017-12-30 | J149: 0 | X149: -0.2442804333
A150: 2017-12-04T02:00:00 | B150: 1017 | C150: -2.1 | D150: 92 | E150: 0 | F150: 0 | G150: -3.225412394 | I150: 2017-12-31 | J150: 9.5 | X150: -0.2369030788
A151: 2017-12-04T02:30:00 | B151: 1016 | C151: -2.1 | D151: 93 | E151: 0 | F151: 0 | G151: -3.080089414 | X151: -0.2260923
A152: 2017-12-04T03:00:00 | B152: 1016 | C152: -2.1 | D152: 93 | E152: 0 | F152: 0 | G152: -3.080089414 | X152: -0.2260923
A153: 2017-12-04T03:30:00 | B153: 1017 | C153: -1.9 | D153: 94 | E153: 0 | F153: 0 | G153: -2.737533211 | X153: -0.2006607878
A154: 2017-12-04T04:00:00 | B154: 1017 | C154: -1.9 | D154: 94 | E154: 0 | F154: 0 | G154: -2.737533211 | X154: -0.2006607878
A155: 2017-12-04T04:30:00 | B155: 1016 | C155: -1.9 | D155: 94 | E155: 0 | F155: 0 | G155: -2.737533211 | X155: -0.2006607878
A156: 2017-12-04T05:00:00 | B156: 1016 | C156: -1.9 | D156: 94 | E156: 0 | F156: 0 | G156: -2.737533211 | X156: -0.2006607878
A157: 2017-12-04T05:30:00 | B157: 1016 | C157: -1.7 | D157: 95 | E157: 0 | F157: 0 | G157: -2.395859202 | X157: -0.1753668702
A158: 2017-12-04T06:00:00 | B158: 1016 | C158: -1.6 | D158: 94 | E158: 0 | F158: 0 | G158: -2.439614124 | X158: -0.1786020107
A159: 2017-12-04T06:30:00 | B159: 1016 | C159: -1.5 | D159: 94 | E159: 0 | F159: 0 | G159: -2.340308333 | X159: -0.1712612577
A160: 2017-12-04T07:00:00 | B160: 1016 | C160: -1.5 | D160: 95 | E160: 0 | F160: 0 | G160: -2.197010959 | X160: -0.1606792828
A161: 2017-12-04T07:30:00 | B161: 1016 | C161: -1.5 | D161: 95 | E161: 0 | F161: 0 | G161: -2.197010959 | X161: -0.1606792828
A162: 2017-12-04T08:00:00 | B162: 1015 | C162: -1.3 | D162: 95 | E162: 0 | F162: 0 | G162: -1.998163666 | X162: -0.1460159906
A163: 2017-12-04T08:30:00 | B163: 1016 | C163: -1.2 | D163: 95 | E163: 0 | F163: 0 | G163: -1.898740375 | X163: -0.1386934363
